Workbook

Sheet Тит.лист
G1: «УТВЕРЖДЕНО»
A2: «СОГЛАСОВАНО» | G2: Директор ГБОУ "Альметьевская школа № 19 " для детей с ОВЗ
A3: ФФБУЗ " Центр гигиены и эпидимиологии в Республике Татарстан" в Альметьевском Заинском и Лениногорском районах
I7: В.П. Чумаков
A17: ДВАДЦАТИ ДНЕВНОЕ МЕНЮ
A20: Государственное бюджетное образовательное учереждение «Альметьевская школа № 19 для детей с ограниченными возможностями здоровья »
A26: на 2023-2024 учебный год/7-11лет/
G42: Ответственный:
G43: Заведующий производством
G44: Илалова Резеда Исхаковна
A49: г. Альметьевск

Sheet 1
A1: ГБОУ Альметьевская школа № 19 для детей с ОВЗ
A2: наименование учреждения
A3: Столовая
A4: подразделение | C4: Меню-раскладка
H5: Понедельник
E6: 7-11 лет
A7: Наименование | B7: Кол-во порций (план) | C7: Кол-во на порцию (гр) | D7: Общее кол-во (кг) | E7: Выход блюда (гр) | F7: Цена (руб) | G7: Общая сумма (руб) | H7: Белки | I7: Жиры | J7: Углеводы | K7: Ккал | L7: В1 | M7: С | N7: А | O7: Е | P7: Са | Q7: Р | R7: Mg | S7: Fe
A8: 09:30-10:30 Завтрак | B8: 96
A9: Сыр голландский | B9: 96 | E9: 20 | G9: =G10 -> 13.93 | H9: 4.64 | I9: 5.90 | J9: 0.00 | K9: 71.66 | L9: 0.01 | M9: 0.14 | N9: 52.00 | O9: 0.10 | P9: 176.00 | Q9: 100.00 | R9: 7.00 | S9: 0.20
A10: Сыр голландский | B10: 96 | C10: 22.000 | D10: =B10*C10/1000 -> 2.11 | F10: 633.00 | G10: =C10*F10/1000 -> 13.93
A11: Макароны отварные | B11: 96 | E11: 150 | G11: =SUM(G12:G14) -> 5.30 | H11: 5.1 | I11: 7.5 | J11: 28.5 | K11: 201.90 | L11: 0.06 | O11: 1.95 | P11: 12.00 | Q11: 34.50 | R11: 7.50 | S11: 0.75
A12: Макаронные изделия | B12: 96 | C12: 53.000 | D12: =B12*C12/1000 -> 5.088 | F12: 42.50 | G12: =C12*F12/1000 -> 2.25
A13: Масло сливочное | B13: 96 | C13: 5.000 | D13: =B13*C13/1000 -> 0.48 | F13: 606.97 | G13: =C13*F13/1000 -> 3.03
A14: Соль | B14: 96 | C14: 1.000 | D14: =B14*C14/1000 -> 0.096 | F14: 13.23 | G14: 0.01
A15: Чай с сахаром с лимоном | B15: 96 | E15: 200/15 | G15: =SUM(G16:G18) -> 2.45 | H15: 0.53 | J15: 9.47 | K15: 40.00 | M15: 0.27 | P15: 13.60 | Q15: 22.13 | R15: 1.40 | S15: 2.13
A16: Чай | B16: 96 | C16: 2.000 | D16: 0.192 | F16: 251.00 | G16: =C16*F16/1000 -> 0.50
A17: Лимон | B17: 96 | C17: 7.000 | D17: 0.672 | F17: 170.86 | G17: =C17*F17/1000 -> 1.20
A18: Сахар | B18: 96 | C18: 15.000 | D18: 1.44 | F18: 50.00 | G18: =C18*F18/1000 -> 0.75
A19: Хлеб белый в/с | B19: 96 | E19: 20 | G19: =SUM(G20) -> 3.69 | H19: 1.58 | I19: 0.2 | J19: 0.42 | K19: 46.76 | L19: 0.02 | O19: 0.26 | P19: 4.60 | Q19: 17.40 | R19: 6.60 | S19: 0.22
A20: Хлеб белый в/с | B20: 96 | C20: 90.000 | D20: =B20*C20/1000 -> 8.64 | F20: 41.00 | G20: =C20*F20/1000 -> 3.69
H21: =SUM(H9:H20) -> 11.85 | I21: =SUM(I9:I20) -> 13.60 | J21: =SUM(J9:J20) -> 38.39 | K21: =SUM(K9:K20) -> 360.32 | L21: =SUM(L9:L11:L19) -> 0.09 | M21: =SUM(M9:M11:M19) -> 0.41 | N21: =SUM(N9:N11:N19) -> 52.00 | O21: =SUM(O9:O11:O19) -> 2.31 | P21: =SUM(P9:P11:P19) -> 206.20 | Q21: =SUM(Q9:Q11:Q19) -> 174.03 | R21: =SUM(R9:R11:R19) -> 22.50 | S21: =SUM(S9:S11:S19) -> 3.30
A22: 12:00-13:00 Обед | B22: 96
A23: Сосиски в тесте | B23: 93 | E23: 100 | G23: =SUM(G24:G30) -> 23.56 | H23: 9.50 | I23: 7.50 | J23: 26.90 | K23: 217.10 | L23: 0.11 | N23: 0.01 | P23: 19.00 | Q23: 98.00 | R23: 25.00 | S23: 1.30
A24: Дрожжи | B24: 93 | C24: 2.000 | D24: =B24*C24/1000 -> 0.19 | F24: 310.00 | G24: =C24*F24/1000 -> 0.62
A25: Масло растительное | B25: 93 | C25: 1.000 | D25: 0.09 | F25: 117.00 | G25: =C25*F25/1000 -> 0.12
A26: Масло сливочное | B26: 93 | C26: 3.000 | D26: 0.28 | F26: 606.97 | G26: 1.82
A27: Мука пшеничная | B27: 93 | C27: 39.000 | D27: 3.63 | F27: 24.00 | G27: 0.94
A28: Сахар | B28: 93 | C28: 3.000 | D28: 0.28 | F28: 50.00 | G28: 0.15
A29: Сосиски | B29: 93 | C29: 51.000 | D29: 4.74 | F29: 390.07 | G29: 19.89
A30: Яйцо | B30: 93 | C30: 3.000 | D30: 0.28 | F30: 7.00 | G30: 0.02
A31: Суп гречневый с цыплятами | B31: 96 | E31: 250/25 | G31: =SUM(G32:G39) -> 12.17 | H31: 13.44 | I31: 50.00 | J31: 15.80 | K31: 164.00 | L31: 0.24 | M31: 14.40 | O31: 1.53 | P31: 20.46 | Q31: 91.92 | R31: 37.29 | S31: 1.41
A32: гречка | B32: 96 | C32: 10.000 | D32: =B32*C32/1000 -> 0.96 | F32: 90.00 | G32: =C32*F32/1000 -> 0.90
A33: Картофель | B33: 96 | C33: 67.000 | D33: 6.43 | F33: 16.90 | G33: =C33*F33/1000 -> 1.13
A34: Лук репчатый | B34: 96 | C34: 12.000 | D34: 1.15 | F34: 24.00 | G34: 0.29
A35: Цыплята | B35: 96 | C35: 46.000 | D35: 4.42 | F35: 193.00 | G35: 8.88
A36: Морковь | B36: 96 | C36: 16.000 | D36: 1.54 | F36: 22.40 | G36: 0.36
A37: Лук зеленый | B37: 96 | C37: 6.000 | D37: 0.58 | G37: 0.00
A38: Соль | B38: 96 | C38: 2.000 | D38: 0.19 | F38: 13.23 | G38: 0.03
A39: Масло растительное | B39: 96 | C39: 5.000 | D39: 0.48 | F39: 117.00 | G39: 0.59
A40: Фрикадельки куриные | B40: 96 | E40: 75/5 | G40: =SUM(G41:G46) -> 39.21 | H40: 6.67 | I40: 9.93 | J40: 31.02 | K40: 136 | L40: 0.08 | M40: 1 | N40: 20 | O40: 1.2 | P40: 26.63 | Q40: 45.38 | R40: 26.8 | S40: 3.34
A41: Цыплята | B41: 96 | C41: 183.000 | D41: =B41*C41/1000 -> 17.568 | F41: 189.00 | G41: =C41*F41/1000 -> 34.59
A42: Хлеб пшеничный | B42: 96 | C42: 12.000 | D42: 1.152 | F42: 41.00 | G42: =C42*F42/1000 -> 0.49
A43: Соль | B43: 96 | C43: 4.000 | D43: 0.384 | F43: 16.00 | G43: 0.06
A44: Перец | B44: 96 | C44: 0.001 | D44: 9.6e-05 | F44: 655.50 | G44: 0.00
A45: Молоко | B45: 96 | C45: 17.000 | F45: 60.97 | G45: 1.04
A46: Масло сливочное | B46: 96 | C46: 5.000 | D46: 0.48 | F46: 606.97 | G46: 3.03
A47: Пюре гороховое | B47: 96 | E47: 150/5 | G47: =SUM(G48:G50) -> 6.14 | H47: 23.85 | I47: 31.45 | J47: 26.28 | K47: 224.85 | L47: 0.81 | N47: 2 | O47: 0.7 | P47: 92.9 | Q47: 230.36 | R47: 107 | S47: 6.8
A48: Горох | B48: 96 | C48: 77.000 | D48: 7.392 | F48: 40.00 | G48: =C48*F48/1000 -> 3.08
A49: Масло сливочное | B49: 96 | C49: 5.000 | D49: 0.48 | F49: 606.97 | G49: =C49*F49/1000 -> 3.03
A50: Соль | B50: 96 | C50: 2.000 | D50: 0.192 | F50: 13.23 | G50: 0.03
A51: Компот из сухофруктов | B51: 96 | D51: 0.00 | E51: 200 | G51: =SUM(G52:G53) -> 2.66 | H51: 1.16 | I51: 0.30 | J51: 47.26 | K51: 196.38 | L51: 0.02 | M51: 0.80 | O51: 0.20 | P51: 32.48 | Q51: 23.44 | R51: 33.00 | S51: 0.96
A52: Смесь сухофруктов | B52: 96 | C52: 20.000 | D52: 1.92 | F52: 83.00 | G52: =C52*F52/1000 -> 1.66
A53: Сахар | B53: 96 | C53: 20.000 | D53: 1.92 | F53: 50.00 | G53: =C53*F53/1000 -> 1.00
A54: Хлеб Дарницкий | B54: 96 | E54: 48 | G54: =SUM(G55) -> 1.97 | H54: 8.46 | I54: 2.51 | J54: 44.33 | K54: 186 | L54: 0.04 | O54: 0.36 | P54: 9.20 | Q54: 42.40 | R54: 10.00 | S54: 1.24
A55: Хлеб | B55: 96 | C55: 48.000 | D55: 4.608 | F55: 41.00 | G55: =C55*F55/1000 -> 1.97
H56: =SUM(H23:H55) -> 63.08 | I56: =SUM(I23:I55) -> 101.69 | J56: =SUM(J23:J55) -> 191.59 | K56: =SUM(K23:K55) -> 1124.33 | L56: =SUM(L23:L23:L40:L55) -> 1.30 | M56: =SUM(M23:M23:M40:M55) -> 16.20 | N56: =SUM(N23:N23:N40:N55) -> 22.01 | O56: =SUM(O23:O23:O40:O55) -> 3.99 | P56: =SUM(P23:P23:P40:P55) -> 200.67 | Q56: =SUM(Q23:Q23:Q40:Q55) -> 531.50 | R56: =SUM(R23:R23:R40:R55) -> 239.09 | S56: =SUM(S23:S23:S40:S55) -> 15.05
A57: 14:30-15:00 Полдник | B57: 96
A58: Яблоки свежие | B58: 96 | E58: 180 | G58: =SUM(G59) -> 9.44 | H58: 0.3 | I58: 0.3 | J58: 6.75 | K58: 33.1 | L58: 0.02 | M58: 7.5 | O58: 0.15 | P58: 28.8 | Q58: 19.8 | R58: 6.75 | S58: 1.65
A59: Яблоки свежие | B59: 96 | C59: 139.000 | D59: =B59*C59/1000 -> 13.344 | F59: 67.90 | G59: =C59*F59/1000 -> 9.44
A60: Салат из моркови с курагой | B60: 96 | E60: 100 | G60: =SUM(G61:G63) -> 2.87 | H60: 0.8 | I60: 8 | J60: 4.1 | K60: 61.42 | L60: 0.05 | M60: 6.95 | O60: 2.49 | P60: 19.32 | Q60: 39.57 | R60: 24 | S60: 1.32
A61: Морковь | B61: 96 | C61: 117.000 | D61: =B61*C61/1000 -> 11.232 | F61: 22.40 | G61: =C61*F61/1000 -> 2.62
A62: Курага | B62: 96 | C62: 7.000 | D62: 0.672 | F62: 245.00
A63: Сахар | B63: 96 | C63: 5.000 | D63: 0.48 | F63: 50.00 | G63: 0.25
A64: Молоко кипяченое | B64: 96 | E64: 200 | G64: =SUM(G65) -> 14.26 | H64: 1.53 | I64: 0.34 | J64: 13.77 | K64: 61.20 | L64: 0.08 | M64: 2.60 | N64: 40.00 | P64: 240.00 | Q64: 180.00 | R64: 28.00 | S64: 0.20
A65: Молоко кипяченое | B65: 96 | C65: 211.000 | D65: =C65*B65/1000 -> 20.26 | F65: 67.57 | G65: =C65*F65/1000 -> 14.26
H66: =SUM(H58:H64) -> 2.63 | I66: =SUM(I58:I64) -> 8.64 | J66: 24.62 | K66: 155.72 | L66: 0.15 | M66: 17.05 | N66: 40.00 | O66: 2.64 | P66: 288.12 | Q66: 239.37 | R66: 58.75 | S66: 3.17
F67: Итого | G67: =SUM(E69*E70) -> 13213.60 | H67: =H21+H56+H66 -> 77.56 | I67: 123.93 | J67: 254.60 | K67: 1640.37 | L67: 1.54 | M67: 33.66 | N67: 114.01 | O67: 8.94 | P67: 694.99 | Q67: 944.90 | R67: 320.34 | S67: 21.52
A69: На питании состоит | E69: 96 | F69: человек
A70: Стоимость рациона питания на 1 человека составляет | E70: =SUM(G9+G11+G15+G19+G23+G31+G40+G47+G51+G54+G58+G60+G64) -> 137.64 | F70: рублей
A72: Медсестра | B72: Макаримова Ю.В. | E72: Заведующий производством | I72: Илалова Р.И.

Sheet 1 (2)
A1: ГБОУ Альметьевская школа № 19 для детей с ОВЗ
A2: наименование учреждения
A3: Столовая
A4: подразделение | C4: Меню-раскладка
H5: Понедельник
E6: 12-18 лет
A7: Наименование | B7: Кол-во порций (план) | C7: Кол-во на порцию (гр) | D7: Общее кол-во (кг) | E7: Выход блюда (гр) | F7: Цена (руб) | G7: Общая сумма (руб) | H7: Белки | I7: Жиры | J7: Углеводы | K7: Ккал | L7: В1 | M7: С | N7: А | O7: Е | P7: Са | Q7: Р | R7: Mg | S7: Fe
A8: 09:30-10:30 Завтрак | B8: 155
A9: Сыр голландский | B9: 155 | E9: 30 | G9: =G10 -> 20.26 | H9: 4.64 | I9: 5.90 | J9: 0.00 | K9: 71.66 | L9: 0.01 | M9: 0.14 | N9: 52.00 | O9: 0.10 | P9: 176.00 | Q9: 100.00 | R9: 7.00 | S9: 0.20
A10: Сыр голландский | B10: 155 | C10: 32.000 | D10: =B10*C10/1000 -> 4.96 | F10: 633.00 | G10: =C10*F10/1000 -> 20.26
A11: Макароны отварные | B11: 155 | E11: 150 | G11: =SUM(G12:G14) -> 5.30 | H11: 5.1 | I11: 7.5 | J11: 28.5 | K11: 201.90 | L11: 0.06 | O11: 1.95 | P11: 12.00 | Q11: 34.50 | R11: 7.50 | S11: 0.75
A12: Макаронные изделия | B12: 155 | C12: 53.000 | D12: =B12*C12/1000 -> 8.215 | F12: 42.50 | G12: =C12*F12/1000 -> 2.25
A13: Масло сливочное | B13: 155 | C13: 5.000 | D13: =B13*C13/1000 -> 0.78 | F13: 606.97 | G13: =C13*F13/1000 -> 3.03
A14: Соль | B14: 155 | C14: 1.000 | D14: =B14*C14/1000 -> 0.155 | F14: 16.00 | G14: 0.02
A15: Чай с сахаром с лимоном | B15: 155 | E15: 200/15 | G15: =SUM(G16:G18) -> 2.50 | H15: 0.53 | J15: 9.6 | K15: 41.60 | M15: 2.13 | P15: 15.33 | Q15: 23.20 | R15: 12.27 | S15: 2.13
A16: Чай | B16: 155 | C16: 2.000 | D16: 0.31 | F16: 275.00 | G16: =C16*F16/1000 -> 0.55
A17: Лимон | B17: 155 | C17: 7.000 | D17: 1.085 | F17: 170.86 | G17: =C17*F17/1000 -> 1.20
A18: Сахар | B18: 155 | C18: 15.000 | D18: 2.325 | F18: 50.00 | G18: =C18*F18/1000 -> 0.75
A19: Хлеб белый в/с | B19: 155 | E19: 120 | G19: =SUM(G20) -> 4.92 | H19: 11.85 | I19: 1.5 | J19: 3.15 | K19: 350.70 | L19: 0.15 | O19: 1.95 | P19: 34.50 | Q19: 130.50 | R19: 49.50 | S19: 1.65
A20: Хлеб белый в/с | B20: 155 | C20: 120.000 | D20: =B20*C20/1000 -> 18.6 | F20: 41.00 | G20: =C20*F20/1000 -> 4.92
H21: =SUM(H9:H20) -> 22.12 | I21: =SUM(I9:I20) -> 14.90 | J21: =SUM(J9:J20) -> 41.25 | K21: =SUM(K9:K20) -> 665.86 | L21: =SUM(L9:L11:L19) -> 0.22 | M21: =SUM(M9:M11:M19) -> 2.27 | N21: =SUM(N9:N11:N19) -> 52.00 | O21: =SUM(O9:O11:O19) -> 4.00 | P21: =SUM(P9:P11:P19) -> 237.83 | Q21: =SUM(Q9:Q11:Q19) -> 288.20 | R21: =SUM(R9:R11:R19) -> 76.27 | S21: =SUM(S9:S11:S19) -> 4.73
A22: 12:00-13:00 Обед | B22: 155
A23: Салат из моркови с курагой | B23: 156 | E23: 100 | G23: =SUM(G24:G26) -> 4.59 | H23: 0.8 | I23: 8 | J23: 4.1 | K23: 61.42 | L23: 0.05 | M23: 6.95 | O23: 2.49 | P23: 19.32 | Q23: 39.57 | R23: 24 | S23: 1.32
A24: Морковь | B24: 156 | C24: 117.000 | D24: =B24*C24/1000 -> 18.252 | F24: 22.40 | G24: =C24*F24/1000 -> 2.62
A25: курага | B25: 156 | C25: 7.000 | D25: 1.092 | F25: 245.00 | G25: 1.72
A26: Сахар | B26: 156 | C26: 5.000 | D26: 0.78 | F26: 50.00 | G26: 0.25
A27: Сосиски в тесте | B27: 155 | E27: 100 | G27: =SUM(G28:G34) -> 23.56 | H27: 9.50 | I27: 7.50 | J27: 26.90 | K27: 217.10 | L27: 0.11 | N27: 0.01 | P27: 19.00 | Q27: 98.00 | R27: 25.00 | S27: 1.30
A28: Дрожжи | B28: 155 | C28: 2.000 | D28: =B28*C28/1000 -> 0.31 | F28: 310.00 | G28: =C28*F28/1000 -> 0.62
A29: Масло растительное | B29: 155 | C29: 1.000 | D29: 0.16 | F29: 117.00 | G29: =C29*F29/1000 -> 0.12
A30: Масло сливочное | B30: 155 | C30: 3.000 | D30: 0.47 | F30: 606.97 | G30: 1.82
A31: Мука пшеничная | B31: 155 | C31: 39.000 | D31: 6.05 | F31: 24.00 | G31: 0.94
A32: Сахар | B32: 155 | C32: 3.000 | D32: 0.47 | F32: 50.00 | G32: 0.15
A33: Сосиски | B33: 155 | C33: 51.000 | D33: 7.91 | F33: 390.07 | G33: 19.89
A34: Яйцо | B34: 155 | C34: 3.000 | D34: 0.47 | F34: 7.00 | G34: 0.02
A35: Суп гречневый с цыплятами | B35: 155 | E35: 250/25 | G35: =SUM(G36:G43) -> 12.17 | H35: 13.44 | I35: 50.00 | J35: 15.80 | K35: 164.00 | L35: 0.24 | M35: 14.40 | O35: 1.53 | P35: 20.46 | Q35: 91.92 | R35: 37.29 | S35: 1.41
A36: гречка | B36: 155 | C36: 10.000 | D36: =B36*C36/1000 -> 1.55 | F36: 90.00 | G36: =C36*F36/1000 -> 0.90
A37: Картофель | B37: 155 | C37: 67.000 | D37: 10.39 | F37: 16.90 | G37: =C37*F37/1000 -> 1.13
A38: Лук репчатый | B38: 155 | C38: 12.000 | D38: 1.86 | F38: 24.00 | G38: 0.29
A39: Цыплята | B39: 155 | C39: 46.000 | D39: 7.13 | F39: 193.00 | G39: 8.88
A40: Морковь | B40: 155 | C40: 16.000 | D40: 2.48 | F40: 22.40 | G40: 0.36
A41: Лук зеленый | B41: 155 | C41: 6.000 | D41: 0.93 | G41: 0.00
A42: Соль | B42: 155 | C42: 2.000 | D42: 0.31 | F42: 16.00 | G42: 0.03
A43: Масло растительное | B43: 155 | C43: 5.000 | D43: 0.78 | F43: 117.00 | G43: 0.59
A44: Фрикадельки куриные | B44: 155 | E44: 100/10 | G44: =SUM(G45:G50) -> 54.95 | H44: 6.67 | I44: 9.93 | J44: 31.02 | K44: 136 | L44: 0.08 | M44: 1 | N44: 20 | O44: 1.2 | P44: 26.63 | Q44: 45.38 | R44: 26.8 | S44: 3.34
A45: Цыплята | B45: 155 | C45: 244.000 | D45: 37.82 | F45: 193.00 | G45: =C45*F45/1000 -> 47.09
A46: Хлеб пшеничный | B46: 155 | C46: 16.000 | D46: 2.48 | F46: 41.00 | G46: =C46*F46/1000 -> 0.66
A47: Соль | B47: 155 | C47: 3.000 | D47: 0.465 | F47: 16.00 | G47: 0.05
A48: Перец | B48: 155 | C48: 0.001 | D48: 0.000155 | F48: 655.50 | G48: 0.00
A49: Молоко | B49: 155 | C49: 16.000 | F49: 67.57 | G49: 1.08
A50: Масло сливочное | B50: 155 | C50: 10.000 | D50: 1.55 | F50: 606.97 | G50: 6.07
A51: Пюре гороховое | B51: 155 | E51: 200/5 | G51: =SUM(G52:G54) -> 7.19 | H51: 23.85 | I51: 31.45 | J51: 26.28 | K51: 299.8 | L51: 0.81 | N51: 2 | O51: 0.7 | P51: 92.9 | Q51: 230.36 | R51: 107 | S51: 6.8
A52: Горох | B52: 155 | C52: 103.000 | D52: 15.965 | F52: 40.00 | G52: =C52*F52/1000 -> 4.12
A53: Масло сливочное | B53: 155 | C53: 5.000 | D53: 0.775 | F53: 606.97 | G53: =C53*F53/1000 -> 3.03
A54: Соль | B54: 155 | C54: 2.000 | D54: 0.31 | F54: 16.00 | G54: 0.03
A55: Компот из сухофруктов | B55: 155 | D55: 0.00 | E55: 200 | G55: =SUM(G56:G57) -> 2.66 | H55: 1.16 | I55: 0.30 | J55: 47.26 | K55: 128.18 | L55: 0.02 | M55: 0.80 | O55: 0.20 | P55: 32.48 | Q55: 23.44 | R55: 33.00 | S55: 0.96
A56: Смесь сухофруктов | B56: 155 | C56: 20.000 | D56: 3.10 | F56: 83.00 | G56: =C56*F56/1000 -> 1.66
A57: Сахар | B57: 155 | C57: 20.000 | D57: 3.10 | F57: 50.00 | G57: =C57*F57/1000 -> 1.00
A58: Хлеб Дарницкий | B58: 155 | E58: 72 | G58: =SUM(G59) -> 2.95 | H58: 8.46 | I58: 2.51 | J58: 44.33 | K58: 186 | L58: 0.04 | O58: 0.36 | P58: 9.20 | Q58: 42.40 | R58: 10.00 | S58: 1.24
A59: Хлеб | B59: 155 | C59: 72.000 | D59: 11.16 | F59: 41.00 | G59: =C59*F59/1000 -> 2.95
H60: =SUM(H23:H59) -> 63.88 | I60: =SUM(I23:I59) -> 109.69 | J60: =SUM(J23:J59) -> 195.69 | K60: =SUM(K23:K59) -> 1192.50 | L60: =SUM(L23:L35:L44:L59) -> 1.35 | M60: =SUM(M23:M35:M44:M59) -> 23.15 | N60: =SUM(N23:N35:N44:N59) -> 22.01 | O60: =SUM(O23:O35:O44:O59) -> 6.48 | P60: =SUM(P23:P35:P44:P59) -> 219.99 | Q60: =SUM(Q23:Q35:Q44:Q59) -> 571.07 | R60: =SUM(R23:R35:R44:R59) -> 263.09 | S60: =SUM(S23:S35:S44:S59) -> 16.37
F61: Итого | G61: =SUM(E63*E64) -> 21861.15 | H61: =H21+H60 -> 86.00 | I61: 124.59 | J61: 236.94 | K61: 1858.36 | L61: 1.57 | M61: 25.42 | N61: 74.01 | O61: 10.48 | P61: 457.82 | Q61: 859.27 | R61: 339.36 | S61: 21.10
A63: На питании состоит | E63: 155 | F63: человек
A64: Стоимость рациона питания на 1 человека составляет | E64: =SUM(G9+G11+G15+G19+G23+G27+G35+G44+G51+G55+G58) -> 141.04 | F64: рублей
A66: Медсестра | B66: Макаримова Ю.В. | E66: Заведующий производством | I66: Илалова Р.И.

Sheet 2
A1: ГБОУ Альметьевская школа № 19 для детей с ОВЗ
A2: наименование учреждения
A3: Столовая
A4: подразделение | C4: Меню-раскладка
H5: Вторник
E6: 7-11 лет
A7: Наименование | B7: Кол-во порций (план) | C7: Кол-во на порцию (гр) | D7: Общее кол-во (кг) | E7: Выход блюда (гр) | F7: Цена (руб) | G7: Общая сумма (руб) | H7: Белки | I7: Жиры | J7: Углеводы | K7: Ккал | L7: В1 | M7: С | N7: А | O7: Е | P7: Са | Q7: Р | R7: Mg | S7: Fe
A8: 09:30-10:30 Завтрак | B8: 96
A9: Каша молочная манная с маслом | B9: 96 | E9: 200/10 | G9: =SUM(G10:G14) -> 14.40 | H9: 6.02 | I9: 4.05 | J9: 33.37 | K9: 194.01 | L9: 0.04 | M9: 0.36 | N9: 32.70 | O9: 0.10 | P9: 132.64 | Q9: 109.74 | R9: 17.06 | S9: 0.26
A10: Крупа манная | B10: 96 | C10: 31.000 | D10: =B10*C10/1000 -> 2.98 | F10: 40.00 | G10: =C10*F10/1000 -> 1.24
A11: Молоко | B11: 96 | C11: 100.000 | D11: =B11*C11/1000 -> 9.60 | F11: 67.57 | G11: =C11*F11/1000 -> 6.76
A12: Масло сливочное | B12: 96 | C12: 10.000 | D12: 0.96 | F12: 606.97 | G12: 6.07
A13: Сахар | B13: 96 | C13: 6.000 | D13: 0.58 | F13: 50.00 | G13: 0.30
A14: Соль | B14: 96 | C14: 2.000 | D14: 0.19 | F14: 16.00 | G14: 0.03
A15: Кисель фруктовый | B15: 96 | E15: 200 | G15: =SUM(G16) -> 2.72 | H15: 0.66 | I15: 0.26 | J15: 69.14 | K15: 200.00 | M15: 80.00 | O15: 0.18 | P15: 8.20 | Q15: 6.42 | R15: 0.96 | S15: 0,.28
A16: Кисель сухой | B16: 96 | C16: 32.000 | D16: 3.07 | F16: 85.00 | G16: =C16*F16/1000 -> 2.72
A17: Хлеб белый в/с | B17: 96 | E17: 113 | G17: =SUM(G18) -> 3.69 | H17: 12.18 | I17: 3.17 | J17: 28.5 | K17: 350.70 | L17: 0.02 | O17: 0.26 | P17: 4.60 | Q17: 17.40 | R17: 6.60 | S17: 0.22
A18: Хлеб белый в/с | B18: 96 | C18: 90.000 | D18: 8.64 | F18: 41.00 | G18: =C18*F18/1000 -> 3.69
H19: =SUM(H9:H18) -> 18.86 | I19: 7.48 | J19: 131.01 | K19: 744.71 | L19: 0.06 | M19: 80.36 | N19: 32.70 | O19: 0.54 | P19: 145.44 | Q19: 133.56 | R19: 24.62 | S19: 0.48
A20: 12:00-13:00 Обед | B20: 96
A21: Сельдь с луком | B21: 96 | E21: 30/30 | G21: =SUM(G22:G24) -> 14.42 | H21: 4.95 | I21: 7.9 | J21: 1.5 | K21: 97.10 | L21: 0.03 | M21: 70.00 | N21: 2.50 | P21: 21.20 | Q21: 81.70 | R21: 10.30 | S21: 0.41
A22: Сельдь соленая | B22: 96 | C22: 62.000 | D22: =B22*C22/1000 -> 5.95 | F22: 210.00 | G22: =C22*F22/1000 -> 13.02
A23: Масло растительное | B23: 96 | C23: 6.000 | D23: 0.58 | F23: 117.00 | G23: =C23*F23/1000 -> 0.70
A24: Лук репчатый | B24: 96 | C24: 29.000 | D24: 2.78 | F24: 24.00 | G24: 0.70
A25: Борщ из свежей капусты с цыплятами | B25: 96 | E25: 250/25 | G25: =SUM(G26:G36) -> 13.24 | H25: 1.83 | I25: 4.90 | J25: 11.75 | K25: 98.40 | L25: 0.05 | M25: 10.30 | O25: 2.40 | P25: 34.45 | Q25: 53.03 | R25: 26.20 | S25: 1.18
A26: Капуста свежая | B26: 96 | C26: 25.000 | D26: =B26*C26/1000 -> 2.4 | F26: 18.30 | G26: =C26*F26/1000 -> 0.46
A27: Картофель | B27: 96 | C27: 27.000 | D27: 2.592 | F27: 16.90 | G27: =C27*F27/1000 -> 0.46
A28: Масло растительное | B28: 96 | C28: 5.000 | D28: 0.48 | F28: 117.00 | G28: 0.59
A29: Морковь | B29: 96 | C29: 13.000 | D29: 1.248 | F29: 22.40 | G29: 0.29
A30: Лук репчатый | B30: 96 | C30: 15.000 | D30: 1.44 | F30: 24.00 | G30: 0.36
A31: Цыплята | B31: 96 | C31: 46.000 | D31: 4.416 | F31: 193.00 | G31: 8.88
A32: Сахар | B32: 96 | C32: 3.000 | D32: 0.288 | F32: 50.00 | G32: 0.15
A33: Свекла | B33: 96 | C33: 50.000 | D33: 4.8 | F33: 18.40 | G33: 0.92
A34: Сметана | B34: 96 | C34: 5.000 | D34: 0.48 | F34: 190.09 | G34: 0.95
A35: Соль | B35: 96 | C35: 2.000 | D35: 0.192 | F35: 16.00 | G35: 0.03
A36: Томатная паста | B36: 96 | C36: 3.000 | D36: 0.288 | F36: 52.00 | G36: 0.16
A37: Шницель рыбный натуральный | B37: 96 | E37: 75/7 | G37: =SUM(G38:G46) -> 30.61 | H37: 3.30 | I37: 1.20 | J37: 21.40 | K37: 111.00 | L37: 0.09 | M37: 0.50 | N37: 30.00 | O37: 4.10 | P37: 35.69 | Q37: 110.39 | R37: 26.90 | S37: 1.40
A38: Рыба св/треска/ | B38: 96 | C38: 87.000 | D38: =B38*C38/1000 -> 8.35 | F38: 284.00 | G38: =C38*F38/1000 -> 24.71
A39: Лук репчатый | B39: 96 | C39: 15.000 | D39: 1.44 | F39: 24.00 | G39: =C39*F39/1000 -> 0.36
A40: Зелень | B40: 96 | C40: 2.000 | D40: 0.19 | G40: 0.00
A41: Молоко | B41: 96 | C41: 6.000 | D41: 0.58 | F41: 67.57 | G41: 0.41
A42: Яйца | B42: 96 | C42: 3.000 | D42: 0.29 | F42: 7.00 | G42: 0.02
A43: Сухари панировочные | B43: 96 | C43: 9.000 | D43: 0.86 | F43: 0.00 | G43: 0.00
A44: Соль | B44: 96 | C44: 3.000 | D44: 0.29 | F44: 16.00 | G44: 0.05
A45: Масло сливочное | B45: 96 | C45: 7.000 | D45: 0.67 | F45: 606.97 | G45: 4.25
A46: Масло растительное | B46: 96 | C46: 7.000 | D46: 0.67 | F46: 117.00 | G46: 0.82
A47: Картофельное пюре | B47: 96 | E47: 150 | G47: =SUM(G48:G51) -> 7.58 | H47: 3.08 | I47: 2.33 | J47: 19.13 | K47: 109.73 | L47: 1.16 | M47: 3.75 | N47: 33.15 | O47: 0.15 | P47: 38.25 | Q47: 76.95 | R47: 26.70 | S47: 0.86
A48: Картофель | B48: 96 | C48: 171.000 | D48: 16.42 | F48: 16.90 | G48: =C48*F48/1000 -> 2.89
A49: Масло сливочное | B49: 96 | C49: 5.000 | D49: 0.48 | F49: 606.97 | G49: =C49*F49/1000 -> 3.03
A50: Соль | B50: 96 | C50: 2.000 | D50: 0.19 | F50: 16.00 | G50: 0.03
A51: Молоко | B51: 96 | C51: 24.000 | D51: 2.30 | F51: 67.57 | G51: 1.62
A52: Сок натуральный | B52: 96 | E52: 200 | G52: =SUM(G53) -> 7.00 | H52: 8.46 | I52: 2.51 | J52: 44.33 | K52: 186 | L52: 0.02 | M52: 4 | O52: 0.2 | P52: 14 | Q52: 14 | R52: 8 | S52: 2.8
A53: Сок | B53: 96 | C53: 200.000 | D53: 19.20 | F53: 35 | G53: =C53*F53/1000 -> 7.00
A54: Хлеб Дарницкий | B54: 96 | E54: 48 | G54: =SUM(G55) -> 1.97 | H54: 0.78 | I54: 0.58 | J54: 21.15 | K54: 81.50 | L54: 0.04 | O54: 0.36 | P54: 9.20 | Q54: 42.40 | R54: 10.00 | S54: 1.24
A55: Хлеб | B55: 96 | C55: 48.000 | D55: =B55*C55/1000 -> 4.61 | F55: 41.00 | G55: =C55*F55/1000 -> 1.97
H56: =SUM(H21:H37:H47:H47:H52:H55) -> 22.40 | I56: =SUM(I21:I37:I47:I47:I52:I55) -> 19.42 | J56: =SUM(J21:J37:J47:J47:J52:J55) -> 119.26 | K56: =SUM(K21:K37:K47:K47:K52:K55) -> 683.73 | L56: =SUM(L21:L37:L47:L47:L52:L55) -> 1.39 | M56: =SUM(M21:M37:M47:M47:M52:M55) -> 88.55 | N56: =SUM(N21:N37:N47:N47:N52:N55) -> 65.65 | O56: =SUM(O21:O37:O47:O47:O52:O55) -> 7.21 | P56: =SUM(P21:P37:P47:P47:P52:P55) -> 152.79 | Q56: =SUM(Q21:Q37:Q47:Q47:Q52:Q55) -> 378.47 | R56: =SUM(R21:R37:R47:R47:R52:R55) -> 108.10 | S56: =SUM(S21:S37:S47:S47:S52:S55) -> 7.89
A57: 14:30-15:00 Полдник | B57: 96
A58: Вафли | B58: 96 | E58: 18 | G58: =SUM(G59) -> 2.88 | H58: 0.77 | I58: 6.07 | J58: 15.00 | K58: 118.00 | P58: 8.00 | Q58: 42.00 | R58: 6.00 | S58: 0.60
A59: Вафли | B59: 96 | C59: 18.000 | D59: =B59*C59/1000 -> 1.73 | F59: 160.00 | G59: =C59*F59/1000 -> 2.88
A60: Молоко кипяченое | B60: 96 | E60: 200 | G60: =SUM(G61) -> 14.26 | H60: 1.53 | I60: 0.34 | J60: 13.77 | K60: 61.20 | L60: 0.08 | M60: 2.60 | N60: 40.00 | P60: 240.00 | Q60: 180.00 | R60: 28.00 | S60: 0.20
A61: Молоко кипяченое | B61: 96 | C61: 211.000 | D61: =C61*B61/1000 -> 20.26 | F61: 67.57 | G61: =C61*F61/1000 -> 14.26
H62: =SUM(H58:H60) -> 2.30 | I62: 6.41 | J62: 28.77 | K62: 179.20 | L62: 0.08 | M62: 2.60 | N62: 40.00 | O62: 0.00 | P62: 248.00 | Q62: 222.00 | R62: 34.00 | S62: 0.80
F63: Итого | G63: =E65*E66 -> 10824.68 | H63: =SUM(H19+H56+H62) -> 43.56 | I63: 33.31 | J63: 279.04 | K63: 1607.64 | L63: 1.53 | M63: 171.51 | N63: 138.35 | O63: 7.75 | P63: 546.23 | Q63: 734.03 | R63: 166.72 | S63: 9.17
A65: На питании состоит | E65: 96 | F65: человек
A66: Стоимость рациона питания на 1 человека составляет | E66: =SUM(G9+G58+G15+G17+G21+G25+G37+G47+G52+G54+G60) -> 112.76 | F66: рублей
A68: Медсестра | B68: Макаримова Ю.В. | E68: Заведующий производством | I68: Илалова Р.И.

Sheet 2 (2)
A1: ГБОУ Альметьевская школа № 19 для детей с ОВЗ
A2: наименование учреждения
A3: Столовая
A4: подразделение | C4: Меню-раскладка
H5: Вторник
E6: 12-18 лет
A7: Наименование | B7: Кол-во порций (план) | C7: Кол-во на порцию (гр) | D7: Общее кол-во (кг) | E7: Выход блюда (гр) | F7: Цена (руб) | G7: Общая сумма (руб) | H7: Белки | I7: Жиры | J7: Углеводы | K7: Ккал | L7: В1 | M7: С | N7: А | O7: Е | P7: Са | Q7: Р | R7: Mg | S7: Fe
A8: 09:30-10:30 Завтрак | B8: 155
A9: Каша молочная манная с маслом | B9: 155 | E9: 200/10 | G9: =SUM(G10:G14) -> 14.40 | H9: 6.02 | I9: 4.05 | J9: 33.37 | K9: 194.01 | L9: 0.04 | M9: 0.36 | N9: 32.70 | O9: 0.10 | P9: 132.64 | Q9: 109.74 | R9: 17.06 | S9: 0.26
A10: Крупа манная | B10: 155 | C10: 31.000 | D10: =B10*C10/1000 -> 4.81 | F10: 40.00 | G10: =C10*F10/1000 -> 1.24
A11: Молоко | B11: 155 | C11: 100.000 | D11: =B11*C11/1000 -> 15.50 | F11: 67.57 | G11: =C11*F11/1000 -> 6.76
A12: Масло сливочное | B12: 155 | C12: 10.000 | D12: 1.55 | F12: 606.97 | G12: 6.07
A13: Сахар | B13: 155 | C13: 6.000 | D13: 0.93 | F13: 50.00 | G13: 0.30
A14: Соль | B14: 155 | C14: 2.000 | D14: 0.31 | F14: 16.00 | G14: 0.03
A15: Кисель фруктовый | B15: 155 | E15: 200 | G15: =SUM(G16) -> 1.82 | H15: 0.66 | I15: 0.26 | J15: 69.14 | K15: 200.00 | M15: 80.00 | O15: 0.18 | P15: 8.20 | Q15: 6.42 | R15: 0.96 | S15: 0,.28
A16: Кисель сухой | B16: 155 | C16: 32.000 | D16: 4.96 | F16: 57.00 | G16: =C16*F16/1000 -> 1.82
A17: Хлеб белый в/с | B17: 155 | E17: 150 | G17: =SUM(G18) -> 4.92 | H17: 12.18 | I17: 3.17 | J17: 28.5 | K17: 350.70 | L17: 0.02 | O17: 0.26 | P17: 4.60 | Q17: 17.40 | R17: 6.60 | S17: 0.22
A18: Хлеб белый в/с | B18: 155 | C18: 120.000 | D18: 18.60 | F18: 41.00 | G18: =C18*F18/1000 -> 4.92
H19: =SUM(H9:H18) -> 18.86 | I19: 7.48 | J19: 131.01 | K19: 744.71 | L19: 0.06 | M19: 80.36 | N19: 32.70 | O19: 0.54 | P19: 145.44 | Q19: 133.56 | R19: 24.62 | S19: 0.48
A20: 12:00-13:00 Обед | B20: 155
A21: Сельдь с луком | B21: 155 | E21: 30/30 | G21: =SUM(G22:G24) -> 14.30 | H21: 4.95 | I21: 7.9 | J21: 1.5 | K21: 97.10 | L21: 0.03 | M21: 70.00 | N21: 2.50 | P21: 21.20 | Q21: 81.70 | R21: 10.30 | S21: 0.41
A22: Сельдь соленая | B22: 155 | C22: 62.000 | D22: =B22*C22/1000 -> 9.61 | F22: 210.00 | G22: =C22*F22/1000 -> 13.02
A23: Масло растительное | B23: 155 | C23: 5.000 | D23: 0.78 | F23: 117.00 | G23: =C23*F23/1000 -> 0.59
A24: Лук репчатый | B24: 155 | C24: 29.000 | D24: 4.50 | F24: 24.00 | G24: 0.70
A25: Борщ из свежей капусты с цыплятами | B25: 155 | G25: =SUM(G26:G36) -> 13.24 | H25: 1.83 | I25: 4.90 | J25: 11.75 | K25: 98.40 | L25: 0.05 | M25: 10.30 | O25: 2.40 | P25: 34.45 | Q25: 53.03 | R25: 26.20 | S25: 1.18
A26: Капуста свежая | B26: 155 | C26: 25.000 | D26: =B26*C26/1000 -> 3.875 | F26: 18.30 | G26: =C26*F26/1000 -> 0.46
A27: Картофель | B27: 155 | C27: 27.000 | D27: 4.185 | F27: 16.90 | G27: =C27*F27/1000 -> 0.46
A28: Масло растительное | B28: 155 | C28: 5.000 | D28: 0.775 | F28: 117.00 | G28: 0.59
A29: Морковь | B29: 155 | C29: 13.000 | D29: 2.015 | F29: 22.40 | G29: 0.29
A30: Лук репчатый | B30: 155 | C30: 15.000 | D30: 2.325 | F30: 24.00 | G30: 0.36
A31: Цыплята | B31: 155 | C31: 46.000 | D31: 7.13 | F31: 193.00 | G31: 8.88
A32: Сахар | B32: 155 | C32: 3.000 | D32: 0.465 | F32: 50.00 | G32: 0.15
A33: Свекла | B33: 155 | C33: 50.000 | D33: 7.75 | F33: 18.40 | G33: 0.92
A34: Сметана | B34: 155 | C34: 5.000 | D34: 0.775 | F34: 190.09 | G34: 0.95
A35: Соль | B35: 155 | C35: 2.000 | D35: 0.31 | F35: 16.00 | G35: 0.03
A36: Томатная паста | B36: 155 | C36: 3.000 | D36: 0.465 | F36: 52.00 | G36: 0.16
A37: Шницель рыбный натуральный | B37: 155 | E37: 100/10 | G37: =SUM(G38:G46) -> 22.74 | H37: 3.30 | I37: 1.20 | J37: 21.40 | K37: 111.00 | L37: 0.09 | M37: 0.50 | N37: 30.00 | O37: 4.10 | P37: 35.69 | Q37: 110.39 | R37: 26.90 | S37: 1.40
A38: Рыба св/треска/ | B38: 155 | C38: 116.000 | D38: =B38*C38/1000 -> 17.98 | F38: 124.00 | G38: =C38*F38/1000 -> 14.38
A39: Лук репчатый | B39: 155 | C39: 20.000 | D39: 3.10 | F39: 24.00 | G39: =C39*F39/1000 -> 0.48
A40: Зелень | B40: 155 | C40: 2.000 | D40: 0.31 | G40: 0.00
A41: Молоко | B41: 155 | C41: 8.000 | D41: 1.24 | F41: 67.57 | G41: 0.54
A42: Яйца | B42: 155 | C42: 4.000 | D42: 0.62 | F42: 7.00 | G42: 0.03
A43: Сухари панировочные | B43: 155 | C43: 12.000 | D43: 1.86 | F43: 0.00 | G43: 0.00
A44: Соль | B44: 155 | C44: 4.000 | D44: 0.62 | F44: 16.00 | G44: 0.06
A45: Масло сливочное | B45: 155 | C45: 10.000 | D45: 1.55 | F45: 606.97 | G45: 6.07
A46: Масло растительное | B46: 155 | C46: 10.000 | D46: 1.55 | F46: 117.00 | G46: 1.17
A47: Картофельное пюре | B47: 155 | E47: 200 | G47: =SUM(G48:G51) -> 8.52 | H47: 3.08 | I47: 2.33 | J47: 19.13 | K47: 109.73 | L47: 1.16 | M47: 3.75 | N47: 33.15 | O47: 0.15 | P47: 38.25 | Q47: 76.95 | R47: 26.70 | S47: 0.86
A48: Картофель | B48: 155 | C48: 227.000 | D48: 35.19 | F48: 16.90 | G48: =C48*F48/1000 -> 3.84
A49: Масло сливочное | B49: 155 | C49: 5.000 | D49: 0.78 | F49: 606.97 | G49: =C49*F49/1000 -> 3.03
A50: Соль | B50: 155 | C50: 2.000 | D50: 0.31 | F50: 16.00 | G50: 0.03
A51: Молоко | B51: 155 | C51: 24.000 | D51: 3.72 | F51: 67.57 | G51: 1.62
A52: Сок | B52: 155 | E52: 200 | G52: =SUM(G53) -> 7.00 | H52: 8.46 | I52: 2.51 | J52: 44.33 | K52: 186 | L52: 0.02 | M52: 4 | O52: 0.2 | P52: 14 | Q52: 14 | R52: 8 | S52: 2.8
A53: Сок | B53: 155 | C53: 200.000 | D53: 31.00 | F53: 35 | G53: =C53*F53/1000 -> 7.00
A54: Хлеб Дарницкий | B54: 155 | E54: 72 | G54: =SUM(G55) -> 2.95 | H54: 0.78 | I54: 0.58 | J54: 21.15 | K54: 81.50 | L54: 0.04 | O54: 0.36 | P54: 9.20 | Q54: 42.40 | R54: 10.00 | S54: 1.24
A55: Хлеб | B55: 155 | C55: 72.000 | D55: =B55*C55/1000 -> 11.16 | F55: 41.00 | G55: =C55*F55/1000 -> 2.95
H56: =SUM(H21:H37:H47:H47:H52:H55) -> 22.40 | I56: =SUM(I21:I37:I47:I47:I52:I55) -> 19.42 | J56: =SUM(J21:J37:J47:J47:J52:J55) -> 119.26 | K56: =SUM(K21:K37:K47:K47:K52:K55) -> 683.73 | L56: =SUM(L21:L37:L47:L47:L52:L55) -> 1.39 | M56: =SUM(M21:M37:M47:M47:M52:M55) -> 88.55 | N56: =SUM(N21:N37:N47:N47:N52:N55) -> 65.65 | O56: =SUM(O21:O37:O47:O47:O52:O55) -> 7.21 | P56: =SUM(P21:P37:P47:P47:P52:P55) -> 152.79 | Q56: =SUM(Q21:Q37:Q47:Q47:Q52:Q55) -> 378.47 | R56: =SUM(R21:R37:R47:R47:R52:R55) -> 108.10 | S56: =SUM(S21:S37:S47:S47:S52:S55) -> 7.89
A57: Груши свежие | B57: 155 | E57: 100 | G57: =SUM(G58) -> 13.50 | H57: 7.73 | I57: 8.09 | J57: 31.87 | K57: 47.00 | L57: 0.02 | M57: 3.75 | O57: 0.30 | P57: 36.86 | Q57: 21.34 | R57: 9.00 | S57: 1.73
A58: Груши свежие | B58: 155 | C58: 100.000 | D58: =B58*C58/1000 -> 15.50 | F58: 135 | G58: =C58*F58/1000 -> 13.50
H59: =SUM(H57:H58) -> 7.73 | I59: 8.09 | J59: 31.87 | K59: 47.00 | L59: 0.02 | M59: 3.75 | N59: 0.00 | O59: 0.30 | P59: 36.86 | Q59: 21.34 | R59: 9.00 | S59: 1.73
F60: Итого | G60: =E62*E63 -> 16025.95 | H60: =SUM(H19+H56+H59) -> 48.99 | I60: 34.99 | J60: 282.14 | K60: 1475.44 | L60: 1.47 | M60: 172.66 | N60: 98.35 | O60: 8.05 | P60: 335.09 | Q60: 533.37 | R60: 141.72 | S60: 10.10
A62: На питании состоит | E62: 155 | F62: человек
A63: Стоимость рациона питания на 1 человека составляет | E63: =SUM(G9+G15+G17+G21+G25+G37+G47+G52+G54+G57) -> 103.39 | F63: рублей
A65: Медсестра | B65: Макаримова Ю.В. | E65: Заведующий производством | I65: Илалова Р.И.

Sheet 3
A1: ГБОУ Альметьевская школа № 19 для детей с ОВЗ
A2: наименование учреждения
A3: Столовая
A4: подразделение | C4: Меню-раскладка
H5: Среда
E6: 7-11 лет
A7: Наименование | B7: Кол-во порций (план) | C7: Кол-во на порцию (гр) | D7: Общее кол-во (кг) | E7: Выход блюда (гр) | F7: Цена (руб) | G7: Общая сумма (руб) | H7: Белки | I7: Жиры | J7: Углеводы | K7: Ккал | L7: В1 | M7: С | N7: А | O7: Е | P7: Са | Q7: Р | R7: Mg | S7: Fe
A8: 09:30-10:30 Завтрак | B8: 96
A9: Запеканка творожная со сгущенкой | B9: 96 | E9: 100/20 | G9: =SUM(G10:G18) -> 43.74 | H9: 16.50 | I9: 29.55 | J9: 36.45 | K9: 313.00 | L9: 0.11 | M9: 0.36 | N9: 108.00 | O9: 1.44 | P9: 234.00 | Q9: 338.40 | R9: 39.60 | S9: 1.62
A10: Масло сливочное | B10: 96 | C10: 4.000 | D10: =B10*C10/1000 -> 0.38 | F10: 606.97 | G10: =C10*F10/1000 -> 2.43
A11: Сахар | B11: 96 | C11: 8.000 | D11: 0.77 | F11: 50.00 | G11: 0.40
A12: Крупа манная | B12: 96 | C12: 6.000 | D12: 0.58 | F12: 40.00 | G12: 0.24
A13: Творог | B13: 96 | C13: 94.000 | D13: 9.02 | F13: 390.07 | G13: 36.67
A14: Яйцо | B14: 96 | C14: 4.000 | D14: 0.38 | F14: 7.00 | G14: 0.03
A15: Сметана | B15: 96 | C15: 4.000 | D15: 0.38 | F15: 190.09 | G15: 0.76
A16: Ванилин | B16: 96 | C16: 0.003 | D16: 0.00 | G16: 0.00
A17: Сгущеное молоко | B17: 96 | C17: 20.000 | D17: 1.92 | F17: 160.80 | G17: 3.22
A18: Сухари панировочные | B18: 96 | C18: 6.000 | D18: 0.58 | F18: 0.00 | G18: 0.00
A19: Какао с молоком | B19: 96 | E19: 200 | G19: =SUM(G20:G22) -> 8.46 | H19: 3.78 | I19: 0.67 | J19: 26.00 | K19: 125.11 | L19: 0.02 | M19: 1.33 | P19: 133.33 | Q19: 111.11 | R19: 25.56 | S19: 2.00
A20: какао | B20: 96 | C20: 4.000 | D20: =B20*C20/1000 -> 0.38 | F20: 175.00 | G20: =C20*F20/1000 -> 0.70
A21: Молоко | B21: 96 | C21: 100.000 | D21: =B21*C21/1000 -> 9.60 | F21: 67.57 | G21: =C21*F21/1000 -> 6.76
A22: Сахар | B22: 96 | C22: 20.000 | D22: 1.92 | F22: 50.00 | G22: 1.00
A23: Хлеб белый в/с | B23: 96 | E23: 90 | G23: =SUM(G24) -> 3.69 | H23: 12.18 | I23: 3.17 | J23: 28.5 | K23: 363.00 | L23: 0.02 | O23: 0.26 | P23: 4.60 | Q23: 17.40 | R23: 6.60 | S23: 0.22
A24: Хлеб белый в/с | B24: 96 | C24: 90.000 | D24: =B24*C24/1000 -> 8.64 | F24: 41.00 | G24: =C24*F24/1000 -> 3.69
H25: =SUM(H9:H24) -> 32.46 | I25: =SUM(I9:I24) -> 33.39 | J25: =SUM(J9:J24) -> 90.95 | K25: =SUM(K9:K24) -> 801.11 | L25: =SUM(L9:L24) -> 0.15 | M25: 1.69 | N25: 108.00 | O25: 1.70 | P25: 371.93 | Q25: 466.91 | R25: 71.76 | S25: 3.84
A26: 12:00-13:00 Обед | B26: 96
A27: Салат из свеклы отварной | B27: 96 | E27: 75 | G27: =G28+G29 -> 2.26 | H27: 1.37 | I27: 1.75 | J27: 7.73 | K27: 37 | L27: 0.02 | M27: 7.32 | N27: 39 | O27: 2.36 | P27: 168.45 | Q27: 120.4 | R27: 26.4 | S27: 1.53
A28: Свекла | B28: 96 | C28: 91.000 | D28: =B28*C28/1000 -> 8.74 | F28: 18.40 | G28: =C28*F28/1000 -> 1.67
A29: Масло растительное | B29: 96 | C29: 5.000 | D29: 0.48 | F29: 117.00 | G29: 0.59
A30: Щи из свежей капусты с цыплятами | B30: 96 | E30: 250/25 | G30: =SUM(G31:G40) -> 13.03 | H30: 1.8 | I30: 4.98 | J30: 8.13 | K30: 84.48 | L30: 0.08 | M30: 18.48 | O30: 2.38 | P30: 33.98 | Q30: 47.43 | R30: 22.2 | S30: 0.83
A31: Капуста свежая | B31: 96 | C31: 63.000 | D31: =B31*C31/1000 -> 6.05 | F31: 18.30 | G31: =C31*F31/1000 -> 1.15
A32: Картофель | B32: 96 | C32: 40.000 | D32: =B32*C32/1000 -> 3.84 | F32: 16.90 | G32: =C32*F32/1000 -> 0.68
A33: Лук репчатый | B33: 96 | C33: 12.000 | D33: 1.15 | F33: 24.00 | G33: 0.29
A34: Цыплята | B34: 96 | C34: 46.000 | D34: 4.42 | F34: 193.00 | G34: 8.88
A35: Лук зеленый | B35: 96 | C35: 3.000 | D35: 0.29 | G35: 0.00
A36: Морковь | B36: 96 | C36: 13.000 | D36: 1.25 | F36: 22.40 | G36: 0.29
A37: Сметана | B37: 96 | C37: 5.000 | D37: 0.48 | F37: 190.09 | G37: 0.95
A38: Паста томатная | B38: 96 | C38: 3.000 | D38: 0.29 | F38: 52.00 | G38: 0.16
A39: Соль | B39: 96 | C39: 3.000 | D39: 0.29 | F39: 16.00 | G39: =C39*F39/1000 -> 0.05
A40: Масло растительное | B40: 96 | C40: 5.000 | D40: 0.48 | F40: 117.00 | G40: 0.59
A41: Котлеты говяжьи | B41: 96 | E41: 75/7 | G41: =SUM(G42:G47) -> 34.62 | H41: 6.04 | I41: 6.17 | J41: 1.42 | K41: 85.34 | L41: 0.08 | M41: 0.27 | N41: 4.67 | O41: 0.93 | P41: 21.57 | Q41: 94.4 | R41: 26.67 | S41: 1.87
A42: Говядина(котлетное мясо | B42: 96 | C42: 75.000 | D42: =B42*C42/1000 -> 7.20 | F42: 370.00 | G42: =C42*F42/1000 -> 27.75
A43: молоко | B43: 96 | C43: 18.000 | D43: 1.73 | F43: 67.57 | G43: =C43*F43/1000 -> 1.22
A44: хлеб пшеничный | B44: 96 | C44: 13.500 | D44: 1.30 | F44: 41.00 | G44: 0.55
A45: Масло сливочное | B45: 96 | C45: 7.000 | D45: 0.67 | F45: 606.97 | G45: 4.25
A46: Соль | B46: 96 | C46: 2.000 | D46: 0.19 | F46: 16.00 | G46: 0.03
A47: Масло растительное | B47: 96 | C47: 7.000 | D47: 0.67 | F47: 117.00 | G47: 0.82
A48: Каша гречневая | B48: 96 | E48: 150 | G48: =SUM(G49:G51) -> 9.14 | H48: 4.50 | I48: 2.30 | J48: 25.00 | K48: 198.00 | L48: 0.20 | P48: 9.88 | Q48: 135.95 | R48: 140.00 | S48: 5.01
A49: Крупа гречка | B49: 96 | C49: 71.000 | D49: 6.82 | F49: 43.00 | G49: =C49*F49/1000 -> 3.05
A50: Масло сливочное | B50: 96 | C50: 10.000 | D50: 0.96 | F50: 606.97 | G50: =C50*F50/1000 -> 6.07
A51: Соль | B51: 96 | C51: 1.000 | D51: 0.10 | F51: 16.00 | G51: 0.02
A52: Компот из сухофруктов | B52: 96 | D52: 0.00 | E52: 200 | G52: =SUM(G53:G54) -> 2.66 | H52: 1.16 | I52: 0.30 | J52: 47.26 | K52: 196.38 | L52: 0.02 | M52: 0.80 | O52: 0.20 | P52: 32.48 | Q52: 23.44 | R52: 33.00 | S52: 0.96
A53: Смесь сухофруктов | B53: 96 | C53: 20.000 | D53: 1.92 | F53: 83.00 | G53: =C53*F53/1000 -> 1.66
A54: Сахар | B54: 96 | C54: 20.000 | D54: 1.92 | F54: 50.00 | G54: =C54*F54/1000 -> 1.00
A55: Хлеб Дарницкий | B55: 96 | D55: 0.00 | E55: 90 | G55: =SUM(G56) -> 1.97 | H55: 8.46 | I55: 2.51 | J55: 44.33 | K55: 186 | L55: 0.04 | O55: 0.36 | P55: 9.20 | Q55: 42.40 | R55: 10.00 | S55: 1.24
A56: Хлеб | B56: 96 | C56: 48.000 | D56: 4.61 | F56: 41.00 | G56: =C56*F56/1000 -> 1.97
B57: 96 | H57: =SUM(H30:H56) -> 21.96 | I57: =SUM(I30:I56) -> 16.26 | J57: =SUM(J30:J56) -> 126.14 | K57: =SUM(K30:K56) -> 750.20 | L57: =SUM(L30:L56) -> 0.42 | M57: 19.55 | N57: 4.67 | O57: 3.87 | P57: 107.11 | Q57: 343.62 | R57: 231.87 | S57: 9.91
A58: 14:30-15:00 Полдник | B58: 96
A59: Апельсин | B59: 96 | E59: 250 | G59: =SUM(G60) -> 15.11 | H59: 1.53 | I59: 0.34 | J59: 13.77 | K59: 135.00 | L59: 0.04 | M59: 64.29 | O59: 0.21 | P59: 59.50 | Q59: 18.70 | R59: 13.93 | S59: 0.32
A60: Апельсин | B60: 96 | C60: 170.000 | D60: =C60*B60/1000 -> 16.32 | F60: 88.9 | G60: =C60*F60/1000 -> 15.11
A61: Молоко кипяченое | B61: 96 | E61: 200 | G61: =SUM(G62) -> 14.26 | H61: 1.53 | I61: 0.34 | J61: 13.77 | K61: 61.20 | L61: 0.08 | M61: 2.60 | N61: 40.00 | P61: 240.00 | Q61: 180.00 | R61: 28.00 | S61: 0.20
A62: Молоко кипяченое | B62: 96 | C62: 211.000 | D62: =C62*B62/1000 -> 20.26 | F62: 67.57 | G62: =C62*F62/1000 -> 14.26
H63: =SUM(H59:H62) -> 3.06 | I63: =SUM(I59:I62) -> 0.68 | J63: 27.54 | K63: 196.20 | L63: 0.12 | M63: 66.89 | N63: 40.00 | O63: 0.21 | P63: 299.50 | Q63: 198.70 | R63: 41.93 | S63: 0.52
F64: Итого | G64: =E66*E67 -> 14297.02 | H64: =H25+H57+H63 -> 57.48 | I64: 50.33 | J64: 244.63 | K64: 1747.51 | L64: 0.69 | M64: 88.13 | N64: 152.67 | O64: 5.78 | P64: 778.54 | Q64: 1009.23 | R64: 345.56 | S64: 14.27
A66: На питании состоит | E66: 96 | F66: человек
A67: Стоимость рациона питания на 1 человека составляет | E67: =SUM(G9+G19+G23+G27+G30+G41+G48+G52+G59+G55+G61) -> 148.93 | F67: рублей
A69: Медсестра | B69: Макаримова Ю.В. | E69: Заведующий производством | I69: Илалова Р.И.

Sheet 3 (2)
A1: ГБОУ Альметьевская школа № 19 для детей с ОВЗ
A2: наименование учреждения
A3: Столовая
A4: подразделение | C4: Меню-раскладка
H5: Среда
E6: 12-18 лет
A7: Наименование | B7: Кол-во порций (план) | C7: Кол-во на порцию (гр) | D7: Общее кол-во (кг) | E7: Выход блюда (гр) | F7: Цена (руб) | G7: Общая сумма (руб) | H7: Белки | I7: Жиры | J7: Углеводы | K7: Ккал | L7: В1 | M7: С | N7: А | O7: Е | P7: Са | Q7: Р | R7: Mg | S7: Fe
A8: 09:30-10:30 Завтрак | B8: 155
A9: Запеканка творожная с повидлом | B9: 155 | E9: 150/30 | G9: =SUM(G10:G18) -> 65.61 | H9: 16.50 | I9: 29.55 | J9: 36.45 | K9: 469.00 | L9: 0.11 | M9: 0.36 | N9: 108.00 | O9: 1.44 | P9: 234.00 | Q9: 338.40 | R9: 39.60 | S9: 1.62
A10: Масло сливочное | B10: 155 | C10: 6.000 | D10: =B10*C10/1000 -> 0.93 | F10: 606.97 | G10: =C10*F10/1000 -> 3.64
A11: Сахар | B11: 155 | C11: 12.000 | D11: 1.86 | F11: 50.00 | G11: 0.60
A12: Крупа манная | B12: 155 | C12: 9.000 | D12: 1.40 | F12: 40.00 | G12: 0.36
A13: Творог | B13: 155 | C13: 141.000 | D13: 21.86 | F13: 390.07 | G13: 55.00
A14: Яйцо | B14: 155 | C14: 6.000 | D14: 0.93 | F14: 7.00 | G14: 0.04
A15: Сметана | B15: 155 | C15: 6.000 | D15: 0.93 | F15: 190.09 | G15: 1.14
A16: Ванилин | B16: 155 | C16: 0.003 | D16: 0.00 | G16: 0.00
A17: Сгущеное молоко | B17: 155 | C17: 30.000 | D17: 4.65 | F17: 160.80 | G17: 4.82
A18: Сухари панировочные | B18: 155 | C18: 6.000 | D18: 0.93 | F18: 0.00 | G18: 0.00
A19: Какао с молоком | B19: 155 | E19: 200 | G19: =SUM(G20:G22) -> 8.46 | H19: 3.78 | I19: 0.67 | J19: 26.00 | K19: 125.11 | L19: 0.02 | M19: 1.33 | P19: 133.33 | Q19: 111.11 | R19: 25.56 | S19: 2.00
A20: какао | B20: 155 | C20: 4.000 | D20: =B20*C20/1000 -> 0.62 | F20: 175.00 | G20: =C20*F20/1000 -> 0.70
A21: Молоко | B21: 155 | C21: 100.000 | D21: =B21*C21/1000 -> 15.50 | F21: 67.57 | G21: =C21*F21/1000 -> 6.76
A22: Сахар | B22: 155 | C22: 20.000 | D22: 3.10 | F22: 50.00 | G22: 1.00
A23: Хлеб белый в/с | B23: 155 | E23: 120 | G23: =SUM(G24) -> 4.92 | H23: 12.18 | I23: 3.17 | J23: 28.5 | K23: 363.00 | L23: 0.02 | O23: 0.26 | P23: 4.60 | Q23: 17.40 | R23: 6.60 | S23: 0.22
A24: Хлеб белый в/с | B24: 155 | C24: 120.000 | D24: =B24*C24/1000 -> 18.60 | F24: 41.00 | G24: =C24*F24/1000 -> 4.92
H25: =SUM(H9:H24) -> 32.46 | I25: =SUM(I9:I24) -> 33.39 | J25: =SUM(J9:J24) -> 90.95 | K25: =SUM(K9:K24) -> 957.11 | L25: =SUM(L9:L24) -> 0.15 | M25: 1.69 | N25: 108.00 | O25: 1.70 | P25: 371.93 | Q25: 466.91 | R25: 71.76 | S25: 3.84
A26: 12:00-13:00 Обед | B26: 155
A27: Салат из свеклы отварной | B27: 155 | E27: 100 | G27: =G28+G29 -> 2.81 | H27: 1.37 | I27: 1.75 | J27: 7.73 | K27: 49 | L27: 0.02 | M27: 7.32 | N27: 39 | O27: 2.36 | P27: 168.45 | Q27: 120.4 | R27: 26.4 | S27: 1.53
A28: Свекла | B28: 155 | C28: 121.000 | D28: =B28*C28/1000 -> 18.76 | F28: 18.40 | G28: =C28*F28/1000 -> 2.23
A29: Масло растительное | B29: 155 | C29: 5.000 | D29: 0.78 | F29: 117.00 | G29: 0.59
A30: Щи из свежей капусты с цыплятами | B30: 155 | E30: 250/25 | G30: =SUM(G31:G40) -> 13.03 | H30: 1.8 | I30: 4.98 | J30: 8.13 | K30: 84.48 | L30: 0.08 | M30: 18.48 | O30: 2.38 | P30: 33.98 | Q30: 47.43 | R30: 22.2 | S30: 0.83
A31: Капуста свежая | B31: 155 | C31: 63.000 | D31: =B31*C31/1000 -> 9.77 | F31: 18.30 | G31: =C31*F31/1000 -> 1.15
A32: Картофель | B32: 155 | C32: 40.000 | D32: =B32*C32/1000 -> 6.20 | F32: 16.90 | G32: =C32*F32/1000 -> 0.68
A33: Лук репчатый | B33: 155 | C33: 12.000 | D33: 1.86 | F33: 24.00 | G33: 0.29
A34: Цыплята | B34: 155 | C34: 46.000 | D34: 7.13 | F34: 193.00 | G34: 8.88
A35: Лук зеленый | B35: 155 | C35: 3.000 | D35: 0.47 | G35: 0.00
A36: Морковь | B36: 155 | C36: 13.000 | D36: 2.02 | F36: 22.40 | G36: 0.29
A37: Сметана | B37: 155 | C37: 5.000 | D37: 0.78 | F37: 190.09 | G37: 0.95
A38: Паста томатная | B38: 155 | C38: 3.000 | D38: 0.47 | F38: 52.00 | G38: 0.16
A39: Соль | B39: 155 | C39: 3.000 | D39: 0.47 | F39: 16.00 | G39: 0.05
A40: Масло растительное | B40: 155 | C40: 5.000 | D40: 0.78 | F40: 117.00 | G40: 0.59
A41: Котлеты говяжьи | B41: 155 | E41: 100/10 | G41: =SUM(G42:G47) -> 46.24 | H41: 6.04 | I41: 6.17 | J41: 1.42 | K41: 85.34 | L41: 0.08 | M41: 0.27 | N41: 4.67 | O41: 0.93 | P41: 21.57 | Q41: 94.4 | R41: 26.67 | S41: 1.87
A42: Говядина(котлетное мясо | B42: 155 | C42: 100.000 | D42: =B42*C42/1000 -> 15.50 | F42: 370.00 | G42: =C42*F42/1000 -> 37.00
A43: молоко | B43: 155 | C43: 18.000 | D43: 2.79 | F43: 67.57 | G43: =C43*F43/1000 -> 1.22
A44: хлеб пшеничный | B44: 155 | C44: 18.000 | D44: 2.79 | F44: 41.00 | G44: 0.74
A45: Масло сливочное | B45: 155 | C45: 10.000 | D45: 1.55 | F45: 606.97 | G45: 6.07
A46: Соль | B46: 155 | C46: 3.000 | D46: 0.47 | F46: 16.00 | G46: 0.05
A47: Масло растительное | B47: 155 | C47: 10.000 | D47: 1.55 | F47: 117.00 | G47: 1.17
A48: Каша гречневая | B48: 155 | E48: 200/10 | G48: =SUM(G49:G51) -> 10.14 | H48: 4.50 | I48: 2.30 | J48: 25.00 | K48: 132.00 | L48: 0.20 | P48: 9.88 | Q48: 135.95 | R48: 140.00 | S48: 5.01
A49: Крупа гречка | B49: 155 | C49: 94.000 | D49: 14.57 | F49: 43.00 | G49: =C49*F49/1000 -> 4.04
A50: Масло сливочное | B50: 155 | C50: 10.000 | D50: 1.55 | F50: 606.97 | G50: =C50*F50/1000 -> 6.07
A51: Соль | B51: 155 | C51: 2.000 | D51: 0.31 | F51: 16.00 | G51: 0.03
A52: Компот из сухофруктов | B52: 155 | D52: 0.00 | E52: 200 | G52: =SUM(G53:G54) -> 2.66 | H52: 1.16 | I52: 0.30 | J52: 47.26 | K52: 196.38 | L52: 0.02 | M52: 0.80 | O52: 0.20 | P52: 5.84 | Q52: 46.00 | R52: 33.00 | S52: 0.96
A53: Смесь сухофруктов | B53: 155 | C53: 20.000 | D53: 3.10 | F53: 83.00 | G53: =C53*F53/1000 -> 1.66
A54: Сахар | B54: 155 | C54: 20.000 | D54: 3.10 | F54: 50.00 | G54: =C54*F54/1000 -> 1.00
A55: Хлеб Дарницкий | B55: 155 | D55: 0.00 | E55: 90 | G55: =SUM(G56) -> 2.95 | H55: 8.46 | I55: 2.51 | J55: 44.33 | K55: 186 | L55: 0.04 | O55: 0.36 | P55: 9.20 | Q55: 42.40 | R55: 10.00 | S55: 1.24
A56: Хлеб | B56: 155 | C56: 72.000 | D56: 11.16 | F56: 41.00 | G56: =C56*F56/1000 -> 2.95
B57: 155 | H57: =SUM(H30:H56) -> 21.96 | I57: =SUM(I30:I56) -> 16.26 | J57: =SUM(J30:J56) -> 126.14 | K57: =SUM(K30:K56) -> 684.20 | L57: =SUM(L30:L56) -> 0.42 | M57: 19.55 | N57: 4.67 | O57: 3.87 | P57: 80.47 | Q57: 366.18 | R57: 231.87 | S57: 9.91
A58: Апельсин | B58: 155 | E58: 170 | G58: =SUM(G59) -> 15.11 | H58: 1.53 | I58: 0.34 | J58: 13.77 | K58: 61.20 | L58: 0.04 | M58: 64.29 | O58: 0.21 | P58: 59.50 | Q58: 18.70 | R58: 13.93 | S58: 0.32
A59: Апельсин | B59: 155 | C59: 170.000 | D59: =C59*B59/1000 -> 26.35 | F59: 88.9 | G59: =C59*F59/1000 -> 15.11
F60: Итого | G60: =E62*E63 -> 26649.59 | H60: =H25+H57 -> 54.42 | I60: =I25+I57 -> 49.65 | J60: 217.09 | K60: 1641.31 | L60: 0.57 | M60: 21.24 | N60: 112.67 | O60: 5.57 | P60: 452.40 | Q60: 833.09 | R60: 303.63 | S60: 13.75
A62: На питании состоит | E62: 155 | F62: человек
A63: Стоимость рациона питания на 1 человека составляет | E63: =SUM(G9+G19+G23+G27+G30+G41+G48+G52+G58+G55) -> 171.93 | F63: рублей
A65: Медсестра | B65: Макаримова Ю.В. | E65: Заведующий производством | I65: Илалова Р.И.

Sheet 4
A1: ГБОУ Альметьевская школа № 19 для детей с ОВЗ
A2: наименование учреждения
A3: Столовая
A4: подразделение | C4: Меню-раскладка
H5: Четверг
E6: 7-11лет
A7: Наименование | B7: Кол-во порций (план) | C7: Кол-во на порцию (гр) | D7: Общее кол-во (кг) | E7: Выход блюда (гр) | F7: Цена (руб) | G7: Общая сумма (руб) | H7: Белки | I7: Жиры | J7: Углеводы | K7: Ккал | L7: В1 | M7: С | N7: А | O7: Е | P7: Са | Q7: Р | R7: Mg | S7: Fe
A8: 09:30-10:30 Завтрак | B8: 96
A9: Каша молочная геркулесовая с маслом | B9: 96 | E9: 200/10 | G9: =SUM(G10:G14) -> 14.36 | H9: 6.30 | I9: 8.40 | J9: 29.40 | K9: 220.50 | L9: 0.22 | M9: 2.08 | N9: 32.00 | O9: 0.86 | P9: 149.62 | Q9: 234.98 | R9: 79.60 | S9: 2.10
A10: Молоко | B10: 96 | C10: 100.000 | D10: =B10*C10/1000 -> 9.60 | F10: 67.57 | G10: =C10*F10/1000 -> 6.76
A11: Масло сливочное | B11: 96 | C11: 10.000 | D11: =B11*C11/1000 -> 0.96 | F11: 606.97 | G11: =C11*F11/1000 -> 6.07
A12: Сахар | B12: 96 | C12: 6.000 | D12: 0.58 | F12: 50.00 | G12: 0.30
A13: Крупа овсяная | B13: 96 | C13: 40.000 | D13: 3.84 | F13: 30.00 | G13: =C13*F13/1000 -> 1.20
A14: Соль | B14: 96 | C14: 2.000 | D14: 0.19 | F14: 16.00 | G14: 0.03
A15: Кофейный напиток с молоком | B15: 96 | E15: 200 | G15: =SUM(G16:G18) -> 8.34 | H15: 3.60 | I15: 2.67 | J15: 28.27 | K15: 155.20 | L15: 0.03 | M15: 1.47 | P15: 158.67 | Q15: 132.00 | R15: 29.33 | S15: 2.40
A16: Кофейный напиток | B16: 96 | C16: 5.000 | D16: =B16*C16/1000 -> 0.48 | F16: 116.00 | G16: =C16*F16/1000 -> 0.58
A17: Молоко | B17: 96 | C17: 100.000 | D17: 9.6 | F17: 67.57 | G17: =C17*F17/1000 -> 6.76
A18: Сахар | B18: 96 | C18: 20.000 | D18: 1.92 | F18: 50.00 | G18: 1.00
A19: Хлеб белый | B19: 96 | E19: 90 | G19: =SUM(G20) -> 3.69 | H19: 12.18 | I19: 3.17 | J19: 28.5 | K19: 233.80 | L19: 0.02 | O19: 0.26 | P19: 4.60 | Q19: 17.40 | R19: 6.60 | S19: 0.22
A20: Хлеб белый | B20: 96 | C20: 90.000 | D20: 8.64 | F20: 41.00 | G20: =C20*F20/1000 -> 3.69
H21: =SUM(H9:H20) -> 22.08 | I21: 14.24 | J21: 86.17 | K21: 609.50 | L21: 0.27 | M21: 3.55 | N21: 32.00 | O21: 1.12 | P21: 312.89 | Q21: 384.38 | R21: 115.53 | S21: 4.72
A22: 12:00-13:00 Обед | B22: 96
A23: Салат из св капусты | B23: 96 | E23: 75 | G23: =SUM(G24:G28) -> 2.25 | H23: 2.17 | I23: 3.5 | J23: 9.28 | K23: 51.03 | L23: 0.02 | M23: 24.43 | O23: 2.31 | P23: 43 | Q23: 28.32 | R23: 16 | S23: 0.52
A24: Капуста свежая | B24: 96 | C24: 74.000 | D24: =B24*C24/1000 -> 7.104 | F24: 18.30 | G24: =C24*F24/1000 -> 1.35
A25: Морковь | B25: 96 | C25: 10.000 | D25: =B25*C25/1000 -> 0.96 | F25: 22.40 | G25: =C25*F25/1000 -> 0.22
A26: Кислота лимонная | B26: 96 | C26: 0.030 | D26: 0.00288 | F26: 235.50 | G26: 0.01
A27: Сахар | B27: 96 | C27: 4.000 | D27: 0.384 | F27: 50.00 | G27: 0.20
A28: Масло растительное | B28: 96 | C28: 4.000 | D28: 0.384 | F28: 117.00 | G28: 0.47
A29: Соль | B29: 96 | C29: 1.500 | D29: 0.14 | F29: 16.00 | G29: 0.02
A30: Суп рисовый с цыплятами | B30: 96 | E30: 250/25 | G30: =SUM(G31:G39) -> 11.98 | H30: 10.04 | I30: 5.96 | J30: 23.16 | K30: 175 | L30: 0.04 | M30: 3 | P30: 88 | Q30: 50.1 | R30: 22.1 | S30: 50.1
A31: Рис | B31: 96 | C31: 5.000 | D31: 0.48 | F31: 86.00 | G31: =C31*F31/1000 -> 0.43
A32: Картофель | B32: 96 | C32: 100.000 | D32: 9.60 | F32: 16.90 | G32: =C32*F32/1000 -> 1.69
A33: Лук репчатый | B33: 96 | C33: 12.000 | D33: 1.15 | F33: 24.00 | G33: 0.29
A34: Цыплята | B34: 96 | C34: 46.000 | D34: 4.42 | F34: 193.00 | G34: =C34*F34/1000 -> 8.88
A35: Лук зеленый | B35: 96 | C35: 2.000 | D35: 0.19 | G35: 0.00
A36: Морковь | B36: 96 | C36: 13.000 | D36: 1.25 | F36: 22.40 | G36: 0.29
A37: Укроп | B37: 96 | C37: 2.000 | D37: 0.19 | G37: 0.00
A38: Соль | B38: 96 | C38: 3.000 | D38: 0.29 | F38: 16.00 | G38: 0.05
A39: Масло растительное | B39: 96 | C39: 3.000 | D39: 0.29 | F39: 117.00 | G39: 0.35
A40: Жаркое по-домашнему | B40: 96 | E40: 50/100 | G40: =SUM(G41:G47) -> 39.17 | H40: 12.30 | I40: 29.50 | J40: 2.26 | K40: 383.00 | L40: 0.41 | M40: 28.14 | O40: 1.62 | P40: 36.39 | Q40: 284.93 | R40: 56.82 | S40: 4.46
A41: Нарезка мясная | B41: 96 | C41: 93.000 | D41: 8.93 | F41: 370.00 | G41: =C41*F41/1000 -> 34.41
A42: Лук репчатый | B42: 96 | C42: 12.000 | D42: 1.15 | F42: 24.00 | G42: =C42*F42/1000 -> 0.29
A43: Картофель свежий | B43: 96 | C43: 167.000 | D43: 16.03 | F43: 16.90 | G43: 2.82
A44: Морковь | B44: 96 | C44: 27.000 | D44: 2.59 | F44: 22.40 | G44: 0.60
A45: Паста томатная | B45: 96 | C45: 6.000 | D45: 0.58 | F45: 52.00 | G45: 0.31
A46: Соль | B46: 96 | C46: 2.000 | D46: 0.19 | F46: 16.00 | G46: 0.03
A47: Масло растительное | B47: 96 | C47: 6.000 | D47: 0.58 | F47: 117.00 | G47: 0.70
A48: Напиток из апельсин | B48: 96 | E48: 200 | G48: =SUM(G49:G51) -> 8.61 | H48: 1.6 | I48: 0 | J48: 28.4 | K48: 120 | L48: 0.1 | M48: 60 | P48: 115.1 | Q48: 57.5 | R48: 38.13 | S48: 1.2
A49: Апельсины | B49: 96 | C49: 80.000 | D49: 7.68 | F49: 88.90 | G49: =C49*F49/1000 -> 7.11
A50: Сахар | B50: 96 | C50: 30.000 | D50: 2.88 | F50: 50.00 | G50: =C50*F50/1000 -> 1.50
B51: 96 | C51: 1.000 | D51: 0.10 | G51: 0.00
A52: Хлеб Дарницкий | B52: 96 | E52: 48 | G52: =SUM(G53) -> 1.97 | H52: 8.46 | I52: 2.51 | J52: 44.33 | K52: 186 | L52: 0.04 | O52: 0.36 | P52: 9.20 | Q52: 42.40 | R52: 10.00 | S52: 1.24
A53: Хлеб Дарницкий | B53: 96 | C53: 48.000 | D53: 4.61 | F53: 41.00 | G53: =C53*F53/1000 -> 1.97
B54: 96 | H54: =SUM(H30:H53) -> 32.40 | I54: =SUM(I30:I53) -> 37.97 | J54: =SUM(J30:J53) -> 98.15 | K54: =SUM(K30:K53) -> 864.00 | L54: =SUM(L30:L53) -> 0.59 | M54: 91.14 | N54: 0.00 | O54: 1.98 | P54: 248.69 | Q54: 434.93 | R54: 127.05 | S54: 57.00
A55: 14:30-15:00 Полдник | B55: 96
A56: Банан | B56: 96 | E56: 150 | G56: =SUM(G57) -> 16.50 | H56: 3.00 | I56: 0.40 | J56: 43.60 | K56: 142.50 | L56: 0.03 | M56: 7.50 | O56: 0.30 | P56: 6.00 | Q56: 21.00 | R56: 31.50 | S56: 0.45
A57: Банан | B57: 96 | C57: 150.000 | D57: =B57*C57/1000 -> 14.40 | F57: 110.00 | G57: =C57*F57/1000 -> 16.50
A58: Молоко кипяченое | B58: 96 | E58: 200 | G58: =SUM(G59) -> 14.26 | H58: 1.53 | I58: 0.34 | J58: 13.77 | K58: 61.20 | L58: 0.08 | M58: 2.60 | N58: 40.00 | P58: 240.00 | Q58: 180.00 | R58: 28.00 | S58: 0.20
A59: Молоко | B59: 96 | C59: 211.000 | D59: 20.26 | F59: 67.57 | G59: =C59*F59/1000 -> 14.26
H60: =SUM(H56:H58) -> 4.53 | I60: 0.74 | J60: 57.37 | K60: 203.70 | L60: 0.11 | M60: 10.10 | N60: 40.00 | O60: 0.30 | P60: 246.00 | Q60: 201.00 | R60: 59.50 | S60: 0.65
F61: Итого | G61: =E63*E64 -> 10043.86 | H61: =SUM(H21+H54+H60) -> 59.01 | I61: 52.95 | J61: 241.69 | K61: 1677.20 | L61: 0.97 | M61: 104.79 | N61: 72.00 | O61: 3.40 | P61: 807.58 | Q61: 1020.31 | R61: 302.08 | S61: 62.37
A63: На питании состоит | E63: 96 | F63: человек
A64: Стоимость рациона питания на 1 человека составляет | E64: =SUM(G9+G15+G19+G23+G30+G40+G48++G52+G58) -> 104.62 | F64: рублей
A66: Медсестра | B66: Макаримова Ю.В. | E66: Заведующий производством | I66: Илалова Р.И.

Sheet 4 (2)
A1: ГБОУ Альметьевская школа № 19 для детей с ОВЗ
A2: наименование учреждения
A3: Столовая
A4: подразделение | C4: Меню-раскладка
H5: Четверг
E6: 12-18лет
A7: Наименование | B7: Кол-во порций (план) | C7: Кол-во на порцию (гр) | D7: Общее кол-во (кг) | E7: Выход блюда (гр) | F7: Цена (руб) | G7: Общая сумма (руб) | H7: Белки | I7: Жиры | J7: Углеводы | K7: Ккал | L7: В1 | M7: С | N7: А | O7: Е | P7: Са | Q7: Р | R7: Mg | S7: Fe
A8: 09:30-10:30 Завтрак | B8: 155
A9: Каша молочная геркулесовая с маслом | B9: 155 | E9: 200/10 | G9: =SUM(G10:G14) -> 14.36 | H9: 6.30 | I9: 8.40 | J9: 29.40 | K9: 220.50 | L9: 0.22 | M9: 2.08 | N9: 32.00 | O9: 0.86 | P9: 149.62 | Q9: 234.98 | R9: 79.60 | S9: 2.10
A10: Молоко | B10: 155 | C10: 100.000 | D10: =B10*C10/1000 -> 15.50 | F10: 67.57 | G10: =C10*F10/1000 -> 6.76
A11: Масло сливочное | B11: 155 | C11: 10.000 | D11: =B11*C11/1000 -> 1.55 | F11: 606.97 | G11: =C11*F11/1000 -> 6.07
A12: Сахар | B12: 155 | C12: 6.000 | D12: 0.93 | F12: 50.00 | G12: 0.30
A13: Крупа овсяная | B13: 155 | C13: 40.000 | D13: 6.20 | F13: 30.00 | G13: 1.20
A14: Соль | B14: 155 | C14: 2.000 | D14: 0.31 | F14: 16.00 | G14: 0.03
A15: Кофейный напиток с молоком | B15: 155 | E15: 200 | G15: =SUM(G16:G18) -> 8.34 | H15: 3.60 | I15: 2.67 | J15: 28.27 | K15: 155.20 | L15: 0.03 | M15: 1.47 | P15: 158.67 | Q15: 132.00 | R15: 29.33 | S15: 2.40
A16: Кофейный напиток | B16: 155 | C16: 5.000 | D16: =B16*C16/1000 -> 0.775 | F16: 116.00 | G16: =C16*F16/1000 -> 0.58
A17: Молоко | B17: 155 | C17: 100.000 | D17: 15.5 | F17: 67.57 | G17: =C17*F17/1000 -> 6.76
A18: Сахар | B18: 155 | C18: 20.000 | D18: 3.1 | F18: 50.00 | G18: 1.00
A19: Хлеб белый | B19: 155 | E19: 120 | G19: =SUM(G20) -> 4.92 | H19: 12.18 | I19: 3.17 | J19: 28.5 | K19: 363.00 | L19: 0.02 | O19: 0.26 | P19: 4.60 | Q19: 17.40 | R19: 6.60 | S19: 0.22
A20: Хлеб белый | B20: 155 | C20: 120.000 | D20: 18.60 | F20: 41.00 | G20: =C20*F20/1000 -> 4.92
H21: =SUM(H9:H20) -> 22.08 | I21: 14.24 | J21: 86.17 | K21: 738.70 | L21: 0.27 | M21: 3.55 | N21: 32.00 | O21: 1.12 | P21: 312.89 | Q21: 384.38 | R21: 115.53 | S21: 4.72
A22: 12:00-13:00 Обед | B22: 155
A23: Салат из св капусты | B23: 155 | E23: 100 | G23: =SUM(G24:G28) -> 2.77 | H23: 2.17 | I23: 3.5 | J23: 9.28 | K23: 51.03 | L23: 0.02 | M23: 24.43 | O23: 2.31 | P23: 43 | Q23: 28.32 | R23: 16 | S23: 0.52
A24: Капуста свежая | B24: 155 | C24: 99.000 | D24: =B24*C24/1000 -> 15.345 | F24: 18.30 | G24: =C24*F24/1000 -> 1.81
A25: Морковь | B25: 155 | C25: 13.000 | D25: =B25*C25/1000 -> 2.015 | F25: 22.40 | G25: =C25*F25/1000 -> 0.29
A26: Кислота лимонная | B26: 155 | C26: 0.030 | D26: 0.00465 | G26: 0.00
A27: Сахар | B27: 155 | C27: 4.000 | D27: 0.62 | F27: 50.00 | G27: 0.20
A28: Масло растительное | B28: 155 | C28: 4.000 | D28: 0.62 | F28: 117.00 | G28: 0.47
A29: Соль | B29: 155 | C29: 1.500 | D29: 0.23 | F29: 16.00 | G29: 0.02
A30: Суп рисовый с цыплятами | B30: 155 | E30: 250/25 | G30: =SUM(G31:G39) -> 11.98 | H30: 10.04 | I30: 5.96 | J30: 23.16 | K30: 175 | L30: 0.04 | M30: 3 | P30: 88 | Q30: 50.1 | R30: 22.1 | S30: 50.1
A31: Рис | B31: 155 | C31: 5.000 | D31: 0.78 | F31: 86.00 | G31: =C31*F31/1000 -> 0.43
A32: Картофель | B32: 155 | C32: 100.000 | D32: 15.50 | F32: 16.90 | G32: =C32*F32/1000 -> 1.69
A33: Лук репчатый | B33: 155 | C33: 12.000 | D33: 1.86 | F33: 24.00 | G33: 0.29
A34: Цыплята | B34: 155 | C34: 46.000 | D34: 7.13 | F34: 193.00 | G34: 8.88
A35: Лук зеленый | B35: 155 | C35: 2.000 | D35: 0.31 | G35: 0.00
A36: Морковь | B36: 155 | C36: 13.000 | D36: 2.02 | F36: 22.40 | G36: 0.29
A37: Укроп | B37: 155 | C37: 2.000 | D37: 0.31 | G37: 0.00
A38: Соль | B38: 155 | C38: 3.000 | D38: 0.47 | F38: 16.00 | G38: 0.05
A39: Масло растительное | B39: 155 | C39: 3.000 | D39: 0.47 | F39: 117.00 | G39: 0.35
A40: Жаркое по-домашнему | B40: 155 | E40: 75/150 | G40: =SUM(G41:G47) -> 57.96 | H40: 12.30 | I40: 29.50 | J40: 2.26 | K40: 383.00 | L40: 0.41 | M40: 28.14 | O40: 1.62 | P40: 36.39 | Q40: 284.93 | R40: 56.82 | S40: 4.46
A41: Нарезка мясная | B41: 155 | C41: 140.000 | D41: 21.70 | F41: 370.00 | G41: =C41*F41/1000 -> 51.80
A42: Лук репчатый | B42: 155 | C42: 12.000 | D42: 1.86 | F42: 24.00 | G42: =C42*F42/1000 -> 0.29
A43: Картофель свежий | B43: 155 | C43: 250.000 | D43: 38.75 | F43: 16.90 | G43: 4.23
A44: Морковь | B44: 155 | C44: 27.000 | D44: 4.19 | F44: 22.40 | G44: 0.60
A45: Паста томатная | B45: 155 | C45: 6.000 | D45: 0.93 | F45: 52.00 | G45: 0.31
A46: Соль | B46: 155 | C46: 2.000 | D46: 0.31 | F46: 16.00 | G46: 0.03
A47: Масло растительное | B47: 155 | C47: 6.000 | D47: 0.93 | F47: 117.00 | G47: 0.70
A48: Напиток из апельсин | B48: 155 | E48: 200 | G48: =SUM(G49:G51) -> 8.61 | H48: 1.6 | I48: 0 | J48: 28.4 | K48: 120 | L48: 0.1 | M48: 60 | P48: 115.1 | Q48: 57.5 | R48: 38.13 | S48: 1.2
A49: Апельсины | B49: 155 | C49: 80.000 | D49: 12.40 | F49: 88.90 | G49: =C49*F49/1000 -> 7.11
A50: Сахар | B50: 155 | C50: 30.000 | D50: 4.65 | F50: 50.00 | G50: =C50*F50/1000 -> 1.50
B51: 155 | C51: 1.000 | D51: 0.16 | G51: 0.00
A52: Хлеб Дарницкий | B52: 155 | E52: 72 | G52: =SUM(G53) -> 2.95 | H52: 8.46 | I52: 2.51 | J52: 44.33 | K52: 186 | L52: 0.04 | O52: 0.36 | P52: 9.20 | Q52: 42.40 | R52: 10.00 | S52: 1.24
A53: Хлеб Дарницкий | B53: 155 | C53: 72.000 | D53: 11.16 | F53: 41.00 | G53: =C53*F53/1000 -> 2.95
B54: 155 | H54: =SUM(H30:H53) -> 32.40 | I54: =SUM(I30:I53) -> 37.97 | J54: =SUM(J30:J53) -> 98.15 | K54: =SUM(K30:K53) -> 864.00 | L54: =SUM(L30:L53) -> 0.59 | M54: 91.14 | N54: 0.00 | O54: 1.98 | P54: 248.69 | Q54: 434.93 | R54: 127.05 | S54: 57.00
A55: Банан | B55: 155 | E55: 220 | G55: =SUM(G56) -> 24.20 | H55: 3.00 | I55: 0.40 | J55: 43.60 | K55: 190.00 | L55: 0.03 | M55: 7.50 | O55: 0.30 | P55: 6.00 | Q55: 21.00 | R55: 31.50 | S55: 0.45
A56: Банан | B56: 155 | C56: 220.000 | D56: =B56*C56/1000 -> 34.10 | F56: 110.00 | G56: =C56*F56/1000 -> 24.20
F57: Итого | G57: =E59*E60 -> 17343.04 | H57: =SUM(H21+H54) -> 54.48 | I57: =SUM(I21+I54) -> 52.21 | J57: 184.32 | K57: 1602.70 | L57: 0.86 | M57: 94.69 | N57: 32.00 | O57: 3.10 | P57: 561.58 | Q57: 819.31 | R57: 242.58 | S57: 61.72
A59: На питании состоит | E59: 155 | F59: человек
A60: Стоимость рациона питания на 1 человека составляет | E60: =SUM(G9+G15+G19+G23+G30+G40+G48++G52) -> 111.89 | F60: рублей
A62: Медсестра | B62: Макаримова Ю.В. | E62: Заведующий производством | I62: Илалова Р.И.

Sheet 5
A1: ГБОУ Альметьевская школа № 19 для детей с ОВЗ
A2: наименование учреждения
A3: Столовая
A4: подразделение | C4: Меню-раскладка
H5: Пятница
E6: 7-11 лет
A7: Наименование | B7: Кол-во порций (план) | C7: Кол-во на порцию (гр) | D7: Общее кол-во (кг) | E7: Выход блюда (гр) | F7: Цена (руб) | G7: Общая сумма (руб) | H7: Белки | I7: Жиры | J7: Углеводы | K7: Ккал | L7: В1 | M7: С | N7: А | O7: Е | P7: Са | Q7: Р | R7: Mg | S7: Fe
A8: 09:30-10:30 Завтрак | B8: 96
A9: Каша молочная пшенная c маслом | B9: 96 | E9: 200/10 | G9: =SUM(G10:G14) -> 15.16 | H9: 7.32 | I9: 5.92 | J9: 37.50 | K9: 227.00 | L9: 0.19 | N9: 5.00 | O9: 2.90 | P9: 138.10 | Q9: 184.37 | R9: 45.00 | S9: 2.58
A10: Крупа пшенная | B10: 96 | C10: 50.000 | D10: =B10*C10/1000 -> 4.80 | F10: 40.00 | G10: =C10*F10/1000 -> 2.00
A11: Молоко | B11: 96 | C11: 100.000 | D11: =B11*C11/1000 -> 9.60 | F11: 67.57 | G11: =C11*F11/1000 -> 6.76
A12: Масло сливочное | B12: 96 | C12: 10.000 | D12: 0.96 | F12: 606.97 | G12: 6.07
A13: Сахар | B13: 96 | C13: 6.000 | D13: 0.58 | F13: 50.00 | G13: 0.30
A14: Соль | B14: 96 | C14: 2.000 | D14: 0.19 | F14: 16.00 | G14: 0.03
A15: Ряженка | B15: 96 | E15: 200 | G15: =G16 -> 19.31 | H15: 3.17 | I15: 2.68 | J15: 28.27 | K15: 100.80 | L15: 0.03 | M15: 1.47 | P15: 158.67 | Q15: 132.00 | R15: 29.33 | S15: 2.40
A16: Ряженка | B16: 96 | C16: 200.000 | D16: =B16*C16/1000 -> 19.20 | F16: 96.55 | G16: =C16*F16/1000 -> 19.31
A17: Хлеб белый в/с | B17: 96 | E17: 120 | G17: =SUM(G18) -> 4.92 | H17: 12.18 | I17: 3.17 | J17: 28.5 | K17: 363.00 | L17: 0.02 | O17: 0.26 | P17: 4.60 | Q17: 17.40 | R17: 6.60 | S17: 0.22
A18: Хлеб белый в/с | B18: 96 | C18: 120.000 | D18: =B18*C18/1000 -> 11.52 | F18: 41.00 | G18: =C18*F18/1000 -> 4.92
H19: =SUM(H9:H18) -> 22.67 | I19: 11.77 | J19: 94.27 | K19: 690.80 | L19: 0.24 | M19: 1.47 | N19: 5.00 | O19: 3.16 | P19: 301.37 | Q19: 333.77 | R19: 80.93 | S19: 5.20
A20: 12:00-13:00 Обед | B20: 96
A21: Салат из белокачанной капусты с яблоками | B21: 96 | E21: 75 | G21: =SUM(G22:G27) -> 7.30 | H21: 1.48 | I21: 3.93 | J21: 7.33 | K21: 70.65 | L21: 0.02 | M21: 24.43 | O21: 2.31 | P21: 25.11 | Q21: 22 | R21: 16 | S21: 0.52
A22: Капуста | B22: 96 | C22: 42.000 | D22: =B22*C22/1000 -> 4.03 | F22: 18.30 | G22: =C22*F22/1000 -> 0.77
A23: Яблоки | B23: 96 | C23: 27.000 | D23: 2.59 | F23: 67.90 | G23: =C23*F23/1000 -> 1.83
A24: Морковь | B24: 96 | C24: 14.000 | D24: 1.34 | F24: 22.40 | G24: 0.31
A25: Лук репчатый | B25: 96 | C25: 6.000 | D25: 0.58 | F25: 24.00 | G25: =C25*F25/40 -> 3.60
A26: Масло растительное | B26: 96 | C26: 5.000 | D26: 0.48 | F26: 117.00 | G26: =C26*F26/1000 -> 0.59
A27: Сахар | B27: 96 | C27: 4.000 | D27: 0.38 | F27: 50.00 | G27: 0.20
A28: Рассольник ленинградский с цыплятами | B28: 96 | E28: 250/25 | G28: =SUM(G29:G38) -> 13.23 | H28: 2.20 | I28: 5.20 | J28: 15.58 | K28: 117.90 | L28: 0.10 | M28: 14.30 | O28: 2.43 | P28: 16.55 | Q28: 34.95 | R28: 28.00 | S28: 1.03
A29: Крупа перловая | B29: 96 | C29: 5.000 | D29: 0.48 | F29: 32.00 | G29: =C29*F29/1000 -> 0.16
A30: Картофель | B30: 96 | C30: 100.000 | D30: 9.60 | F30: 16.90 | G30: =C30*F30/1000 -> 1.69
A31: Лук репчатый | B31: 96 | C31: 6.000 | D31: 0.58 | F31: 24.00 | G31: 0.14
A32: Цыплята | B32: 96 | C32: 46.000 | D32: 4.42 | F32: 193.00 | G32: 8.88
A33: Лук зеленый | B33: 96 | C33: 2.000 | D33: 0.19 | G33: 0.00
A34: Морковь | B34: 96 | C34: 13.000 | D34: 1.25 | F34: 22.40 | G34: 0.29
A35: Сметана | B35: 96 | C35: 5.000 | D35: 0.48 | F35: 190.09 | G35: 0.95
A36: Огурцы соленые | B36: 96 | C36: 15.000 | D36: 1.44 | F36: 33.50 | G36: 0.50
A37: Соль | B37: 96 | C37: 2.000 | D37: 0.19 | F37: 16.00 | G37: 0.03
A38: Масло растительное | B38: 96 | C38: 5.000 | D38: 0.48 | F38: 117.00 | G38: 0.59
A39: Рыба тушеная в томате с овощами | B39: 96 | E39: 75/50 | G39: =SUM(G40:G48) -> 61.05 | H39: 6.84 | I39: 6.72 | J39: 2.20 | K39: 127.00 | L39: 0.12 | M39: 1.80 | N39: 22.20 | O39: 2.22 | P39: 39.07 | Q39: 162.19 | R39: 42.80 | S39: 0.82
A40: Горбуша филе | B40: 96 | C40: 120.000 | D40: 11.52 | F40: 489.00 | G40: =C40*F40/1000 -> 58.68
A41: Лук репчатый | B41: 96 | C41: 12.000 | D41: 1.15 | F41: 24.00 | G41: =C41*F41/1000 -> 0.29
A42: Морковь | B42: 96 | C42: 27.000 | D42: 2.59 | F42: 22.40 | G42: 0.60
A43: Томат паста | B43: 96 | C43: 10.000 | D43: 0.96 | F43: 52.00 | G43: 0.52
A44: Лимонная кислота | B44: 96 | C44: 1.000 | D44: 0.10 | F44: 235.50 | G44: 0.24
A45: сахар | B45: 96 | C45: 2.000 | D45: 0.19 | F45: 50.00 | G45: 0.10
A46: Лавровый лист | B46: 96 | C46: 0.010 | D46: 0.00 | G46: 0.00
A47: Соль | B47: 96 | C47: 2.000 | D47: 0.19 | F47: 16.00 | G47: 0.03
A48: Масло растительное | B48: 96 | C48: 5.000 | D48: 0.48 | F48: 117.00 | G48: 0.59
A49: Картофельное пюре | B49: 96 | E49: 150 | G49: =SUM(G50:G53) -> 7.58 | H49: 3.08 | I49: 2.33 | J49: 19.13 | K49: 109.73 | L49: 1.16 | M49: 3.75 | N49: 33.15 | O49: 0.15 | P49: 38.25 | Q49: 76.95 | R49: 26.70 | S49: 0.86
A50: Картофель | B50: 96 | C50: 171.000 | D50: =B50*C50/1000 -> 16.42 | F50: 16.90 | G50: =C50*F50/1000 -> 2.89
A51: Молоко | B51: 96 | C51: 24.000 | D51: 2.30 | F51: 67.57 | G51: =C51*F51/1000 -> 1.62
A52: соль | B52: 96 | C52: 2.000 | F52: 16.00 | G52: 0.03
A53: Масло сливочное | B53: 96 | C53: 5.000 | D53: =B53*C53/1000 -> 0.48 | F53: 606.97 | G53: 3.03
A54: Сок фруктовый | B54: 96 | E54: 200 | G54: =SUM(G55) -> 7.00 | H54: 1.00 | J54: 19.80 | K54: 85.00 | L54: 20.00 | N54: 0.67 | O54: 52.00 | P54: 14.00 | Q54: 14.00 | R54: 3.20
A55: Сок фруктовый | B55: 96 | C55: 200.000 | D55: 19.20 | F55: 35.00 | G55: =C55*F55/1000 -> 7.00
A56: Пряники | B56: 96 | E56: 30 | G56: =SUM(G57) -> 2.98 | H56: 0.77 | I56: 6.07 | J56: 1.18 | K56: 219.60 | L56: 0.08 | O56: 1.50 | P56: 12.00 | Q56: 1.60 | R56: 10.00 | S56: 0.90
A57: Пряники | B57: 96 | C57: 30.000 | D57: =B57*C57/1000 -> 2.88 | F57: 99.39 | G57: =C57*F57/1000 -> 2.98
A58: Хлеб Дарницкий | B58: 96 | E58: 48 | G58: =SUM(G59) -> 1.97 | H58: 8.46 | I58: 2.51 | J58: 44.33 | K58: 186 | L58: 0.04 | O58: 0.36 | P58: 9.20 | Q58: 42.40 | R58: 10.00 | S58: 1.24
A59: Хлеб | B59: 96 | C59: 48.000 | D59: 4.61 | F59: 41.00 | G59: =C59*F59/1000 -> 1.97
B60: 96 | H60: =SUM(H28:H59) -> 22.35 | I60: =SUM(I28:I59) -> 22.83 | J60: =SUM(J28:J59) -> 102.22 | K60: =SUM(K28:K59) -> 845.23 | L60: =SUM(L28:L59) -> 21.50 | M60: 19.85 | N60: 56.02 | O60: 58.66 | P60: 129.07 | Q60: 332.09 | R60: 120.70 | S60: 4.85
A61: 14:30-15:00 Полдник | B61: 96
A62: Яблоки свежие | B62: 96 | E62: 250 | G62: =SUM(G63) -> 12.22 | H62: 0.72 | I62: 0.54 | J62: 14.70 | K62: 118.00 | L62: 0.02 | M62: 7.50 | O62: 0.15 | P62: 28.80 | Q62: 18.80 | R62: 6.75 | S62: 1.65
A63: Яблоки | B63: 96 | C63: 180.000 | D63: =B63*C63/1000 -> 17.28 | F63: 67.90 | G63: =C63*F63/1000 -> 12.22
A64: Молоко кипяченое | B64: 96 | E64: 200 | G64: =SUM(G65) -> 14.26 | H64: 1.53 | I64: 0.34 | J64: 13.77 | K64: 61.20 | L64: 0.08 | M64: 2.60 | N64: 40.00 | P64: 240.00 | Q64: 180.00 | R64: 28.00 | S64: 0.20
A65: Молоко | B65: 96 | C65: 211.000 | D65: =B65*C65/1000 -> 20.26 | F65: 67.57 | G65: =C65*F65/1000 -> 14.26
H66: =SUM(H62:H64) -> 2.25 | I66: =SUM(I62:I64) -> 0.88 | J66: 28.47 | K66: 179.20 | L66: 0.08 | M66: 10.10 | N66: 40.00 | O66: 0.15 | P66: 268.80 | Q66: 198.80 | R66: 34.75 | S66: 1.85
F67: Итого | G67: =E69*E70 -> 15743.36 | H67: =H19+H60+H66 -> 47.27 | I67: =I19+I60+I66 -> 35.48 | J67: =J19+J60+J66 -> 224.96 | K67: =K19+K60+K66 -> 1715.23 | L67: =L19+L60+L66 -> 21.82 | M67: 31.42 | N67: 101.02 | O67: 61.97 | P67: 699.24 | Q67: 864.66 | R67: 236.38 | S67: 11.90
A69: На питании состоит | E69: 96 | F69: человек
A70: Стоимость рациона питания на 1 человека составляет | E70: =SUM(G9+G15+G17+G21+G28+G39+G49+G54+G58+G62+G64) -> 163.99 | F70: рублей
A72: Медсестра | B72: Макаримова Ю.В. | E72: Заведующий производством | I72: Илалова Р.И.

Sheet 5 (2)
A1: ГБОУ Альметьевская школа № 19 для детей с ОВЗ
A2: наименование учреждения
A3: Столовая
A4: подразделение | C4: Меню-раскладка
H5: Пятница
E6: 12-18лет
A7: Наименование | B7: Кол-во порций (план) | C7: Кол-во на порцию (гр) | D7: Общее кол-во (кг) | E7: Выход блюда (гр) | F7: Цена (руб) | G7: Общая сумма (руб) | H7: Белки | I7: Жиры | J7: Углеводы | K7: Ккал | L7: В1 | M7: С | N7: А | O7: Е | P7: Са | Q7: Р | R7: Mg | S7: Fe
A8: 09:30-10:30 Завтрак | B8: 155
A9: Каша молочная пшенная c маслом | B9: 155 | E9: 200/10 | G9: =SUM(G10:G14) -> 15.16 | H9: 7.32 | I9: 5.92 | J9: 37.50 | K9: 227.00 | L9: 0.19 | N9: 5.00 | O9: 2.90 | P9: 138.10 | Q9: 184.37 | R9: 45.00 | S9: 2.58
A10: Крупа пшенная | B10: 155 | C10: 50.000 | D10: =B10*C10/1000 -> 7.75 | F10: 40.00 | G10: =C10*F10/1000 -> 2.00
A11: Молоко | B11: 155 | C11: 100.000 | D11: =B11*C11/1000 -> 15.50 | F11: 67.57 | G11: =C11*F11/1000 -> 6.76
A12: Масло сливочное | B12: 155 | C12: 10.000 | D12: 1.55 | F12: 606.97 | G12: 6.07
A13: Сахар | B13: 155 | C13: 6.000 | D13: 0.93 | F13: 50.00 | G13: 0.30
A14: Соль | B14: 155 | C14: 2.000 | D14: 0.31 | F14: 16.00 | G14: 0.03
A15: Ряженка | B15: 155 | E15: 200 | G15: =G16 -> 17.54 | H15: 3.17 | I15: 2.68 | J15: 28.27 | K15: 100.80 | L15: 0.03 | M15: 1.47 | P15: 158.67 | Q15: 132.00 | R15: 29.33 | S15: 2.40
A16: Ряженка | B16: 155 | C16: 200.000 | D16: =B16*C16/1000 -> 31.00 | F16: 87.70 | G16: =C16*F16/1000 -> 17.54
A17: Хлеб белый в/с | B17: 155 | E17: 120 | G17: =SUM(G18) -> 4.92 | H17: 12.18 | I17: 3.17 | J17: 28.5 | K17: 233.80 | L17: 0.02 | O17: 0.26 | P17: 4.60 | Q17: 17.40 | R17: 6.60 | S17: 0.22
A18: Хлеб белый в/с | B18: 155 | C18: 120.000 | D18: =B18*C18/1000 -> 18.6 | F18: 41.00 | G18: =C18*F18/1000 -> 4.92
H19: =SUM(H9:H18) -> 22.67 | I19: 11.77 | J19: 94.27 | K19: 561.60 | L19: 0.24 | M19: 1.47 | N19: 5.00 | O19: 3.16 | P19: 301.37 | Q19: 333.77 | R19: 80.93 | S19: 5.20
A20: 12:00-13:00 Обед | B20: 155
A21: Салат из белокачанной капусты с яблоками | B21: 155 | E21: 100 | G21: =SUM(G22:G27) -> 9.81 | H21: 1.48 | I21: 3.93 | J21: 7.33 | K21: 70.65 | L21: 0.02 | M21: 24.43 | O21: 2.31 | P21: 25.11 | Q21: 22 | R21: 16 | S21: 0.52
A22: Капуста | B22: 155 | C22: 56.000 | D22: =B22*C22/1000 -> 8.68 | F22: 18.30 | G22: =C22*F22/1000 -> 1.02
A23: Яблоки | B23: 155 | C23: 36.000 | D23: 5.58 | F23: 67.90 | G23: =C23*F23/1000 -> 2.44
A24: Морковь | B24: 155 | C24: 19.000 | D24: 2.95 | F24: 22.40 | G24: 0.43
A25: Лук репчатый | B25: 155 | C25: 8.000 | D25: 1.24 | F25: 24.00 | G25: =C25*F25/40 -> 4.80
A26: Масло растительное | B26: 155 | C26: 7.000 | D26: 1.09 | F26: 117.00 | G26: =C26*F26/1000 -> 0.82
A27: Сахар | B27: 155 | C27: 6.000 | D27: 0.93 | F27: 50.00 | G27: 0.30
A28: Рассольник ленинградский с цыплятами | B28: 155 | E28: 250/25 | G28: =SUM(G29:G38) -> 13.23 | H28: 2.20 | I28: 5.20 | J28: 15.58 | K28: 117.90 | L28: 0.10 | M28: 14.30 | O28: 2.43 | P28: 16.55 | Q28: 34.95 | R28: 28.00 | S28: 1.03
A29: Крупа перловая | B29: 155 | C29: 5.000 | D29: 0.78 | F29: 32.00 | G29: =C29*F29/1000 -> 0.16
A30: Картофель | B30: 155 | C30: 100.000 | D30: 15.50 | F30: 16.90 | G30: =C30*F30/1000 -> 1.69
A31: Лук репчатый | B31: 155 | C31: 6.000 | D31: 0.93 | F31: 24.00 | G31: 0.14
A32: Цыплята | B32: 155 | C32: 46.000 | D32: 7.13 | F32: 193.00 | G32: 8.88
A33: Лук зеленый | B33: 155 | C33: 2.000 | D33: 0.31 | G33: 0.00
A34: Морковь | B34: 155 | C34: 13.000 | D34: 2.02 | F34: 22.40 | G34: 0.29
A35: Сметана | B35: 155 | C35: 5.000 | D35: 0.78 | F35: 190.09 | G35: 0.95
A36: Огурцы соленые | B36: 155 | C36: 15.000 | D36: 2.33 | F36: 33.50 | G36: 0.50
A37: Соль | B37: 155 | C37: 2.000 | D37: 0.31 | F37: 16.00 | G37: 0.03
A38: Масло растительное | B38: 155 | C38: 5.000 | D38: 0.78 | F38: 117.00 | G38: 0.59
A39: Рыба тушеная в томате с овощами | B39: 155 | E39: 100/50 | G39: =SUM(G40:G48) -> 21.18 | H39: 6.84 | I39: 6.72 | J39: 2.20 | K39: 127.00 | L39: 0.12 | M39: 1.80 | N39: 22.20 | O39: 2.22 | P39: 39.07 | Q39: 162.19 | R39: 42.80 | S39: 0.82
A40: Филе горбуша | B40: 155 | C40: 147.000 | D40: 22.79 | F40: 124.00 | G40: =C40*F40/1000 -> 18.23
A41: Лук репчатый | B41: 155 | C41: 12.000 | D41: 1.86 | F41: 24.00 | G41: =C41*F41/1000 -> 0.29
A42: Морковь | B42: 155 | C42: 27.000 | D42: 4.19 | F42: 22.40 | G42: 0.60
A43: Томат паста | B43: 155 | C43: 10.000 | D43: 1.55 | F43: 52.00 | G43: 0.52
A44: Лимонная кислота | B44: 155 | C44: 1.000 | D44: 0.16 | F44: 235.50 | G44: 0.24
A45: сахар | B45: 155 | C45: 2.000 | D45: 0.31 | F45: 50.00 | G45: 0.10
A46: Лавровый лист | B46: 155 | C46: 0.010 | D46: 0.00 | G46: 0.00
A47: Соль | B47: 155 | C47: 2.000 | D47: 0.31 | F47: 16.00 | G47: 0.03
A48: Масло растительное | B48: 155 | C48: 10.000 | D48: 1.55 | F48: 117.00 | G48: 1.17
A49: Картофельное пюре | B49: 155 | E49: 200 | G49: =SUM(G50:G53) -> 10.35 | H49: 3.08 | I49: 2.33 | J49: 19.13 | K49: 109.73 | L49: 1.16 | M49: 3.75 | N49: 33.15 | O49: 0.15 | P49: 38.25 | Q49: 76.95 | R49: 26.70 | S49: 0.86
A50: Картофель | B50: 155 | C50: 228.000 | D50: =B50*C50/1000 -> 35.34 | F50: 16.90 | G50: =C50*F50/1000 -> 3.85
A51: Молоко | B51: 155 | C51: 32.000 | D51: 4.96 | F51: 60.97 | G51: =C51*F51/1000 -> 1.95
A52: соль | B52: 155 | C52: 3.000 | F52: 16.00 | G52: 0.05
A53: Масло сливочное | B53: 155 | C53: 10.000 | D53: =B53*C53/1000 -> 1.55 | F53: 450.00 | G53: 4.50
A54: Сок фруктовый | B54: 155 | E54: 200 | G54: =SUM(G55) -> 7.00 | H54: 1.00 | J54: 19.80 | K54: 85.00 | L54: 20.00 | N54: 0.67 | O54: 52.00 | P54: 14.00 | Q54: 14.00 | R54: 3.20
A55: Сок фруктовый | B55: 155 | C55: 200.000 | D55: 31.00 | F55: 35.00 | G55: =C55*F55/1000 -> 7.00
A56: Пряники | B56: 155 | E56: 50 | G56: =SUM(G57) -> 4.97 | H56: 0.77 | I56: 6.07 | J56: 1.18 | K56: 366.00 | L56: 0.08 | O56: 1.50 | P56: 12.00 | Q56: 1.60 | R56: 10.00 | S56: 0.90
A57: Пряники | B57: 155 | C57: 50.000 | D57: =B57*C57/1000 -> 7.75 | F57: 99.39 | G57: =C57*F57/1000 -> 4.97
A58: Хлеб Дарницкий | B58: 155 | E58: 72 | G58: =SUM(G59) -> 2.95 | H58: 8.46 | I58: 2.51 | J58: 44.33 | K58: 186 | L58: 0.04 | O58: 0.36 | P58: 9.20 | Q58: 42.40 | R58: 10.00 | S58: 1.24
A59: Хлеб | B59: 155 | C59: 72.000 | D59: 11.16 | F59: 41.00 | G59: =C59*F59/1000 -> 2.95
B60: 155 | H60: =SUM(H28:H59) -> 22.35 | I60: =SUM(I28:I59) -> 22.83 | J60: =SUM(J28:J59) -> 102.22 | K60: =SUM(K28:K59) -> 991.63 | L60: =SUM(L28:L59) -> 21.50 | M60: 19.85 | N60: 56.02 | O60: 58.66 | P60: 129.07 | Q60: 332.09 | R60: 120.70 | S60: 4.85
A61: Яблоки свежие | B61: 155 | E61: 180 | G61: =SUM(G62) -> 12.22 | H61: 0.72 | I61: 0.54 | J61: 14.70 | K61: 85.00 | L61: 0.02 | M61: 7.50 | O61: 0.15 | P61: 28.80 | Q61: 18.80 | R61: 6.75 | S61: 1.65
A62: Яблоки | B62: 155 | C62: 180.000 | D62: =B62*C62/1000 -> 27.90 | F62: 67.90 | G62: =C62*F62/1000 -> 12.22
H63: =SUM(H61:H62) -> 0.72 | I63: 0.54 | J63: 14.70 | K63: 85.00 | L63: 0.00 | M63: 7.50 | N63: 0.00 | O63: 0.15 | P63: 28.80 | Q63: 18.80 | R63: 6.75 | S63: 1.65
F64: Итого | G64: =E66*E67 -> 11322.65 | H64: =H19+H60+H63 -> 45.74 | I64: 35.14 | J64: 211.19 | K64: 1638.23 | L64: 21.74 | M64: 28.82 | N64: 61.02 | O64: 61.97 | P64: 459.24 | Q64: 684.66 | R64: 208.38 | S64: 11.70
A66: На питании состоит | E66: 99 | F66: человек
A67: Стоимость рациона питания на 1 человека составляет | E67: =SUM(G9+G15+G17+G21+G28+G39+G49+G54+G58+G61) -> 114.37 | F67: рублей
A69: Медсестра | B69: Макаримова Ю.В. | E69: Заведующий производством | I69: Илалова Р.И.

Sheet 6
A1: ГБОУ Альметьевская школа № 19 для детей с ОВЗ
A2: наименование учреждения
A3: Столовая
A4: подразделение | C4: Меню-раскладка
H5: Понедельник
E6: 7-11 лет
A7: Наименование | B7: Кол-во порций (план) | C7: Кол-во на порцию (гр) | D7: Общее кол-во (кг) | E7: Выход блюда (гр) | F7: Цена (руб) | G7: Общая сумма (руб) | H7: Белки | I7: Жиры | J7: Углеводы | K7: Ккал | L7: В1 | M7: С | N7: А | O7: Е | P7: Са | Q7: Р | R7: Mg | S7: Fe
A8: 09:30-10:30 Завтрак | B8: 96
A9: Омлет натуральный | B9: 96 | E9: 110 | G9: =SUM(G10:G13) -> 23.48 | H9: 20.60 | I9: 30.60 | J9: 2.15 | K9: 197.00 | L9: 0.04 | M9: 0.12 | N9: 148.65 | O9: 0.33 | P9: 52.69 | Q9: 116.20 | R9: 8.87 | S9: 1.28
A10: Молоко | B10: 96 | C10: 30.000 | D10: =B10*C10/1000 -> 2.88 | F10: 67.57 | G10: =C10*F10/1000 -> 2.03
A11: Масло сливочное | B11: 96 | C11: 18.000 | D11: =B11*C11/1000 -> 1.728 | F11: 606.97 | G11: =C11*F11/1000 -> 10.93
A12: Соль | B12: 96 | C12: 2.000 | D12: 0.192 | F12: 16.00 | G12: 0.03
A13: Яйцо | B13: 96 | C13: 60.000 | D13: 5.76 | F13: 7.00 | G13: =C13*F13/40 -> 10.50
A14: Масло сливочное | B14: 96 | E14: 10 | G14: =SUM(G15) -> 6.07 | H14: 0.10 | I14: 7.20 | J14: 0.13 | K14: 65.72 | N14: 40.00 | O14: 0.10 | P14: 2.40 | Q14: 3.00
A15: Масло сливочное | B15: 96 | C15: 10.000 | D15: =B8*C15/1000 -> 0.96 | F15: 606.97 | G15: =C15*F15/1000 -> 6.07
A16: Вафли | B16: 96 | E16: 18 | G16: =SUM(G17) -> 2.88 | H16: 6.96 | I16: 8.85 | K16: 108.00 | L16: 0.05 | P16: 8.00 | Q16: 42.00 | R16: 6.00 | S16: 0.60
A17: Вафли | B17: 96 | C17: 18.000 | D17: =B10*C17/1000 -> 1.73 | F17: 160.00 | G17: =C17*F17/1000 -> 2.88
A18: Чай с сахаром | B18: 96 | E18: 200 | G18: =SUM(G19:G20) -> 1.30 | H18: 0.53 | J18: 9.47 | K18: 40.00 | M18: 0.27 | P18: 13.60 | Q18: 22.13 | R18: 11.73 | S18: 2.13
A19: Чай | B19: 96 | C19: 3.000 | D19: =B8*C19/1000 -> 0.29 | F19: 184.00 | G19: =C19*F19/1000 -> 0.55
A20: Сахар | B20: 96 | C20: 15.000 | D20: =B9*C20/1000 -> 1.44 | F20: 50.00 | G20: =C20*F20/1000 -> 0.75
A21: Хлеб белый | B21: 96 | E21: 90 | G21: =SUM(G22) -> 3.69 | H21: 12.18 | I21: 3.17 | J21: 28.5 | K21: 363.00 | L21: 0.02 | O21: 0.26 | P21: 4.60 | Q21: 17.40 | R21: 6.60 | S21: 0.22
A22: Хлеб белый | B22: 96 | C22: 90.000 | D22: =B11*C22/1000 -> 8.64 | F22: 41.00 | G22: =C22*F22/1000 -> 3.69
H23: =SUM(H9:H22) -> 40.37 | I23: =SUM(I9:I22) -> 49.82 | J23: =SUM(J9:J22) -> 40.25 | K23: =SUM(K9:K22) -> 773.72 | L23: =SUM(L9:L22) -> 0.07 | M23: 0.39 | N23: 188.65 | O23: 0.36 | P23: 81.29 | Q23: 200.73 | R23: 33.20 | S23: 4.23
A24: 12:00-13:00 Обед | B24: =B8 -> 96
A25: Салат из св огурцов | B25: 96 | E25: 75 | G25: =G26+G27 -> 8.48 | H25: 0.67 | I25: 6.09 | J25: 1.81 | K25: 64.65 | L25: 0.03 | M25: 6.65 | O25: 2.74 | P25: 16.15 | Q25: 28.62 | R25: 13.3 | S25: 0.48
A26: Огурцы св | B26: 96 | C26: 89.000 | D26: =B26*C26/1000 -> 8.54 | F26: 88.70 | G26: =C26*F26/1000 -> 7.89
A27: Масло растительное | B27: 96 | C27: 5.000 | D27: 0.48 | F27: 117.00 | G27: 0.59
A28: Суп картофельный с пшеном с цыплятами | B28: 96 | E28: 250/25 | G28: =SUM(G29:G37) -> 11.73 | H28: 1.97 | I28: 2.71 | J28: 12.11 | K28: 85.75 | L28: 0.07 | M28: 12 | P28: 59.1 | Q28: 267 | R28: 31.8 | S28: 0.93
A29: Крупа пшено | B29: 96 | C29: 5.000 | D29: =B29*C29/1000 -> 0.48 | F29: 40.00 | G29: =C29*F29/1000 -> 0.20
A30: Картофель | B30: 96 | C30: 100.000 | D30: =B30*C30/1000 -> 9.60 | F30: 16.90 | G30: =C30*F30/1000 -> 1.69
A31: Лук репчатый | B31: 96 | C31: 12.000 | D31: 1.15 | F31: 24.00 | G31: 0.29
A32: Птица | B32: 96 | C32: 46.000 | D32: 4.42 | F32: 193.00 | G32: 8.88
A33: Лук зеленый | B33: 96 | C33: 2.000 | D33: 0.19 | G33: 0.00
A34: Морковь | B34: 96 | C34: 13.000 | D34: 1.25 | F34: 22.40 | G34: 0.29
A35: Укроп | B35: 96 | C35: 2.000 | D35: 0.19 | G35: 0.00
A36: Соль | B36: 96 | C36: 2.000 | D36: 0.19 | F36: 16.00 | G36: 0.03
A37: Масло растительное | B37: 96 | C37: 3.000 | D37: 0.29 | F37: 117.00 | G37: 0.35
A38: Гуляш из говядины | B38: 96 | E38: 75/50 | G38: =G39+G40+G41+G42+G43+G44+G45 -> 53.55 | H38: 7.12 | I38: 15.12 | J38: 43.03 | K38: 176.00 | L38: 0.08 | M38: 4.67 | O38: 0.58 | P38: 19.25 | Q38: 57.92 | R38: 17.58 | S38: 1.92
A39: Говядина | B39: 96 | C39: 140.000 | D39: 13.44 | F39: 370 | G39: 51.80
A40: Масло растительное | B40: 96 | C40: 7.000 | D40: 0.67 | F40: 117 | G40: 0.82
A41: Мука | B41: 96 | C41: 3.000 | D41: 0.29 | F41: 33 | G41: 0.10
A42: Паста томатная | B42: 96 | C42: 7.000 | D42: 0.67 | F42: 52 | G42: 0.36
A43: Лук репчатый | B43: 96 | C43: 18.000 | D43: 1.73 | F43: 24 | G43: 0.43
A44: Соль | B44: 96 | C44: 2.000 | D44: 0.19 | F44: 16 | G44: 0.03
A45: Перец черн молот | B45: 96 | C45: 3.000 | D45: 0.29 | G45: 0.00
A46: Каша гречневая | B46: 96 | E46: 150/10 | G46: =G47+G48+G49 -> 9.14 | H46: 8.90 | I46: 4.10 | J46: 39.84 | K46: 231.86 | L46: 0.20 | P46: 14.60 | Q46: 210.00 | R46: 140.00 | S46: 5.01
A47: Крупа гречневая | B47: 96 | C47: 71.000 | D47: =B47*C47/1000 -> 6.82 | F47: 43.00 | G47: =C47*F47/1000 -> 3.05
A48: Масло сливочное | B48: 96 | C48: 10.000 | D48: 0.96 | F48: 606.97 | G48: 6.07
A49: Соль | B49: 96 | C49: 1.000 | D49: 0.10 | F49: 16.00 | G49: 0.02
A50: Сок фруктовый | B50: 96 | E50: 200 | G50: =G51 -> 7.00 | H50: 1.00 | I50: - | J50: 19.80 | K50: 85.00 | L50: 20.00 | N50: 0.67 | O50: 52.00 | P50: 82.67 | Q50: 30.00 | R50: 3.20
A51: Сок фруктовый | B51: 96 | C51: 200.000 | D51: 19.20 | F51: 35 | G51: 7.00
A52: Хлеб Дарницкий | B52: 96 | E52: 48 | G52: =SUM(G53) -> 1.97 | H52: 8.46 | I52: 2.51 | J52: 44.33 | K52: 186 | L52: 0.04 | O52: 0.36 | P52: 9.20 | Q52: 42.40 | R52: 10.00 | S52: 1.24
A53: Хлеб Дарницкий | B53: 96 | C53: 48.000 | D53: 4.61 | F53: 41.00 | G53: =C53*F53/1000 -> 1.97
H54: =SUM(H25:H53) -> 28.12 | I54: 30.53 | J54: 160.92 | K54: 829.26 | L54: 20.42 | M54: 23.32 | N54: 0.67 | O54: 55.68 | P54: 200.97 | Q54: 635.94 | R54: 215.88 | S54: 9.58
A55: 14:30-15:00 Полдник | B55: =B24 -> 96
A56: Апельсин | B56: 96 | E56: 250 | G56: =SUM(G57) -> 22.23 | H56: 0.90 | I56: 0.20 | J56: 8.68 | K56: 135.00 | L56: 0.03 | M56: 45.00 | O56: 0.03 | P56: 25.71 | Q56: 17.14 | R56: 9.64 | S56: 0.21
A57: Апельсин | B57: 96 | C57: 250.000 | D57: =C57*B55/1000 -> 24.00 | F57: 88.9 | G57: =C57*F57/1000 -> 22.23
A58: Молоко кипяченое | B58: 96 | E58: 200 | G58: =SUM(G59) -> 14.26 | H58: 1.53 | I58: 0.34 | J58: 13.77 | K58: 61.20 | L58: 0.08 | M58: 2.60 | N58: 40.00 | P58: 240.00 | Q58: 180.00 | R58: 28.00 | S58: 0.20
A59: Молоко | B59: 96 | C59: 211.000 | D59: =B59*C59/1000 -> 20.26 | F59: 67.57 | G59: =C59*F59/1000 -> 14.26
H60: =SUM(H56:H58) -> 2.43 | I60: =SUM(I56:I58) -> 0.54 | J60: 22.45 | K60: 196.20 | L60: 0.11 | M60: 47.60 | N60: 40.00 | O60: 0.03 | P60: 265.71 | Q60: 197.14 | R60: 37.64 | S60: 0.41
F61: Итого | G61: =E63*E64 -> 15913.99 | H61: =H23+H54+H60 -> 70.92 | I61: 80.89 | J61: 223.62 | K61: 1799.18 | L61: 20.60 | M61: 71.31 | N61: 229.32 | O61: 56.07 | P61: 547.97 | Q61: 1033.81 | R61: 286.72 | S61: 14.22
A63: На питании состоит | E63: 96 | F63: человек
A64: Стоимость рациона питания на 1 человека составляет | E64: =SUM(G9+G14+G16+G18+G21+G25+G28+G38+G46+G50+G56+G52+G58) -> 165.77 | F64: рублей
A66: Медсестра | B66: Макаримова Ю.В. | E66: Заведующий производством | I66: Илалова Р.И.

Sheet 6 (2)
A1: ГБОУ Альметьевская школа № 19 для детей с ОВЗ
A2: наименование учреждения
A3: Столовая
A4: подразделение | C4: Меню-раскладка
H5: Понедельник
E6: 12-18лет
A7: Наименование | B7: Кол-во порций (план) | C7: Кол-во на порцию (гр) | D7: Общее кол-во (кг) | E7: Выход блюда (гр) | F7: Цена (руб) | G7: Общая сумма (руб) | H7: Белки | I7: Жиры | J7: Углеводы | K7: Ккал | L7: В1 | M7: С | N7: А | O7: Е | P7: Са | Q7: Р | R7: Mg | S7: Fe
A8: 09:30-10:30 Завтрак | B8: 155
A9: Омлет натуральный | B9: 155 | E9: 140 | G9: =SUM(G10:G13) -> 23.48 | H9: 20.60 | I9: 30.60 | J9: 2.15 | K9: 251.50 | L9: 0.04 | M9: 0.12 | N9: 148.65 | O9: 0.33 | P9: 52.69 | Q9: 116.20 | R9: 8.87 | S9: 1.28
A10: Молоко | B10: 155 | C10: 30.000 | D10: =B10*C10/1000 -> 4.65 | F10: 67.57 | G10: =C10*F10/1000 -> 2.03
A11: Масло сливочное | B11: 155 | C11: 18.000 | D11: =B11*C11/1000 -> 2.79 | F11: 606.97 | G11: =C11*F11/1000 -> 10.93
A12: Соль | B12: 155 | C12: 2.000 | D12: 0.31 | F12: 16.00 | G12: 0.03
A13: Яйцо | B13: 155 | C13: 60.000 | D13: 9.3 | F13: 7.00 | G13: =C13*F13/40 -> 10.50
A14: Масло сливочное | B14: 155 | E14: 10 | G14: =SUM(G15) -> 6.07 | H14: 0.10 | I14: 7.20 | J14: 0.13 | K14: 65.72 | N14: 40.00 | O14: 0.10 | P14: 2.40 | Q14: 3.00
A15: Масло сливочное | B15: 155 | C15: 10.000 | D15: =B8*C15/1000 -> 1.55 | F15: 606.97 | G15: =C15*F15/1000 -> 6.07
A16: Вафли | B16: 155 | E16: 18 | G16: =SUM(G17) -> 2.88 | H16: 6.96 | I16: 8.85 | K16: 108.00 | L16: 0.05 | P16: 8.00 | Q16: 42.00 | R16: 6.00 | S16: 0.60
A17: Вафли | B17: 155 | C17: 18.000 | D17: =B10*C17/1000 -> 2.79 | F17: 160.00 | G17: =C17*F17/1000 -> 2.88
A18: Чай с сахаром | B18: 155 | E18: 200 | G18: =SUM(G19:G20) -> 1.30 | H18: 0.53 | J18: 9.47 | K18: 40.00 | M18: 0.27 | P18: 13.60 | Q18: 22.13 | R18: 11.73 | S18: 2.13
A19: Чай | B19: 155 | C19: 3.000 | D19: =B8*C19/1000 -> 0.47 | F19: 184.00 | G19: =C19*F19/1000 -> 0.55
A20: Сахар | B20: 155 | C20: 15.000 | D20: =B9*C20/1000 -> 2.33 | F20: 50.00 | G20: =C20*F20/1000 -> 0.75
A21: Хлеб белый | B21: 155 | E21: 150 | G21: =SUM(G22) -> 4.92 | H21: 12.18 | I21: 3.17 | J21: 28.5 | K21: 363.00 | L21: 0.02 | O21: 0.26 | P21: 4.60 | Q21: 17.40 | R21: 6.60 | S21: 0.22
A22: Хлеб белый | B22: 155 | C22: 120.000 | D22: =B11*C22/1000 -> 18.60 | F22: 41.00 | G22: =C22*F22/1000 -> 4.92
H23: =SUM(H9:H22) -> 40.37 | I23: =SUM(I9:I22) -> 49.82 | J23: =SUM(J9:J22) -> 40.25 | K23: =SUM(K9:K22) -> 828.22 | L23: =SUM(L9:L22) -> 0.07 | M23: 0.39 | N23: 188.65 | O23: 0.36 | P23: 81.29 | Q23: 200.73 | R23: 33.20 | S23: 4.23
A24: 12:00-13:00 Обед | B24: =B8 -> 155
A25: Салат из св огурцов | B25: 155 | E25: 100 | G25: =G26+G27 -> 11.14 | H25: 0.67 | I25: 6.09 | J25: 1.81 | K25: 64.65 | L25: 0.02 | M25: 7.32 | N25: 39 | O25: 2.36 | P25: 168.45 | Q25: 120.4 | R25: 26.4 | S25: 1.53
A26: Огурцы св | B26: 155 | C26: 119.000 | D26: =B26*C26/1000 -> 18.45 | F26: 88.70 | G26: =C26*F26/1000 -> 10.56
A27: Масло растительное | B27: 155 | C27: 5.000 | D27: 0.78 | F27: 117.00 | G27: 0.59
A28: Суп картофельный с пшеном с цыплятами | B28: 155 | E28: 250/25 | G28: =SUM(G29:G37) -> 11.73 | H28: 1.97 | I28: 2.71 | J28: 12.11 | K28: 85.75 | L28: 0.07 | M28: 12 | P28: 59.1 | Q28: 267 | R28: 31.8 | S28: 0.93
A29: Крупа пшено | B29: 155 | C29: 5.000 | D29: =B29*C29/1000 -> 0.78 | F29: 40.00 | G29: =C29*F29/1000 -> 0.20
A30: Картофель | B30: 155 | C30: 100.000 | D30: =B30*C30/1000 -> 15.50 | F30: 16.90 | G30: =C30*F30/1000 -> 1.69
A31: Лук репчатый | B31: 155 | C31: 12.000 | D31: 1.86 | F31: 24.00 | G31: 0.29
A32: Птица | B32: 155 | C32: 46.000 | D32: 7.13 | F32: 193.00 | G32: 8.88
A33: Лук зеленый | B33: 155 | C33: 2.000 | D33: 0.31 | G33: 0.00
A34: Морковь | B34: 155 | C34: 13.000 | D34: 2.02 | F34: 22.40 | G34: 0.29
A35: Укроп | B35: 155 | C35: 2.000 | D35: 0.31 | G35: 0.00
A36: Соль | B36: 155 | C36: 2.000 | D36: 0.31 | F36: 16.00 | G36: 0.03
A37: Масло растительное | B37: 155 | C37: 3.000 | D37: 0.47 | F37: 117.00 | G37: 0.35
A38: Гуляш из говядины | B38: 155 | E38: 100/50 | G38: =G39+G40+G41+G42+G43+G44+G45 -> 70.04 | H38: 7.12 | I38: 15.12 | J38: 43.03 | K38: 176.00 | L38: 0.08 | M38: 4.67 | O38: 0.58 | P38: 19.25 | Q38: 57.92 | R38: 17.58 | S38: 1.92
A39: Говядина | B39: 155 | C39: 186.000 | D39: 28.83 | F39: 370 | G39: 68.82
A40: Масло растительное | B40: 155 | C40: 5.000 | D40: 0.78 | F40: 117 | G40: 0.59
A41: Мука | B41: 155 | C41: 2.000 | D41: 0.31 | F41: 33 | G41: 0.07
A42: Паста томатная | B42: 155 | C42: 5.000 | D42: 0.78 | F42: 52 | G42: 0.26
A43: Лук репчатый | B43: 155 | C43: 12.000 | D43: 1.86 | F43: 24 | G43: 0.29
A44: Соль | B44: 155 | C44: 1.000 | D44: 0.16 | F44: 16 | G44: 0.02
A45: Перец черн молот | B45: 155 | C45: 2.000 | D45: 0.31 | G45: 0.00
A46: Каша гречневая | B46: 155 | E46: 200/10 | G46: =G47+G48+G49 -> 10.13 | H46: 8.90 | I46: 4.10 | J46: 39.84 | K46: 231.86 | L46: 0.20 | P46: 14.60 | Q46: 210.00 | R46: 140.00 | S46: 5.01
A47: Крупа гречневая | B47: 155 | C47: 94.000 | D47: =B47*C47/1000 -> 14.57 | F47: 43.00 | G47: =C47*F47/1000 -> 4.04
A48: Масло сливочное | B48: 155 | C48: 10.000 | D48: 1.55 | F48: 606.97 | G48: 6.07
A49: Соль | B49: 155 | C49: 1.000 | D49: 0.16 | F49: 16.00 | G49: 0.02
A50: Сок фруктовый | B50: 155 | E50: 200 | G50: =G51 -> 7.00 | H50: 1.00 | I50: - | J50: 19.80 | K50: 85.00 | L50: 20.00 | N50: 0.67 | O50: 52.00 | P50: 82.67 | Q50: 30.00 | R50: 3.20
A51: Сок фруктовый | B51: 155 | C51: 200.000 | D51: 31.00 | F51: 35 | G51: 7.00
A52: Хлеб Дарницкий | B52: 155 | E52: 72 | G52: =SUM(G53) -> 2.95 | H52: 8.46 | I52: 2.51 | J52: 44.33 | K52: 186 | L52: 0.04 | O52: 0.36 | P52: 9.20 | Q52: 42.40 | R52: 10.00 | S52: 1.24
A53: Хлеб Дарницкий | B53: 155 | C53: 72.000 | D53: 11.16 | F53: 41.00 | G53: =C53*F53/1000 -> 2.95
H54: =SUM(H25:H53) -> 28.12 | I54: 30.53 | J54: 160.92 | K54: 829.26 | L54: 20.41 | M54: 23.99 | N54: 39.67 | O54: 55.30 | P54: 353.27 | Q54: 727.72 | R54: 228.98 | S54: 10.63
A55: Апельсин | B55: 155 | E55: 190 | G55: =SUM(G56) -> 16.89 | H55: 0.90 | I55: 0.20 | J55: 8.68 | K55: 103.00 | L55: 0.03 | M55: 45.00 | O55: 0.03 | P55: 25.71 | Q55: 17.14 | R55: 9.64 | S55: 0.21
A56: Апельсин | B56: 155 | C56: 190.000 | F56: 88.9 | G56: =C56*F56/1000 -> 16.89
H57: =SUM(H55:H56) -> 0.90 | I57: 0.20 | J57: 8.68 | K57: 103.00 | L57: 0.03 | M57: 45.00 | N57: 0.00 | O57: 0.03 | P57: 25.71 | Q57: 17.14 | R57: 9.64 | S57: 0.21
F58: Итого | G58: =E60*E61 -> 26122.53 | H58: =H23+H54+H57 -> 69.39 | I58: 80.55 | J58: 209.85 | K58: 1760.48 | L58: 20.51 | M58: 69.38 | N58: 228.32 | O58: 55.69 | P58: 460.27 | Q58: 945.59 | R58: 271.82 | S58: 15.07
A60: На питании состоит | E60: 155 | F60: человек
A61: Стоимость рациона питания на 1 человека составляет | E61: =SUM(G9+G14+G16+G18+G21+G25+G28+G38+G46+G50+G55+G52) -> 168.53 | F61: рублей
A63: Медсестра | B63: Макаримова Ю.В. | E63: Заведующий производством | I63: Илалова Р.И.

Sheet 7
A1: ГБОУ Альметьевская школа № 19 для детей с ОВЗ
A2: наименование учреждения
A3: Столовая
A4: подразделение | C4: Меню-раскладка
H5: Вторник
E6: 7-11 лет
A7: Наименование | B7: Кол-во порций (план) | C7: Кол-во на порцию (гр) | D7: Общее кол-во (кг) | E7: Выход блюда (гр) | F7: Цена (руб) | G7: Общая сумма (руб) | H7: Белки | I7: Жиры | J7: Углеводы | K7: Ккал | L7: В1 | M7: С | N7: А | O7: Е | P7: Са | Q7: Р | R7: Mg | S7: Fe
A8: 09:30-10:30 Завтрак | B8: 96
A9: Каша молочная из риса и пшена | B9: 96 | E9: 200/10 | G9: =G10+G11+G12+G13+G14+G15 -> 15.12 | H9: 7.51 | I9: 11.72 | J9: 0.37 | K9: 285 | L9: 0.4 | M9: 1.9 | N9: 71.6 | O9: 0.4 | P9: 92.3 | Q9: 128 | R9: 26.7 | S9: 1.3
A10: Молоко | B10: 96 | C10: 100.000 | D10: =B10*C10/1000 -> 9.60 | F10: 67.57 | G10: =C10*F10/1000 -> 6.76
A11: Масло сливочное | B11: 96 | C11: 10.000 | D11: =B11*C11/1000 -> 0.96 | F11: 606.97 | G11: =C11*F11/1000 -> 6.07
A12: Сахар | B12: 96 | C12: 6.000 | D12: 0.58 | F12: 50.00 | G12: 0.30
A13: Крупа рис | B13: 96 | C13: 14.000 | F13: 86.00 | G13: 1.20
A14: Крупа пшено | B14: 96 | C14: 19.000 | D14: 1.82 | F14: 40.00 | G14: 0.76
A15: Соль | B15: 96 | C15: 2.000 | D15: 0.19 | F15: 16.00 | G15: 0.03
A16: Ряженка | B16: 96 | E16: 200 | G16: =G17 -> 19.31 | H16: 3.17 | I16: 2.68 | J16: 28.27 | K16: 100.80 | L16: 0.03 | M16: 1.47 | P16: 158.67 | Q16: 132.00 | R16: 29.33 | S16: 2.40
A17: Ряженка | B17: 96 | C17: 200.000 | D17: =B17*C17/1000 -> 19.20 | F17: 96.55 | G17: =C17*F17/1000 -> 19.31
A18: Хлеб белый | B18: 96 | E18: 90 | G18: =G19 -> 3.69 | H18: 12.18 | I18: 3.17 | J18: 28.5 | K18: 233.80 | L18: 0.05 | O18: 0.65 | P18: 11.50 | Q18: 43.50 | R18: 16.50 | S18: 0.55
A19: Хлеб белый | B19: 96 | C19: 90.000 | D19: 8.64 | F19: 41.00 | G19: =C19*F19/1000 -> 3.69
H20: =SUM(H9:H19) -> 22.86 | I20: 17.57 | J20: 57.14 | K20: 619.60 | L20: 0.48 | M20: 3.37 | N20: 71.60 | O20: 1.05 | P20: 262.47 | Q20: 303.50 | R20: 72.53 | S20: 4.25
A21: 12:00-13:00 Обед | B21: =B8 -> 96
A22: Салат овощной с яблоками | B22: 96 | E22: 75 | G22: =G23+G24+G25+G26+G27+G28 -> 3.89 | H22: 1.39 | I22: 2.37 | J22: 3.96 | K22: 39.60 | L22: 0.32 | M22: 155.19 | N22: 155.00 | P22: 331.42 | Q22: 290.17 | R22: 172.82
A23: Свекла ст | B23: 96 | C23: 17.000 | D23: =B23*C23/1000 -> 1.63 | F23: 18.40 | G23: =C23*F23/1000 -> 0.31
A24: Морковь | B24: 96 | C24: 12.000 | D24: 1.15 | F24: 22.40 | G24: 0.27
A25: Капуста б/к | B25: 96 | C25: 29.000 | D25: 2.78 | F25: 18.30 | G25: 0.53
A26: яблоки | B26: 96 | C26: 35.000 | D26: 3.36 | F26: 67.90 | G26: 2.38
A27: Лимонная кислота | B27: 96 | C27: 0.001 | D27: 0.00 | F27: 235.50 | G27: 0.00
A28: Сахар | B28: 96 | C28: 8.000 | D28: 0.77 | F28: 50.00 | G28: 0.40
A29: Суп картофельный с рисом с цыплятами | B29: 96 | E29: 250/25 | G29: =G30+G31+G32+G33+G34+G35+G36+G37 -> 11.75 | H29: 10.04 | I29: 5.96 | J29: 23.16 | K29: 175 | L29: 0.04 | M29: 3 | P29: 88 | Q29: 50.1 | R29: 22.1 | S29: 50.1
A30: Рис | B30: 96 | C30: 5.000 | D30: 0.48 | F30: 44.30 | G30: =C30*F30/1000 -> 0.22
A31: Картофель | B31: 96 | C31: 100.000 | D31: 9.60 | F31: 16.90 | G31: 1.69
A32: Лук репчатый | B32: 96 | C32: 12.000 | D32: 1.15 | F32: 24.00 | G32: 0.29
A33: Цыплята | B33: 96 | C33: 46.000 | D33: 4.42 | F33: 193.00 | G33: 8.88
A34: Морковь | B34: 96 | C34: 13.000 | D34: 1.25 | F34: 22.40 | G34: 0.29
A35: Перец молотый | B35: 96 | C35: 0.001 | D35: 0.00 | G35: 0.00
A36: Соль | B36: 96 | C36: 2.000 | D36: 0.19 | F36: 16.00 | G36: 0.03
A37: Масло растительное | B37: 96 | C37: 3.000 | D37: 0.29 | F37: 117.00 | G37: 0.35
A38: Котлета рубленая из птицы | B38: 96 | E38: 75/7 | G38: =G39+G40+G41+G42+G43+G44+G45 -> 30.63 | H38: 15.30 | I38: 29.40 | J38: 57.06 | K38: 291.00 | L38: 0.06 | M38: 0.16 | N38: 16.00 | O38: 0.30 | P38: 35.20 | Q38: 76.80 | R38: 20.80 | S38: 1.76
A39: Цыплята | B39: 96 | C39: 130.000 | D39: 12.48 | F39: 193.00 | G39: 25.09
A40: Хлеб белый | B40: 96 | C40: 12.000 | F40: 41.00 | G40: 0.49
A41: Сухари панировочные | B41: 96 | C41: 7.500 | D41: 0.72 | G41: 0.00
A42: Молоко | B42: 96 | C42: 18.000 | D42: 1.73 | F42: 60.97 | G42: 1.10
A43: Масло сливочное | B43: 96 | C43: 7.500 | D43: 0.72 | F43: 450.00 | G43: 3.38
A44: Соль | B44: 96 | C44: 3.000 | D44: 0.29 | F44: 16.00 | G44: 0.05
A45: Масло растительное | B45: 96 | C45: 4.500 | D45: 0.43 | F45: 117.00 | G45: 0.53
A46: Картофель отварной в молоке | B46: 96 | E46: 200 | G46: =G47+G48+G49+G50+G51 -> 10.57 | H46: 3.37 | I46: 6.80 | J46: 18.30 | K46: 198.00 | L46: 0.20 | M46: 29.00 | O46: 0.20 | P46: 24.00 | Q46: 108.00 | R46: 44.00 | S46: 1.60
A47: Картофель | B47: 96 | C47: 200.000 | D47: =B47*C47/1000 -> 19.20 | F47: 16.9 | G47: =C47*F47/1000 -> 3.38
A48: Масло сливочное | B48: 96 | C48: 5.000 | D48: 0.48 | F48: 606.97 | G48: 3.03
A49: Соль | B49: 96 | C49: 2.000 | D49: 0.19 | F49: 16 | G49: 0.03
A50: Мука | B50: 96 | C50: 2.000 | F50: 33 | G50: 0.07
A51: Молоко | B51: 96 | C51: 60.000 | D51: =B51*C51/1000 -> 5.76 | F51: 67.57 | G51: 4.05
A52: Компот из кураги | B52: 96 | D52: 0.00 | E52: 200 | G52: =SUM(G53:G54) -> 2.66 | H52: 1.16 | I52: 0.30 | J52: 47.26 | K52: 128.18 | L52: 0.02 | M52: 0.80 | O52: 0.20 | P52: 32.48 | Q52: 23.44 | R52: 33.00 | S52: 0.96
A53: Курага | B53: 96 | C53: 20.000 | D53: 1.92 | F53: 83.00 | G53: =C53*F53/1000 -> 1.66
A54: Сахар | B54: 96 | C54: 20.000 | D54: 1.92 | F54: 50.00 | G54: =C54*F54/1000 -> 1.00
A55: Хлеб Дарницкий | B55: 96 | E55: 48 | G55: =SUM(G56) -> 1.97 | H55: 8.46 | I55: 2.51 | J55: 44.33 | K55: 186 | L55: 0.04 | O55: 0.36 | P55: 9.20 | Q55: 42.40 | R55: 10.00 | S55: 1.24
A56: Хлеб | B56: 96 | C56: 48.000 | D56: 4.61 | F56: 41.00 | G56: =C56*F56/1000 -> 1.97
H57: =SUM(H22:H56) -> 39.72 | I57: 47.34 | J57: 194.07 | K57: 1017.78 | L57: 0.68 | M57: 188.15 | N57: 171.00 | O57: 1.06 | P57: 520.30 | Q57: 590.91 | R57: 302.72 | S57: 55.66
A58: 14:30-15:00 Полдник | B58: 96
A59: Груши св | B59: 96 | E59: 200 | G59: =G60 -> 26.19 | H59: 0.51 | I59: 0.51 | J59: 13.50 | K59: 91.00 | L59: 0.02 | M59: 3.75 | O59: 0.30 | P59: 14.25 | Q59: 12.00 | R59: 9.00 | S59: 1.73
A60: Груши св | B60: 96 | C60: 194.000 | D60: =B60*C60/1000 -> 18.62 | F60: 135.00 | G60: =C60*F60/1000 -> 26.19
A61: Вафли | B61: 96 | E61: 18 | G61: =SUM(G62) -> 2.88 | H61: 6.96 | I61: 8.85 | K61: 108.00 | L61: 0.05 | P61: 8.00 | Q61: 42.00 | R61: 6.00 | S61: 0.60
A62: Вафли | B62: 96 | C62: 18.000 | D62: =B55*C62/1000 -> 1.73 | F62: 160.00 | G62: =C62*F62/1000 -> 2.88
A63: Молоко кипяченое | B63: 96 | E63: 200 | G63: =SUM(G64) -> 14.26 | H63: 1.53 | I63: 0.34 | J63: 13.77 | K63: 61.20 | L63: 0.08 | M63: 2.60 | N63: 40.00 | P63: 240.00 | Q63: 180.00 | R63: 28.00 | S63: 0.20
A64: Молоко | B64: 96 | C64: 211.000 | D64: =B64*C64/1000 -> 20.26 | F64: 67.57 | G64: =C64*F64/1000 -> 14.26
B65: 96 | H65: =SUM(H59:H63) -> 9.00 | I65: =SUM(I59:I63) -> 9.70 | J65: 27.27 | K65: 260.20 | L65: 0.15 | M65: 6.35 | N65: 40.00 | O65: 0.30 | P65: 262.25 | Q65: 234.00 | R65: 43.00 | S65: 2.53
F66: Итого | G66: =E68*E69 -> 19324.79 | H66: =H20+H57+H65 -> 71.58 | I66: 74.61 | J66: 278.48 | K66: 1897.58 | L66: 1.31 | M66: 197.87 | N66: 282.60 | O66: 2.41 | P66: 1045.02 | Q66: 1128.41 | R66: 418.25 | S66: 62.44
A68: На питании состоит | E68: 138 | F68: человек
A69: Стоимость рациона питания на 1 человека составляет | E69: =SUM(G9+G16+G18+G22+G29+G38+G46+G52+G59+G55+G63) -> 140.03 | F69: рублей
A71: Медсестра | B71: Макаримова Ю.В. | E71: Заведующий производством | I71: Илалова Р.И.

Sheet 7 (2)
A1: ГБОУ Альметьевская школа № 19 для детей с ОВЗ
A2: наименование учреждения
A3: Столовая
A4: подразделение | C4: Меню-раскладка
H5: Вторник
E6: 12-18лет
A7: Наименование | B7: Кол-во порций (план) | C7: Кол-во на порцию (гр) | D7: Общее кол-во (кг) | E7: Выход блюда (гр) | F7: Цена (руб) | G7: Общая сумма (руб) | H7: Белки | I7: Жиры | J7: Углеводы | K7: Ккал | L7: В1 | M7: С | N7: А | O7: Е | P7: Са | Q7: Р | R7: Mg | S7: Fe
A8: 09:30-10:30 Завтрак | B8: 155
A9: Каша молочная из риса и пшена | B9: 155 | E9: 200/10 | G9: =G10+G11+G12+G13+G14+G15 -> 15.12 | H9: 7.51 | I9: 11.72 | J9: 0.37 | K9: 285 | L9: 0.4 | M9: 1.9 | N9: 71.6 | O9: 0.4 | P9: 92.3 | Q9: 128 | R9: 26.7 | S9: 1.3
A10: Молоко | B10: 155 | C10: 100.000 | D10: =B10*C10/1000 -> 15.50 | F10: 67.57 | G10: =C10*F10/1000 -> 6.76
A11: Масло сливочное | B11: 155 | C11: 10.000 | D11: =B11*C11/1000 -> 1.55 | F11: 606.97 | G11: =C11*F11/1000 -> 6.07
A12: Сахар | B12: 155 | C12: 6.000 | D12: 0.93 | F12: 50.00 | G12: 0.30
A13: Крупа рис | B13: 155 | C13: 14.000 | F13: 86.00 | G13: 1.20
A14: Крупа пшено | B14: 155 | C14: 19.000 | D14: 2.95 | F14: 40.00 | G14: 0.76
A15: Соль | B15: 155 | C15: 2.000 | D15: 0.31 | F15: 16.00 | G15: 0.03
A16: Ряженка | B16: 155 | E16: 200 | G16: =G17 -> 19.31 | H16: 3.17 | I16: 2.68 | J16: 28.27 | K16: 100.80 | L16: 0.03 | M16: 1.47 | P16: 158.67 | Q16: 132.00 | R16: 29.33 | S16: 2.40
A17: Ряженка | B17: 155 | C17: 200.000 | D17: =B17*C17/1000 -> 31.00 | F17: 96.55 | G17: =C17*F17/1000 -> 19.31
A18: Хлеб белый | B18: 155 | E18: 120 | G18: =G19 -> 4.92 | H18: 12.18 | I18: 3.17 | J18: 28.5 | K18: 363.00 | L18: 0.05 | O18: 0.65 | P18: 11.50 | Q18: 43.50 | R18: 16.50 | S18: 0.55
A19: Хлеб белый | B19: 155 | C19: 120.000 | D19: 18.60 | F19: 41.00 | G19: =C19*F19/1000 -> 4.92
H20: =SUM(H9:H19) -> 22.86 | I20: 17.57 | J20: 57.14 | K20: 748.80 | L20: 0.48 | M20: 3.37 | N20: 71.60 | O20: 1.05 | P20: 262.47 | Q20: 303.50 | R20: 72.53 | S20: 4.25
A21: 12:00-13:00 Обед | B21: =B8 -> 155
A22: Салат овощной с яблоками | B22: 155 | E22: 100 | G22: =G23+G24+G25+G26+G27+G28 -> 5.09 | H22: 1.39 | I22: 2.37 | J22: 3.96 | K22: 39.60 | L22: 0.32 | M22: 155.19 | N22: 155.00 | P22: 331.42 | Q22: 290.17 | R22: 172.82
A23: Свекла ст | B23: 155 | C23: 23.000 | D23: =B23*C23/1000 -> 3.57 | F23: 18.40 | G23: =C23*F23/1000 -> 0.42
A24: Морковь | B24: 155 | C24: 16.000 | D24: 2.48 | F24: 22.40 | G24: 0.36
A25: Капуста б/к | B25: 155 | C25: 39.000 | D25: 6.05 | F25: 18.30 | G25: 0.71
A26: яблоки | B26: 155 | C26: 47.000 | D26: 7.29 | F26: 67.90 | G26: 3.19
A27: Лимонная кислота | B27: 155 | C27: 0.001 | D27: 0.00 | F27: 235.50 | G27: 0.00
A28: Сахар | B28: 155 | C28: 8.000 | D28: 1.24 | F28: 50.00 | G28: 0.40
A29: Суп картофельный с рисом с цыплятами | B29: 155 | E29: 250/25 | G29: =G30+G31+G32+G33+G34+G35+G36+G37 -> 10.58 | H29: 10.04 | I29: 5.96 | J29: 23.16 | K29: 175 | L29: 0.04 | M29: 3 | P29: 88 | Q29: 50.1 | R29: 22.1 | S29: 50.1
A30: Рис | B30: 155 | C30: 5.000 | D30: 0.78 | F30: 86.00 | G30: =C30*F30/1000 -> 0.43
A31: Картофель | B31: 155 | C31: 100.000 | D31: 15.50 | F31: 16.90 | G31: 1.69
A32: Лук репчатый | B32: 155 | C32: 12.000 | D32: 1.86 | F32: 24.00 | G32: 0.29
A33: Цыплята | B33: 155 | C33: 46.000 | D33: 7.13 | F33: 163.00 | G33: 7.50
A34: Морковь | B34: 155 | C34: 13.000 | D34: 2.02 | F34: 22.40 | G34: 0.29
A35: Перец молотый | B35: 155 | C35: 0.001 | D35: 0.00 | G35: 0.00
A36: Соль | B36: 155 | C36: 2.000 | D36: 0.31 | F36: 16.00 | G36: 0.03
A37: Масло растительное | B37: 155 | C37: 3.000 | D37: 0.47 | F37: 117.00 | G37: 0.35
A38: Котлета рубленая из птицы | B38: 155 | E38: 75 | G38: =G39+G40+G41+G42+G43+G44+G45 -> 15.72 | H38: 15.30 | I38: 29.40 | J38: 57.06 | K38: 291.00 | L38: 0.06 | M38: 0.16 | N38: 16.00 | O38: 0.30 | P38: 35.20 | Q38: 76.80 | R38: 20.80 | S38: 1.76
A39: Птица | B39: 155 | C39: 66.000 | D39: 10.23 | F39: 163.00 | G39: 10.76
A40: Хлеб белый | B40: 155 | C40: 8.000 | F40: 41.00 | G40: 0.33
A41: Сухари панировочные | B41: 155 | C41: 5.000 | D41: 0.78 | G41: 0.00
A42: Молоко | B42: 155 | C42: 18.000 | D42: 2.79 | F42: 60.97 | G42: 1.10
A43: Масло сливочное | B43: 155 | C43: 7.000 | D43: 1.09 | F43: 450.00 | G43: 3.15
A44: Соль | B44: 155 | C44: 2.000 | D44: 0.31 | F44: 16.00 | G44: 0.03
A45: Масло растительное | B45: 155 | C45: 3.000 | D45: 0.47 | F45: 117.00 | G45: 0.35
A46: Картофель отварной в молоке | B46: 155 | E46: 200 | G46: =G47+G48+G49+G50+G51 -> 8.95 | H46: 3.37 | I46: 6.80 | J46: 18.30 | K46: 148.50 | L46: 0.20 | M46: 29.00 | O46: 0.20 | P46: 24.00 | Q46: 108.00 | R46: 44.00 | S46: 1.60
A47: Картофель | B47: 155 | C47: 200.000 | D47: =B47*C47/1000 -> 31.00 | F47: 16.9 | G47: =C47*F47/1000 -> 3.38
A48: Масло сливочное | B48: 155 | C48: 4.000 | D48: 0.62 | F48: 606.97 | G48: 2.43
A49: Соль | B49: 155 | C49: 2.000 | D49: 0.31 | F49: 16 | G49: 0.03
A50: Мука | B50: 155 | C50: 2.000 | F50: 33 | G50: 0.07
A51: Молоко | B51: 155 | C51: 45.000 | D51: =B51*C51/1000 -> 6.98 | F51: 67.57 | G51: 3.04
A52: Компот из кураги | B52: 155 | D52: 0.00 | E52: 200 | G52: =SUM(G53:G54) -> 2.66 | H52: 1.16 | I52: 0.30 | J52: 47.26 | K52: 128.18 | L52: 0.02 | M52: 0.80 | O52: 0.20 | P52: 32.48 | Q52: 23.44 | R52: 33.00 | S52: 0.96
A53: Курага | B53: 155 | C53: 20.000 | D53: 3.10 | F53: 83.00 | G53: =C53*F53/1000 -> 1.66
A54: Сахар | B54: 155 | C54: 20.000 | D54: 3.10 | F54: 50.00 | G54: =C54*F54/1000 -> 1.00
A55: Хлеб Дарницкий | B55: 155 | E55: 72 | G55: =SUM(G56) -> 2.95 | H55: 8.46 | I55: 2.51 | J55: 44.33 | K55: 186 | L55: 0.04 | O55: 0.36 | P55: 9.20 | Q55: 42.40 | R55: 10.00 | S55: 1.24
A56: Хлеб | B56: 155 | C56: 72.000 | D56: 11.16 | F56: 41.00 | G56: =C56*F56/1000 -> 2.95
B57: 155 | H57: =SUM(H22:H56) -> 39.72 | I57: 47.34 | J57: 194.07 | K57: 968.28 | L57: 0.68 | M57: 188.15 | N57: 171.00 | O57: 1.06 | P57: 520.30 | Q57: 590.91 | R57: 302.72 | S57: 55.66
A58: Груши св | B58: 155 | E58: 100 | G58: =G59 -> 26.19 | H58: 0.51 | I58: 0.51 | J58: 13.50 | K58: 43.00 | L58: 0.02 | M58: 3.75 | O58: 0.30 | P58: 14.25 | Q58: 12.00 | R58: 9.00 | S58: 1.73
A59: Груши св | B59: 155 | C59: 194.000 | D59: =B59*C59/1000 -> 30.07 | F59: 135.00 | G59: =C59*F59/1000 -> 26.19
H60: =SUM(H58:H59) -> 0.51 | I60: 0.51 | J60: 13.50 | K60: 43.00 | L60: 0.02 | M60: 3.75 | N60: 0.00 | O60: 0.30 | P60: 14.25 | Q60: 12.00 | R60: 9.00 | S60: 1.73
F61: Итого | G61: =E63*E64 -> 17280.13 | H61: =H20+H57+H60 -> 63.09 | I61: 65.42 | J61: 264.71 | K61: 1760.08 | L61: 1.18 | M61: 195.27 | N61: 242.60 | O61: 2.41 | P61: 797.02 | Q61: 906.41 | R61: 384.25 | S61: 61.64
A63: На питании состоит | E63: 155 | F63: человек
A64: Стоимость рациона питания на 1 человека составляет | E64: =SUM(G9+G16+G18+G22+G29+G38+G46+G52+G58+G55) -> 111.48 | F64: рублей
A66: Медсестра | B66: Макаримова Ю.В. | E66: Заведующий производством | I66: Илалова Р.И.

Sheet 8
A1: ГБОУ Альметьевская школа № 19 для детей с ОВЗ
A2: наименование учреждения
A3: Столовая
A4: подразделение | C4: Меню-раскладка
H5: Среда
E6: 7-11лет
A7: Наименование | B7: Кол-во порций (план) | C7: Кол-во на порцию (гр) | D7: Общее кол-во (кг) | E7: Выход блюда (гр) | F7: Цена (руб) | G7: Общая сумма (руб) | H7: Белки | I7: Жиры | J7: Углеводы | K7: Ккал | L7: В1 | M7: С | N7: А | O7: Е | P7: Са | Q7: Р | R7: Mg | S7: Fe
A8: 09:30-10:30 Завтрак | B8: 96
A9: Запеканка творожная с повидлом | B9: 96 | E9: 100/20 | G9: =G10+G11+G12+G13+G14+G15+G16+G17 -> 43.97 | H9: 16.50 | I9: 29.55 | J9: 36.45 | K9: 313.00 | L9: 0.11 | M9: 0.36 | N9: 108.00 | O9: 1.44 | P9: 234.00 | Q9: 338.40 | R9: 39.60 | S9: 1.62
A10: Масло сливочное | B10: 96 | C10: 4.000 | D10: =B10*C10/1000 -> 0.38 | F10: 606.97 | G10: =C10*F10/1000 -> 2.43
A11: Сахар | B11: 96 | C11: 8.000 | D11: 0.77 | F11: 50.00 | G11: =C11*F11/1000 -> 0.40
A12: Крупа манная | B12: 96 | C12: 6.000 | D12: 0.58 | F12: 40.00 | G12: 0.24
A13: Творог | B13: 96 | C13: 94.000 | D13: 9.02 | F13: 390.06 | G13: 36.67
A14: Яйцо | B14: 96 | C14: 6.000 | D14: 0.58 | F14: 7.00 | G14: =C14*F14/40 -> 1.05
A15: Сметана | B15: 96 | C15: 6.000 | D15: 0.58 | F15: 190.09 | G15: 1.14
A16: Повидло | B16: 96 | C16: 20.000 | D16: 1.92 | F16: 102.50 | G16: 2.05
A17: Сухари панировочные | B17: 96 | C17: 6.000 | D17: 0.58 | G17: 0.00
A18: Какао с молоком | B18: 96 | E18: 200 | G18: =G19+G20+G21 -> 8.46 | H18: 3.78 | I18: 0.67 | J18: 26.00 | K18: 125.11 | L18: 0.02 | M18: 1.33 | P18: 133.33 | Q18: 111.11 | R18: 25.56 | S18: 2.00
A19: какао | B19: 96 | C19: 4.000 | D19: =B19*C19/1000 -> 0.38 | F19: 175.00 | G19: =C19*F19/1000 -> 0.70
A20: Молоко | B20: 96 | C20: 100.000 | D20: 9.60 | F20: 67.57 | G20: 6.76
A21: Сахар | B21: 96 | C21: 20.000 | D21: 1.92 | F21: 50.00 | G21: 1.00
A22: Хлеб белый | B22: 96 | E22: 90 | G22: =G23 -> 3.69 | H22: 12.18 | I22: 3.17 | J22: 28.5 | K22: 363.00 | L22: 0.05 | O22: 0.65 | P22: 11.50 | Q22: 43.50 | R22: 16.50 | S22: 0.55
A23: Хлеб белый | B23: 96 | C23: 90.000 | D23: 8.64 | F23: 41.00 | G23: =C23*F23/1000 -> 3.69
H24: =SUM(H9:H23) -> 32.46 | I24: 33.39 | J24: 90.95 | K24: 801.11 | L24: 0.18 | M24: 1.69 | N24: 108.00 | O24: 2.09 | P24: 378.83 | Q24: 493.01 | R24: 81.66 | S24: 4.17
A25: 12:00-13:00 Обед | B25: 96
A26: Суп крестьянский с крупой | B26: 96 | E26: 250/25 | G26: =SUM(G27:G34) -> 11.86 | H26: 2.16 | I26: 5.97 | J26: 5.61 | K26: 101.37 | L26: 0.07 | M26: 12 | P26: 59.1 | Q26: 267 | R26: 31.8 | S26: 0.93
A27: Капуста свежая | B27: 96 | C27: 38.000 | D27: 3.648 | F27: 18.30 | G27: =C27*F27/1000 -> 0.70
A28: Картофель | B28: 96 | C28: 33.000 | D28: 3.168 | F28: 16.90 | G28: =C28*F28/1000 -> 0.56
A29: Лук репчатый | B29: 96 | C29: 12.000 | D29: 1.152 | F29: 24.00 | G29: 0.29
A30: Цыплята | B30: 96 | C30: 46.000 | D30: 4.416 | F30: 193.00 | G30: 8.88
A31: Морковь | B31: 96 | C31: 13.000 | D31: 1.248 | F31: 22.40 | G31: 0.29
A32: сметана | B32: 96 | C32: 5.000 | D32: 0.48 | F32: 190.09 | G32: 0.95
A33: Крупа пшено | B33: 96 | C33: 5.000 | D33: 0.48 | F33: 40.00 | G33: 0.20
A34: Лавр лист | B34: 96 | C34: 2.000 | D34: 0.192 | G34: 0.00
A35: Соль | B35: 96 | C35: 3.000 | D35: 0.288 | F35: 16.00 | G35: 0.05
A36: Масло растительное | B36: 96 | C36: 5.000 | D36: 0.48 | F36: 117.00 | G36: 0.59
A37: Плов из говядины | B37: 96 | E37: 50/100 | G37: =SUM(G38:G45) -> 37.05 | H37: 11.80 | I37: 5.70 | J37: 58.20 | K37: 328.00 | L37: 0.06 | M37: 1.28 | P37: 14.23 | Q37: 200.14 | R37: 39.29 | S37: 2.65
A38: Рис | B38: 96 | C38: 34.000 | D38: 3.26 | F38: 44.30 | G38: =C38*F38/1000 -> 1.51
A39: Нарезка мясная | B39: 96 | C39: 93.000 | D39: 8.93 | F39: 370.00 | G39: =C39*F39/1000 -> 34.41
A40: Лук репчатый | B40: 96 | C40: 6.000 | D40: 0.58 | F40: 24.00 | G40: 0.14
A41: Морковь | B41: 96 | C41: 5.000 | D41: 0.48 | F41: 22.40 | G41: 0.11
A42: Перец черный молотый | B42: 96 | C42: 0.005 | D42: 0.00 | G42: 0.00
A43: Соль | B43: 96 | C43: 2.000 | D43: 0.19 | F43: 16.00 | G43: 0.03
A44: Паста томатная | B44: 96 | C44: 5.000 | D44: 0.48 | F44: 52.00 | G44: 0.26
A45: Масло растительное | B45: 96 | C45: 5.000 | D45: 0.48 | F45: 117.00 | G45: 0.59
A46: Сок | B46: 96 | E46: 200 | G46: =SUM(G47) -> 7.00 | H46: 1.00 | I46: - | J46: 19.80 | K46: 85.00 | L46: 20.00 | N46: 0.67 | O46: 52.00 | P46: 82.67 | Q46: 30.00 | R46: 3.20
A47: сок | B47: 96 | C47: 200.000 | D47: 19.20 | F47: 35.00 | G47: =C47*F47/1000 -> 7.00
A48: Пряники | B48: 96 | E48: 25 | G48: 1.67 | H48: 1.7 | I48: 2.26 | J48: 13.94 | K48: 82.9 | L48: 0.02 | N48: 13 | O48: 0.26 | P48: 8.2 | Q48: 17.4 | R48: 3 | S48: 0.2
A49: Пряники | B49: 96 | C49: 25.000 | D49: 2.40 | F49: 99.39 | G49: =C49*F49/1000 -> 2.48
A50: Хлеб Дарницкий | B50: 96 | E50: 48 | G50: =SUM(G51) -> 1.97 | H50: 8.46 | I50: 2.51 | J50: 44.33 | K50: 186 | L50: 0.04 | O50: 0.36 | P50: 9.20 | Q50: 42.40 | R50: 10.00 | S50: 1.24
A51: Хлеб | B51: 96 | C51: 48.000 | D51: 4.61 | F51: 41.00 | G51: =C51*F51/1000 -> 1.97
H52: =SUM(H26:H51) -> 25.12 | I52: =SUM(I26:I51) -> 16.44 | J52: =SUM(J26:J51) -> 141.88 | K52: =SUM(K26:K51) -> 783.27 | L52: =SUM(L26:L51) -> 20.19 | M52: 13.28 | N52: 13.67 | O52: 52.62 | P52: 173.40 | Q52: 556.94 | R52: 87.29 | S52: 5.02
A53: 14:30-15:00 Полдник | B53: 96
A54: Апельсин | B54: 96 | E54: 250 | G54: =G55 -> 16.89 | H54: 0.90 | I54: 0.20 | J54: 17.36 | K54: 135.00 | L54: 0.04 | M54: 64.29 | O54: 0.21 | P54: 36.43 | Q54: 24.64 | R54: 13.93 | S54: 0.32
A55: Апельсин | B55: 96 | C55: 190.000 | D55: =B55*C55/1000 -> 18.24 | F55: 88.90 | G55: =C55*F55/1000 -> 16.89
A56: Молоко кипяченое | B56: 96 | E56: 200 | G56: =SUM(G57) -> 14.26 | H56: 1.53 | I56: 0.34 | J56: 13.77 | K56: 61.20 | L56: 0.08 | M56: 2.60 | N56: 40.00 | P56: 240.00 | Q56: 180.00 | R56: 28.00 | S56: 0.20
A57: Молоко | B57: 96 | C57: 211.000 | D57: 20.256 | F57: 67.57 | G57: =C57*F57/1000 -> 14.26
H58: =SUM(H54:H56) -> 2.43 | I58: =SUM(I54:I56) -> 0.54 | J58: 31.13 | K58: 196.20 | L58: 0.12 | M58: 66.89 | N58: 40.00 | O58: 0.21 | P58: 276.43 | Q58: 204.64 | R58: 41.93 | S58: 0.52
F59: Итого | G59: =E61*E62 -> 13770.94 | H59: =H24+H52+H58 -> 60.01 | I59: =I24+I52+I58 -> 50.37 | J59: =J24+J52+J58 -> 263.96 | K59: =K24+K52+K58 -> 1780.58 | L59: =L24+L52+L58 -> 20.49 | M59: 81.86 | N59: 161.67 | O59: 54.92 | P59: 828.66 | Q59: 1254.59 | R59: 210.88 | S59: 9.71
A61: На питании состоит | E61: 96 | F61: человек
A62: Стоимость рациона питания на 1 человека составляет | E62: =G9+G20+G22+G54+G26+G37+G46+G50+G56 -> 143.45 | F62: рублей
A64: Медсестра | B64: Макаримова Ю.В. | E64: Заведующий производством | I64: Илалова Р.И.
E82: Стефановская Е.А.

Sheet 8 (2)
A1: ГБОУ Альметьевская школа № 19 для детей с ОВЗ
A2: наименование учреждения
A3: Столовая
A4: подразделение | C4: Меню-раскладка
H5: Среда
E6: 12-18лет
A7: Наименование | B7: Кол-во порций (план) | C7: Кол-во на порцию (гр) | D7: Общее кол-во (кг) | E7: Выход блюда (гр) | F7: Цена (руб) | G7: Общая сумма (руб) | H7: Белки | I7: Жиры | J7: Углеводы | K7: Ккал | L7: В1 | M7: С | N7: А | O7: Е | P7: Са | Q7: Р | R7: Mg | S7: Fe
A8: 09:30-10:30 Завтрак | B8: 155
A9: Запеканка творожная с повидлом | B9: 155 | E9: 150/30 | G9: =G10+G11+G12+G13+G14+G15+G16+G17 -> 64.87 | H9: 16.50 | I9: 29.55 | J9: 36.45 | K9: 313.00 | L9: 0.11 | M9: 0.36 | N9: 108.00 | O9: 1.44 | P9: 234.00 | Q9: 338.40 | R9: 39.60 | S9: 1.62
A10: Масло сливочное | B10: 155 | C10: 6.000 | D10: =B10*C10/1000 -> 0.93 | F10: 606.97 | G10: =C10*F10/1000 -> 3.64
A11: Сахар | B11: 155 | C11: 12.000 | D11: 1.86 | F11: 50.00 | G11: =C11*F11/1000 -> 0.60
A12: Крупа манная | B12: 155 | C12: 9.000 | D12: 1.40 | F12: 40.00 | G12: 0.36
A13: Творог | B13: 155 | C13: 141.000 | D13: 21.86 | F13: 390.06 | G13: 55.00
A14: Яйцо | B14: 155 | C14: 6.000 | D14: 0.93 | F14: 7.00 | G14: =C14*F14/40 -> 1.05
A15: Сметана | B15: 155 | C15: 6.000 | D15: 0.93 | F15: 190.09 | G15: 1.14
A16: Повидло | B16: 155 | C16: 30.000 | D16: 4.65 | F16: 102.50 | G16: 3.08
A17: Сухари панировочные | B17: 155 | C17: 6.000 | D17: 0.93 | G17: 0.00
A18: Какао с молоком | B18: 155 | E18: 200 | G18: =G19+G20+G21 -> 8.46 | H18: 3.78 | I18: 0.67 | J18: 26.00 | K18: 125.11 | L18: 0.02 | M18: 1.33 | P18: 133.33 | Q18: 111.11 | R18: 25.56 | S18: 2.00
A19: какао | B19: 155 | C19: 4.000 | D19: =B19*C19/1000 -> 0.62 | F19: 175.00 | G19: =C19*F19/1000 -> 0.70
A20: Молоко | B20: 155 | C20: 100.000 | D20: 15.50 | F20: 67.57 | G20: 6.76
A21: Сахар | B21: 155 | C21: 20.000 | D21: 3.10 | F21: 50.00 | G21: 1.00
A22: Хлеб белый | B22: 155 | E22: 120 | G22: =G23 -> 4.92 | H22: 12.18 | I22: 3.17 | J22: 28.5 | K22: 233.80 | L22: 0.05 | O22: 0.65 | P22: 11.50 | Q22: 43.50 | R22: 16.50 | S22: 0.55
A23: Хлеб белый | B23: 155 | C23: 120.000 | D23: 18.60 | F23: 41.00 | G23: =C23*F23/1000 -> 4.92
H24: =SUM(H9:H23) -> 32.46 | I24: 33.39 | J24: 90.95 | K24: 671.91 | L24: 0.18 | M24: 1.69 | N24: 108.00 | O24: 2.09 | P24: 378.83 | Q24: 493.01 | R24: 81.66 | S24: 4.17
A25: 12:00-13:00 Обед | B25: 155
A26: Суп крестьянский с крупой с цыплятами | B26: 155 | E26: 250/25 | G26: =SUM(G27:G34) -> 11.86 | H26: 2.16 | I26: 5.97 | J26: 5.61 | K26: 101.37 | L26: 0.07 | M26: 12 | P26: 59.1 | Q26: 267 | R26: 31.8 | S26: 0.93
A27: Капуста свежая | B27: 155 | C27: 38.000 | D27: 5.89 | F27: 18.30 | G27: =C27*F27/1000 -> 0.70
A28: Картофель | B28: 155 | C28: 33.000 | D28: 5.115 | F28: 16.90 | G28: =C28*F28/1000 -> 0.56
A29: Лук репчатый | B29: 155 | C29: 12.000 | D29: 1.86 | F29: 24.00 | G29: 0.29
A30: Цыплята | B30: 155 | C30: 46.000 | D30: 7.13 | F30: 193.00 | G30: 8.88
A31: Морковь | B31: 155 | C31: 13.000 | D31: 2.015 | F31: 22.40 | G31: 0.29
A32: сметана | B32: 155 | C32: 5.000 | D32: 0.775 | F32: 190.09 | G32: 0.95
A33: Крупа пшено | B33: 155 | C33: 5.000 | D33: 0.775 | F33: 40.00 | G33: 0.20
A34: Лавр лист | B34: 155 | C34: 2.000 | D34: 0.31 | G34: 0.00
A35: Соль | B35: 155 | C35: 3.000 | D35: 0.465 | F35: 16.00 | G35: 0.05
A36: Масло растительное | B36: 155 | C36: 5.000 | D36: 0.775 | F36: 117.00 | G36: 0.59
A37: Плов из говядины | B37: 155 | E37: 75/100 | G37: =SUM(G38:G45) -> 54.44 | H37: 11.80 | I37: 5.70 | J37: 58.20 | K37: 328.00 | L37: 0.06 | M37: 1.28 | P37: 14.23 | Q37: 200.14 | R37: 39.29 | S37: 2.65
A38: Рис | B38: 155 | C38: 34.000 | D38: 5.27 | F38: 44.30 | G38: =C38*F38/1000 -> 1.51
A39: Нарезка мясная | B39: 155 | C39: 140.000 | D39: 21.70 | F39: 370.00 | G39: =C39*F39/1000 -> 51.80
A40: Лук репчатый | B40: 155 | C40: 6.000 | D40: 0.93 | F40: 24.00 | G40: 0.14
A41: Морковь | B41: 155 | C41: 5.000 | D41: 0.78 | F41: 22.40 | G41: 0.11
A42: Перец черный молотый | B42: 155 | C42: 0.005 | D42: 0.00 | G42: 0.00
A43: Соль | B43: 155 | C43: 2.000 | D43: 0.31 | F43: 16.00 | G43: 0.03
A44: Паста томатная | B44: 155 | C44: 5.000 | D44: 0.78 | F44: 52.00 | G44: 0.26
A45: Масло растительное | B45: 155 | C45: 5.000 | D45: 0.78 | F45: 117.00 | G45: 0.59
A46: Сок | B46: 155 | E46: 200 | G46: =SUM(G47) -> 7.00 | H46: 1.00 | I46: - | J46: 19.80 | K46: 85.00 | L46: 20.00 | N46: 0.67 | O46: 52.00 | P46: 82.67 | Q46: 30.00 | R46: 3.20
A47: сок | B47: 155 | C47: 200.000 | D47: 31.00 | F47: 35.00 | G47: =C47*F47/1000 -> 7.00
A48: Хлеб Дарницкий | B48: 155 | E48: 72 | G48: =SUM(G49) -> 2.95 | H48: 8.46 | I48: 2.51 | J48: 44.33 | K48: 186 | L48: 0.04 | O48: 0.36 | P48: 9.20 | Q48: 42.40 | R48: 10.00 | S48: 1.24
A49: Хлеб | B49: 155 | C49: 72.000 | D49: 11.16 | F49: 41.00 | G49: =C49*F49/1000 -> 2.95
B50: 155 | H50: =SUM(H26:H49) -> 23.42 | I50: =SUM(I26:I49) -> 14.18 | J50: =SUM(J26:J49) -> 127.94 | K50: =SUM(K26:K49) -> 700.37 | L50: =SUM(L26:L49) -> 20.17 | M50: 13.28 | N50: 0.67 | O50: 52.36 | P50: 165.20 | Q50: 539.54 | R50: 84.29 | S50: 4.82
A51: Апельсин | B51: 155 | E51: 250 | G51: =G52 -> 22.23 | H51: 0.90 | I51: 0.20 | J51: 17.36 | K51: 135.00 | L51: 0.04 | M51: 64.29 | O51: 0.21 | P51: 36.43 | Q51: 24.64 | R51: 13.93 | S51: 0.32
A52: Апельсин | B52: 155 | C52: 250.000 | D52: =B52*C52/1000 -> 38.75 | F52: 88.90 | G52: =C52*F52/1000 -> 22.23
H53: =SUM(H51:H52) -> 0.90 | I53: 0.20 | J53: 17.36 | K53: 135.00 | L53: 0.04 | M53: 64.29 | N53: 0.00 | O53: 0.21 | P53: 36.43 | Q53: 24.64 | R53: 13.93 | S53: 0.32
F54: Итого | G54: =E56*E57 -> 27391.56 | H54: =H24+H50+H53 -> 56.78 | I54: 47.77 | J54: 236.25 | K54: 1507.28 | L54: 20.39 | M54: 79.26 | N54: 108.67 | O54: 54.66 | P54: 580.46 | Q54: 1057.19 | R54: 179.88 | S54: 9.31
A56: На питании состоит | E56: 155 | F56: человек
A57: Стоимость рациона питания на 1 человека составляет | E57: =G9+G18+G22+G51+G26+G37+G46+G48 -> 176.72 | F57: рублей
A59: Медсестра | B59: Макаримова Ю.В. | E59: Заведующий производством | I59: Илалова Р.И.
E77: Стефановская Е.А.

Sheet 9
A1: ГБОУ Альметьевская школа № 19 для детей с ОВЗ
A2: наименование учреждения
A3: Столовая
A4: подразделение | C4: Меню-раскладка
H5: Четверг
E6: 7-11лет
A7: Наименование | B7: Кол-во порций (план) | C7: Кол-во на порцию (гр) | D7: Общее кол-во (кг) | E7: Выход блюда (гр) | F7: Цена (руб) | G7: Общая сумма (руб) | H7: Белки | I7: Жиры | J7: Углеводы | K7: Ккал | L7: В1 | M7: С | N7: А | O7: Е | P7: Са | Q7: Р | R7: Mg | S7: Fe
A8: 09:30-10:30 Завтрак | B8: 96
A9: Каша молочная рисовая с маслом | B9: 96 | E9: 200/10 | G9: =G10+G11+G12+G13+G14 -> 16.94 | H9: 5.10 | I9: 10.72 | J9: 25.91 | K9: 251.00 | L9: 0.4 | M9: 1.9 | N9: 71.6 | O9: 0.4 | P9: 92.3 | Q9: 128 | R9: 26.7 | S9: 1.3
A10: Молоко | B10: 96 | C10: 100.000 | D10: =B10*C10/1000 -> 9.60 | F10: 67.57 | G10: =C10*F10/1000 -> 6.76
A11: Масло сливочное | B11: 96 | C11: 10.000 | D11: =B11*C11/1000 -> 0.96 | F11: 606.97 | G11: =C11*F11/1000 -> 6.07
A12: Сахар | B12: 96 | C12: 6.000 | D12: 0.58 | F12: 50.00 | G12: 0.30
A13: Рис | B13: 96 | C13: 44.000 | D13: 4.22 | F13: 86.00 | G13: 3.78
A14: Соль | B14: 96 | C14: 2.000 | D14: 0.19 | F14: 16.00 | G14: 0.03
A15: Яйцо вареное | B15: 155 | D15: 0.00 | E15: 40 | G15: =G16 -> 7.00 | H15: 5.10 | I15: 4.60 | J15: 0.30 | K15: 62.84 | L15: 0.03 | N15: 100.00 | O15: 0.24 | P15: 22.00 | Q15: 76.80 | R15: 4.80 | S15: 1.00
A16: Яйцо столовое | B16: 155 | C16: 40.000 | D16: 6.20 | F16: 7.00 | G16: =C16*F16/40 -> 7.00
A17: Сыр голландский | B17: 96 | E17: 20 | G17: =G18 -> 13.93 | H17: 4.64 | I17: 5.90 | J17: 0.00 | K17: 71.66 | L17: 0.01 | M17: 0.14 | N17: 52.00 | O17: 0.10 | P17: 176.00 | Q17: 100.00 | R17: 7.00 | S17: 0.20
A18: Сыр голландский | B18: 96 | C18: 22.000 | D18: =B18*C18/1000 -> 2.11 | F18: 633.00 | G18: =C18*F18/1000 -> 13.93
A19: Кофейный напиток с молоком | B19: 96 | E19: 200 | G19: =SUM(G20:G22) -> 8.34 | H19: 3.60 | I19: 2.67 | J19: 28.27 | K19: 155.20 | L19: 0.03 | M19: 1.47 | P19: 158.67 | Q19: 132.00 | R19: 29.33 | S19: 2.40
A20: Кофейный напиток | B20: 96 | C20: 5.000 | D20: =B20*C20/1000 -> 0.48 | F20: 116.00 | G20: =C20*F20/1000 -> 0.58
A21: Молоко | B21: 96 | C21: 100.000 | D21: 9.6 | F21: 67.57 | G21: =C21*F21/1000 -> 6.76
A22: Сахар | B22: 96 | C22: 20.000 | D22: 1.92 | F22: 50.00 | G22: 1.00
A23: Хлеб белый | B23: 96 | D23: 0.00 | E23: 90 | G23: =G24 -> 3.69 | H23: 12.18 | I23: 3.17 | J23: 28.5 | K23: 363.00 | L23: 0.05 | O23: 0.65 | P23: 11.50 | Q23: 43.50 | R23: 16.50 | S23: 0.55
A24: Хлеб белый | B24: 96 | C24: 90.000 | D24: 8.64 | F24: 41.00 | G24: 3.69
B25: 96 | H25: =SUM(H9:H24) -> 30.62 | I25: =SUM(I9:I24) -> 27.06 | J25: =SUM(J9:J24) -> 82.98 | K25: =SUM(K9:K24) -> 903.70 | L25: =SUM(L9:L24) -> 0.52 | M25: =SUM(M9:M24) -> 3.51 | N25: =SUM(N9:N24) -> 223.60 | O25: =SUM(O9:O24) -> 1.39 | P25: =SUM(P9:P24) -> 460.47 | Q25: =SUM(Q9:Q24) -> 480.30 | R25: =SUM(R9:R24) -> 84.33 | S25: =SUM(S9:S24) -> 5.45
A26: 12:00-13:00 Обед | B26: =B8 -> 96
A27: Салат из капусты с яблоками | B27: 96 | E27: 75 | G27: =SUM(G28:G34) -> 3.70 | H27: 1.00 | I27: 2.00 | J27: 6.10 | K27: 46.40 | L27: 0.02 | M27: 24.43 | O27: 2.31 | P27: 43.00 | Q27: 28.32 | R27: 16.00 | S27: 0.52
A28: Капуста | B28: 96 | C28: 42.000 | D28: =B28*C28/1000 -> 4.03 | F28: 18.30 | G28: =C28*F28/1000 -> 0.77
A29: Морковь | B29: 96 | C29: 14.000 | D29: 1.34 | F29: 22.40 | G29: =C29*F29/1000 -> 0.31
A30: Яблоки | B30: 96 | C30: 27.000 | D30: 2.59 | F30: 67.90 | G30: 1.83
A31: Сахар | B31: 96 | C31: 4.000 | D31: 0.38 | F31: 50.00 | G31: 0.20
A32: Лук репчатый | B32: 96 | C32: 5.000 | D32: 0.48 | F32: 24.00 | G32: 0.12
A33: Масло растительное | B33: 96 | C33: 4.000 | D33: 0.38 | F33: 117.00 | G33: 0.47
A34: Чеснок | B34: 96 | C34: 1.200 | D34: 0.12 | G34: 0.00
A35: Суп с макаронными изделиями и картофелем с курицей | B35: 96 | E35: 250/25 | G35: =G36+G37+G38+G39+G40+G41+G42+G43+G44 -> 11.66 | H35: 2.69 | I35: 2.84 | J35: 2.75 | K35: 118.00 | L35: 0.05 | M35: 1.14 | O35: 0.39 | P35: 41.40 | Q35: 243.90 | R35: 18.90 | S35: 0.66
A36: Макароны | B36: 96 | C36: 13.000 | D36: 1.25 | F36: 42.50 | G36: =C36*F36/1000 -> 0.55
A37: Картофель | B37: 96 | C37: 67.000 | D37: 6.43 | F37: 16.90 | G37: =C37*F37/1000 -> 1.13
A38: Лук репчатый | B38: 96 | C38: 12.000 | D38: 1.15 | F38: 24.00 | G38: 0.29
A39: Цыплята | B39: 96 | C39: 46.000 | D39: 4.42 | F39: 193.00 | G39: 8.88
A40: Морковь | B40: 96 | C40: 13.000 | D40: 1.25 | F40: 22.40 | G40: 0.29
A41: Перец молотый | B41: 96 | C41: 0.001 | D41: 0.00 | G41: 0.00
A42: Паста томатная | B42: 96 | C42: 3.000 | D42: 0.29 | F42: 44.60 | G42: 0.13
A43: Соль | B43: 96 | C43: 2.000 | D43: 0.19 | F43: 16.00 | G43: 0.03
A44: Масло растительное | B44: 96 | C44: 3.000 | D44: 0.29 | F44: 117.00 | G44: 0.35
A45: Рыба припушенная | B45: 96 | E45: 75/7 | G45: =G46+G47+G48+G49 -> 56.72 | H45: 15.89 | I45: 11.67 | J45: 3.09 | K45: 292.36 | L45: 0.04 | M45: 0.67 | N45: 24.40 | P45: 24.54 | Q45: 83.48 | R45: 15.09 | S45: 0.41
A46: Горбуша филе/ | B46: 96 | C46: 107.000 | D46: 10.27 | F46: 489.00 | G46: =C46*F46/1000 -> 52.32
A47: Лук репчатый | B47: 96 | C47: 5.000 | D47: 0.48 | F47: 24.00 | G47: =C47*F47/1000 -> 0.12
A48: Масло сливочное | B48: 96 | C48: 7.000 | D48: 0.67 | F48: 606.97 | G48: 4.25
A49: Соль | B49: 96 | C49: 2.000 | D49: 0.19 | F49: 16.00 | G49: 0.03
A50: Рис отварной | B50: 96 | E50: 100 | G50: =G51+G52+G53 -> 6.08 | H50: 3.67 | I50: 5.42 | J50: 36.67 | K50: 210.11 | L50: 0.03 | N50: 36.00 | O50: 0.80 | P50: 3.48 | Q50: 82.00 | R50: 25.34 | S50: 0.70
A51: Рис | B51: 96 | C51: 35.000 | D51: =B51*C51/1000 -> 3.36 | F51: 86.00 | G51: =C51*F51/1000 -> 3.01
A52: Масло сливочное | B52: 96 | C52: 5.000 | D52: 0.48 | F52: 606.97 | G52: 3.03
A53: Соль | B53: 96 | C53: 2.000 | D53: 0.192 | F53: 16.00 | G53: 0.03
A54: Напиток из апельсин | B54: 96 | E54: 200 | G54: =G55+G56 -> 8.61 | H54: 0.45 | I54: 0.10 | J54: 33.99 | K54: 141.20 | L54: 0.1 | M54: 60 | P54: 115.1 | Q54: 57.5 | R54: 38.13 | S54: 1.2
A55: Апельсины | B55: 96 | C55: 80.000 | D55: 7.68 | F55: 88.90 | G55: 7.11
A56: Сахар | B56: 96 | C56: 30.000 | D56: 2.88 | F56: 50.00 | G56: 1.50
A57: Хлеб Дарницкий | B57: 96 | E57: 48 | G57: =SUM(G58) -> 1.97 | H57: 8.46 | I57: 2.51 | J57: 44.33 | K57: 186 | L57: 0.04 | O57: 0.36 | P57: 9.20 | Q57: 42.40 | R57: 10.00 | S57: 1.24
A58: Хлеб | B58: 96 | C58: 48.000 | D58: 4.61 | F58: 41.00 | G58: =C58*F58/1000 -> 1.97
H59: =SUM(H27:H58) -> 32.16 | I59: =SUM(I35:I58) -> 22.54 | J59: =SUM(J35:J58) -> 120.83 | K59: =SUM(K35:K58) -> 947.67 | L59: =SUM(L35:L58) -> 0.26 | M59: 61.81 | N59: 60.40 | O59: 1.55 | P59: 193.72 | Q59: 509.28 | R59: 107.46 | S59: 4.21
A60: 14:30-15:00 Полдник | B60: 96
A61: Яблоки свежие | B61: 96 | E61: 170 | G61: =SUM(G62) -> 11.54 | H61: 0.68 | I61: 0.51 | J61: 13.50 | K61: 80.00 | L61: 0.02 | M61: 7.50 | O61: 0.15 | P61: 12.00 | Q61: 8.25 | R61: 6.75 | S61: 1.65
A62: Яблоки | B62: 96 | C62: 170.000 | D62: =B62*C62/1000 -> 16.32 | F62: 67.90 | G62: =C62*F62/1000 -> 11.54
A63: Молоко кипяченое | B63: 96 | E63: 200 | G63: =SUM(G64) -> 14.26 | H63: 1.53 | I63: 0.34 | J63: 13.77 | K63: 61.20 | L63: 0.08 | M63: 2.60 | N63: 40.00 | P63: 240.00 | Q63: 180.00 | R63: 28.00 | S63: 0.20
A64: Молоко | B64: 96 | C64: 211.000 | D64: =B64*C64/1000 -> 20.256 | F64: 67.57 | G64: =C64*F64/1000 -> 14.26
H65: =SUM(H61:H63) -> 2.21 | I65: =SUM(I61:I63) -> 0.85 | J65: 27.27 | K65: 141.20 | L65: 0.08 | M65: 10.10 | N65: 40.00 | O65: 0.15 | P65: 252.00 | Q65: 188.25 | R65: 34.75 | S65: 1.85
F66: Итого | G66: =E68*E69 -> 15786.14 | H66: =H25+H59+H65 -> 64.99 | I66: =I25+I59+I65 -> 50.45 | J66: =J25+J59+J65 -> 231.08 | K66: =K25+K59+K65 -> 1992.57 | L66: =L25+L59+L65 -> 0.86 | M66: 75.42 | N66: 324.00 | O66: 3.09 | P66: 906.19 | Q66: 1177.83 | R66: 226.54 | S66: 11.51
A68: На питании состоит | E68: 96 | F68: человек
A69: Стоимость рациона питания на 1 человека составляет | E69: =SUM(G9+G15+G17+G19+G23+G27+G35+G45+G50+G54+G57+G61+G63) -> 164.44 | F69: рублей
A71: Медсестра | B71: Макаримова Ю.В. | E71: Заведующий производством | I71: Илалова Р.И.

Sheet 9 (2)
A1: ГБОУ Альметьевская школа № 19 для детей с ОВЗ
A2: наименование учреждения
A3: Столовая
A4: подразделение | C4: Меню-раскладка
H5: Четверг
E6: 12-18лет
A7: Наименование | B7: Кол-во порций (план) | C7: Кол-во на порцию (гр) | D7: Общее кол-во (кг) | E7: Выход блюда (гр) | F7: Цена (руб) | G7: Общая сумма (руб) | H7: Белки | I7: Жиры | J7: Углеводы | K7: Ккал | L7: В1 | M7: С | N7: А | O7: Е | P7: Са | Q7: Р | R7: Mg | S7: Fe
A8: 09:30-10:30 Завтрак | B8: 155
A9: Каша молочная рисовая с маслом | B9: 155 | E9: 200/10 | G9: =G10+G11+G12+G13+G14 -> 16.94 | H9: 5.10 | I9: 10.72 | J9: 25.91 | K9: 251.00 | L9: 0.4 | M9: 1.9 | N9: 71.6 | O9: 0.4 | P9: 92.3 | Q9: 128 | R9: 26.7 | S9: 1.3
A10: Молоко | B10: 155 | C10: 100.000 | D10: =B10*C10/1000 -> 15.50 | F10: 67.57 | G10: =C10*F10/1000 -> 6.76
A11: Масло сливочное | B11: 155 | C11: 10.000 | D11: =B11*C11/1000 -> 1.55 | F11: 606.97 | G11: =C11*F11/1000 -> 6.07
A12: Сахар | B12: 155 | C12: 6.000 | D12: 0.93 | F12: 50.00 | G12: 0.30
A13: Рис | B13: 155 | C13: 44.000 | D13: 6.82 | F13: 86.00 | G13: 3.78
A14: Соль | B14: 155 | C14: 2.000 | D14: 0.31 | F14: 16.00 | G14: 0.03
A15: Сыр голландский | B15: 155 | E15: 30 | G15: =G16 -> 20.26 | H15: 4.64 | I15: 5.90 | J15: 0.00 | K15: 71.66 | L15: 0.01 | M15: 0.14 | N15: 52.00 | O15: 0.10 | P15: 176.00 | Q15: 100.00 | R15: 7.00 | S15: 0.20
A16: Сыр голландский | B16: 155 | C16: 32.000 | D16: =B16*C16/1000 -> 4.96 | F16: 633.00 | G16: =C16*F16/1000 -> 20.26
A17: Яйцо вареное | B17: 155 | D17: 0.00 | E17: 40 | G17: =G18 -> 7.00 | H17: 5.10 | I17: 4.60 | J17: 0.30 | K17: 62.84 | L17: 0.03 | N17: 100.00 | O17: 0.24 | P17: 22.00 | Q17: 76.80 | R17: 4.80 | S17: 1.00
A18: Яйцо столовое | B18: 155 | C18: 40.000 | D18: 6.20 | F18: 7.00 | G18: =C18*F18/40 -> 7.00
A19: Кофейный напиток с молоком | B19: 155 | E19: 200 | G19: =SUM(G20:G22) -> 8.34 | H19: 3.60 | I19: 2.67 | J19: 28.27 | K19: 155.20 | L19: 0.03 | M19: 1.47 | P19: 158.67 | Q19: 132.00 | R19: 29.33 | S19: 2.40
A20: Кофейный напиток | B20: 155 | C20: 5.000 | D20: =B20*C20/1000 -> 0.775 | F20: 116.00 | G20: =C20*F20/1000 -> 0.58
A21: Молоко | B21: 155 | C21: 100.000 | D21: 15.5 | F21: 67.57 | G21: =C21*F21/1000 -> 6.76
A22: Сахар | B22: 155 | C22: 20.000 | D22: 3.1 | F22: 50.00 | G22: 1.00
A23: Хлеб белый | B23: 155 | D23: 0.00 | E23: 120 | G23: =G24 -> 4.92 | H23: 12.18 | I23: 3.17 | J23: 28.5 | K23: 233.80 | L23: 0.05 | O23: 0.65 | P23: 11.50 | Q23: 43.50 | R23: 16.50 | S23: 0.55
A24: Хлеб белый | B24: 155 | C24: 120.000 | D24: 18.60 | F24: 41.00 | G24: 4.92
B25: 155 | H25: =SUM(H9:H24) -> 30.62 | I25: =SUM(I9:I24) -> 27.06 | J25: =SUM(J9:J24) -> 82.98 | K25: =SUM(K9:K24) -> 774.50 | L25: =SUM(L9:L24) -> 0.52 | M25: 3.51 | N25: 223.60 | O25: 1.39 | P25: 460.47 | Q25: 480.30 | R25: 84.33 | S25: 5.45
A26: 12:00-13:00 Обед | B26: =B8 -> 155
A27: Салат из капусты с яблоками | B27: 155 | E27: 100 | G27: =SUM(G28:G34) -> 4.68 | H27: 1.00 | I27: 2.00 | J27: 6.10 | K27: 46.40 | L27: 0.02 | M27: 24.43 | O27: 2.31 | P27: 43.00 | Q27: 28.32 | R27: 16.00 | S27: 0.52
A28: Капуста | B28: 155 | C28: 56.000 | D28: =B28*C28/1000 -> 8.68 | F28: 18.30 | G28: =C28*F28/1000 -> 1.02
A29: Морковь | B29: 155 | C29: 19.000 | D29: 2.95 | F29: 22.40 | G29: =C29*F29/1000 -> 0.43
A30: Яблоки | B30: 155 | C30: 36.000 | D30: 5.58 | F30: 67.90 | G30: 2.44
A31: Сахар | B31: 155 | C31: 4.000 | D31: 0.62 | F31: 50.00 | G31: 0.20
A32: Лук репчатый | B32: 155 | C32: 5.000 | D32: 0.78 | F32: 24.00 | G32: 0.12
A33: Масло растительное | B33: 155 | C33: 4.000 | D33: 0.62 | F33: 117.00 | G33: 0.47
A34: Чеснок | B34: 155 | C34: 1.200 | D34: 0.19 | G34: 0.00
A35: Суп с макаронными изделиями и картофелем с курицей | B35: 155 | E35: 250/25 | G35: =G36+G37+G38+G39+G40+G41+G42+G43+G44 -> 11.68 | H35: 2.69 | I35: 2.84 | J35: 2.75 | K35: 118.00 | L35: 0.05 | M35: 1.14 | O35: 0.39 | P35: 41.40 | Q35: 243.90 | R35: 18.90 | S35: 0.66
A36: Макароны | B36: 155 | C36: 13.000 | D36: 2.02 | F36: 42.50 | G36: =C36*F36/1000 -> 0.55
A37: Картофель | B37: 155 | C37: 67.000 | D37: 10.39 | F37: 16.90 | G37: =C37*F37/1000 -> 1.13
A38: Лук репчатый | B38: 155 | C38: 12.000 | D38: 1.86 | F38: 24.00 | G38: 0.29
A39: Цыплята | B39: 155 | C39: 46.000 | D39: 7.13 | F39: 193.00 | G39: 8.88
A40: Морковь | B40: 155 | C40: 13.000 | D40: 2.02 | F40: 22.40 | G40: 0.29
A41: Перец молотый | B41: 155 | C41: 0.001 | D41: 0.00 | G41: 0.00
A42: Паста томатная | B42: 155 | C42: 3.000 | D42: 0.47 | F42: 52.00 | G42: 0.16
A43: Соль | B43: 155 | C43: 2.000 | D43: 0.31 | F43: 16.00 | G43: 0.03
A44: Масло растительное | B44: 155 | C44: 3.000 | D44: 0.47 | F44: 117.00 | G44: 0.35
A45: Рыба припушенная | B45: 155 | E45: 75/7 | G45: =G46+G47+G48+G49 -> 56.74 | H45: 15.89 | I45: 11.67 | J45: 3.09 | K45: 292.36 | L45: 0.04 | M45: 0.67 | N45: 24.40 | P45: 24.54 | Q45: 83.48 | R45: 15.09 | S45: 0.41
A46: Горбуша | B46: 155 | C46: 107.000 | D46: 16.59 | F46: 489.00 | G46: =C46*F46/1000 -> 52.32
A47: Лук репчатый | B47: 155 | C47: 5.000 | D47: 0.78 | F47: 24.00 | G47: =C47*F47/1000 -> 0.12
A48: Масло сливочное | B48: 155 | C48: 7.000 | D48: 1.09 | F48: 606.97 | G48: 4.25
A49: Соль | B49: 155 | C49: 3.000 | D49: 0.47 | F49: 16.00 | G49: 0.05
A50: Рис отварной | B50: 155 | E50: 150 | G50: =G51+G52+G53 -> 7.62 | H50: 3.67 | I50: 5.42 | J50: 36.67 | K50: 210.11 | L50: 0.03 | N50: 36.00 | O50: 0.80 | P50: 3.48 | Q50: 82.00 | R50: 25.34 | S50: 0.70
A51: Рис | B51: 155 | C51: 53.000 | D51: =B51*C51/1000 -> 8.215 | F51: 86.00 | G51: =C51*F51/1000 -> 4.56
A52: Масло сливочное | B52: 155 | C52: 5.000 | D52: 0.775 | F52: 606.97 | G52: 3.03
A53: Соль | B53: 155 | C53: 2.000 | D53: 0.31 | F53: 16.00 | G53: 0.03
A54: Компот из апельсин | B54: 155 | E54: 200 | G54: =G55+G56 -> 8.61 | H54: 0.45 | I54: 0.10 | J54: 33.99 | K54: 141.20 | L54: 0.1 | M54: 60 | P54: 115.1 | Q54: 57.5 | R54: 38.13 | S54: 1.2
A55: Апельсины | B55: 155 | C55: 80.000 | D55: 12.40 | F55: 88.90 | G55: 7.11
A56: Сахар | B56: 155 | C56: 30.000 | D56: 4.65 | F56: 50.00 | G56: 1.50
A57: Хлеб Дарницкий | B57: 155 | E57: 72 | G57: =SUM(G58) -> 2.95 | H57: 8.46 | I57: 2.51 | J57: 44.33 | K57: 186 | L57: 0.04 | O57: 0.36 | P57: 9.20 | Q57: 42.40 | R57: 10.00 | S57: 1.24
A58: Хлеб | B58: 155 | C58: 72.000 | D58: 11.16 | F58: 41.00 | G58: =C58*F58/1000 -> 2.95
H59: =SUM(H27:H58) -> 32.16 | I59: =SUM(I35:I58) -> 22.54 | J59: =SUM(J35:J58) -> 120.83 | K59: =SUM(K35:K58) -> 947.67 | L59: =SUM(L35:L58) -> 0.26 | M59: 61.81 | N59: 60.40 | O59: 1.55 | P59: 193.72 | Q59: 509.28 | R59: 107.46 | S59: 4.21
A60: Яблоки свежие | B60: 155 | E60: 170 | G60: =SUM(G61) -> 11.54 | H60: 0.68 | I60: 0.51 | J60: 13.50 | K60: 80.00 | L60: 0.02 | M60: 7.50 | O60: 0.15 | P60: 12.00 | Q60: 8.25 | R60: 6.75 | S60: 1.65
A61: Яблоки | B61: 155 | C61: 170.000 | D61: =B61*C61/1000 -> 26.35 | F61: 67.90 | G61: =C61*F61/1000 -> 11.54
H62: =SUM(H60:H61) -> 0.68 | I62: 0.51 | J62: 13.50 | K62: 80.00 | L62: 0.00 | M62: 7.50 | N62: 0.00 | O62: 0.15 | P62: 12.00 | Q62: 8.25 | R62: 6.75 | S62: 1.65
F63: Итого | G63: =E65*E66 -> 25000.13 | H63: =H25+H59+H62 -> 63.46 | I63: 50.11 | J63: 217.31 | K63: 1802.17 | L63: 0.78 | M63: 72.82 | N63: 284.00 | O63: 3.09 | P63: 666.19 | Q63: 997.83 | R63: 198.54 | S63: 11.31
A65: На питании состоит | E65: 155 | F65: человек
A66: Стоимость рациона питания на 1 человека составляет | E66: =SUM(G9+G15+G17+G19+G23+G27+G35+G45+G50+G54+G57+G60) -> 161.29 | F66: рублей
A68: Медсестра | B68: Макаримова Ю.В. | E68: Заведующий производством | I68: Илалова Р.И.

Sheet 10
A1: ГБОУ Альметьевская школа № 19 для детей с ОВЗ
A2: наименование учреждения
A3: Столовая
A4: подразделение | C4: Меню-раскладка
H5: Пятница
E6: 7-11 лет
A7: Наименование | B7: Кол-во порций (план) | C7: Кол-во на порцию (гр) | D7: Общее кол-во (кг) | E7: Выход блюда (гр) | F7: Цена (руб) | G7: Общая сумма (руб) | H7: Белки | I7: Жиры | J7: Углеводы | K7: Ккал | L7: В1 | M7: С | N7: А | O7: Е | P7: Са | Q7: Р | R7: Mg | S7: Fe
A8: 09:30-10:30 Завтрак | B8: 96
A9: Суп молочный вермишелевый | B9: 96 | E9: 250 | G9: =SUM(G10:G13) -> 11.18 | H9: 6.76 | I9: 11.43 | J9: 21.61 | K9: 216.00 | L9: 0.05 | M9: 4.80 | P9: 14.00 | Q9: 0.80 | R9: 15.00 | S9: 0.50
A10: Молоко | B10: 96 | C10: 125.000 | D10: =B10*C10/1000 -> 12 | F10: 67.57 | G10: =C10*F10/1000 -> 8.45
A11: Масло сливочное | B11: 96 | C11: 2.000 | D11: =B11*C11/1000 -> 0.192 | F11: 606.97 | G11: =C11*F11/1000 -> 1.21
A12: Вермишель | B12: 96 | C12: 35.000 | D12: 3.36 | F12: 42.50 | G12: 1.49
A13: Соль | B13: 96 | C13: 2.000 | D13: 0.192 | F13: 16.00 | G13: 0.03
A14: Печенье сахарное | B14: 96 | E14: 35 | G14: =G15 -> 3.32 | H14: 1.70 | I14: 2.26 | J14: 3.08 | K14: 50.00 | L14: 0.02 | N14: 13.00 | O14: 0.26 | P14: 8.20 | Q14: 17.40 | R14: 3.00 | S14: 0.20
A15: Печенье сахарное | B15: 96 | C15: 35.000 | D15: 3.36 | F15: 94.80 | G15: 3.32
A16: Кисель фруктовый | B16: 96 | E16: 200 | G16: =G17 -> 2.72 | H16: 0.44 | I16: 0.07 | J16: 34.28 | K16: 200.00 | M16: 80.00 | O16: 0.18 | P16: 8.20 | Q16: 6.42 | R16: 0.96 | S16: 0.28
A17: Кисель фруктовый | B17: 96 | C17: 32.000 | D17: 3.072 | F17: 85.00 | G17: 2.72
A18: Хлеб белый в/с | B18: 96 | E18: 90 | G18: =G19 -> 3.69 | H18: 12.18 | I18: 3.17 | J18: 28.5 | K18: 233.80 | L18: 0.05 | O18: 0.65 | P18: 11.50 | Q18: 43.50 | R18: 16.50 | S18: 0.55
A19: Хлеб белый в/с | B19: 96 | C19: 90.000 | D19: 8.64 | F19: 41.00 | G19: 3.69
H20: =SUM(H8:H19) -> 21.08 | I20: =SUM(I8:I19) -> 16.93 | J20: =SUM(J8:J19) -> 87.47 | K20: =SUM(K8:K19) -> 699.80 | L20: =SUM(L8:L19) -> 0.12 | M20: 84.80 | N20: 13.00 | O20: 1.09 | P20: 41.90 | Q20: 68.12 | R20: 35.46 | S20: 1.53
A21: 12:00-13:00 Обед | B21: 96
A22: Крендель сахарный | B22: 155 | E22: 75 | G22: =SUM(G23:G29) -> 8.11 | H22: 0.75 | I22: 6.02 | J22: 1.71 | K22: 66.60 | L22: 0.08 | P22: 29.00 | Q22: 90.00
A23: Мука пшеничная | B23: 155 | C23: 42.000 | D23: =B23*C23/1000 -> 6.51 | F23: 24.00 | G23: =C23*F23/1000 -> 1.01
A24: Сахар | B24: 155 | C24: 12.000 | D24: 1.86 | F24: 50.00 | G24: =C24*F24/1000 -> 0.60
A25: Масло сливочное | B25: 155 | C25: 11.000 | D25: 1.71 | F25: 450.00 | G25: 4.95
A26: яйцо | B26: 155 | C26: 6.000 | D26: 0.93 | F26: 5.70 | G26: =C26*F26/40 -> 0.86
A27: соль | B27: 155 | C27: 2.000 | D27: 0.31 | F27: 14.00 | G27: 0.03
A28: дрожжи | B28: 155 | C28: 2.000 | D28: 0.31 | F28: 310.00 | G28: 0.62
A29: Масло растительное | B29: 155 | C29: 0.400 | D29: 0.06 | F29: 117.00 | G29: 0.05
A30: Суп картофельный с гречкой с цыплятами | B30: 96 | E30: 250/50 | G30: =SUM(G31:G36) -> 11.53 | H30: 13.44 | I30: 50.00 | J30: 15.80 | K30: 164.00 | L30: 0.24 | M30: 14.40 | O30: 1.53 | P30: 20.46 | Q30: 91.92 | R30: 37.29 | S30: 1.41
A31: Картофель | B31: 96 | C31: 100.000 | D31: =B31*C31/1000 -> 9.6 | F31: 16.90 | G31: =C31*F31/1000 -> 1.69
A32: Лук репчатый | B32: 96 | C32: 12.000 | D32: 1.152 | F32: 24.00 | G32: =C32*F32/1000 -> 0.29
A33: Цыплята | B33: 96 | C33: 46.000 | D33: 4.416 | F33: 193.00 | G33: 8.88
A34: Морковь | B34: 96 | C34: 13.000 | D34: 1.248 | F34: 22.40 | G34: 0.29
A35: Соль | B35: 96 | C35: 2.000 | D35: 0.192 | F35: 16.00 | G35: 0.03
A36: Масло растительное | B36: 96 | C36: 3.000 | D36: 0.288 | F36: 117.00 | G36: 0.35
A37: Шницель натуральный | B37: 96 | E37: 75/5 | G37: =SUM(G38:G42) -> 39.62 | H37: 13.83 | I37: 28.63 | J37: 103.20 | K37: 341.00 | L37: 0.10 | M37: 0.33 | N37: 5.83 | O37: 1.17 | P37: 43.17 | Q37: 175.00 | R37: 33.33 | S37: 2.33
A38: Нарезка мясная | B38: 96 | C38: 95.000 | D38: =B38*C38/1000 -> 9.12 | F38: 370.00 | G38: =C38*F38/1000 -> 35.15
A39: Яйцо | B39: 96 | C39: 4.000 | D39: 0.384 | F39: 7.00 | G39: =C39*F39/40 -> 0.70
A40: Масло сливочное | B40: 96 | C40: 5.000 | D40: 0.48 | F40: 606.97 | G40: =C40*F40/1000 -> 3.03
A41: Соль | B41: 96 | C41: 2.000 | D41: 0.192 | F41: 16.00 | G41: 0.03
A42: Масло растительное | B42: 96 | C42: 6.000 | D42: 0.576 | F42: 117.00 | G42: 0.70
A43: Картофельное пюре | B43: 96 | E43: 150 | G43: =SUM(G44:G47) -> 7.58 | H43: 3.08 | I43: 2.33 | J43: 19.13 | K43: 109.73 | L43: 1.16 | M43: 3.75 | N43: 33.15 | O43: 0.15 | P43: 38.25 | Q43: 76.95 | R43: 26.70 | S43: 0.86
A44: Картофель | B44: 96 | C44: 171.000 | D44: =B44*C44/1000 -> 16.42 | F44: 16.90 | G44: =C44*F44/1000 -> 2.89
A45: Масло сливочное | B45: 96 | C45: 5.000 | D45: 0.48 | F45: 606.97 | G45: =C45*F45/1000 -> 3.03
A46: Соль | B46: 96 | C46: 2.000 | D46: 0.19 | F46: 16.00 | G46: 0.03
A47: Молоко | B47: 96 | C47: 24.000 | D47: 2.30 | F47: 67.57 | G47: 1.62
A48: Компот из яблок | B48: 96 | E48: 200 | G48: =G49+G50+G51 -> 4.26 | H48: 0.16 | I48: 0.16 | J48: 23.56 | K48: 114.60 | L48: 0.01 | M48: 1.80 | P48: 6.40 | Q48: 4.40 | R48: 3.60 | S48: 0.18
A49: Яблоки | B49: 96 | C49: 45.000 | D49: =B49*C49/1000 -> 4.32 | F49: 67.90 | G49: =C49*F49/1000 -> 3.06
A50: Сахар | B50: 96 | C50: 24.000 | D50: 2.304 | F50: 50.00 | G50: 1.20
A51: Лимонная кислота | B51: 96 | C51: 0.002 | D51: 0.000192 | F51: 235.50 | G51: 0.00
A52: Хлеб Дарницкий | B52: 96 | E52: 48 | G52: =G53 -> 1.97 | H52: 8.46 | I52: 2.51 | J52: 44.33 | K52: 186 | L52: 0.07 | O52: 0.54 | P52: 13.8 | Q52: 63.6 | R52: 15 | S52: 1.86
A53: Хлеб Дарницкий | B53: 96 | C53: 48.000 | D53: 4.61 | F53: 41.00 | G53: =C53*F53/1000 -> 1.97
H54: =SUM(H22:H53) -> 39.72 | I54: 89.65 | J54: 207.73 | K54: 981.93 | L54: 1.58 | M54: 19.95 | N54: 38.98 | O54: 3.39 | P54: 151.08 | Q54: 501.87 | R54: 115.92 | S54: 6.64
A55: 14:30-15:00 Полдник | B55: 96
A56: Банан | B56: 96 | E56: 150 | G56: =G57 -> 16.50 | H56: 3.00 | I56: 1.00 | J56: 38.00 | K56: 141.75 | L56: 0.03 | M56: 7.50 | O56: 0.30 | P56: 6.00 | Q56: 21.00 | R56: 31.50 | S56: 0.45
A57: Банан | B57: 96 | C57: 150.000 | D57: =B57*C57/1000 -> 14.40 | F57: 110.00 | G57: =C57*F57/1000 -> 16.50
A58: Молоко кипяченое | B58: 96 | E58: 200 | G58: =SUM(G59) -> 14.26 | H58: 1.53 | I58: 0.34 | J58: 13.77 | K58: 61.20 | L58: 0.08 | M58: 2.60 | N58: 40.00 | P58: 240.00 | Q58: 180.00 | R58: 28.00 | S58: 0.20
A59: Молоко | B59: 96 | C59: 211.000 | D59: =B59*C59/1000 -> 20.256 | F59: 67.57 | G59: =C59*F59/1000 -> 14.26
H60: =SUM(H56:H58) -> 4.53 | I60: =SUM(I56:I58) -> 1.34 | J60: 51.77 | K60: 202.95 | L60: 0.08 | M60: 10.10 | N60: 40.00 | O60: 0.30 | P60: 246.00 | Q60: 201.00 | R60: 59.50 | S60: 0.65
F61: Итого | G61: =E63*E64 -> 10866.63 | H61: =H20+H54+H60 -> 65.33 | I61: 107.92 | J61: 346.97 | K61: 1884.68 | L61: 1.78 | M61: 114.85 | N61: 91.98 | O61: 4.78 | P61: 438.98 | Q61: 770.99 | R61: 210.88 | S61: 8.82
A63: На питании состоит | E63: 96 | F63: человек
A64: Стоимость рациона питания на 1 человека составляет | E64: =SUM(G9+G14+G16+G18+G22+G37+G43+G48+G52+G56+G58) -> 113.19 | F64: рублей
A66: Медсестра | B66: Макаримова Ю.В. | E66: Заведующий производством | I66: Илалова Р.И.

Sheet 10 (2)
A1: ГБОУ Альметьевская школа № 19 для детей с ОВЗ
A2: наименование учреждения
A3: Столовая
A4: подразделение | C4: Меню-раскладка
H5: Пятница
E6: 12-18лет
A7: Наименование | B7: Кол-во порций (план) | C7: Кол-во на порцию (гр) | D7: Общее кол-во (кг) | E7: Выход блюда (гр) | F7: Цена (руб) | G7: Общая сумма (руб) | H7: Белки | I7: Жиры | J7: Углеводы | K7: Ккал | L7: В1 | M7: С | N7: А | O7: Е | P7: Са | Q7: Р | R7: Mg | S7: Fe
A8: 09:30-10:30 Завтрак | B8: 155
A9: Суп молочный вермишелевый | B9: 155 | E9: 250 | G9: =SUM(G10:G13) -> 11.18 | H9: 6.76 | I9: 11.43 | J9: 21.61 | K9: 216.00 | L9: 0.05 | M9: 4.80 | P9: 14.00 | Q9: 0.80 | R9: 15.00 | S9: 0.50
A10: Молоко | B10: 155 | C10: 125.000 | D10: =B10*C10/1000 -> 19.375 | F10: 67.57 | G10: =C10*F10/1000 -> 8.45
A11: Масло сливочное | B11: 155 | C11: 2.000 | D11: =B11*C11/1000 -> 0.31 | F11: 606.97 | G11: =C11*F11/1000 -> 1.21
A12: вермишель | B12: 155 | C12: 35.000 | D12: 5.425 | F12: 42.50 | G12: 1.49
A13: Соль | B13: 155 | C13: 2.000 | D13: 0.31 | F13: 16.00 | G13: 0.03
A14: Печенье сахарное | B14: 155 | E14: 35 | G14: =G15 -> 3.32 | H14: 1.70 | I14: 2.26 | J14: 3.08 | K14: 50.00 | L14: 0.02 | N14: 13.00 | O14: 0.26 | P14: 8.20 | Q14: 17.40 | R14: 3.00 | S14: 0.20
A15: Печенье сахарное | B15: 155 | C15: 35.000 | D15: 5.425 | F15: 94.80 | G15: 3.32
A16: Кисель фруктовый | B16: 155 | E16: 200 | G16: =G17 -> 2.72 | H16: 0.44 | I16: 0.07 | J16: 34.28 | K16: 139.51 | M16: 80.00 | O16: 0.18 | P16: 8.20 | Q16: 6.42 | R16: 0.96 | S16: 0.28
A17: Кисель фруктовый | B17: 155 | C17: 32.000 | D17: 4.96 | F17: 85.00 | G17: 2.72
A18: Хлеб белый в/с | B18: 155 | E18: 120 | G18: =G19 -> 4.92 | H18: 12.18 | I18: 3.17 | J18: 28.5 | K18: 233.80 | L18: 0.05 | O18: 0.65 | P18: 11.50 | Q18: 43.50 | R18: 16.50 | S18: 0.55
A19: Хлеб белый в/с | B19: 155 | C19: 120.000 | D19: 18.6 | F19: 41.00 | G19: 4.92
H20: =SUM(H8:H19) -> 21.08 | I20: =SUM(I8:I19) -> 16.93 | J20: =SUM(J8:J19) -> 87.47 | K20: =SUM(K8:K19) -> 639.31 | L20: =SUM(L8:L19) -> 0.12 | M20: 84.80 | N20: 13.00 | O20: 1.09 | P20: 41.90 | Q20: 68.12 | R20: 35.46 | S20: 1.53
A21: 12:00-13:00 Обед | B21: 155
A22: Суп картофельный с гречкой с цыплятами | B22: 155 | E22: 250/50 | G22: =SUM(G23:G28) -> 10.15 | H22: 13.44 | I22: 50.00 | J22: 15.80 | K22: 164.00 | L22: 0.24 | M22: 14.40 | O22: 1.53 | P22: 20.46 | Q22: 91.92 | R22: 37.29 | S22: 1.41
A23: Картофель | B23: 155 | C23: 100.000 | D23: =B23*C23/1000 -> 15.5 | F23: 16.90 | G23: =C23*F23/1000 -> 1.69
A24: Лук репчатый | B24: 155 | C24: 12.000 | D24: 1.86 | F24: 24.00 | G24: =C24*F24/1000 -> 0.29
A25: Цыплята | B25: 155 | C25: 46.000 | D25: 7.13 | F25: 163.00 | G25: 7.50
A26: Морковь | B26: 155 | C26: 13.000 | D26: 2.015 | F26: 22.40 | G26: 0.29
A27: Соль | B27: 155 | C27: 2.000 | D27: 0.31 | F27: 14.00 | G27: 0.03
A28: Масло растительное | B28: 155 | C28: 3.000 | D28: 0.465 | F28: 117.00 | G28: 0.35
A29: Шницель натуральный | B29: 155 | E29: 75/5 | G29: =SUM(G30:G34) -> 39.61 | H29: 13.83 | I29: 28.63 | J29: 103.20 | K29: 341.00 | L29: 0.10 | M29: 0.33 | N29: 5.83 | O29: 1.17 | P29: 43.17 | Q29: 175.00 | R29: 33.33 | S29: 2.33
A30: Нарезка мясная | B30: 155 | C30: 95.000 | D30: =B30*C30/1000 -> 14.725 | F30: 370.00 | G30: =C30*F30/1000 -> 35.15
A31: Яйцо | B31: 155 | C31: 4.000 | D31: 0.62 | F31: 7.00 | G31: =C31*F31/40 -> 0.70
A32: Масло сливочное | B32: 155 | C32: 5.000 | D32: 0.775 | F32: 606.97 | G32: =C32*F32/1000 -> 3.03
A33: Соль | B33: 155 | C33: 2.000 | D33: 0.31 | F33: 14.00 | G33: 0.03
A34: Масло растительное | B34: 155 | C34: 6.000 | D34: 0.93 | F34: 117.00 | G34: 0.70
A35: Картофельное пюре | B35: 155 | E35: 200 | G35: =SUM(G36:G39) -> 8.35 | H35: 3.08 | I35: 2.33 | J35: 19.13 | K35: 109.73 | L35: 1.16 | M35: 3.75 | N35: 33.15 | O35: 0.15 | P35: 38.25 | Q35: 76.95 | R35: 26.70 | S35: 0.86
A36: Картофель | B36: 155 | C36: 217.000 | D36: =B36*C36/1000 -> 33.64 | F36: 16.90 | G36: =C36*F36/1000 -> 3.67
A37: Масло сливочное | B37: 155 | C37: 5.000 | D37: 0.78 | F37: 606.97 | G37: =C37*F37/1000 -> 3.03
A38: Соль | B38: 155 | C38: 2.000 | D38: 0.31 | F38: 14.00 | G38: 0.03
A39: Молоко | B39: 155 | C39: 24.000 | D39: 3.72 | F39: 67.57 | G39: 1.62
A40: Компот из яблок | B40: 155 | E40: 200 | G40: =G41+G42+G43 -> 4.26 | H40: 0.16 | I40: 0.16 | J40: 23.56 | K40: 114.60 | L40: 0.01 | M40: 1.80 | P40: 6.40 | Q40: 4.40 | R40: 3.60 | S40: 0.18
A41: Яблоки | B41: 155 | C41: 45.000 | D41: =B41*C41/1000 -> 6.975 | F41: 67.90 | G41: =C41*F41/1000 -> 3.06
A42: Сахар | B42: 155 | C42: 24.000 | D42: 3.72 | F42: 50.00 | G42: 1.20
A43: Лимонная кислота | B43: 155 | C43: 0.002 | D43: 0.00031 | F43: 355.50 | G43: 0.00
A44: Крендель сахарный | B44: 155 | E44: 75 | G44: =SUM(G45:G51) -> 8.11 | H44: 0.75 | I44: 6.02 | J44: 1.71 | K44: 66.60 | L44: 0.08 | P44: 29.00 | Q44: 90.00
A45: Мука пшеничная | B45: 155 | C45: 42.000 | D45: 6.51 | F45: 24.00 | G45: =C45*F45/1000 -> 1.01
A46: Сахар | B46: 155 | C46: 12.000 | D46: 1.86 | F46: 50.00 | G46: =C46*F46/1000 -> 0.60
A47: Масло сливочное | B47: 155 | C47: 11.000 | D47: 1.71 | F47: 450.00 | G47: 4.95
A48: яйцо | B48: 155 | C48: 6.000 | D48: 0.93 | F48: 5.70 | G48: =C48*F48/40 -> 0.86
A49: соль | B49: 155 | C49: 2.000 | D49: 0.31 | F49: 14.00 | G49: 0.03
A50: дрожжи | B50: 155 | C50: 2.000 | D50: 0.31 | F50: 310.00 | G50: 0.62
A51: Масло растительное | B51: 155 | C51: 0.400 | D51: 0.06 | F51: 117.00 | G51: 0.05
A52: Хлеб Дарницкий | B52: 155 | E52: 72 | G52: =G53 -> 2.95 | H52: 8.46 | I52: 2.51 | J52: 44.33 | K52: 186 | L52: 0.07 | O52: 0.54 | P52: 13.8 | Q52: 63.6 | R52: 15 | S52: 1.86
A53: Хлеб Дарницкий | B53: 155 | C53: 72.000 | D53: 11.16 | F53: 41.00 | G53: =C53*F53/1000 -> 2.95
B54: 155 | H54: =SUM(H22:H53) -> 39.72 | I54: 89.65 | J54: 207.73 | K54: 981.93 | L54: 1.58 | M54: 19.95 | N54: 38.98 | O54: 3.39 | P54: 151.08 | Q54: 501.87 | R54: 115.92 | S54: 6.64
A55: Банан | B55: 155 | E55: 100 | G55: =G56 -> 11.00 | H55: 3.00 | I55: 1.00 | J55: 38.00 | K55: 88.00 | L55: 0.03 | M55: 7.50 | O55: 0.30 | P55: 6.00 | Q55: 21.00 | R55: 31.50 | S55: 0.45
A56: Банан | B56: 155 | C56: 100.000 | D56: =B56*C56/1000 -> 15.50 | F56: 110.00 | G56: =C56*F56/1000 -> 11.00
H57: =SUM(H55:H56) -> 3.00 | I57: 1.00 | J57: 38.00 | K57: 88.00 | L57: 0.00 | M57: 7.50 | N57: 0.00 | O57: 0.30 | P57: 6.00 | Q57: 21.00 | R57: 31.50 | S57: 0.45
F58: Итого | G58: =E60*E61 -> 10550.09 | H58: =H20+H54+H57 -> 63.80 | I58: 107.58 | J58: 333.20 | K58: 1709.24 | L58: 1.70 | M58: 112.25 | N58: 51.98 | O58: 4.78 | P58: 198.98 | Q58: 590.99 | R58: 182.88 | S58: 8.62
A60: На питании состоит | E60: 99 | F60: человек
A61: Стоимость рациона питания на 1 человека составляет | E61: =SUM(G9+G14+G16+G18+G22+G29+G35+G40+G44+G52+G55) -> 106.57 | F61: рублей
A63: Медсестра | B63: Макаримова Ю.В. | E63: Заведующий производством | I63: Илалова Р.И.

Sheet 11
A1: ГБОУ Альметьевская школа № 19 для детей с ОВЗ
A2: наименование учреждения
A3: Столовая
A4: подразделение | C4: Меню-раскладка
H5: Понедельник
E6: 7-11 лет
A7: Наименование | B7: Кол-во порций (план) | C7: Кол-во на порцию (гр) | D7: Общее кол-во (кг) | E7: Выход блюда (гр) | F7: Цена (руб) | G7: Общая сумма (руб) | H7: Белки | I7: Жиры | J7: Углеводы | K7: Ккал | L7: В1 | M7: С | N7: А | O7: Е | P7: Са | Q7: Р | R7: Mg | S7: Fe
A8: 09:30-10:30 Завтрак | B8: 96
A9: Сосиски отварные | B9: 96 | E9: 58 | G9: =G10 -> 21.46 | H9: 4.70 | I9: 7.50 | J9: 0.40 | K9: 87.90 | O9: 0.30 | P9: 9.60 | Q9: 49.30 | R9: 5.30 | S9: 0.60
A10: Сосиски отварные | B10: 96 | C10: 58.000 | D10: =B10*C10/1000 -> 5.57 | F10: 370.00 | G10: =C10*F10/1000 -> 21.46
A11: Макаронник | B11: 96 | E11: 130 | G11: =SUM(G12:G17) -> 6.22 | H11: 5.1 | I11: 7.5 | J11: 28.5 | K11: 201.90 | L11: 0.06 | O11: 1.95 | P11: 12.00 | Q11: 34.50 | R11: 7.50 | S11: 0.75
A12: Макаронные изделия | B12: 96 | C12: 40.000 | D12: =B12*C12/1000 -> 3.84 | F12: 42.50 | G12: =C12*F12/1000 -> 1.70
A13: Яйца | B13: 96 | C13: 5.000 | D13: =B13*C13/1000 -> 0.48 | F13: 7.00 | G13: =C13*F13/40 -> 0.88
A14: сахар | B14: 96 | C14: 5.000 | D14: =B14*C14/1000 -> 0.48 | F14: 50.00 | G14: =C14*F14/1000 -> 0.25
A15: Масло растительное | B15: 96 | C15: 3.000 | D15: =B15*C15/1000 -> 0.288 | F15: 117.00 | G15: 0.35
A16: Масло сливочное | B16: 96 | C16: 5.000 | D16: =B16*C16/1000 -> 0.48 | F16: 606.97 | G16: =C16*F16/1000 -> 3.03
A17: Соль | B17: 96 | C17: 1.000 | D17: =B17*C17/1000 -> 0.096 | F17: 14.00 | G17: 0.01
A18: Чай с молоком | B18: 96 | E18: 200/20 | G18: =SUM(G19:G21) -> 8.06 | H18: 0.8 | I18: 0.44 | J18: 23.02 | K18: 81.82 | L18: 0.04 | M18: 1.33 | N18: 10.00 | P18: 126.60 | Q18: 92.80 | R18: 15.40 | S18: 0.41
A19: Чай черный | B19: 96 | C19: 2.000 | D19: 0.192 | F19: 275.00 | G19: =C19*F19/1000 -> 0.55
A20: Сахар | B20: 96 | C20: 15.000 | D20: 1.44 | F20: 50.00 | G20: =C20*F20/1000 -> 0.75
A21: Молоко кипяченое | B21: 96 | C21: 100.000 | D21: 9.6 | F21: 67.57 | G21: =C21*F21/1000 -> 6.76
A22: Печенье овсяное | B22: 96 | E22: 35 | G22: =G23 -> 5.32 | H22: 1.70 | I22: 2.26 | J22: 3.08 | K22: 50.00 | L22: 0.02 | N22: 13.00 | O22: 0.26 | P22: 8.20 | Q22: 17.40 | R22: 3.00 | S22: 0.20
A23: Печенье овсяное | B23: 96 | C23: 35.000 | D23: =B23*C23/1000 -> 3.36 | F23: 151.90 | G23: =C23*F23/1000 -> 5.32
A24: Хлеб белый в/с | B24: 96 | E24: 90 | G24: =SUM(G25) -> 3.69 | H24: 12.18 | I24: 3.17 | J24: 28.5 | K24: 363.00 | L24: 0.05 | O24: 0.65 | P24: 11.50 | Q24: 43.50 | R24: 16.50 | S24: 0.55
A25: Хлеб белый в/с | B25: 96 | C25: 90.000 | D25: =B25*C25/1000 -> 8.64 | F25: 41.00 | G25: =C25*F25/1000 -> 3.69
H26: =SUM(H9:H25) -> 24.48 | I26: =SUM(I9:I25) -> 20.87 | J26: =SUM(J9:J25) -> 83.50 | K26: =SUM(K9:K25) -> 784.62 | L26: =SUM(L9:L25) -> 0.17 | M26: 1.33 | N26: 23.00 | O26: 3.16 | P26: 167.90 | Q26: 237.50 | R26: 47.70 | S26: 2.51
A27: 12:00-13:00 Обед | B27: 96
A28: Салат из св помидор и огурцов | B28: 96 | E28: 75 | G28: =SUM(G29:G33) -> 5.94 | H28: 0.8 | I28: 8 | J28: 4.1 | K28: 89.7 | L28: 0.05 | M28: 6.95 | O28: 2.49 | P28: 21.19 | Q28: 33.98 | R28: 24 | S28: 1.32
A29: Помидоры | B29: 96 | C29: 42.000 | D29: =B29*C29/1000 -> 4.032 | F29: 68.00 | G29: =C29*F29/1000 -> 2.86
A30: Огурцы | B30: 96 | C30: 33.000 | D30: 3.168 | F30: 66.66 | G30: 2.20
A31: Лук репчатый | B31: 96 | C31: 11.000 | D31: 1.056 | F31: 24.00 | G31: 0.26
A32: Масло растительное | B32: 96 | C32: 5.000 | D32: 0.48 | F32: 117.00 | G32: 0.59
A33: соль | B33: 96 | C33: 2.000 | D33: 0.192 | F33: 16.00 | G33: 0.03
A34: Борщ из свежей капусты с цыплятами | B34: 96 | G34: =SUM(G35:G45) -> 13.24 | H34: 1.83 | I34: 4.90 | J34: 11.75 | K34: 98.40 | L34: 0.05 | M34: 10.30 | O34: 2.40 | P34: 34.45 | Q34: 53.03 | R34: 26.20 | S34: 1.18
A35: Капуста свежая | B35: 96 | C35: 25.000 | D35: 2.4 | F35: 18.30 | G35: =C35*F35/1000 -> 0.46
A36: Картофель | B36: 96 | C36: 27.000 | D36: 2.592 | F36: 16.90 | G36: =C36*F36/1000 -> 0.46
A37: Масло растительное | B37: 96 | C37: 5.000 | D37: 0.48 | F37: 117.00 | G37: 0.59
A38: Морковь | B38: 96 | C38: 13.000 | D38: 1.248 | F38: 22.40 | G38: 0.29
A39: Лук репчатый | B39: 96 | C39: 15.000 | D39: 1.44 | F39: 24.00 | G39: 0.36
A40: Цыплята | B40: 96 | C40: 46.000 | D40: 4.416 | F40: 193.00 | G40: 8.88
A41: Сахар | B41: 96 | C41: 3.000 | D41: 0.288 | F41: 50.00 | G41: 0.15
A42: Свекла | B42: 96 | C42: 50.000 | D42: 4.8 | F42: 18.40 | G42: 0.92
A43: Сметана | B43: 96 | C43: 5.000 | D43: 0.48 | F43: 190.09 | G43: 0.95
A44: Соль | B44: 96 | C44: 2.000 | D44: 0.192 | F44: 14.00 | G44: 0.03
A45: Томатная паста | B45: 96 | C45: 3.000 | D45: 0.288 | F45: 55.00 | G45: 0.17
A46: Фрикадельки куриные | B46: 96 | E46: 75/7 | G46: =SUM(G47:G52) -> 23.62 | H46: 6.67 | I46: 9.93 | J46: 31.02 | K46: 126 | L46: 0.08 | M46: 1 | N46: 20 | O46: 1.2 | P46: 14.74 | Q46: 219 | R46: 26.8 | S46: 3.34
A47: Грудка | B47: 96 | C47: 66.000 | D47: 6.336 | F47: 268.00 | G47: =C47*F47/1000 -> 17.69
A48: Хлеб пшеничный | B48: 96 | C48: 12.000 | D48: 1.152 | F48: 41.00 | G48: =C48*F48/1000 -> 0.49
A49: Соль | B49: 96 | C49: 3.000 | D49: 0.288 | F49: 14.00 | G49: 0.04
A50: Перец | B50: 96 | C50: 0.001 | D50: 9.6e-05 | G50: 0.00
A51: Молоко | B51: 96 | C51: 17.000 | F51: 67.57 | G51: 1.15
A52: Масло сливочное | B52: 96 | C52: 7.000 | D52: 0.672 | F52: 606.97 | G52: 4.25
A53: Каша перловая | B53: 96 | E53: 150 | G53: =SUM(G54:G56) -> 7.70 | H53: 23.85 | I53: 31.45 | J53: 26.28 | K53: 122.26 | L53: 0.19 | N53: 5 | O53: 2.9 | P53: 4.1 | Q53: 131 | R53: 45 | S53: 2.58
A54: крупа перловая | B54: 96 | C54: 50.000 | D54: 4.8 | F54: 32.00 | G54: =C54*F54/1000 -> 1.60
A55: Масло сливочное | B55: 96 | C55: 10.000 | D55: 0.96 | F55: 606.97 | G55: =C55*F55/1000 -> 6.07
A56: Соль | B56: 96 | C56: 2.000 | D56: 0.192 | F56: 14.00 | G56: 0.03
A57: Компот из сухофруктов | B57: 96 | D57: 0.00 | E57: 200 | G57: =SUM(G58:G59) -> 2.80 | H57: 1.16 | I57: 0.30 | J57: 47.26 | K57: 128.18 | L57: 0.02 | M57: 0.80 | O57: 0.20 | P57: 5.84 | Q57: 46.00 | R57: 33.00 | S57: 0.96
A58: Смесь сухофруктов | B58: 96 | C58: 20.000 | D58: 1.92 | F58: 90.00 | G58: =C58*F58/1000 -> 1.80
A59: Сахар | B59: 96 | C59: 20.000 | D59: 1.92 | F59: 50.00 | G59: =C59*F59/1000 -> 1.00
A60: Хлеб Дарницкий | B60: 96 | E60: 48 | G60: =SUM(G61) -> 1.97 | H60: 8.46 | I60: 2.51 | J60: 44.33 | K60: 186 | L60: 0.04 | O60: 0.36 | P60: 9.20 | Q60: 42.40 | R60: 10.00 | S60: 1.24
A61: Хлеб | B61: 96 | C61: 48.000 | D61: 4.608 | F61: 41.00 | G61: =C61*F61/1000 -> 1.97
H62: =SUM(H28:H61) -> 42.77 | I62: =SUM(I28:I61) -> 57.09 | J62: =SUM(J28:J61) -> 164.74 | K62: =SUM(K28:K61) -> 750.54 | L62: =SUM(L28:L61) -> 0.43 | M62: 19.05 | N62: 25.00 | O62: 9.55 | P62: 89.52 | Q62: 525.41 | R62: 165.00 | S62: 10.62
A63: 14:30-15:00 Полдник | B63: 96
A64: Яблоки свежие | B64: 96 | E64: 250 | G64: =SUM(G65) -> 16.98 | H64: 0.72 | I64: 0 | J64: 20.34 | K64: 111 | L64: 0.02 | M64: 7.50 | O64: 0.15 | P64: 12.00 | Q64: 8.25 | R64: 6.75 | S64: 1.65
A65: Яблоки свежие | B65: 96 | C65: 250.000 | D65: =B65*C65/1000 -> 24 | F65: 67.90 | G65: =C65*F65/1000 -> 16.98
A66: Молоко кипяченое | B66: 96 | E66: 200 | G66: =SUM(G67) -> 12.86 | H66: 1.53 | I66: 0.34 | J66: 13.77 | K66: 61.20 | L66: 0.08 | M66: 2.60 | N66: 40.00 | P66: 240.00 | Q66: 180.00 | R66: 28.00 | S66: 0.20
A67: Молоко | B67: 96 | C67: 211.000 | D67: =B67*C67/1000 -> 20.256 | F67: 60.97 | G67: =C67*F67/1000 -> 12.86
H68: =SUM(H64:H66) -> 2.25 | I68: 0.34 | J68: 34.11 | K68: 172.20 | L68: 0.08 | M68: 10.10 | N68: 40.00 | O68: 0.15 | P68: 252.00 | Q68: 188.25 | R68: 34.75 | S68: 1.85
F69: Итого | G69: =SUM(E71*E72) -> 11955.35 | H69: =H26+H62+H68 -> 69.50 | I69: 78.30 | J69: 282.35 | K69: 1707.36 | L69: 0.68 | M69: 30.48 | N69: 88.00 | O69: 12.86 | P69: 509.42 | Q69: 951.16 | R69: 247.45 | S69: 14.98
A71: На питании состоит | E71: 96 | F71: человек
A72: Стоимость рациона питания на 1 человека составляет | E72: =SUM(G9+G11+G18+G24+G28+G34+G46+G53+G57+G60+G64+G66) -> 124.53 | F72: рублей
A74: Медсестра | B74: Макаримова Ю.В. | E74: Заведующий производством | I74: Илалова Р.И.

Sheet 11в
A1: ГБОУ Альметьевская школа № 19 для детей с ОВЗ
A2: наименование учреждения
A3: Столовая
A4: подразделение | C4: Меню-раскладка
H5: Понедельник
E6: 12-18 лет
A7: Наименование | B7: Кол-во порций (план) | C7: Кол-во на порцию (гр) | D7: Общее кол-во (кг) | E7: Выход блюда (гр) | F7: Цена (руб) | G7: Общая сумма (руб) | H7: Белки | I7: Жиры | J7: Углеводы | K7: Ккал | L7: В1 | M7: С | N7: А | O7: Е | P7: Са | Q7: Р | R7: Mg | S7: Fe
A8: 09:30-10:30 Завтрак | B8: 155
A9: Сосиски отварные | B9: 155 | E9: 58 | G9: =G10 -> 21.46 | H9: 4.70 | I9: 7.50 | J9: 0.40 | K9: 87.90 | O9: 0.30 | P9: 9.60 | Q9: 49.30 | R9: 5.30 | S9: 0.60
A10: Сосиски отварные | B10: 155 | C10: 58.000 | D10: =B10*C10/1000 -> 8.99 | F10: 370.00 | G10: =C10*F10/1000 -> 21.46
A11: Макаронник | B11: 155 | E11: 130 | G11: =SUM(G12:G17) -> 6.06 | H11: 5.1 | I11: 7.5 | J11: 28.5 | K11: 201.90 | L11: 0.06 | O11: 1.95 | P11: 12.00 | Q11: 34.50 | R11: 7.50 | S11: 0.75
A12: Макаронные изделия | B12: 155 | C12: 40.000 | D12: =B12*C12/1000 -> 6.2 | F12: 42.50 | G12: =C12*F12/1000 -> 1.70
A13: Яйца | B13: 155 | C13: 5.000 | D13: =B13*C13/1000 -> 0.775 | F13: 5.70 | G13: =C13*F13/40 -> 0.71
A14: сахар | B14: 155 | C14: 5.000 | D14: =B14*C14/1000 -> 0.775 | F14: 50.00 | G14: =C14*F14/1000 -> 0.25
A15: Масло растительное | B15: 155 | C15: 3.000 | D15: =B15*C15/1000 -> 0.465 | F15: 117.00 | G15: 0.35
A16: Масло сливочное | B16: 155 | C16: 5.000 | D16: =B16*C16/1000 -> 0.78 | F16: 606.97 | G16: 3.03
A17: Соль | B17: 155 | C17: 1.000 | D17: =B17*C17/1000 -> 0.155 | F17: 14.00 | G17: 0.01
A18: Печенье овсяное | B18: 155 | E18: 35 | G18: =G19 -> 5.32 | H18: 1.70 | I18: 2.26 | J18: 3.08 | K18: 50.00 | L18: 0.02 | N18: 13.00 | O18: 0.26 | P18: 8.20 | Q18: 17.40 | R18: 3.00 | S18: 0.20
A19: Печенье овсяное | B19: 155 | C19: 35.000 | D19: =B19*C19/1000 -> 5.425 | F19: 151.90 | G19: =C19*F19/1000 -> 5.32
A20: Чай с молоком | B20: 155 | E20: 200/20 | G20: =SUM(G21:G23) -> 8.06 | H20: 0.8 | I20: 0.44 | J20: 23.02 | K20: 81.82 | L20: 0.04 | M20: 1.33 | N20: 10.00 | P20: 126.60 | Q20: 92.80 | R20: 15.40 | S20: 0.41
A21: Чай черный | B21: 155 | C21: 2.000 | D21: 0.31 | F21: 275.00 | G21: =C21*F21/1000 -> 0.55
A22: Сахар | B22: 155 | C22: 15.000 | F22: 50.00 | G22: =C22*F22/1000 -> 0.75
A23: Молоко | B23: 155 | C23: 100.000 | D23: 15.5 | F23: 67.57 | G23: =C23*F23/1000 -> 6.76
A24: Хлеб белый в/с | B24: 155 | E24: 120 | G24: =SUM(G25) -> 4.92 | H24: 12.18 | I24: 3.17 | J24: 28.5 | K24: 363.00 | L24: 0.05 | O24: 0.65 | P24: 11.50 | Q24: 43.50 | R24: 16.50 | S24: 0.55
A25: Хлеб белый в/с | B25: 155 | C25: 120.000 | D25: =B25*C25/1000 -> 18.6 | F25: 41.00 | G25: =C25*F25/1000 -> 4.92
H26: =SUM(H9:H25) -> 24.48 | I26: =SUM(I9:I25) -> 20.87 | J26: =SUM(J9:J25) -> 83.50 | K26: =SUM(K9:K25) -> 784.62 | L26: =SUM(L9:L25) -> 0.17 | M26: 1.33 | N26: 23.00 | O26: 3.16 | P26: 167.90 | Q26: 237.50 | R26: 47.70 | S26: 2.51
A27: 12:00-13:00 Обед | B27: 155
A28: Салат из св помидор и огурцов | B28: 155 | E28: 100 | G28: =SUM(G29:G33) -> 9.41 | H28: 0.8 | I28: 8 | J28: 4.1 | K28: 89.7 | L28: 0.05 | M28: 6.95 | O28: 2.49 | P28: 21.19 | Q28: 33.98 | R28: 24 | S28: 1.32
A29: Помидоры | B29: 155 | C29: 56.000 | D29: =B29*C29/1000 -> 8.68 | F29: 78.80 | G29: =C29*F29/1000 -> 4.41
A30: Огурцы | B30: 155 | C30: 44.000 | D30: 6.82 | F30: 88.70 | G30: 3.90
A31: Лук репчатый | B31: 155 | C31: 15.000 | D31: 2.325 | F31: 24.00 | G31: 0.36
A32: Масло растительное | B32: 155 | C32: 6.000 | D32: 0.93 | F32: 117.00 | G32: 0.70
A33: соль | B33: 155 | C33: 2.000 | D33: 0.31 | F33: 14.00 | G33: 0.03
A34: Борщ из свежей капусты с цыплятами | B34: 155 | G34: =SUM(G35:G45) -> 13.24 | H34: 1.83 | I34: 4.90 | J34: 11.75 | K34: 98.40 | L34: 0.05 | M34: 10.30 | O34: 2.40 | P34: 34.45 | Q34: 53.03 | R34: 26.20 | S34: 1.18
A35: Капуста свежая | B35: 155 | C35: 25.000 | D35: =B35*C35/1000 -> 3.875 | F35: 18.30 | G35: =C35*F35/1000 -> 0.46 | H35: 1.83 | I35: 4.90 | J35: 11.75 | K35: 98.40 | L35: 0.05 | M35: 10.30 | O35: 2.40 | P35: 34.45 | Q35: 53.03 | R35: 26.20 | S35: 1.18
A36: Картофель | B36: 155 | C36: 27.000 | D36: 4.185 | F36: 16.90 | G36: =C36*F36/1000 -> 0.46
A37: Масло растительное | B37: 155 | C37: 5.000 | D37: 0.775 | F37: 117.00 | G37: 0.59
A38: Морковь | B38: 155 | C38: 13.000 | D38: 2.015 | F38: 22.40 | G38: 0.29
A39: Лук репчатый | B39: 155 | C39: 15.000 | D39: 2.325 | F39: 24.00 | G39: 0.36
A40: Цыплята | B40: 155 | C40: 46.000 | D40: 7.13 | F40: 193.00 | G40: 8.88
A41: Сахар | B41: 155 | C41: 3.000 | D41: 0.465 | F41: 50.00 | G41: 0.15
A42: Свекла | B42: 155 | C42: 50.000 | D42: 7.75 | F42: 18.40 | G42: 0.92
A43: Сметана | B43: 155 | C43: 5.000 | D43: 0.775 | F43: 190.09 | G43: 0.95
A44: Соль | B44: 155 | C44: 2.000 | D44: 0.31 | F44: 14.00 | G44: 0.03
A45: Томатная паста | B45: 155 | C45: 3.000 | D45: 0.465 | F45: 55.00 | G45: 0.17
A46: Фрикадельки куриные | B46: 155 | E46: 100/10 | G46: =SUM(G47:G52) -> 31.84 | H46: 6.67 | I46: 9.93 | J46: 31.02 | K46: 126 | L46: 0.08 | M46: 1 | N46: 20 | O46: 1.2 | P46: 14.74 | Q46: 219 | R46: 26.8 | S46: 3.34
A47: Грудка | B47: 155 | C47: 88.000 | D47: 13.64 | F47: 268.00 | G47: =C47*F47/1000 -> 23.58
A48: Хлеб пшеничный | B48: 155 | C48: 16.000 | D48: 2.48 | F48: 41.00 | G48: =C48*F48/1000 -> 0.66
A49: Соль | B49: 155 | C49: 3.000 | D49: 0.465 | F49: 14.00 | G49: 0.04
A50: Перец | B50: 155 | C50: 0.001 | D50: 0.000155 | G50: 0.00
A51: Молоко | B51: 155 | C51: 22.000 | F51: 67.57 | G51: 1.49
A52: Масло сливочное | B52: 155 | C52: 10.000 | D52: 1.55 | F52: 606.97 | G52: 6.07
A53: Каша перловая | B53: 155 | E53: 200 | G53: =SUM(G54:G56) -> 10.32 | H53: 23.85 | I53: 31.45 | J53: 26.28 | K53: 122.26 | L53: 0.19 | N53: 5 | O53: 2.9 | P53: 4.1 | Q53: 131 | R53: 45 | S53: 2.58
A54: Крупа перловая | B54: 155 | C54: 75.000 | D54: 11.625 | F54: 32.00 | G54: =C54*F54/1000 -> 2.40
A55: Масло сливочное | B55: 155 | C55: 13.000 | D55: 2.015 | F55: 606.97 | G55: =C55*F55/1000 -> 7.89
A56: Соль | B56: 155 | C56: 2.000 | D56: 0.31 | F56: 14.00 | G56: 0.03
A57: Компот из сухофруктов | B57: 155 | D57: 0.00 | E57: 200 | G57: =SUM(G58:G59) -> 2.80 | H57: 1.16 | I57: 0.30 | J57: 47.26 | K57: 128.18 | L57: 0.02 | M57: 0.80 | O57: 0.20 | P57: 5.84 | Q57: 46.00 | R57: 33.00 | S57: 0.96
A58: Смесь сухофруктов | B58: 155 | C58: 20.000 | D58: 3.10 | F58: 90.00 | G58: =C58*F58/1000 -> 1.80
A59: Сахар | B59: 155 | C59: 20.000 | D59: 3.10 | F59: 50.00 | G59: =C59*F59/1000 -> 1.00
A60: Хлеб Дарницкий | B60: 155 | E60: 72 | G60: =SUM(G61) -> 2.95 | H60: 8.46 | I60: 2.51 | J60: 44.33 | K60: 186 | L60: 0.07 | O60: 0.54 | P60: 13.8 | Q60: 63.6 | R60: 15 | S60: 1.86
A61: Хлеб | B61: 155 | C61: 72.000 | D61: 11.16 | F61: 41.00 | G61: =C61*F61/1000 -> 2.95
A62: Яблоки свежие | B62: 155 | E62: 250 | G62: =SUM(G63) -> 16.98 | H62: 0.72 | I62: 0 | J62: 20.34 | K62: 111 | L62: 0.02 | M62: 7.5 | O62: 0.15 | P62: 12 | Q62: 8.25 | R62: 6.75 | S62: 1.65
A63: Яблоки свежие | B63: 155 | C63: 250.000 | D63: 38.75 | F63: 67.90 | G63: =C63*F63/1000 -> 16.98
H64: =SUM(H28:H63) -> 45.32 | I64: =SUM(I28:I63) -> 61.99 | J64: =SUM(J28:J63) -> 196.83 | K64: =SUM(K28:K63) -> 959.94 | L64: =SUM(L28:L63) -> 0.53 | M64: 36.85 | N64: 25.00 | O64: 12.28 | P64: 140.57 | Q64: 607.89 | R64: 202.95 | S64: 14.07
F65: Итого | G65: =SUM(E67*E68) -> 19844.69 | H65: =H26+H64 -> 69.80 | I65: =I26+I64 -> 82.86 | J65: =J26+J64 -> 280.33 | K65: =K26+K64 -> 1744.56 | L65: =L26+L64 -> 0.70 | M65: 38.18 | N65: 48.00 | O65: 15.44 | P65: 308.47 | Q65: 845.39 | R65: 250.65 | S65: 16.58
A67: На питании состоит | E67: 155 | F67: человек
A68: Стоимость рациона питания на 1 человека составляет | E68: =SUM(G9+G11+G20+G24+G28+G34+G46+G53+G57+G60+G62) -> 128.03 | F68: рублей
A70: Медсестра | B70: Макаримова Ю.В. | E70: Заведующий производством | I70: Илалова Р.И.

Sheet 12
A1: ГБОУ Альметьевская школа № 19 для детей с ОВЗ
A2: наименование учреждения
A3: Столовая
A4: подразделение | C4: Меню-раскладка
H5: Вторник
E6: 7-11 лет
A7: Наименование | B7: Кол-во порций (план) | C7: Кол-во на порцию (гр) | D7: Общее кол-во (кг) | E7: Выход блюда (гр) | F7: Цена (руб) | G7: Общая сумма (руб) | H7: Белки | I7: Жиры | J7: Углеводы | K7: Ккал | L7: В1 | M7: С | N7: А | O7: Е | P7: Са | Q7: Р | R7: Mg | S7: Fe
A8: 09:30-10:30 Завтрак | B8: 96
A9: Каша молочная манная с маслом | B9: 963 | E9: 200/10 | G9: =SUM(G10:G14) -> 14.39 | H9: 6.02 | I9: 4.05 | J9: 33.37 | K9: 194.01 | L9: 0.04 | M9: 0.36 | N9: 32.70 | O9: 0.10 | P9: 132.64 | Q9: 109.74 | R9: 17.06 | S9: 0.26
A10: Крупа манная | B10: 963 | C10: 31.000 | D10: =B10*C10/1000 -> 29.85 | F10: 40.00 | G10: =C10*F10/1000 -> 1.24
A11: Молоко | B11: 963 | C11: 100.000 | D11: =B11*C11/1000 -> 96.30 | F11: 67.57 | G11: =C11*F11/1000 -> 6.76
A12: Масло сливочное | B12: 963 | C12: 10.000 | D12: 9.63 | F12: 606.97 | G12: 6.07
A13: Сахар | B13: 963 | C13: 6.000 | D13: 5.78 | F13: 50.00 | G13: 0.30
A14: Соль | B14: 963 | C14: 2.000 | D14: 1.93 | F14: 14.00 | G14: 0.03
A15: Ряженка | B15: 963 | E15: 200 | G15: =G16 -> 19.31 | H15: 3.17 | I15: 2.68 | J15: 28.27 | K15: 100.80 | L15: 0.03 | M15: 1.47 | P15: 158.67 | Q15: 132.00 | R15: 29.33 | S15: 2.40
A16: Ряженка | B16: 963 | C16: 200.000 | D16: =B16*C16/1000 -> 192.60 | F16: 96.55 | G16: =C16*F16/1000 -> 19.31
A17: Хлеб белый в/с | B17: 963 | E17: 90 | G17: =SUM(G18) -> 3.69 | H17: 12.18 | I17: 3.17 | J17: 28.5 | K17: 233.80 | L17: 0.05 | O17: 0.65 | P17: 11.50 | Q17: 43.50 | R17: 16.50 | S17: 0.55
A18: Хлеб белый в/с | B18: 963 | C18: 90.000 | D18: 86.67 | F18: 41.00 | G18: =C18*F18/1000 -> 3.69
H19: =SUM(H9:H18) -> 21.37 | I19: 9.90 | J19: 90.14 | K19: 528.61 | L19: 0.12 | M19: 1.83 | N19: 32.70 | O19: 0.75 | P19: 302.81 | Q19: 285.24 | R19: 62.89 | S19: 3.21
A20: 12:00-13:00 Обед | B20: 96
A21: Салат из св капусты | B21: 96 | E21: 75 | G21: =SUM(G22:G26) -> 2.25 | H21: 2.17 | I21: 3.5 | J21: 9.28 | K21: 51.03 | L21: 0.02 | M21: 24.43 | O21: 2.31 | P21: 43 | Q21: 28.32 | R21: 16 | S21: 0.52
A22: Капуста свежая | B22: 96 | C22: 74.000 | D22: =B22*C22/1000 -> 7.104 | F22: 18.30 | G22: =C22*F22/1000 -> 1.35
A23: Морковь | B23: 96 | C23: 10.000 | D23: =B23*C23/1000 -> 0.96 | F23: 22.40 | G23: =C23*F23/1000 -> 0.22
A24: Кислота лимонная | B24: 96 | C24: 0.030 | D24: 0.00288 | G24: 0.00
A25: Сахар | B25: 96 | C25: 4.000 | D25: 0.384 | F25: 50.00 | G25: 0.20
A26: Масло растительное | B26: 96 | C26: 4.000 | D26: 0.384 | F26: 117.00 | G26: 0.47
A27: Соль | B27: 96 | C27: 1.500 | D27: 0.14 | F27: 14.00 | G27: 0.02
A28: Суп гороховый | B28: 96 | E28: 250 | G28: =SUM(G29:G35) -> 3.06 | H28: 13.44 | I28: 50.00 | J28: 15.80 | K28: 128.25 | L28: 0.18 | M28: 1.20 | O28: 1.20 | P28: 99.00 | Q28: 393.00 | R28: 57.00 | S28: 2.70
A29: Горох | B29: 96 | C29: 20.000 | D29: 1.92 | F29: 34.50 | G29: =C29*F29/1000 -> 0.69
A30: Картофель | B30: 96 | C30: 67.000 | D30: 6.43 | F30: 16.60 | G30: =C30*F30/1000 -> 1.11
A31: Лук репчатый | B31: 96 | C31: 12.000 | D31: 1.15 | F31: 24.00 | G31: 0.29
A32: Морковь | B32: 96 | C32: 16.000 | D32: 1.54 | F32: 22.40 | G32: 0.36
A33: Лук зеленый | B33: 96 | C33: 6.000 | D33: 0.58 | G33: 0.00
A34: Соль | B34: 96 | C34: 2.000 | D34: 0.19 | F34: 14.00 | G34: 0.03
A35: Масло растительное | B35: 96 | C35: 5.000 | D35: 0.48 | F35: 117.00 | G35: 0.59
A36: Шницель рыбный натуральный | B36: 96 | E36: 75/5 | G36: =SUM(G37:G45) -> 49.42 | H36: 3.30 | I36: 1.20 | J36: 21.40 | K36: 111.00 | L36: 0.09 | M36: 0.50 | N36: 30.00 | O36: 4.10 | P36: 35.69 | Q36: 110.39 | R36: 26.90 | S36: 1.40
A37: Рыба св горбуша | B37: 96 | C37: 92.000 | D37: =B37*C37/1000 -> 8.83 | F37: 489.00 | G37: =C37*F37/1000 -> 44.99
A38: Лук репчатый | B38: 96 | C38: 15.000 | D38: 1.44 | F38: 24.00 | G38: =C38*F38/1000 -> 0.36
A39: Зелень | B39: 96 | C39: 2.000 | D39: 0.19 | G39: 0.00
A40: Молоко | B40: 96 | C40: 6.000 | D40: 0.58 | F40: 67.57 | G40: 0.41
A41: Яйца | B41: 96 | C41: 3.000 | D41: 0.29 | F41: 7.00 | G41: 0.02
A42: Сухари панировочные | B42: 96 | C42: 6.000 | D42: 0.58 | F42: 0.00 | G42: 0.00
A43: Соль | B43: 96 | C43: 2.000 | D43: 0.19 | F43: 14.00 | G43: 0.03
A44: Масло сливочное | B44: 96 | C44: 5.000 | D44: 0.48 | F44: 606.97 | G44: 3.03
A45: Масло растительное | B45: 96 | C45: 5.000 | D45: 0.48 | F45: 117.00 | G45: 0.59
A46: Картофельное пюре | B46: 96 | E46: 150 | G46: =SUM(G47:G50) -> 7.57 | H46: 3.08 | I46: 2.33 | J46: 19.13 | K46: 109.73 | L46: 1.16 | M46: 3.75 | N46: 33.15 | O46: 0.15 | P46: 38.25 | Q46: 76.95 | R46: 26.70 | S46: 0.86
A47: Картофель | B47: 96 | C47: 171.000 | D47: 16.42 | F47: 16.90 | G47: =C47*F47/1000 -> 2.89
A48: Масло сливочное | B48: 96 | C48: 5.000 | D48: 0.48 | F48: 606.97 | G48: =C48*F48/1000 -> 3.03
A49: Соль | B49: 96 | C49: 2.000 | D49: 0.19 | F49: 14.00 | G49: 0.03
A50: Молоко | B50: 96 | C50: 24.000 | D50: 2.30 | F50: 67.57 | G50: 1.62
A51: Сок фруктовый | B51: 96 | E51: 200 | G51: =SUM(G52) -> 7.00 | H51: 1.00 | I51: 0 | J51: 19.80 | K51: 85.00 | M51: 20.00 | O51: 0.67 | P51: 52.00 | Q51: 82.67 | R51: 30.00 | S51: 3.20
A52: Сок фруктовый | B52: 96 | C52: 200.000 | D52: 19.20 | F52: 35 | G52: =C52*F52/1000 -> 7.00
A53: Хлеб Дарницкий | B53: 96 | E53: 48 | G53: =SUM(G54) -> 1.97 | H53: 8.46 | I53: 2.51 | J53: 44.33 | K53: 186 | L53: 0.04 | O53: 0.36 | P53: 9.20 | Q53: 42.40 | R53: 10.00 | S53: 1.24
A54: Хлеб Дарницкий | B54: 96 | C54: 48.000 | D54: =B54*C54/1000 -> 4.61 | F54: 41.00 | G54: =C54*F54/1000 -> 1.97
A55: Ватрушка с творогом | B55: 96 | E55: 50 | G55: =SUM(G56:G62) -> 18.80 | H55: 7.73 | I55: 8.09 | J55: 31.87 | K55: 151.50 | L55: 0.3 | M55: 0.20 | N55: 100.00 | O55: 2.20 | P55: 81.90 | Q55: 3.20 | R55: 18.30 | S55: 1.10
A56: Дрожжи | B56: 96 | C56: 1.000 | D56: 0.10 | F56: 222.00 | G56: =C56*F56/1000 -> 0.22
A57: Масло растительное | B57: 96 | C57: 5.000 | D57: 0.48 | F57: 117.00 | G57: =C57*F57/1000 -> 0.59
A58: Масло сливочное | B58: 96 | C58: 3.000 | D58: 0.29 | F58: 606.97 | G58: 1.82
A59: Мука пшеничная | B59: 96 | C59: 80.000 | D59: 7.68 | F59: 24.00 | G59: 1.92
A60: Сахар | B60: 96 | C60: 5.000 | D60: 0.48 | F60: 50.00 | G60: 0.25
A61: Творог | B61: 96 | C61: 35.000 | D61: 3.36 | F61: 390.06 | G61: 13.65
A62: Яйцо | B62: 96 | C62: 50.000 | D62: 4.80 | F62: 7.00 | G62: 0.35
H63: =SUM(H21:H28:H36:H46:H55) -> 39.18 | I63: =SUM(I21:I28:I36:I46:I55) -> 67.63 | J63: =SUM(J21:J28:J36:J46:J55) -> 161.61 | K63: =SUM(K21:K28:K36:K46:K55) -> 822.51 | L63: =SUM(L21:L28:L36:L46:L55) -> 1.49 | M63: =SUM(M21:M28:M36:M46:M55) -> 50.08 | N63: =SUM(N21:N28:N36:N46:N55) -> 163.15 | O63: =SUM(O21:O28:O36:O46:O55) -> 10.99 | P63: =SUM(P21:P28:P36:P46:P55) -> 359.04 | Q63: =SUM(Q21:Q28:Q36:Q46:Q55) -> 736.93 | R63: =SUM(R21:R28:R36:R46:R55) -> 184.90 | S63: =SUM(S21:S28:S36:S46:S55) -> 11.02
A64: 14:30-15:00 Полдник | B64: 96
A65: Груши свежие | B65: 96 | E65: 194 | G65: =SUM(G66) -> 26.19 | H65: 0.78 | I65: 0.58 | J65: 21.15 | K65: 81.50 | L65: 0.02 | M65: 3.75 | O65: 0.30 | P65: 14.25 | Q65: 12.00 | R65: 9.00 | S65: 1.73
A66: Груши свежие | B66: 96 | C66: 194.000 | D66: =B66*C66/1000 -> 18.62 | F66: 135 | G66: =C66*F66/1000 -> 26.19
A67: Вафли | B67: 96 | E67: 18 | G67: =SUM(G68) -> 2.88 | H67: 0.77 | I67: 6.07 | J67: 15.00 | K67: 118.00 | L67: 0.05 | P67: 8.00 | Q67: 42.00 | R67: 6.00 | S67: 0.60
A68: Вафли | B68: 96 | C68: 18.000 | D68: =B68*C68/1000 -> 1.73 | F68: 160.00 | G68: =C68*F68/1000 -> 2.88
A69: Молоко кипяченое | B69: 96 | E69: 200 | G69: =SUM(G70) -> 14.26 | H69: 1.53 | I69: 0.34 | J69: 13.77 | K69: 61.20 | L69: 0.08 | M69: 2.60 | N69: 40.00 | P69: 240.00 | Q69: 180.00 | R69: 28.00 | S69: 0.20
A70: Молоко кипяченое | B70: 96 | C70: 211.000 | D70: =C70*B70/1000 -> 20.26 | F70: 67.57 | G70: =C70*F70/1000 -> 14.26
H71: =SUM(H65:H69) -> 3.08 | I71: =SUM(I65:I69) -> 6.99 | J71: 49.92 | K71: 260.70 | L71: 0.15 | M71: 6.35 | N71: 40.00 | O71: 0.30 | P71: 262.25 | Q71: 234.00 | R71: 43.00 | S71: 2.53
F72: Итого | G72: =E74*E75 -> 16119.79 | H72: =H19+H71 -> 24.45 | I72: =I19+I71 -> 16.89 | J72: =J19+J71 -> 140.06 | K72: =K19+K63+K71 -> 1611.82 | L72: =L19+L71 -> 0.27 | M72: 8.18 | N72: 72.70 | O72: 1.05 | P72: 565.06 | Q72: 519.24 | R72: 105.89 | S72: 5.74
A74: На питании состоит | E74: 96 | F74: человек
A75: Стоимость рациона питания на 1 человека составляет | E75: =SUM(G9+G15+G17+G21+G28+G36+G46+G51+G53+G55+G65+G69) -> 167.91 | F75: рублей
A77: Медсестра | B77: Макаримова Ю.В. | E77: Заведующий производством | I77: Илалова Р.И.

Sheet 12 (в)
A1: ГБОУ Альметьевская школа № 19 для детей с ОВЗ
A2: наименование учреждения
A3: Столовая
A4: подразделение | C4: Меню-раскладка
H5: Вторник
E6: 12-18 лет
A7: Наименование | B7: Кол-во порций (план) | C7: Кол-во на порцию (гр) | D7: Общее кол-во (кг) | E7: Выход блюда (гр) | F7: Цена (руб) | G7: Общая сумма (руб) | H7: Белки | I7: Жиры | J7: Углеводы | K7: Ккал | L7: В1 | M7: С | N7: А | O7: Е | P7: Са | Q7: Р | R7: Mg | S7: Fe
A8: 09:30-10:30 Завтрак | B8: 155
A9: Каша молочная манная с маслом | B9: 155 | E9: 200/10 | G9: =SUM(G10:G14) -> 14.39 | H9: 6.02 | I9: 4.05 | J9: 33.37 | K9: 194.01 | L9: 0.04 | M9: 0.36 | N9: 32.70 | O9: 0.10 | P9: 132.64 | Q9: 109.74 | R9: 17.06 | S9: 0.26
A10: Крупа манная | B10: 155 | C10: 31.000 | D10: =B10*C10/1000 -> 4.81 | F10: 40.00 | G10: =C10*F10/1000 -> 1.24
A11: Молоко | B11: 155 | C11: 100.000 | D11: =B11*C11/1000 -> 15.50 | F11: 67.57 | G11: =C11*F11/1000 -> 6.76
A12: Масло сливочное | B12: 155 | C12: 10.000 | D12: 1.55 | F12: 606.97 | G12: 6.07
A13: Сахар | B13: 155 | C13: 6.000 | D13: 0.93 | F13: 50.00 | G13: 0.30
A14: Соль | B14: 155 | C14: 2.000 | D14: 0.31 | F14: 14.00 | G14: 0.03
A15: Ряженка | B15: 155 | E15: 200 | G15: =G16 -> 19.31 | H15: 3.17 | I15: 2.68 | J15: 28.27 | K15: 100.80 | L15: 0.03 | M15: 1.47 | P15: 158.67 | Q15: 132.00 | R15: 29.33 | S15: 2.40
A16: Ряженка | B16: 155 | C16: 200.000 | D16: =B16*C16/1000 -> 31.00 | F16: 96.55 | G16: =C16*F16/1000 -> 19.31
A17: Хлеб белый в/с | B17: 155 | E17: 120 | G17: =SUM(G18) -> 4.92 | H17: 12.18 | I17: 3.17 | J17: 28.5 | K17: 363.00 | L17: 0.05 | O17: 0.65 | P17: 11.50 | Q17: 43.50 | R17: 16.50 | S17: 0.55
A18: Хлеб белый в/с | B18: 155 | C18: 120.000 | D18: 18.60 | F18: 41.00 | G18: =C18*F18/1000 -> 4.92
H19: =SUM(H9:H18) -> 21.37 | I19: 9.90 | J19: 90.14 | K19: 657.81 | L19: 0.12 | M19: 1.83 | N19: 32.70 | O19: 0.75 | P19: 302.81 | Q19: 285.24 | R19: 62.89 | S19: 3.21
A20: 12:00-13:00 Обед | B20: 155
A21: Салат из св капусты | B21: 155 | E21: 100 | G21: =SUM(G22:G26) -> 2.94 | H21: 2.17 | I21: 3.5 | J21: 9.28 | K21: 51.03 | L21: 0.02 | M21: 24.43 | O21: 2.31 | P21: 43 | Q21: 28.32 | R21: 16 | S21: 0.52
A22: Капуста свежая | B22: 155 | C22: 99.000 | D22: =B22*C22/1000 -> 15.345 | F22: 18.30 | G22: =C22*F22/1000 -> 1.81
A23: Морковь | B23: 155 | C23: 13.000 | D23: =B23*C23/1000 -> 2.015 | F23: 22.40 | G23: =C23*F23/1000 -> 0.29
A24: Кислота лимонная | B24: 155 | C24: 0.030 | D24: 0.00465 | G24: 0.00
A25: Сахар | B25: 155 | C25: 5.000 | D25: 0.775 | F25: 50.00 | G25: 0.25
A26: Масло растительное | B26: 155 | C26: 5.000 | D26: 0.775 | F26: 117.00 | G26: 0.59
A27: Соль | B27: 155 | C27: 1.500 | D27: 0.23 | F27: 14.00 | G27: 0.02
A28: Суп гороховый | B28: 155 | E28: 250 | G28: =SUM(G29:G35) -> 3.08 | H28: 13.44 | I28: 50.00 | J28: 15.80 | K28: 128.25 | L28: 0.18 | M28: 1.20 | O28: 1.20 | P28: 99.00 | Q28: 393.00 | R28: 57.00 | S28: 2.70
A29: Горох | B29: 155 | C29: 20.000 | D29: 3.10 | F29: 34.50 | G29: =C29*F29/1000 -> 0.69
A30: Картофель | B30: 155 | C30: 67.000 | D30: 10.39 | F30: 16.90 | G30: =C30*F30/1000 -> 1.13
A31: Лук репчатый | B31: 155 | C31: 12.000 | D31: 1.86 | F31: 24.00 | G31: 0.29
A32: Морковь | B32: 155 | C32: 16.000 | D32: 2.48 | F32: 22.40 | G32: 0.36
A33: Лук зеленый | B33: 155 | C33: 6.000 | D33: 0.93 | G33: 0.00
A34: Соль | B34: 155 | C34: 2.000 | D34: 0.31 | F34: 14.00 | G34: 0.03
A35: Масло растительное | B35: 155 | C35: 5.000 | D35: 0.78 | F35: 117.00 | G35: 0.59
A36: Шницель рыбный натуральный | B36: 155 | E36: 100/10 | G36: =SUM(G37:G45) -> 66.93 | H36: 3.30 | I36: 1.20 | J36: 21.40 | K36: 111.00 | L36: 0.09 | M36: 0.50 | N36: 30.00 | O36: 4.10 | P36: 35.69 | Q36: 110.39 | R36: 26.90 | S36: 1.40
A37: Горбуша | B37: 155 | C37: 121.000 | D37: =B37*C37/1000 -> 18.76 | F37: 489.00 | G37: =C37*F37/1000 -> 59.17
A38: Лук репчатый | B38: 155 | C38: 20.000 | D38: 3.10 | F38: 23.80 | G38: =C38*F38/1000 -> 0.48
A39: Зелень | B39: 155 | C39: 2.000 | D39: 0.31 | G39: 0.00
A40: Молоко | B40: 155 | C40: 8.000 | D40: 1.24 | F40: 41.28 | G40: 0.33
A41: Яйца | B41: 155 | C41: 3.000 | D41: 0.47 | F41: 7.00 | G41: 0.02
A42: Сухари панировочные | B42: 155 | C42: 6.000 | D42: 0.93 | F42: 0.00 | G42: 0.00
A43: Соль | B43: 155 | C43: 3.000 | D43: 0.47 | F43: 16.00 | G43: 0.05
A44: Масло сливочное | B44: 155 | C44: 10.000 | D44: 1.55 | F44: 606.97 | G44: 6.07
A45: Масло растительное | B45: 155 | C45: 7.000 | D45: 1.09 | F45: 117.00 | G45: 0.82
A46: Картофельное пюре | B46: 155 | E46: 200 | G46: =SUM(G47:G50) -> 10.31 | H46: 3.08 | I46: 2.33 | J46: 19.13 | K46: 109.73 | L46: 1.16 | M46: 3.75 | N46: 33.15 | O46: 0.15 | P46: 38.25 | Q46: 76.95 | R46: 26.70 | S46: 0.86
A47: Картофель | B47: 155 | C47: 228.000 | D47: 35.34 | F47: 16.90 | G47: =C47*F47/1000 -> 3.85
A48: Масло сливочное | B48: 155 | C48: 7.000 | D48: 1.09 | F48: 606.97 | G48: =C48*F48/1000 -> 4.25
A49: Соль | B49: 155 | C49: 3.000 | D49: 0.47 | F49: 14.00 | G49: 0.04
A50: Молоко | B50: 155 | C50: 32.000 | D50: 4.96 | F50: 67.57 | G50: 2.16
A51: Сок фруктовый | B51: 155 | E51: 200 | G51: =SUM(G52) -> 7.00 | H51: 1.00 | I51: 0 | J51: 19.80 | K51: 85.00 | M51: 20.00 | O51: 0.67 | P51: 52.00 | Q51: 82.67 | R51: 30.00 | S51: 3.20
A52: Сок фруктовый | B52: 155 | C52: 200.000 | D52: 31.00 | F52: 35 | G52: =C52*F52/1000 -> 7.00
A53: Хлеб Дарницкий | B53: 155 | E53: 72 | G53: =SUM(G54) -> 2.95 | H53: 8.46 | I53: 2.51 | J53: 44.33 | K53: 186 | L53: 0.07 | O53: 0.54 | P53: 13.8 | Q53: 63.6 | R53: 15 | S53: 1.86
A54: Хлеб Дарницкий | B54: 155 | C54: 72.000 | D54: =B54*C54/1000 -> 11.16 | F54: 41.00 | G54: =C54*F54/1000 -> 2.95
A55: Груши свежие | B55: 155 | E55: 100 | G55: =SUM(G56) -> 26.19 | H55: 0.78 | I55: 0.58 | J55: 21.15 | K55: 43.00 | L55: 0.02 | M55: 3.75 | O55: 0.30 | P55: 14.25 | Q55: 12.00 | R55: 9.00 | S55: 1.73
A56: Груши свежие | B56: 155 | C56: 194.000 | D56: =B56*C56/1000 -> 30.07 | F56: 135 | G56: =C56*F56/1000 -> 26.19
A57: Ватрушка с творогом | B57: 155 | E57: 50 | G57: =SUM(G58:G64) -> 19.52 | H57: 7.73 | I57: 8.09 | J57: 31.87 | K57: 151.50 | L57: 0.3 | M57: 0.20 | N57: 100.00 | O57: 2.20 | P57: 81.90 | Q57: 3.20 | R57: 18.30 | S57: 1.10
A58: Дрожжи | B58: 155 | C58: 1.000 | D58: 0.16 | F58: 222.00 | G58: =C58*F58/1000 -> 0.22
A59: Масло растительное | B59: 155 | C59: 5.000 | D59: 0.78 | F59: 117.00 | G59: =C59*F59/1000 -> 0.59
A60: Масло сливочное | B60: 155 | C60: 3.000 | D60: 0.47 | F60: 606.97 | G60: 1.82
A61: Мука пшеничная | B61: 155 | C61: 80.000 | D61: 12.40 | F61: 33.00 | G61: 2.64
A62: Сахар | B62: 155 | C62: 5.000 | D62: 0.78 | F62: 50.00 | G62: 0.25
A63: Творог | B63: 155 | C63: 35.000 | D63: 5.43 | F63: 390.06 | G63: 13.65
A64: Яйцо | B64: 155 | C64: 50.000 | D64: 7.75 | F64: 7.00 | G64: 0.35
H65: =SUM(H19:H64) -> 61.33 | I65: =SUM(I19:I64) -> 78.11 | J65: =SUM(J21:J64) -> 182.76 | K65: =SUM(K21:K64) -> 865.51 | L65: =SUM(L21:L64) -> 1.54 | M65: 53.83 | N65: 163.15 | O65: 11.47 | P65: 377.89 | Q65: 770.13 | R65: 198.90 | S65: 13.37
F66: Итого | G66: =E68*E69 -> 27519.55 | H66: =H19+H65 -> 82.70 | I66: 88.01 | J66: 272.90 | K66: 1523.32 | L66: 1.66 | M66: 55.66 | N66: 195.85 | O66: 12.22 | P66: 680.70 | Q66: 1055.37 | R66: 261.79 | S66: 16.58
A68: На питании состоит | E68: 155 | F68: человек
A69: Стоимость рациона питания на 1 человека составляет | E69: =SUM(G9+G15+G17+G21+G28+G36+G46+G51+G53+G55+G57) -> 177.55 | F69: рублей
A71: Медсестра | B71: Макаримова Ю.В. | E71: Заведующий производством | I71: Илалова Р.И.

Sheet 13
A1: ГБОУ Альметьевская школа № 19 для детей с ОВЗ
A2: наименование учреждения
A3: Столовая
A4: подразделение | C4: Меню-раскладка
H5: Среда
E6: 7-11 лет
A7: Наименование | B7: Кол-во порций (план) | C7: Кол-во на порцию (гр) | D7: Общее кол-во (кг) | E7: Выход блюда (гр) | F7: Цена (руб) | G7: Общая сумма (руб) | H7: Белки | I7: Жиры | J7: Углеводы | K7: Ккал | L7: В1 | M7: С | N7: А | O7: Е | P7: Са | Q7: Р | R7: Mg | S7: Fe
A8: 09:30-10:30 Завтрак | B8: 96
A9: Запеканка творожная со сгущенкой | B9: 96 | E9: 100/20 | G9: =SUM(G10:G18) -> 43.74 | H9: 16.50 | I9: 29.55 | J9: 36.45 | K9: 313.00 | L9: 0.11 | M9: 0.36 | N9: 108.00 | O9: 1.44 | P9: 234.00 | Q9: 338.40 | R9: 39.60 | S9: 1.62
A10: Масло сливочное | B10: 96 | C10: 4.000 | D10: =B10*C10/1000 -> 0.38 | F10: 606.97 | G10: =C10*F10/1000 -> 2.43
A11: Сахар | B11: 96 | C11: 8.000 | D11: 0.77 | F11: 50.00 | G11: 0.40
A12: Крупа манная | B12: 96 | C12: 6.000 | D12: 0.58 | F12: 40.00 | G12: 0.24
A13: Творог | B13: 96 | C13: 94.000 | D13: 9.02 | F13: 390.06 | G13: 36.67
A14: Яйцо | B14: 96 | C14: 4.000 | D14: 0.38 | F14: 7.00 | G14: 0.03
A15: Сметана | B15: 96 | C15: 4.000 | D15: 0.38 | F15: 190.09 | G15: 0.76
A16: Ванилин | B16: 96 | C16: 0.003 | D16: 0.00 | G16: 0.00
A17: Сгущеное молоко | B17: 96 | C17: 20.000 | D17: 1.92 | F17: 160.68 | G17: 3.21
A18: Сухари панировочные | B18: 96 | C18: 6.000 | D18: 0.58 | F18: 0.00 | G18: 0.00
A19: Какао с молоком | B19: 96 | E19: 200 | G19: =SUM(G20:G22) -> 8.46 | H19: 3.78 | I19: 0.67 | J19: 26.00 | K19: 125.11 | L19: 0.02 | M19: 1.33 | P19: 133.33 | Q19: 111.11 | R19: 25.56 | S19: 2.00
A20: какао | B20: 96 | C20: 4.000 | D20: =B20*C20/1000 -> 0.38 | F20: 175.00 | G20: =C20*F20/1000 -> 0.70
A21: Молоко | B21: 96 | C21: 100.000 | D21: =B21*C21/1000 -> 9.60 | F21: 67.57 | G21: =C21*F21/1000 -> 6.76
A22: Сахар | B22: 96 | C22: 20.000 | D22: 1.92 | F22: 50.00 | G22: 1.00
A23: Хлеб белый в/с | B23: 96 | E23: 90 | G23: =SUM(G24) -> 3.69 | H23: 12.18 | I23: 3.17 | J23: 28.5 | K23: 363.00 | L23: 0.02 | O23: 0.26 | P23: 4.60 | Q23: 17.40 | R23: 6.60 | S23: 0.22
A24: Хлеб белый в/с | B24: 96 | C24: 90.000 | D24: =B24*C24/1000 -> 8.64 | F24: 41.00 | G24: =C24*F24/1000 -> 3.69
H25: =SUM(H9:H24) -> 32.46 | I25: =SUM(I9:I24) -> 33.39 | J25: =SUM(J9:J24) -> 90.95 | K25: =SUM(K9:K24) -> 801.11 | L25: =SUM(L9:L24) -> 0.15 | M25: 1.69 | N25: 108.00 | O25: 1.70 | P25: 371.93 | Q25: 466.91 | R25: 71.76 | S25: 3.84
A26: 12:00-13:00 Обед | B26: 96
A27: Салат из свеклы с яблоками | B27: 96 | E27: 100 | G27: =G28+G31 -> 2.28 | H27: 1.37 | I27: 1.75 | J27: 7.73 | K27: 49 | L27: 0.02 | M27: 8.56 | O27: 2.32 | P27: 34.4 | Q27: 37.13 | R27: 19.7 | S27: 1.72
A28: Свекла | B28: 96 | C28: 86.000 | D28: =B28*C28/1000 -> 8.26 | F28: 18.40 | G28: =C28*F28/1000 -> 1.58
A29: сахар | B29: 96 | C29: 3.000 | D29: 0.29 | F29: 50.00 | G29: 0.15
A30: Яблоки св | B30: 96 | C30: 36.000 | D30: 3.46 | F30: 67.90 | G30: 2.44
A31: Масло растительное | B31: 96 | C31: 6.000 | D31: 0.58 | F31: 117.00 | G31: 0.70
A32: Щи из свежей капусты с цыплятами | B32: 96 | E32: 250/25 | G32: =SUM(G33:G42) -> 12.06 | H32: 1.8 | I32: 4.98 | J32: 8.13 | K32: 84.48 | L32: 0.08 | M32: 18.48 | O32: 2.38 | P32: 33.98 | Q32: 47.43 | R32: 22.2 | S32: 0.83
A33: Капуста свежая | B33: 96 | C33: 63.000 | D33: =B33*C33/1000 -> 6.05 | F33: 18.30 | G33: =C33*F33/1000 -> 1.15
A34: Картофель | B34: 96 | C34: 40.000 | D34: =B34*C34/1000 -> 3.84 | F34: 16.90 | G34: =C34*F34/1000 -> 0.68
A35: Лук репчатый | B35: 96 | C35: 12.000 | D35: 1.15 | F35: 24.00 | G35: 0.29
A36: Цыплята | B36: 96 | C36: 41.000 | D36: 3.94 | F36: 193.00 | G36: 7.91
A37: Лук зеленый | B37: 96 | C37: 3.000 | D37: 0.29 | G37: 0.00
A38: Морковь | B38: 96 | C38: 13.000 | D38: 1.25 | F38: 22.40 | G38: 0.29
A39: Сметана | B39: 96 | C39: 5.000 | D39: 0.48 | F39: 190.09 | G39: 0.95
A40: Паста томатная | B40: 96 | C40: 3.000 | D40: 0.29 | F40: 55.00 | G40: 0.17
A41: Соль | B41: 96 | C41: 3.000 | D41: 0.29 | F41: 14.00 | G41: 0.04
A42: Масло растительное | B42: 96 | C42: 5.000 | D42: 0.48 | F42: 117.00 | G42: 0.59
A43: Тефтели из говядины | B43: 96 | E43: 60/50 | G43: =SUM(G44:G50) -> 22.22 | H43: 6.04 | I43: 6.17 | J43: 1.42 | K43: 85.34 | L43: 0.19 | M43: 12.7 | N43: 5240 | O43: 1 | P43: 30 | Q43: 239 | R43: 17 | S43: 5
A44: Говядина | B44: 96 | C44: 52.000 | D44: =B44*C44/1000 -> 4.99 | F44: 370.00 | G44: =C44*F44/1000 -> 19.24
A45: Рис | B45: 96 | C45: 5.000 | D45: 0.48 | F45: 86.00 | G45: =C45*F45/1000 -> 0.43
A46: Лук репчатый | B46: 96 | C46: 21.000 | D46: 2.02 | F46: 24.00 | G46: 0.50
A47: Масло сливочное | B47: 96 | C47: 2.000 | D47: 0.19 | F47: 606.97 | G47: 1.21
A48: Соль | B48: 96 | C48: 2.000 | D48: =B48*C48/1000 -> 0.19 | F48: 16.00 | G48: 0.03
A49: Мука пшеничная | B49: 96 | C49: 4.000 | D49: =B49*C49/1000 -> 0.38 | F49: 24.00 | G49: 0.10
A50: Масло растительное | B50: 96 | C50: 6.000 | D50: 0.58 | F50: 117.00 | G50: 0.70
A51: Каша гречневая | B51: 96 | E51: 100/10 | G51: =SUM(G52:G54) -> 8.11 | H51: 4.50 | I51: 2.30 | J51: 25.00 | K51: 132.00 | L51: 0.27 | P51: 19.47 | Q51: 280.00 | R51: 186.67 | S51: 6.68
A52: Крупа гречка | B52: 96 | C52: 47.000 | D52: 4.51 | F52: 43.00 | G52: =C52*F52/1000 -> 2.02
A53: Масло сливочное | B53: 96 | C53: 10.000 | D53: 0.96 | F53: 606.97 | G53: =C53*F53/1000 -> 6.07
A54: Соль | B54: 96 | C54: 1.000 | D54: 0.10 | F54: 16.00 | G54: 0.02
A55: Компот из сухофруктов | B55: 96 | D55: 0.00 | E55: 200 | G55: =SUM(G56:G57) -> 2.66 | H55: 1.16 | I55: 0.30 | J55: 47.26 | K55: 128.18 | L55: 0.02 | M55: 0.80 | O55: 0.20 | P55: 5.84 | Q55: 46.00 | R55: 33.00 | S55: 0.96
A56: Смесь компотная | B56: 96 | C56: 20.000 | D56: 1.92 | F56: 83.00 | G56: =C56*F56/1000 -> 1.66
A57: Сахар | B57: 96 | C57: 20.000 | D57: 1.92 | F57: 50.00 | G57: =C57*F57/1000 -> 1.00
A58: Печенье овсяное | B58: 96 | E58: 30 | G58: =SUM(G59) -> 4.56 | H58: 0.77 | I58: 6.07 | J58: 1.18 | K58: 153.00 | L58: 0.08 | O58: 1.50 | P58: 12.00 | Q58: 1.60 | R58: 10.00 | S58: 0.90
A59: Печенье овсяное | B59: 96 | C59: 30.000 | D59: =B59*C59/1000 -> 2.88 | F59: 151.90 | G59: =C59*F59/1000 -> 4.56
A60: Хлеб Дарницкий | B60: 96 | D60: 0.00 | E60: 48 | G60: =SUM(G61) -> 1.97 | H60: 8.46 | I60: 2.51 | J60: 44.33 | K60: 186 | L60: 0.04 | O60: 0.36 | P60: 9.20 | Q60: 42.40 | R60: 10.00 | S60: 1.24
A61: Хлеб | B61: 96 | C61: 48.000 | D61: 4.61 | F61: 41.00 | G61: =C61*F61/1000 -> 1.97
H62: =SUM(H32:H61) -> 22.73 | I62: =SUM(I32:I61) -> 22.33 | J62: =SUM(J32:J61) -> 127.32 | K62: =SUM(K32:K61) -> 769.00 | L62: =SUM(L32:L61) -> 0.68 | M62: 31.98 | N62: 5240.00 | O62: 5.44 | P62: 110.49 | Q62: 656.43 | R62: 278.87 | S62: 15.61
A63: 14:30-15:00 Полдник | B63: 96
A64: Апельсин | B64: 96 | E64: 170 | G64: =SUM(G65) -> 15.11 | H64: 0.90 | I64: 0.20 | J64: 8.68 | K64: 103.00 | L64: 0.04 | M64: 64.29 | O64: 0.21 | P64: 36.43 | Q64: 24.64 | R64: 13.93 | S64: 0.32
A65: Апельсин | B65: 96 | C65: 170.000 | D65: =C65*B65/1000 -> 16.32 | F65: 88.9 | G65: =C65*F65/1000 -> 15.11
A66: Молоко кипяченое | B66: 96 | E66: 200 | G66: =SUM(G67) -> 14.26 | H66: 1.53 | I66: 0.34 | J66: 13.77 | K66: 61.20 | L66: 0.08 | M66: 2.60 | N66: 40.00 | P66: 240.00 | Q66: 180.00 | R66: 28.00 | S66: 0.20
A67: Молоко кипяченое | B67: 96 | C67: 211.000 | D67: =C67*B67/1000 -> 20.26 | F67: 67.57 | G67: =C67*F67/1000 -> 14.26
H68: =SUM(H64:H66) -> 2.43 | I68: =SUM(I64:I66) -> 0.54 | J68: 22.45 | K68: 164.20 | L68: 0.12 | M68: 66.89 | N68: 40.00 | O68: 0.21 | P68: 276.43 | Q68: 204.64 | R68: 41.93 | S68: 0.52
F69: Итого | G69: =E71*E72 -> 12917.12 | H69: =H25+H62+H68 -> 57.62 | I69: =I25+I62+I68 -> 56.26 | J69: =J25+J62+J68 -> 240.72 | K69: =K25+K62+K68 -> 1734.31 | L69: =L25+L62+L68 -> 0.95 | M69: 100.56 | N69: 5388.00 | O69: 7.35 | P69: 758.85 | Q69: 1327.98 | R69: 392.56 | S69: 19.97
A71: На питании состоит | E71: 96 | F71: человек
A72: Стоимость рациона питания на 1 человека составляет | E72: =SUM(G9+G19+G23+G27+G32+G43+G51+G55+G64+G60+G66) -> 134.55 | F72: рублей
A74: Медсестра | B74: Макаримова Ю.В. | E74: Заведующий производством | I74: Илалова Р.И.

Sheet 13 (в)
A1: ГБОУ Альметьевская школа № 19 для детей с ОВЗ
A2: наименование учреждения
A3: Столовая
A4: подразделение | C4: Меню-раскладка
H5: Среда
E6: 12-18 лет
A7: Наименование | B7: Кол-во порций (план) | C7: Кол-во на порцию (гр) | D7: Общее кол-во (кг) | E7: Выход блюда (гр) | F7: Цена (руб) | G7: Общая сумма (руб) | H7: Белки | I7: Жиры | J7: Углеводы | K7: Ккал | L7: В1 | M7: С | N7: А | O7: Е | P7: Са | Q7: Р | R7: Mg | S7: Fe
A8: 09:30-10:30 Завтрак | B8: 155
A9: Запеканка творожная со сгущенкой | B9: 155 | E9: 150/20 | G9: =SUM(G10:G18) -> 64.00 | H9: 16.50 | I9: 29.55 | J9: 36.45 | K9: 313.00 | L9: 0.11 | M9: 0.36 | N9: 108.00 | O9: 1.44 | P9: 234.00 | Q9: 338.40 | R9: 39.60 | S9: 1.62
A10: Масло сливочное | B10: 155 | C10: 6.000 | D10: =B10*C10/1000 -> 0.93 | F10: 606.97 | G10: =C10*F10/1000 -> 3.64
A11: Сахар | B11: 155 | C11: 12.000 | D11: 1.86 | F11: 50.00 | G11: 0.60
A12: Крупа манная | B12: 155 | C12: 9.000 | D12: 1.40 | F12: 40.00 | G12: 0.36
A13: Творог | B13: 155 | C13: 141.000 | D13: 21.86 | F13: 390.06 | G13: 55.00
A14: Яйцо | B14: 155 | C14: 6.000 | D14: 0.93 | F14: 7.00 | G14: 0.04
A15: Сметана | B15: 155 | C15: 6.000 | D15: 0.93 | F15: 190.09 | G15: 1.14
A16: Ванилин | B16: 155 | C16: 0.003 | D16: 0.00 | G16: 0.00
A17: Сгущеное молоко | B17: 155 | C17: 20.000 | D17: 3.10 | F17: 160.68 | G17: 3.21
A18: Сухари панировочные | B18: 155 | C18: 6.000 | D18: 0.93 | F18: 0.00 | G18: 0.00
A19: Какао с молоком | B19: 155 | E19: 200 | G19: =SUM(G20:G22) -> 8.46 | H19: 3.78 | I19: 0.67 | J19: 26.00 | K19: 125.11 | L19: 0.02 | M19: 1.33 | P19: 133.33 | Q19: 111.11 | R19: 25.56 | S19: 2.00
A20: какао | B20: 155 | C20: 4.000 | D20: =B20*C20/1000 -> 0.62 | F20: 175.00 | G20: =C20*F20/1000 -> 0.70
A21: Молоко | B21: 155 | C21: 100.000 | D21: =B21*C21/1000 -> 15.50 | F21: 67.57 | G21: =C21*F21/1000 -> 6.76
A22: Сахар | B22: 155 | C22: 20.000 | D22: 3.10 | F22: 50.00 | G22: 1.00
A23: Хлеб белый в/с | B23: 155 | E23: 150 | G23: =SUM(G24) -> 6.15 | H23: 12.18 | I23: 3.17 | J23: 28.5 | K23: 363.00 | L23: 0.05 | O23: 0.65 | P23: 11.50 | Q23: 43.50 | R23: 16.50 | S23: 0.55
A24: Хлеб белый в/с | B24: 155 | C24: 150.000 | D24: =B24*C24/1000 -> 23.25 | F24: 41.00 | G24: =C24*F24/1000 -> 6.15
B25: 155 | H25: =SUM(H9:H24) -> 32.46 | I25: =SUM(I9:I24) -> 33.39 | J25: =SUM(J9:J24) -> 90.95 | K25: =SUM(K9:K24) -> 801.11 | L25: =SUM(L9:L24) -> 0.18 | M25: 1.69 | N25: 108.00 | O25: 2.09 | P25: 378.83 | Q25: 493.01 | R25: 81.66 | S25: 4.17
A26: 12:00-13:00 Обед | B26: 155
A27: Салат из свеклы с яблоками | B27: 155 | E27: 100 | G27: =G28+G31 -> 2.28 | H27: 1.37 | I27: 1.75 | J27: 7.73 | K27: 37 | L27: 0.02 | M27: 8.56 | O27: 2.32 | P27: 34.4 | Q27: 37.13 | R27: 19.7 | S27: 1.72
A28: Свекла | B28: 155 | C28: 86.000 | D28: =B28*C28/1000 -> 13.33 | F28: 18.40 | G28: =C28*F28/1000 -> 1.58
A29: сахар | B29: 155 | C29: 36.000 | D29: 5.58 | F29: 50.00 | G29: 1.80
A30: Яблоки св | B30: 155 | C30: 3.000 | D30: 0.47 | F30: 67.90 | G30: 0.20
A31: Масло растительное | B31: 155 | C31: 6.000 | D31: 0.93 | F31: 117.00 | G31: 0.70
A32: Щи из свежей капусты с цыплятами | B32: 155 | E32: 250/25 | G32: =SUM(G33:G42) -> 13.03 | H32: 1.8 | I32: 4.98 | J32: 8.13 | K32: 84.48 | L32: 0.08 | M32: 18.48 | O32: 2.38 | P32: 33.98 | Q32: 47.43 | R32: 22.2 | S32: 0.83
A33: Капуста свежая | B33: 155 | C33: 63.000 | D33: =B33*C33/1000 -> 9.77 | F33: 18.30 | G33: =C33*F33/1000 -> 1.15
A34: Картофель | B34: 155 | C34: 40.000 | D34: =B34*C34/1000 -> 6.20 | F34: 16.90 | G34: =C34*F34/1000 -> 0.68
A35: Лук репчатый | B35: 155 | C35: 12.000 | D35: 1.86 | F35: 24.00 | G35: 0.29
A36: Цыплята | B36: 155 | C36: 46.000 | D36: 7.13 | F36: 193.00 | G36: 8.88
A37: Лук зеленый | B37: 155 | C37: 3.000 | D37: 0.47 | G37: 0.00
A38: Морковь | B38: 155 | C38: 13.000 | D38: 2.02 | F38: 22.40 | G38: 0.29
A39: Сметана | B39: 155 | C39: 5.000 | D39: 0.78 | F39: 190.09 | G39: 0.95
A40: Паста томатная | B40: 155 | C40: 3.000 | D40: 0.47 | F40: 55.00 | G40: 0.17
A41: Соль | B41: 155 | C41: 3.000 | D41: 0.47 | F41: 14.00 | G41: 0.04
A42: Масло растительное | B42: 155 | C42: 5.000 | D42: 0.78 | F42: 117.00 | G42: 0.59
A43: Тефтели из говядины | B43: 155 | E43: 90/75 | G43: =SUM(G44:G50) -> 32.46 | H43: 6.04 | I43: 6.17 | J43: 1.42 | K43: 85.34 | L43: 0.19 | M43: 12.7 | N43: 5240 | O43: 1 | P43: 30 | Q43: 239 | R43: 17 | S43: 5
A44: Говядина | B44: 155 | C44: 78.000 | D44: =B44*C44/1000 -> 12.09 | F44: 370.00 | G44: =C44*F44/1000 -> 28.86
A45: Рис | B45: 155 | C45: 8.000 | D45: 1.24 | F45: 75.00 | G45: =C45*F45/1000 -> 0.60
A46: Лук репчатый | B46: 155 | C46: 31.000 | D46: 4.81 | F46: 24.00 | G46: 0.74
A47: Масло сливочное | B47: 155 | C47: 3.000 | D47: 0.47 | F47: 450.00 | G47: 1.35
A48: Соль | B48: 155 | C48: 3.000 | D48: =B48*C48/1000 -> 0.47 | F48: 14.00 | G48: 0.04
A49: Мука пшеничная | B49: 155 | C49: 5.000 | D49: =B49*C49/1000 -> 0.78 | F49: 33.00 | G49: 0.17
A50: Масло растительное | B50: 155 | C50: 6.000 | D50: 0.93 | F50: 117.00 | G50: 0.70
A51: Каша гречневая | B51: 155 | E51: 150/10 | G51: =SUM(G52:G54) -> 9.14 | H51: 4.50 | I51: 2.30 | J51: 25.00 | K51: 132.00 | L51: 0.27 | P51: 19.47 | Q51: 280.00 | R51: 186.67 | S51: 6.68
A52: Крупа гречка | B52: 155 | C52: 71.000 | D52: 11.01 | F52: 43.00 | G52: =C52*F52/1000 -> 3.05
A53: Масло сливочное | B53: 155 | C53: 10.000 | D53: 1.55 | F53: 606.97 | G53: =C53*F53/1000 -> 6.07
A54: Соль | B54: 155 | C54: 1.000 | D54: 0.16 | F54: 16.00 | G54: 0.02
A55: Компот из сухофруктов | B55: 155 | D55: 0.00 | E55: 200 | G55: =SUM(G56:G57) -> 2.66 | H55: 1.16 | I55: 0.30 | J55: 47.26 | K55: 128.18 | L55: 0.02 | M55: 0.80 | O55: 0.20 | P55: 5.84 | Q55: 46.00 | R55: 33.00 | S55: 0.96
A56: Смесь компотная | B56: 155 | C56: 20.000 | D56: 3.10 | F56: 83.00 | G56: =C56*F56/1000 -> 1.66
A57: Сахар | B57: 155 | C57: 20.000 | D57: 3.10 | F57: 50.00 | G57: =C57*F57/1000 -> 1.00
A58: Апельсин | B58: 155 | E58: 170 | G58: =SUM(G59) -> 15.11 | H58: 1.53 | I58: 0.34 | J58: 13.77 | K58: 61.20 | L58: 0.03 | M58: 45.00 | O58: 0.03 | P58: 25.71 | Q58: 17.14 | R58: 9.64 | S58: 0.21
A59: Апельсин | B59: 155 | C59: 170.000 | D59: =C59*B59/1000 -> 26.35 | F59: 88.9 | G59: =C59*F59/1000 -> 15.11
A60: Хлеб Дарницкий | B60: 155 | D60: 0.00 | E60: 72 | G60: =SUM(G61) -> 2.95 | H60: 8.46 | I60: 2.51 | J60: 44.33 | K60: 186 | L60: 0.07 | O60: 0.54 | P60: 13.8 | Q60: 63.6 | R60: 15 | S60: 1.86
A61: Хлеб | B61: 155 | C61: 72.000 | D61: 11.16 | F61: 41.00 | G61: =C61*F61/1000 -> 2.95
H62: =SUM(H32:H61) -> 23.49 | I62: =SUM(I32:I61) -> 16.60 | J62: =SUM(J32:J61) -> 139.91 | K62: =SUM(K32:K61) -> 677.20 | L62: =SUM(L32:L61) -> 0.66 | M62: 76.98 | N62: 5240.00 | O62: 4.15 | P62: 128.80 | Q62: 693.17 | R62: 283.51 | S62: 15.54
F63: Итого | G63: =E65*E66 -> 24217.68 | H63: =H25+H62 -> 55.95 | I63: =I25+I62 -> 49.99 | J63: =J25+J62 -> 230.86 | K63: =K25+K62 -> 1478.31 | L63: =L25+L62 -> 0.84 | M63: 78.67 | N63: 5348.00 | O63: 6.24 | P63: 507.63 | Q63: 1186.18 | R63: 365.17 | S63: 19.71
A65: На питании состоит | E65: 155 | F65: человек
A66: Стоимость рациона питания на 1 человека составляет | E66: =SUM(G9+G19+G23+G27+G32+G43+G51+G55+G58+G60) -> 156.24 | F66: рублей
A68: Медсестра | B68: Макаримова Ю.В. | E68: Заведующий производством | I68: Илалова Р.И.

Sheet 14
A1: ГБОУ Альметьевская школа № 19 для детей с ОВЗ
A2: наименование учреждения
A3: Столовая
A4: подразделение | C4: Меню-раскладка
H5: Четверг
E6: 7-11лет
A7: Наименование | B7: Кол-во порций (план) | C7: Кол-во на порцию (гр) | D7: Общее кол-во (кг) | E7: Выход блюда (гр) | F7: Цена (руб) | G7: Общая сумма (руб) | H7: Белки | I7: Жиры | J7: Углеводы | K7: Ккал | L7: В1 | M7: С | N7: А | O7: Е | P7: Са | Q7: Р | R7: Mg | S7: Fe
A8: 09:30-10:30 Завтрак | B8: 96
A9: Каша молочная гречневая с маслом | B9: 96 | E9: 200/10 | G9: =SUM(G10:G14) -> 15.31 | H9: 6.30 | I9: 8.40 | J9: 29.40 | K9: 220.50 | L9: 0.16 | O9: 1.80 | P9: 24.00 | Q9: 144.00 | R9: 98.00 | S9: 3.20
A10: Молоко | B10: 96 | C10: 100.000 | D10: =B10*C10/1000 -> 9.60 | F10: 67.57 | G10: =C10*F10/1000 -> 6.76
A11: Масло сливочное | B11: 96 | C11: 10.000 | D11: =B11*C11/1000 -> 0.96 | F11: 606.97 | G11: =C11*F11/1000 -> 6.07
A12: Сахар | B12: 96 | C12: 6.000 | D12: 0.58 | F12: 50.00 | G12: 0.30
A13: Крупа гречка | B13: 96 | C13: 50.000 | D13: 4.80 | F13: 43.00 | G13: 2.15
A14: Соль | B14: 96 | C14: 2.000 | D14: 0.19 | F14: 16.00 | G14: 0.03
A15: Кисель фруктовый | B15: 96 | E15: 200 | G15: =SUM(G16:G16) -> 1.82 | H15: 0.66 | I15: 0.26 | J15: 69.14 | K15: 200.00 | M15: 80.00 | O15: 0.18 | P15: 8.20 | Q15: 6.42 | R15: 0.96 | S15: 0.28
A16: Кисель фруктовый | B16: 96 | C16: 32.000 | D16: 3.07 | F16: 57.00 | G16: =C16*F16/1000 -> 1.82
A17: Хлеб белый | B17: 96 | E17: 90 | G17: =SUM(G18) -> 3.69 | H17: 12.18 | I17: 3.17 | J17: 28.5 | K17: 233.80 | L17: 0.05 | O17: 0.65 | P17: 11.50 | Q17: 43.50 | R17: 16.50 | S17: 0.55
A18: Хлеб белый | B18: 96 | C18: 90.000 | D18: 8.64 | F18: 41.00 | G18: =C18*F18/1000 -> 3.69
H19: =SUM(H9:H18) -> 19.14 | I19: 11.83 | J19: 127.04 | K19: 654.30 | L19: 0.21 | M19: 80.00 | N19: 0.00 | O19: 2.63 | P19: 43.70 | Q19: 193.92 | R19: 115.46 | S19: 4.03
A20: 12:00-13:00 Обед | B20: 96
A21: Сельдь с луком | B21: 96 | E21: 25/25 | G21: =SUM(G22:G24) -> 12.58 | H21: 4.95 | I21: 7.9 | J21: 1.5 | K21: 97.10 | L21: 0.03 | M21: 70.00 | N21: 2.50 | P21: 21.20 | Q21: 81.70 | R21: 10.30 | S21: 0.41
A22: Сельдь соленая | B22: 96 | C22: 52.000 | D22: =B22*C22/1000 -> 4.99 | F22: 219.62 | G22: =C22*F22/1000 -> 11.42
A23: Масло растительное | B23: 96 | C23: 5.000 | D23: 0.48 | F23: 117.00 | G23: =C23*F23/1000 -> 0.59
A24: Лук репчатый | B24: 96 | C24: 24.000 | D24: 2.30 | F24: 23.80 | G24: 0.57
A25: Суп из овощей с цыплятами | B25: 96 | E25: 250/25 | G25: =SUM(G26:G33) -> 13.57 | H25: 10.04 | I25: 5.96 | J25: 23.16 | K25: 175 | L25: 0.08 | M25: 10.63 | O25: 2.43 | P25: 43.25 | Q25: 188.25 | R25: 27.5 | S25: 0.83
A26: Капуста белокочанная | B26: 96 | C26: 25.000 | D26: 2.40 | F26: 20.70 | G26: =C26*F26/1000 -> 0.52
A27: Картофель | B27: 96 | C27: 67.000 | D27: 6.43 | F27: 16.60 | G27: =C27*F27/1000 -> 1.11
A28: Лук репчатый | B28: 96 | C28: 12.000 | D28: 1.15 | F28: 16.00 | G28: 0.19
A29: Цыплята | B29: 96 | C29: 46.000 | D29: 4.42 | F29: 193.00 | G29: 8.88
A30: Морковь | B30: 96 | C30: 13.000 | D30: 1.25 | F30: 16.00 | G30: 0.21
A31: Зеленый горошек | B31: 96 | C31: 14.000 | D31: 1.34 | F31: 162.00 | G31: 2.27
A32: Соль | B32: 96 | C32: 3.000 | D32: 0.29 | F32: 16.00 | G32: 0.05
A33: Масло растительное | B33: 96 | C33: 3.000 | D33: 0.29 | F33: 117.00 | G33: 0.35
A34: Жаркое по-домашнему | B34: 96 | E34: 175 | G34: =SUM(G35:G41) -> 38.90 | H34: 12.30 | I34: 29.50 | J34: 2.26 | K34: 383.00 | L34: 0.62 | M34: 42.82 | O34: 2.47 | P34: 55.38 | Q34: 433.59 | R34: 86.47 | S34: 6.79
A35: Нарезка мясная | B35: 96 | C35: 93.000 | D35: 8.93 | F35: 370.00 | G35: =C35*F35/1000 -> 34.41
A36: Лук репчатый | B36: 96 | C36: 12.000 | D36: 1.15 | F36: 23.80 | G36: =C36*F36/1000 -> 0.29
A37: Картофель свежий | B37: 96 | C37: 167.000 | D37: 16.03 | F37: 16.60 | G37: 2.77
A38: Морковь | B38: 96 | C38: 27.000 | D38: 2.59 | F38: 16.00 | G38: 0.43
A39: Паста томатная | B39: 96 | C39: 6.000 | D39: 0.58 | F39: 44.60 | G39: 0.27
A40: Соль | B40: 96 | C40: 2.000 | D40: 0.19 | F40: 16.00 | G40: 0.03
A41: Масло растительное | B41: 96 | C41: 6.000 | D41: 0.58 | F41: 117.00 | G41: 0.70
A42: Компот из груши | B42: 96 | E42: 200 | G42: =SUM(G43:G45) -> 6.52 | H42: 1.6 | I42: 0 | J42: 28.4 | K42: 120 | L42: 0.04 | M42: 4.5 | P42: 76.9 | Q42: 32 | R42: 31.7 | S42: 4.96
A43: Груши | B43: 96 | C43: 45.000 | D43: 4.32 | F43: 106.40 | G43: =C43*F43/1000 -> 4.79
A44: Сахар | B44: 96 | C44: 30.000 | D44: 2.88 | F44: 50.00 | G44: =C44*F44/1000 -> 1.50
A45: Лимонная кислота | B45: 96 | C45: 1.000 | D45: 0.10 | F45: 235.5 | G45: 0.24
A46: Хлеб Дарницкий | B46: 96 | E46: 48 | G46: =SUM(G47) -> 1.97 | H46: 8.46 | I46: 2.51 | J46: 44.33 | K46: 186 | L46: 0.04 | O46: 0.36 | P46: 9.20 | Q46: 42.40 | R46: 10.00 | S46: 1.24
A47: Хлеб Дарницкий | B47: 96 | C47: 48.000 | D47: 4.61 | F47: 41.00 | G47: =C47*F47/1000 -> 1.97
H48: =SUM(H25:H47) -> 32.40 | I48: =SUM(I25:I47) -> 37.97 | J48: =SUM(J25:J47) -> 98.15 | K48: =SUM(K25:K47) -> 864.00 | L48: =SUM(L25:L47) -> 0.78 | M48: 57.95 | N48: 0.00 | O48: 5.26 | P48: 184.73 | Q48: 696.24 | R48: 155.67 | S48: 13.82
A49: 14:30-15:00 Полдник | B49: 96
A50: Банан | B50: 96 | E50: 150 | G50: =SUM(G51) -> 14.25 | H50: 3.00 | I50: 0.40 | J50: 43.60 | K50: 141.75 | L50: 0.03 | M50: 7.50 | O50: 0.30 | P50: 6.00 | Q50: 21.00 | R50: 31.50 | S50: 0.45
A51: Банан | B51: 96 | C51: 150.000 | D51: =B51*C51/1000 -> 14.40 | F51: 95.00 | G51: =C51*F51/1000 -> 14.25
A52: Молоко кипяченое | B52: 96 | E52: 200 | G52: =SUM(G53) -> 14.26 | H52: 1.53 | I52: 0.34 | J52: 13.77 | K52: 61.20 | L52: 0.08 | M52: 2.60 | N52: 40.00 | P52: 240.00 | Q52: 180.00 | R52: 28.00 | S52: 0.20
A53: Молоко | B53: 96 | C53: 211.000 | D53: 20.26 | F53: 67.57 | G53: =C53*F53/1000 -> 14.26
H54: =SUM(H50:H52) -> 4.53 | I54: 0.74 | J54: 57.37 | K54: 202.95 | L54: 0.08 | M54: 10.10 | N54: 40.00 | O54: 0.30 | P54: 246.00 | Q54: 201.00 | R54: 59.50 | S54: 0.65
F55: Итого | G55: =E57*E58 -> 11795.90 | H55: =H19+H48+H54 -> 56.07 | I55: 50.54 | J55: 282.56 | K55: 1721.25 | L55: 1.07 | M55: 148.05 | N55: 40.00 | O55: 8.19 | P55: 474.43 | Q55: 1091.16 | R55: 330.63 | S55: 18.50
A57: На питании состоит | E57: 96 | F57: человек
A58: Стоимость рациона питания на 1 человека составляет | E58: =SUM(G9+G15+G17+G21+G25+G34+G42+G50+G46+G52) -> 122.87 | F58: рублей
A60: Медсестра | B60: Макаримова Ю.В. | E60: Заведующий производством | I60: Илалова Р.И.

Sheet 14 (в)
A1: ГБОУ Альметьевская школа № 19 для детей с ОВЗ
A2: наименование учреждения
A3: Столовая
A4: подразделение | C4: Меню-раскладка
H5: Четверг
E6: 12-18лет
A7: Наименование | B7: Кол-во порций (план) | C7: Кол-во на порцию (гр) | D7: Общее кол-во (кг) | E7: Выход блюда (гр) | F7: Цена (руб) | G7: Общая сумма (руб) | H7: Белки | I7: Жиры | J7: Углеводы | K7: Ккал | L7: В1 | M7: С | N7: А | O7: Е | P7: Са | Q7: Р | R7: Mg | S7: Fe
A8: 09:30-10:30 Завтрак | B8: 155
A9: Каша молочная гречневая с маслом | B9: 155 | E9: 200/10 | G9: =SUM(G10:G14) -> 15.31 | H9: 9.09 | I9: 12.99 | J9: 35.18 | K9: 295.00 | L9: 0.16 | O9: 1.80 | P9: 24.00 | Q9: 144.00 | R9: 98.00 | S9: 3.20
A10: Молоко | B10: 155 | C10: 100.000 | D10: =B10*C10/1000 -> 15.50 | F10: 67.57 | G10: =C10*F10/1000 -> 6.76
A11: Масло сливочное | B11: 155 | C11: 10.000 | D11: =B11*C11/1000 -> 1.55 | F11: 606.97 | G11: =C11*F11/1000 -> 6.07
A12: Сахар | B12: 155 | C12: 6.000 | D12: 0.93 | F12: 50.00 | G12: 0.30
A13: Крупа гречка | B13: 155 | C13: 50.000 | D13: 7.75 | F13: 43.00 | G13: 2.15
A14: Соль | B14: 155 | C14: 2.000 | D14: 0.31 | F14: 16.00 | G14: 0.03
A15: Кисель фруктовый | B15: 155 | E15: 200 | G15: =SUM(G16:G16) -> 2.72 | H15: 0.66 | I15: 0.26 | J15: 69.14 | K15: 200.00 | M15: 80.00 | O15: 0.18 | P15: 8.20 | Q15: 6.42 | R15: 0.96 | S15: 0.28
A16: Кисель фруктовый | B16: 155 | C16: 32.000 | D16: 4.96 | F16: 85.00 | G16: =C16*F16/1000 -> 2.72
A17: Хлеб белый | B17: 155 | E17: 120 | G17: =SUM(G18) -> 4.92 | H17: 12.18 | I17: 3.17 | J17: 28.5 | K17: 233.80 | L17: 0.05 | O17: 0.65 | P17: 11.50 | Q17: 43.50 | R17: 16.50 | S17: 0.55
A18: Хлеб белый | B18: 155 | C18: 120.000 | D18: 18.60 | F18: 41.00 | G18: =C18*F18/1000 -> 4.92
H19: =SUM(H9:H18) -> 21.93 | I19: 16.42 | J19: 132.82 | K19: 728.80 | L19: 0.21 | M19: 80.00 | N19: 0.00 | O19: 2.63 | P19: 43.70 | Q19: 193.92 | R19: 115.46 | S19: 4.03
A20: 12:00-13:00 Обед | B20: 155
A21: Сельдь с луком | B21: 155 | E21: 25/25 | G21: =SUM(G22:G24) -> 12.58 | H21: 4.95 | I21: 7.9 | J21: 1.5 | K21: 97.10 | L21: 0.03 | M21: 70.00 | N21: 2.50 | P21: 21.20 | Q21: 81.70 | R21: 10.30 | S21: 0.41
A22: Сельдь соленая | B22: 155 | C22: 52.000 | D22: =B22*C22/1000 -> 8.06 | F22: 219.52 | G22: =C22*F22/1000 -> 11.42
A23: Масло растительное | B23: 155 | C23: 5.000 | D23: 0.78 | F23: 117.00 | G23: =C23*F23/1000 -> 0.59
A24: Лук репчатый | B24: 155 | C24: 24.000 | D24: 3.72 | F24: 24.00 | G24: 0.58
A25: Суп из овощей с цыплятами | B25: 155 | E25: 250/25 | G25: =SUM(G26:G33) -> 13.02 | H25: 10.04 | I25: 5.96 | J25: 23.16 | K25: 175 | L25: 0.08 | M25: 10.63 | O25: 2.43 | P25: 43.25 | Q25: 188.25 | R25: 27.5 | S25: 0.83
A26: Капуста белокочанная | B26: 155 | C26: 25.000 | D26: 3.88 | F26: 18.30 | G26: =C26*F26/1000 -> 0.46
A27: Картофель | B27: 155 | C27: 67.000 | D27: 10.39 | F27: 16.90 | G27: =C27*F27/1000 -> 1.13
A28: Лук репчатый | B28: 155 | C28: 12.000 | D28: 1.86 | F28: 24.00 | G28: 0.29
A29: Цыплята | B29: 155 | C29: 46.000 | D29: 7.13 | F29: 193.00 | G29: 8.88
A30: Морковь | B30: 155 | C30: 13.000 | D30: 2.02 | F30: 22.40 | G30: 0.29
A31: Зеленый горошек | B31: 155 | C31: 14.000 | D31: 2.17 | F31: 113.00 | G31: 1.58
A32: Соль | B32: 155 | C32: 3.000 | D32: 0.47 | F32: 14.00 | G32: 0.04
A33: Масло растительное | B33: 155 | C33: 3.000 | D33: 0.47 | F33: 117.00 | G33: 0.35
A34: Жаркое по-домашнему | B34: 155 | E34: 250 | G34: =SUM(G35:G41) -> 58.12 | H34: 12.30 | I34: 29.50 | J34: 2.26 | K34: 383.00 | L34: 0.62 | M34: 42.82 | O34: 2.47 | P34: 55.38 | Q34: 433.59 | R34: 86.47 | S34: 6.79
A35: Нарезка мясная | B35: 155 | C35: 140.000 | D35: 21.70 | F35: 370.00 | G35: =C35*F35/1000 -> 51.80
A36: Лук репчатый | B36: 155 | C36: 18.000 | D36: 2.79 | F36: 24.00 | G36: =C36*F36/1000 -> 0.43
A37: Картофель свежий | B37: 155 | C37: 250.000 | D37: 38.75 | F37: 16.90 | G37: 4.23
A38: Морковь | B38: 155 | C38: 27.000 | D38: 4.19 | F38: 22.40 | G38: 0.60
A39: Паста томатная | B39: 155 | C39: 6.000 | D39: 0.93 | F39: 55.00 | G39: 0.33
A40: Соль | B40: 155 | C40: 2.000 | D40: 0.31 | F40: 14.00 | G40: 0.03
A41: Масло растительное | B41: 155 | C41: 6.000 | D41: 0.93 | F41: 117.00 | G41: 0.70
A42: Компот из груши | B42: 155 | E42: 200 | G42: =SUM(G43:G45) -> 7.58 | H42: 1.6 | I42: 0 | J42: 28.4 | K42: 120 | L42: 0.04 | M42: 4.5 | P42: 76.9 | Q42: 32 | R42: 31.7 | S42: 4.96
A43: Груши | B43: 155 | C43: 45.000 | D43: 6.98 | F43: 135.00 | G43: =C43*F43/1000 -> 6.08
A44: Сахар | B44: 155 | C44: 30.000 | D44: 4.65 | F44: 50.00 | G44: =C44*F44/1000 -> 1.50
A45: Лимонная кислота | B45: 155 | C45: 1.000 | D45: 0.16 | G45: 0.00
A46: Банан | B46: 155 | E46: 75 | G46: =SUM(G47) -> 8.25 | H46: 3.00 | I46: 0.40 | J46: 43.60 | K46: 70.87 | L46: 0.03 | M46: 7.50 | O46: 0.30 | P46: 6.00 | Q46: 21.00 | R46: 31.50 | S46: 0.45
A47: Банан | B47: 155 | C47: 75.000 | D47: =B47*C47/1000 -> 11.63 | F47: 110.00 | G47: =C47*F47/1000 -> 8.25
A48: Хлеб Дарницкий | B48: 155 | E48: 72 | G48: =SUM(G49) -> 2.95 | H48: 8.46 | I48: 2.51 | J48: 44.33 | K48: 186 | L48: 0.07 | O48: 0.54 | P48: 13.8 | Q48: 63.6 | R48: 15 | S48: 1.86
A49: Хлеб Дарницкий | B49: 155 | C49: 72.000 | D49: 11.16 | F49: 41.00 | G49: =C49*F49/1000 -> 2.95
H50: =SUM(H25:H49) -> 35.40 | I50: =SUM(I25:I49) -> 38.37 | J50: =SUM(J25:J49) -> 141.75 | K50: =SUM(K25:K49) -> 934.87 | L50: =SUM(L25:L49) -> 0.81 | M50: 65.45 | N50: 0.00 | O50: 5.74 | P50: 195.33 | Q50: 738.44 | R50: 192.17 | S50: 14.89
F51: Итого | G51: =E53*E54 -> 19444.06 | H51: =H19+H50 -> 57.33 | I51: =I19+I50 -> 54.79 | J51: =J19+J50 -> 274.57 | K51: =K19+K50 -> 1663.67 | L51: =L19+L50 -> 1.02 | M51: 145.45 | N51: 0.00 | O51: 8.37 | P51: 239.03 | Q51: 932.36 | R51: 307.63 | S51: 18.92
A53: На питании состоит | E53: 155 | F53: человек
A54: Стоимость рациона питания на 1 человека составляет | E54: =SUM(G9+G15+G17+G21+G25+G34+G42+G46+G48) -> 125.45 | F54: рублей
A56: Медсестра | B56: Макаримова Ю.В. | E56: Заведующий производством | I56: Илалова Р.И.

Sheet 15
A1: ГБОУ Альметьевская школа № 19 для детей с ОВЗ
A2: наименование учреждения
A3: Столовая
A4: подразделение | C4: Меню-раскладка
H5: Пятница
E6: 7-11 лет
A7: Наименование | B7: Кол-во порций (план) | C7: Кол-во на порцию (гр) | D7: Общее кол-во (кг) | E7: Выход блюда (гр) | F7: Цена (руб) | G7: Общая сумма (руб) | H7: Белки | I7: Жиры | J7: Углеводы | K7: Ккал | L7: В1 | M7: С | N7: А | O7: Е | P7: Са | Q7: Р | R7: Mg | S7: Fe
A8: 09:30-10:30 Завтрак | B8: 96
A9: Каша молочная пшенная c маслом | B9: 96 | E9: 200/10 | G9: =SUM(G10:G14) -> 15.15 | H9: 7.32 | I9: 5.92 | J9: 37.50 | K9: 227.00 | L9: 0.19 | N9: 5.00 | O9: 2.90 | P9: 4.10 | Q9: 131.00 | R9: 45.00 | S9: 2.58
A10: Крупа пшенная | B10: 96 | C10: 50.000 | D10: =B10*C10/1000 -> 4.80 | F10: 40.00 | G10: =C10*F10/1000 -> 2.00
A11: Молоко | B11: 96 | C11: 100.000 | D11: =B11*C11/1000 -> 9.60 | F11: 67.57 | G11: =C11*F11/1000 -> 6.76
A12: Масло сливочное | B12: 96 | C12: 10.000 | D12: 0.96 | F12: 606.97 | G12: 6.07
A13: Сахар | B13: 96 | C13: 6.000 | D13: 0.58 | F13: 50.00 | G13: 0.30
A14: Соль | B14: 96 | C14: 2.000 | D14: 0.19 | F14: 14.00 | G14: 0.03
A15: Кофейный напиток с молоком | B15: 96 | E15: 200 | G15: =SUM(G16:G18) -> 8.34 | H15: 3.60 | I15: 2.67 | J15: 28.27 | K15: 155.20 | L15: 0.03 | M15: 1.47 | P15: 158.67 | Q15: 132.00 | R15: 29.33 | S15: 2.40
A16: Кофейный напиток | B16: 96 | C16: 5.000 | D16: =B16*C16/1000 -> 0.48 | F16: 116.00 | G16: =C16*F16/1000 -> 0.58
A17: Молоко | B17: 96 | C17: 100.000 | D17: 9.6 | F17: 67.57 | G17: =C17*F17/1000 -> 6.76
A18: Сахар | B18: 96 | C18: 20.000 | D18: 1.92 | F18: 50.00 | G18: 1.00
A19: Хлеб белый в/с | B19: 96 | E19: 90 | G19: =SUM(G20) -> 3.69 | H19: 12.18 | I19: 3.17 | J19: 28.5 | K19: 363.00 | L19: 0.05 | O19: 0.65 | P19: 11.50 | Q19: 43.50 | R19: 16.50 | S19: 0.55
A20: Хлеб белый в/с | B20: 96 | C20: 90.000 | D20: 8.64 | F20: 41.00 | G20: =C20*F20/1000 -> 3.69
H21: =SUM(H9:H20) -> 23.10 | I21: =SUM(I9:I20) -> 11.76 | J21: =SUM(J9:J20) -> 94.27 | K21: =SUM(K9:K20) -> 745.20 | L21: =SUM(L9:L20) -> 0.27 | M21: 1.47 | N21: 5.00 | O21: 3.55 | P21: 174.27 | Q21: 306.50 | R21: 90.83 | S21: 5.53
A22: 12:00-13:00 Обед | B22: 96
A23: Салат из моркови с яблоками | B23: 96 | E23: 75 | G23: =SUM(G24:G26) -> 3.47 | H23: 1.48 | I23: 3.93 | J23: 7.33 | K23: 70.65 | L23: 0.05 | M23: 6.95 | O23: 2.49 | P23: 21.19 | Q23: 33.98 | R23: 24 | S23: 1.32
A24: Яблоки | B24: 96 | C24: 27.000 | D24: =B24*C24/1000 -> 2.59 | F24: 67.90 | G24: =C24*F24/1000 -> 1.83
A25: Морковь | B25: 96 | C25: 71.000 | D25: 6.82 | F25: 22.40 | G25: 1.59
A26: Сахар | B26: 96 | C26: 1.000 | D26: 0.10 | F26: 50.00 | G26: =C26*F26/1000 -> 0.05
A27: Рассольник ленинградский с цыплятами | B27: 96 | E27: 250/25 | G27: =SUM(G28:G37) -> 13.50 | H27: 2.20 | I27: 5.20 | J27: 15.58 | K27: 117.90 | L27: 0.10 | M27: 14.30 | O27: 2.43 | P27: 16.55 | Q27: 34.95 | R27: 28.00 | S27: 1.03
A28: Крупа перловая | B28: 96 | C28: 5.000 | D28: 0.48 | F28: 32.00 | G28: =C28*F28/1000 -> 0.16
A29: Картофель | B29: 96 | C29: 100.000 | D29: 9.60 | F29: 16.90 | G29: =C29*F29/1000 -> 1.69
A30: Лук репчатый | B30: 96 | C30: 6.000 | D30: 0.58 | F30: 24.00 | G30: 0.14
A31: Цыплята | B31: 96 | C31: 46.000 | D31: 4.42 | F31: 193.00 | G31: 8.88
A32: Лук зеленый | B32: 96 | C32: 2.000 | D32: 0.19 | G32: 0.00
A33: Морковь | B33: 96 | C33: 13.000 | D33: 1.25 | F33: 22.40 | G33: 0.29
A34: Сметана | B34: 96 | C34: 5.000 | D34: 0.48 | F34: 190.09 | G34: 0.95
A35: Огурцы соленые | B35: 96 | C35: 15.000 | D35: 1.44 | F35: 51.67 | G35: 0.78
A36: Соль | B36: 96 | C36: 2.000 | D36: 0.19 | F36: 14.00 | G36: 0.03
A37: Масло растительное | B37: 96 | C37: 5.000 | D37: 0.48 | F37: 117.00 | G37: 0.59
A38: Рыба тушеная в томате с овощами | B38: 96 | E38: 50/50 | G38: =SUM(G39:G47) -> 46.17 | H38: 6.84 | I38: 6.72 | J38: 2.20 | K38: 127.00 | L38: 0.12 | M38: 1.80 | N38: 22.20 | O38: 2.22 | P38: 43.20 | Q38: 265.40 | R38: 42.80 | S38: 0.82
A39: Горбуша | B39: 96 | C39: 90.000 | D39: 8.64 | F39: 489.00 | G39: =C39*F39/1000 -> 44.01
A40: Лук репчатый | B40: 96 | C40: 12.000 | D40: 1.15 | F40: 24.00 | G40: =C40*F40/1000 -> 0.29
A41: Морковь | B41: 96 | C41: 27.000 | D41: 2.59 | F41: 22.40 | G41: 0.60
A42: Томат паста | B42: 96 | C42: 10.000 | D42: 0.96 | F42: 55.00 | G42: 0.55
A43: Лимонная кислота | B43: 96 | C43: 1.000 | D43: 0.10 | G43: 0.00
A44: сахар | B44: 96 | C44: 2.000 | D44: 0.19 | F44: 50.00 | G44: 0.10
A45: Лавровый лист | B45: 96 | C45: 0.010 | D45: 0.00 | G45: 0.00
A46: Соль | B46: 96 | C46: 2.000 | D46: 0.19 | F46: 14.00 | G46: 0.03
A47: Масло растительное | B47: 96 | C47: 5.000 | D47: 0.48 | F47: 117.00 | G47: 0.59
A48: Картофельное пюре | B48: 96 | E48: 150 | G48: =SUM(G49:G52) -> 7.57 | H48: 3.08 | I48: 2.33 | J48: 19.13 | K48: 109.73 | L48: 1.16 | M48: 3.75 | N48: 33.15 | O48: 0.15 | P48: 38.25 | Q48: 76.95 | R48: 26.70 | S48: 0.86
A49: Картофель | B49: 96 | C49: 171.000 | D49: =B49*C49/1000 -> 16.42 | F49: 16.90 | G49: =C49*F49/1000 -> 2.89
A50: Молоко | B50: 96 | C50: 24.000 | D50: 2.30 | F50: 67.57 | G50: =C50*F50/1000 -> 1.62
A51: соль | B51: 96 | C51: 2.000 | F51: 14.00 | G51: 0.03
A52: Масло сливочное | B52: 96 | C52: 5.000 | D52: =B52*C52/1000 -> 0.48 | F52: 606.97 | G52: 3.03
A53: Пряники | B53: 96 | E53: 25 | G53: =SUM(G54) -> 2.48 | H53: 0.77 | I53: 6.07 | J53: 1.18 | K53: 148.00 | L53: 0.08 | O53: 1.50 | P53: 12.00 | Q53: 1.60 | R53: 10.00
A54: Пряники | B54: 96 | C54: 25.000 | D54: =B54*C54/1000 -> 2.4 | F54: 99.39 | G54: =C54*F54/1000 -> 2.48
A55: Сок фруктовый | B55: 96 | E55: 200 | G55: =SUM(G56) -> 7.00 | H55: 1.00 | J55: 19.80 | K55: 85.00 | L55: 20.00 | N55: 0.67 | O55: 52.00 | P55: 82.67 | Q55: 30.00 | R55: 3.20
A56: Сок фруктовый | B56: 96 | C56: 200.000 | D56: 19.20 | F56: 35.00 | G56: =C56*F56/1000 -> 7.00
A57: Хлеб Дарницкий | B57: 96 | E57: 48 | G57: =SUM(G58) -> 1.97 | H57: 8.46 | I57: 2.51 | J57: 44.33 | K57: 186 | L57: 0.04 | O57: 0.36 | P57: 9.20 | Q57: 42.40 | R57: 10.00 | S57: 1.24
A58: Хлеб | B58: 96 | C58: 48.000 | D58: 4.61 | F58: 41.00 | G58: =C58*F58/1000 -> 1.97
H59: =SUM(H27:H58) -> 22.35 | I59: =SUM(I27:I58) -> 22.83 | J59: =SUM(J27:J58) -> 102.22 | K59: =SUM(K27:K58) -> 773.63 | L59: =SUM(L27:L58) -> 21.50 | M59: 19.85 | N59: 56.02 | O59: 58.66 | P59: 201.87 | Q59: 451.30 | R59: 120.70 | S59: =SUM(S27:S58) -> 3.95
A60: 14:30-15:00 Полдник | B60: 96
A61: Яблоки свежие | B61: 96 | E61: 250 | G61: =SUM(G62) -> 16.98 | H61: 0.72 | I61: 0.54 | J61: 14.70 | K61: 111.00 | L61: 0.02 | M61: 7.5 | O61: 0.15 | P61: 12 | Q61: 8.25 | R61: 6.75 | S61: 1.65
A62: Яблоки | B62: 96 | C62: 250.000 | D62: =B62*C62/1000 -> 24.00 | F62: 67.90 | G62: =C62*F62/1000 -> 16.98
A63: Молоко кипяченое | B63: 96 | E63: 200 | G63: =SUM(G64) -> 14.26 | H63: 1.53 | I63: 0.34 | J63: 13.77 | K63: 61.20 | L63: 0.08 | M63: 2.60 | N63: 40.00 | P63: 240.00 | Q63: 180.00 | R63: 28.00 | S63: 0.20
A64: Молоко | B64: 96 | C64: 211.000 | D64: =B64*C64/1000 -> 20.26 | F64: 67.57 | G64: =C64*F64/1000 -> 14.26
H65: =SUM(H61:H63) -> 2.25 | I65: 0.88 | J65: 28.47 | K65: 172.20 | L65: 0.08 | M65: 10.10 | N65: 40.00 | O65: 0.15 | P65: 252.00 | Q65: 188.25 | R65: 34.75 | S65: 1.85
F66: Итого | G66: =E68*E69 -> 13257.37 | H66: =H21+H59+H65 -> 47.70 | I66: 35.47 | J66: 224.96 | K66: 1691.03 | L66: 21.85 | M66: 31.42 | N66: 101.02 | O66: 62.36 | P66: 628.14 | Q66: 946.05 | R66: 246.28 | S66: 11.33
A68: На питании состоит | E68: 96 | F68: человек
A69: Стоимость рациона питания на 1 человека составляет | E69: =SUM(G9+G15+G19+G23+G27+G38+G48+G55+G57+G61+G63) -> 138.10 | F69: рублей
A71: Медсестра | B71: Макаримова Ю.В. | E71: Заведующий производством | I71: Илалова Р.И.

Sheet 15 (в)
A1: ГБОУ Альметьевская школа № 19 для детей с ОВЗ
A2: наименование учреждения
A3: Столовая
A4: подразделение | C4: Меню-раскладка
H5: Пятница
E6: 12-18лет
A7: Наименование | B7: Кол-во порций (план) | C7: Кол-во на порцию (гр) | D7: Общее кол-во (кг) | E7: Выход блюда (гр) | F7: Цена (руб) | G7: Общая сумма (руб) | H7: Белки | I7: Жиры | J7: Углеводы | K7: Ккал | L7: В1 | M7: С | N7: А | O7: Е | P7: Са | Q7: Р | R7: Mg | S7: Fe
A8: 09:30-10:30 Завтрак | B8: 155
A9: Каша молочная пшенная c маслом | B9: 155 | E9: 200/10 | G9: =SUM(G10:G14) -> 12.93 | H9: 7.32 | I9: 5.92 | J9: 37.50 | K9: 227.00 | L9: 0.19 | N9: 5.00 | O9: 2.90 | P9: 4.10 | Q9: 131.00 | R9: 45.00 | S9: 2.58
A10: Крупа пшенная | B10: 155 | C10: 50.000 | D10: =B10*C10/1000 -> 7.75 | F10: 40.00 | G10: =C10*F10/1000 -> 2.00
A11: Молоко | B11: 155 | C11: 100.000 | D11: =B11*C11/1000 -> 15.50 | F11: 60.97 | G11: =C11*F11/1000 -> 6.10
A12: Масло сливочное | B12: 155 | C12: 10.000 | D12: 1.55 | F12: 450.00 | G12: 4.50
A13: Сахар | B13: 155 | C13: 6.000 | D13: 0.93 | F13: 50.00 | G13: 0.30
A14: Соль | B14: 155 | C14: 2.000 | D14: 0.31 | F14: 14.00 | G14: 0.03
A15: Кофейный напиток с молоком | B15: 155 | E15: 200 | G15: =SUM(G16:G18) -> 7.84 | H15: 3.60 | I15: 2.67 | J15: 28.27 | K15: 155.20 | L15: 0.03 | M15: 1.47 | P15: 158.67 | Q15: 132.00 | R15: 29.33 | S15: 2.40
A16: Кофейный напиток | B16: 155 | C16: 5.000 | D16: =B16*C16/1000 -> 0.775 | F16: 148.00 | G16: =C16*F16/1000 -> 0.74
A17: Молоко | B17: 155 | C17: 100.000 | D17: 15.5 | F17: 60.97 | G17: =C17*F17/1000 -> 6.10
A18: Сахар | B18: 155 | C18: 20.000 | D18: 3.1 | F18: 50.00 | G18: 1.00
A19: Хлеб белый в/с | B19: 155 | E19: 150 | G19: =SUM(G20) -> 6.15 | H19: 12.18 | I19: 3.17 | J19: 28.5 | K19: 363.00 | L19: 0.05 | O19: 0.65 | P19: 11.50 | Q19: 43.50 | R19: 16.50 | S19: 0.55
A20: Хлеб белый в/с | B20: 155 | C20: 150.000 | D20: 23.25 | F20: 41.00 | G20: =C20*F20/1000 -> 6.15
B21: 99 | H21: =SUM(H9:H20) -> 23.10 | I21: =SUM(I9:I20) -> 11.76 | J21: =SUM(J9:J20) -> 94.27 | K21: =SUM(K9:K20) -> 745.20 | L21: =SUM(L9:L20) -> 0.27 | M21: 1.47 | N21: 5.00 | O21: 3.55 | P21: 174.27 | Q21: 306.50 | R21: 90.83 | S21: 5.53
A22: 12:00-13:00 Обед | B22: 155
A23: Салат из моркови с яблоками | B23: 155 | E23: 100 | G23: =SUM(G24:G26) -> 4.60 | H23: 1.48 | I23: 3.93 | J23: 7.33 | K23: 94.2 | L23: 0.05 | M23: 6.95 | O23: 2.49 | P23: 21.19 | Q23: 33.98 | R23: 24 | S23: 1.32
A24: Яблоки | B24: 155 | C24: 36.000 | D24: =B24*C24/1000 -> 5.58 | F24: 67.90 | G24: =C24*F24/1000 -> 2.44
A25: Морковь | B25: 155 | C25: 94.000 | D25: 14.57 | F25: 22.40 | G25: 2.11
A26: Сахар | B26: 155 | C26: 1.000 | D26: 0.16 | F26: 50.00 | G26: 0.05
A27: Рассольник ленинградский с цыплятами | B27: 155 | E27: 250/25 | G27: =SUM(G28:G37) -> 12.12 | H27: 2.20 | I27: 5.20 | J27: 15.58 | K27: 117.90 | L27: 0.10 | M27: 14.30 | O27: 2.43 | P27: 16.55 | Q27: 34.95 | R27: 28.00 | S27: 1.03
A28: Крупа перловая | B28: 155 | C28: 5.000 | D28: 0.78 | F28: 32.00 | G28: =C28*F28/1000 -> 0.16
A29: Картофель | B29: 155 | C29: 100.000 | D29: 15.50 | F29: 16.90 | G29: =C29*F29/1000 -> 1.69
A30: Лук репчатый | B30: 155 | C30: 6.000 | D30: 0.93 | F30: 24.00 | G30: 0.14
A31: Цыплята | B31: 155 | C31: 46.000 | D31: 7.13 | F31: 163.00 | G31: 7.50
A32: Лук зеленый | B32: 155 | C32: 2.000 | D32: 0.31 | G32: 0.00
A33: Морковь | B33: 155 | C33: 13.000 | D33: 2.02 | F33: 22.40 | G33: 0.29
A34: Сметана | B34: 155 | C34: 5.000 | D34: 0.78 | F34: 190.09 | G34: 0.95
A35: Огурцы соленые | B35: 155 | C35: 15.000 | D35: 2.33 | F35: 51.67 | G35: 0.78
A36: Соль | B36: 155 | C36: 2.000 | D36: 0.31 | F36: 14.00 | G36: 0.03
A37: Масло растительное | B37: 155 | C37: 5.000 | D37: 0.78 | F37: 117.00 | G37: 0.59
A38: Рыба тушеная в томате с овощами | B38: 155 | E38: 75/75 | G38: =SUM(G39:G47) -> 47.50 | H38: 6.84 | I38: 6.72 | J38: 2.20 | K38: 127.00 | L38: 0.12 | M38: 1.80 | N38: 22.20 | O38: 2.22 | P38: 43.20 | Q38: 265.40 | R38: 42.80 | S38: 0.82
A39: Горбуша | B39: 155 | C39: 134.000 | D39: 20.77 | F39: 330.00 | G39: =C39*F39/1000 -> 44.22
A40: Лук репчатый | B40: 155 | C40: 18.000 | D40: 2.79 | F40: 24.00 | G40: =C40*F40/1000 -> 0.43
A41: Морковь | B41: 155 | C41: 40.000 | D41: 6.20 | F41: 22.40 | G41: 0.90
A42: Томат паста | B42: 155 | C42: 15.000 | D42: 2.33 | F42: 55.00 | G42: 0.83
A43: Лимонная кислота | B43: 155 | C43: 1.500 | D43: 0.23 | G43: 0.00
A44: сахар | B44: 155 | C44: 3.000 | D44: 0.47 | F44: 50.00 | G44: 0.15
A45: Лавровый лист | B45: 155 | C45: 0.010 | D45: 0.00 | G45: 0.00
A46: Соль | B46: 155 | C46: 3.000 | D46: 0.47 | F46: 14.00 | G46: 0.04
A47: Масло растительное | B47: 155 | C47: 8.000 | D47: 1.24 | F47: 117.00 | G47: 0.94
A48: Картофельное пюре | B48: 155 | E48: 200 | G48: =SUM(G49:G52) -> 10.29 | H48: 3.08 | I48: 2.33 | J48: 19.13 | K48: 109.73 | L48: 1.16 | M48: 3.75 | N48: 33.15 | O48: 0.15 | P48: 38.25 | Q48: 76.95 | R48: 26.70 | S48: 0.86
A49: Картофель | B49: 155 | C49: 228.000 | D49: =B49*C49/1000 -> 35.34 | F49: 16.90 | G49: =C49*F49/1000 -> 3.85
A50: Молоко | B50: 155 | C50: 32.000 | D50: 4.96 | F50: 67.57 | G50: =C50*F50/1000 -> 2.16
A51: соль | B51: 155 | C51: 2.000 | F51: 14.00 | G51: 0.03
A52: Масло сливочное | B52: 155 | C52: 7.000 | D52: =B52*C52/1000 -> 1.09 | F52: 606.97 | G52: 4.25
A53: Сок фруктовый | B53: 155 | E53: 200 | G53: =SUM(G54) -> 7.00 | H53: 1.00 | J53: 19.80 | K53: 85.00 | L53: 20.00 | N53: 0.67 | O53: 52.00 | P53: 82.67 | Q53: 30.00 | R53: 3.20
A54: Сок фруктовый | B54: 155 | C54: 200.000 | D54: 31.00 | F54: 35.00 | G54: =C54*F54/1000 -> 7.00
A55: Хлеб Дарницкий | B55: 155 | E55: 90 | G55: =SUM(G56) -> 3.69 | H55: 8.46 | I55: 2.51 | J55: 44.33 | K55: 186 | L55: 0.07 | O55: 0.54 | P55: 13.8 | Q55: 63.6 | R55: 15 | S55: 1.86
A56: Хлеб | B56: 155 | C56: 90.000 | D56: 13.95 | F56: 41.00 | G56: =C56*F56/1000 -> 3.69
A57: Пряники | B57: 155 | E57: 25 | G57: =SUM(G58) -> 2.48 | H57: 0.77 | I57: 6.07 | J57: 1.18 | K57: 148.00 | L57: 0.08 | O57: 1.50 | P57: 12.00 | Q57: 1.60 | R57: 10.00 | S57: 0.90
A58: Пряники | B58: 155 | C58: 25.000 | D58: =B58*C58/1000 -> 3.875 | F58: 99.39 | G58: =C58*F58/1000 -> 2.48
A59: Яблоки свежие | B59: 155 | E59: 180 | G59: =SUM(G60) -> 12.22 | H59: 0.72 | I59: 0.54 | J59: 14.70 | K59: 85.00 | L59: 0.02 | M59: 7.50 | O59: 0.15 | P59: 12.00 | Q59: 8.25 | R59: 6.75 | S59: 1.65
A60: Яблоки | B60: 155 | C60: 180.000 | D60: =B60*C60/1000 -> 27.90 | F60: 67.90 | G60: =C60*F60/1000 -> 12.22
H61: =SUM(H23:H59) -> 24.55 | I61: =SUM(I23:I59) -> 27.30 | J61: 124.25 | K61: 952.83 | L61: 21.60 | M61: 34.30 | N61: 56.02 | O61: 61.48 | P61: 239.66 | Q61: 514.73 | R61: 156.45 | S61: 8.44
F62: Итого | G62: =E64*E65 -> 19272.53 | H62: =H21+H61 -> 47.65 | I62: =I21+I61 -> 39.06 | J62: 218.52 | K62: 1698.03 | L62: 21.87 | M62: 35.77 | N62: 61.02 | O62: 65.03 | P62: 413.93 | Q62: 821.23 | R62: 247.28 | S62: 13.97
A64: На питании состоит | E64: 155 | F64: человек
A65: Стоимость рациона питания на 1 человека составляет | E65: =SUM(G9+G15+G19+G23+G27+G38+G48+G53+G55+G59) -> 124.34 | F65: рублей
A67: Медсестра | B67: Макаримова Ю.В. | E67: Заведующий производством | I67: Илалова Р.И.

Sheet 16
A1: ГБОУ Альметьевская школа № 19 для детей с ОВЗ
A2: наименование учреждения
A3: Столовая
A4: подразделение | C4: Меню-раскладка
H5: Понедельник
E6: 7-11 лет
A7: Наименование | B7: Кол-во порций (план) | C7: Кол-во на порцию (гр) | D7: Общее кол-во (кг) | E7: Выход блюда (гр) | F7: Цена (руб) | G7: Общая сумма (руб) | H7: Белки | I7: Жиры | J7: Углеводы | K7: Ккал | L7: В1 | M7: С | N7: А | O7: Е | P7: Са | Q7: Р | R7: Mg | S7: Fe
A8: 09:30-10:30 Завтрак | B8: 99
A9: Омлет натуральный | B9: 99 | E9: 140 | G9: =SUM(G10:G13) -> 24.55 | H9: 20.60 | I9: 30.60 | J9: 2.15 | K9: 326.00 | L9: 0.04 | M9: 0.12 | N9: 148.65 | O9: 0.33 | P9: 52.69 | Q9: 116.20 | R9: 8.87 | S9: 1.28
A10: Молоко | B10: 99 | C10: 30.000 | D10: =B10*C10/1000 -> 2.97 | F10: 67.57 | G10: =C10*F10/1000 -> 2.03
A11: Масло сливочное | B11: 99 | C11: 14.000 | D11: =B11*C11/1000 -> 1.386 | F11: 606.97 | G11: =C11*F11/1000 -> 8.50
A12: Соль | B12: 99 | C12: 2.000 | D12: 0.198 | F12: 14.00 | G12: 0.03
A13: Яйцо | B13: 99 | C13: 80.000 | D13: 7.92 | F13: 7.00 | G13: =C13*F13/40 -> 14.00
A14: Чай с сахаром | B14: 99 | E14: 200 | G14: =SUM(G15:G16) -> 1.58 | H14: 0.53 | J14: 9.47 | K14: 40.00 | M14: 0.27 | P14: 13.60 | Q14: 22.13 | R14: 11.73 | S14: 2.13
A15: Чай | B15: 99 | C15: 3.000 | D15: =B8*C15/1000 -> 0.30 | F15: 275.00 | G15: =C15*F15/1000 -> 0.83
A16: Сахар | B16: 99 | C16: 15.000 | D16: =B9*C16/1000 -> 1.49 | F16: 50.00 | G16: =C16*F16/1000 -> 0.75
A17: Хлеб белый | B17: 99 | E17: 90 | G17: =SUM(G18) -> 3.69 | H17: 12.18 | I17: 3.17 | J17: 28.5 | K17: 363.00 | L17: 0.05 | O17: 0.65 | P17: 11.50 | Q17: 43.50 | R17: 16.50 | S17: 0.55
A18: Хлеб белый | B18: 99 | C18: 90.000 | D18: =B11*C18/1000 -> 8.91 | F18: 41.00 | G18: =C18*F18/1000 -> 3.69
H19: =SUM(H9:H18) -> 33.31 | I19: 33.77 | J19: 40.12 | K19: 729.00 | L19: 0.05 | M19: 0.39 | N19: 148.65 | O19: 0.65 | P19: 77.79 | Q19: 181.83 | R19: 37.10 | S19: 3.96
A20: 12:00-13:00 Обед | B20: =B8 -> 99
A21: Салат из свеклы с огурцами солеными | B21: 99 | E21: 75 | G21: =G22+G26 -> 1.65 | H21: 1.37 | I21: 1.75 | J21: 7.73 | K21: 37 | L21: 0.1 | M21: 13 | O21: 2.95 | P21: 40.4 | Q21: 48.8 | R21: 23.4 | S21: 1.02
A22: Свекла | B22: 99 | C22: 58.000 | D22: =B22*C22/1000 -> 5.74 | F22: 18.40 | G22: =C22*F22/1000 -> 1.07
A23: Огурцы соленые | B23: 99 | C23: 19.000 | D23: 1.88 | F23: 51.67 | G23: 0.98
A24: Лук репчатый | B24: 99 | C24: 5.000 | D24: 0.50 | F24: 24.00 | G24: 0.12
A25: зеленый горошек | B25: 99 | C25: 14.000 | D25: 1.39 | F25: 113.00 | G25: 1.58
A26: Масло растительное | B26: 99 | C26: 5.000 | D26: 0.50 | F26: 117.00 | G26: 0.59
A27: Суп картофельный с пшеном с цыплятами | B27: 99 | E27: 250/25 | G27: =SUM(G28:G34) -> 11.73 | H27: 1.97 | I27: 2.71 | J27: 12.11 | K27: 85.75 | L27: 0.06 | M27: 10 | P27: 49.25 | Q27: 222.5 | R27: 26.5 | S27: 0.78
A28: Крупа пшено | B28: 99 | C28: 5.000 | D28: =B28*C28/1000 -> 0.50 | F28: 40.00 | G28: =C28*F28/1000 -> 0.20
A29: Картофель | B29: 99 | C29: 100.000 | D29: =B29*C29/1000 -> 9.90 | F29: 16.90 | G29: =C29*F29/1000 -> 1.69
A30: Лук репчатый | B30: 99 | C30: 12.000 | D30: 1.19 | F30: 24.00 | G30: 0.29
A31: Птица | B31: 99 | C31: 46.000 | D31: 4.55 | F31: 193.00 | G31: 8.88
A32: Морковь | B32: 99 | C32: 13.000 | D32: 1.29 | F32: 22.40 | G32: 0.29
A33: Соль | B33: 99 | C33: 2.000 | D33: 0.20 | F33: 14.00 | G33: 0.03
A34: Масло растительное | B34: 99 | C34: 3.000 | D34: 0.30 | F34: 117.00 | G34: 0.35
A35: Мясо тушеное | B35: 99 | E35: 50/50 | G35: =G36+G37+G38+G39+G40+G42+G43 -> 37.03 | H35: 7.12 | I35: 15.12 | J35: 43.03 | K35: 176.00 | L35: 0.07 | M35: 3.73 | O35: 0.47 | P35: 15.4 | Q35: 46.33 | R35: 14.07 | S35: 1.53
A36: Говядина | B36: 99 | C36: 97.000 | D36: 9.60 | F36: 370 | G36: 35.89
A37: Масло растительное | B37: 99 | C37: 5.000 | D37: 0.50 | F37: 117 | G37: 0.59
A38: Мука | B38: 99 | C38: 2.000 | D38: 0.20 | F38: 24 | G38: 0.05
A39: Паста томатная | B39: 99 | C39: 7.000 | D39: 0.69 | F39: 55 | G39: 0.39
A40: Лук репчатый | B40: 99 | C40: 5.000 | D40: 0.50 | F40: 24 | G40: 0.12
A41: Морковь | B41: 99 | C41: 5.000 | D41: 0.50 | F41: 22.4 | G41: 0.11
A42: Соль | B42: 99 | C42: 1.000 | D42: 0.10 | F42: 14
A43: Перец черн молот | B43: 99 | C43: 0.005 | D43: 0.00
A44: Картофель отварной в молоке | B44: 99 | E44: 150 | G44: =G45+G46+G47+G48+G49 -> 8.08 | H44: 3.37 | I44: 6.80 | J44: 18.30 | K44: 148.50 | L44: 0.20 | M44: 29.00 | O44: 0.20 | P44: 24.00 | Q44: 108.00 | R44: 44.00 | S44: 1.60
A45: Картофель | B45: 99 | C45: 150.000 | D45: =B45*C45/1000 -> 14.85 | F45: 16.9 | G45: =C45*F45/1000 -> 2.54
A46: Масло сливочное | B46: 99 | C46: 4.000 | D46: 0.40 | F46: 606.97 | G46: 2.43
A47: Соль | B47: 99 | C47: 2.000 | D47: 0.20 | F47: 14 | G47: 0.03
A48: Мука | B48: 99 | C48: 2.000 | F48: 24 | G48: 0.05
A49: Молоко | B49: 99 | C49: 45.000 | D49: =B49*C49/1000 -> 4.46 | F49: 67.57 | G49: 3.04
A50: Сок фруктовый | B50: 99 | E50: 200 | G50: =G51 -> 7.00 | H50: 1.00 | I50: - | J50: 19.80 | K50: 85.00 | L50: 20.00 | N50: 0.67 | O50: 52.00 | P50: 82.67 | Q50: 30.00 | R50: 3.20
A51: Сок фруктовый | B51: 99 | C51: 200.000 | D51: 19.80 | F51: 35 | G51: 7.00
A52: Хлеб Дарницкий | B52: 99 | E52: 48 | G52: =SUM(G53) -> 1.97 | H52: 8.46 | I52: 2.51 | J52: 44.33 | K52: 186 | L52: 0.04 | O52: 0.36 | P52: 9.20 | Q52: 42.40 | R52: 10.00 | S52: 1.24
A53: Хлеб Дарницкий | B53: 99 | C53: 48.000 | D53: 4.75 | F53: 41.00 | G53: =C53*F53/1000 -> 1.97
H54: =SUM(H27:H53) -> 21.92 | I54: =SUM(I17:I53) -> 65.83 | J54: =SUM(J17:J53) -> 213.92 | K54: =SUM(K21:K53) -> 718.25 | L54: =SUM(L17:L53) -> 20.57 | M54: 56.12 | N54: 149.32 | O54: 57.28 | P54: 310.21 | Q54: 723.36 | R54: 174.77 | S54: 10.68
A55: 14:30-15:00 Полдник | B55: =B20 -> 99
A56: Апельсин | B56: 99 | E56: 190 | G56: =SUM(G57) -> 16.89 | H56: 0.90 | I56: 0.20 | J56: 8.68 | K56: 103.00 | L56: 0.04 | M56: 64.29 | O56: 0.21 | P56: 36.43 | Q56: 24.64 | R56: 13.93 | S56: 0.32
A57: Апельсин | B57: 99 | C57: 190.000 | D57: =C57*B55/1000 -> 18.81 | F57: 88.9 | G57: =C57*F57/1000 -> 16.89
A58: Вафли | B58: 99 | E58: 10 | G58: =SUM(G59) -> 1.60 | H58: 6.96 | I58: 8.85 | K58: 60.00 | L58: 0.05 | P58: 8.00 | Q58: 42.00 | R58: 6.00 | S58: 0.60
A59: Вафли | B59: 99 | C59: 10.000 | D59: =B52*C59/1000 -> 0.99 | F59: 160.00 | G59: =C59*F59/1000 -> 1.60
A60: Молоко кипяченое | B60: 99 | E60: 200 | G60: =SUM(G61) -> 14.26 | H60: 5.80 | I60: 5.00 | J60: 16.00 | K60: 61.20 | L60: 0.08 | M60: 2.60 | N60: 40.00 | P60: 240.00 | Q60: 180.00 | R60: 28.00 | S60: 0.20
A61: Молоко | B61: 99 | C61: 211.000 | D61: =B61*C61/1000 -> 20.89 | F61: 67.57 | G61: =C61*F61/1000 -> 14.26
H62: =SUM(H56:H60) -> 13.66 | I62: =SUM(I56:I60) -> 14.05 | J62: 24.68 | K62: 224.20 | L62: 0.17 | M62: 66.89 | N62: 40.00 | O62: 0.21 | P62: 284.43 | Q62: 246.64 | R62: 47.93 | S62: 1.12
F63: Итого | G63: =E65*E66 -> 12713.57 | H63: =H19+H54+H62 -> 68.89 | I63: =I19+I54+I62 -> 113.65 | J63: =J19+J54+J62 -> 278.72 | K63: =K19+K54+K62 -> 1671.45 | L63: =L19+L54+L62 -> 20.79 | M63: 123.40 | N63: 337.97 | O63: 58.14 | P63: 672.43 | Q63: 1151.83 | R63: 259.80 | S63: 15.76
A65: На питании состоит | E65: 99 | F65: человек
A66: Стоимость рациона питания на 1 человека составляет | E66: =SUM(G9+G14+G17+G21+G27+G35+G44+G50+G56+G52+G60) -> 128.42 | F66: рублей
A68: Медсестра | B68: Макаримова Ю.В. | E68: Заведующий производством | I68: Илалова Р.И.

Sheet 16 (в)
A1: ГБОУ Альметьевская школа № 19 для детей с ОВЗ
A2: наименование учреждения
A3: Столовая
A4: подразделение | C4: Меню-раскладка
H5: Понедельник
E6: 12-18 лет
A7: Наименование | B7: Кол-во порций (план) | C7: Кол-во на порцию (гр) | D7: Общее кол-во (кг) | E7: Выход блюда (гр) | F7: Цена (руб) | G7: Общая сумма (руб) | H7: Белки | I7: Жиры | J7: Углеводы | K7: Ккал | L7: В1 | M7: С | N7: А | O7: Е | P7: Са | Q7: Р | R7: Mg | S7: Fe
A8: 09:30-10:30 Завтрак | B8: 155
A9: Омлет натуральный | B9: 155 | E9: 116 | G9: =SUM(G10:G13) -> 24.55 | H9: 20.60 | I9: 30.60 | J9: 2.15 | K9: 326.00 | L9: 0.04 | M9: 0.12 | N9: 148.65 | O9: 0.33 | P9: 52.69 | Q9: 116.20 | R9: 8.87 | S9: 1.28
A10: Молоко | B10: 155 | C10: 30.000 | D10: =B10*C10/1000 -> 4.65 | F10: 67.57 | G10: =C10*F10/1000 -> 2.03
A11: Масло сливочное | B11: 155 | C11: 14.000 | D11: =B11*C11/1000 -> 2.17 | F11: 606.97 | G11: =C11*F11/1000 -> 8.50
A12: Соль | B12: 155 | C12: 2.000 | D12: 0.31 | F12: 14.00 | G12: 0.03
A13: Яйцо | B13: 155 | C13: 80.000 | D13: 12.4 | F13: 7.00 | G13: =C13*F13/40 -> 14.00
A14: Вафли | B14: 155 | E14: 18 | G14: =SUM(G15) -> 2.88 | H14: 6.96 | I14: 8.85 | K14: 108.00 | L14: 0.05 | P14: 8.00 | Q14: 42.00 | R14: 6.00 | S14: 0.60
A15: Вафли | B15: 155 | C15: 18.000 | D15: =B10*C15/1000 -> 2.79 | F15: 160.00 | G15: =C15*F15/1000 -> 2.88
A16: Чай с сахаром | B16: 155 | E16: 200 | G16: =SUM(G17:G18) -> 1.58 | H16: 0.53 | J16: 9.47 | K16: 40.00 | M16: 0.27 | P16: 13.60 | Q16: 22.13 | R16: 11.73 | S16: 2.13
A17: Чай | B17: 155 | C17: 3.000 | D17: =B8*C17/1000 -> 0.47 | F17: 275.00 | G17: =C17*F17/1000 -> 0.83
A18: Сахар | B18: 155 | C18: 15.000 | D18: =B9*C18/1000 -> 2.33 | F18: 50.00 | G18: =C18*F18/1000 -> 0.75
A19: Хлеб белый | B19: 155 | E19: 120 | G19: =SUM(G20) -> 4.92 | H19: 12.18 | I19: 3.17 | J19: 28.5 | K19: 363.00 | L19: 0.05 | O19: 0.65 | P19: 11.50 | Q19: 43.50 | R19: 16.50 | S19: 0.55
A20: Хлеб белый | B20: 155 | C20: 120.000 | D20: =B11*C20/1000 -> 18.60 | F20: 41.00 | G20: =C20*F20/1000 -> 4.92
H21: =SUM(H9:H20) -> 40.27 | I21: =SUM(I9:I20) -> 42.62 | J21: =SUM(J9:J20) -> 40.12 | K21: =SUM(K9:K20) -> 837.00 | L21: =SUM(L9:L20) -> 0.10 | M21: 0.39 | N21: 148.65 | O21: 0.65 | P21: 85.79 | Q21: 223.83 | R21: 43.10 | S21: 4.56
A22: 12:00-13:00 Обед | B22: =B8 -> 155
A23: Салат из свеклы с огурцами солеными | B23: 155 | E23: 75 | G23: =G24+G28 -> 1.65 | H23: 1.37 | I23: 1.75 | J23: 7.73 | K23: 37 | L23: 0.1 | M23: 13 | O23: 2.95 | P23: 40.4 | Q23: 48.8 | R23: 23.4 | S23: 1.02
A24: Свекла | B24: 155 | C24: 58.000 | D24: =B24*C24/1000 -> 8.99 | F24: 18.40 | G24: =C24*F24/1000 -> 1.07
A25: Огурцы соленые | B25: 155 | C25: 19.000 | D25: 2.95 | F25: 51.67 | G25: 0.98
A26: Лук репчатый | B26: 155 | C26: 5.000 | D26: 0.78 | F26: 24.00 | G26: 0.12
A27: зеленый горошек | B27: 155 | C27: 14.000 | D27: 2.17 | F27: 131.00 | G27: 1.83
A28: Масло растительное | B28: 155 | C28: 5.000 | D28: 0.78 | F28: 117.00 | G28: 0.59
A29: Суп картофельный с пшеном с цыплятами | B29: 155 | E29: 250/25 | G29: =SUM(G30:G36) -> 11.73 | H29: 1.97 | I29: 2.71 | J29: 12.11 | K29: 85.75 | L29: 0.06 | M29: 10 | P29: 49.25 | Q29: 222.5 | R29: 26.5 | S29: 0.78
A30: Крупа пшено | B30: 155 | C30: 5.000 | D30: =B30*C30/1000 -> 0.78 | F30: 40.00 | G30: =C30*F30/1000 -> 0.20
A31: Картофель | B31: 155 | C31: 100.000 | D31: =B31*C31/1000 -> 15.50 | F31: 16.90 | G31: =C31*F31/1000 -> 1.69
A32: Лук репчатый | B32: 155 | C32: 12.000 | D32: 1.86 | F32: 24.00 | G32: 0.29
A33: Птица | B33: 155 | C33: 46.000 | D33: 7.13 | F33: 193.00 | G33: 8.88
A34: Морковь | B34: 155 | C34: 13.000 | D34: 2.02 | F34: 22.40 | G34: 0.29
A35: Соль | B35: 155 | C35: 2.000 | D35: 0.31 | F35: 14.00 | G35: 0.03
A36: Масло растительное | B36: 155 | C36: 3.000 | D36: 0.47 | F36: 117.00 | G36: 0.35
A37: Мясо тушеное | B37: 155 | E37: 50/50 | G37: =G38+G39+G40+G41+G42+G44+G45 -> 55.85 | H37: 7.12 | I37: 15.12 | J37: 43.03 | K37: 176.00 | L37: 0.07 | M37: 3.73 | O37: 0.47 | P37: 15.4 | Q37: 46.33 | R37: 14.07 | S37: 1.53
A38: Говядина | B38: 155 | C38: 146.000 | D38: 22.63 | F38: 370 | G38: 54.02
A39: Масло растительное | B39: 155 | C39: 8.000 | D39: 1.24 | F39: 117 | G39: 0.94
A40: Мука | B40: 155 | C40: 3.000 | D40: 0.47 | F40: 24 | G40: 0.07
A41: Паста томатная | B41: 155 | C41: 11.000 | D41: 1.71 | F41: 55 | G41: 0.61
A42: Лук репчатый | B42: 155 | C42: 8.000 | D42: 1.24 | F42: 24 | G42: 0.19
A43: Морковь | B43: 155 | C43: 8.000 | D43: 1.24 | F43: 22.4 | G43: 0.18
A44: Соль | B44: 155 | C44: 2.000 | D44: 0.31 | F44: 14 | G44: 0.03
A45: Перец черн молот | B45: 155 | C45: 0.005 | D45: 0.00 | G45: 0.00
A46: Картофель отварной в молоке | B46: 155 | E46: 200 | G46: =G47+G48+G49+G50+G51 -> 9.94 | H46: 3.37 | I46: 6.80 | J46: 18.30 | K46: 148.50 | L46: 0.20 | M46: 29.00 | O46: 0.20 | P46: 24.00 | Q46: 108.00 | R46: 44.00 | S46: 1.60
A47: Картофель | B47: 155 | C47: 200.000 | D47: =B47*C47/1000 -> 31.00 | F47: 16.9 | G47: =C47*F47/1000 -> 3.38
A48: Масло сливочное | B48: 155 | C48: 4.000 | D48: 0.62 | F48: 606.97 | G48: 2.43
A49: Соль | B49: 155 | C49: 2.000 | D49: 0.31 | F49: 14 | G49: 0.03
A50: Мука | B50: 155 | C50: 2.000 | F50: 24 | G50: 0.05
A51: Молоко | B51: 155 | C51: 60.000 | D51: =B51*C51/1000 -> 9.30 | F51: 67.57 | G51: 4.05
A52: Сок фруктовый | B52: 155 | E52: 200 | G52: =G53 -> 7.00 | H52: 1.00 | I52: - | J52: 19.80 | K52: 85.00 | L52: 20.00 | N52: 0.67 | O52: 52.00 | P52: 82.67 | Q52: 30.00 | R52: 3.20
A53: Сок фруктовый | B53: 155 | C53: 200.000 | D53: 31.00 | F53: 35 | G53: 7.00
A54: Апельсин | B54: 155 | E54: 190 | G54: =SUM(G55) -> 16.89 | H54: 0.90 | I54: 0.20 | J54: 8.68 | K54: 103.00 | L54: 0.03 | M54: 45.00 | O54: 0.03 | P54: 25.71 | Q54: 17.14 | R54: 9.64 | S54: 0.21
A55: Апельсин | B55: 155 | C55: 190.000 | D55: =C55*B53/1000 -> 29.45 | F55: 88.9 | G55: =C55*F55/1000 -> 16.89
A56: Хлеб Дарницкий | B56: 155 | E56: 72 | G56: =SUM(G57) -> 2.95 | H56: 8.46 | I56: 2.51 | J56: 44.33 | K56: 186 | L56: 0.07 | O56: 0.54 | P56: 13.8 | Q56: 63.6 | R56: 15 | S56: 1.86
A57: Хлеб Дарницкий | B57: 155 | C57: 72.000 | D57: 11.16 | F57: 41.00 | G57: =C57*F57/1000 -> 2.95
H58: =SUM(H29:H57) -> 22.82 | I58: =SUM(I19:I57) -> 74.88 | J58: =SUM(J19:J57) -> 222.60 | K58: =SUM(K23:K57) -> 821.25 | L58: =SUM(L19:L57) -> 20.68 | M58: 101.12 | N58: 149.32 | O58: 57.49 | P58: 348.52 | Q58: 803.70 | R58: 195.41 | S58: 12.11
F59: Итого | G59: =E61*E62 -> 21690.72 | H59: =H21+H58 -> 63.09 | I59: =I21+I58 -> 117.50 | J59: =J21+J58 -> 262.72 | K59: =K21+K58 -> 1658.25 | L59: =L21+L58 -> 20.78 | M59: 101.51 | N59: 297.97 | O59: 58.14 | P59: 434.31 | Q59: 1027.53 | R59: 238.51 | S59: 16.67
A61: На питании состоит | E61: 155 | F61: человек
A62: Стоимость рациона питания на 1 человека составляет | E62: =SUM(G9+G14+G16+G19+G23+G29+G37+G46+G52+G54+G56) -> 139.94 | F62: рублей
A64: Медсестра | B64: Макаримова Ю.В. | E64: Заведующий производством | I64: Илалова Р.И.

Sheet 17
A1: ГБОУ Альметьевская школа № 19 для детей с ОВЗ
A2: наименование учреждения
A3: Столовая
A4: подразделение | C4: Меню-раскладка
H5: Вторник
E6: 7-11 лет
A7: Наименование | B7: Кол-во порций (план) | C7: Кол-во на порцию (гр) | D7: Общее кол-во (кг) | E7: Выход блюда (гр) | F7: Цена (руб) | G7: Общая сумма (руб) | H7: Белки | I7: Жиры | J7: Углеводы | K7: Ккал | L7: В1 | M7: С | N7: А | O7: Е | P7: Са | Q7: Р | R7: Mg | S7: Fe
A8: 09:30-10:30 Завтрак | B8: 99
A9: Каша молочная пшенная с маслом | B9: 99 | E9: 200/10 | G9: =G10+G11+G12+G13+G14 -> 15.15 | H9: 7.32 | I9: 5.92 | J9: 37.50 | K9: 227.00 | L9: 0.19 | N9: 5.00 | O9: 2.90 | P9: 138.10 | Q9: 184.37 | R9: 45.00 | S9: 2.58
A10: Молоко | B10: 99 | C10: 100.000 | D10: =B10*C10/1000 -> 9.90 | F10: 67.57 | G10: =C10*F10/1000 -> 6.76
A11: Масло сливочное | B11: 99 | C11: 10.000 | D11: =B11*C11/1000 -> 0.99 | F11: 606.97 | G11: =C11*F11/1000 -> 6.07
A12: Сахар | B12: 99 | C12: 6.000 | D12: 0.59 | F12: 50.00 | G12: 0.30
A13: Крупа пшено | B13: 99 | C13: 50.000 | D13: 4.95 | F13: 40.00 | G13: 2.00
A14: Соль | B14: 99 | C14: 2.000 | D14: 0.20 | F14: 14.00 | G14: 0.03
A15: Какао с молоком | B15: 99 | E15: 200 | G15: =G16+G17+G18 -> 8.46 | H15: 3.78 | I15: 0.67 | J15: 26.00 | K15: 125.11 | L15: 0.02 | M15: 1.33 | P15: 133.33 | Q15: 111.11 | R15: 25.56 | S15: 2.00
A16: какао | B16: 99 | C16: 4.000 | D16: 0.40 | F16: 175.00 | G16: 0.70
A17: Молоко | B17: 99 | C17: 100.000 | D17: 9.90 | F17: 67.57 | G17: 6.76
A18: Сахар | B18: 99 | C18: 20.000 | D18: 1.98 | F18: 50.00 | G18: 1.00
A19: Булочка полезная | B19: 99 | E19: 50 | G19: =SUM(G20) -> 8.50 | H19: 6.54 | I19: 3.03 | J19: 40.57 | K19: 131.00 | L19: 0.03 | M19: 0.05 | N19: 71.18 | O19: 0.42 | P19: 26.73 | Q19: 9.89 | R19: 57.23 | S19: 0.63
A20: Булочка полезная | B20: 99 | C20: 50.000 | D20: 4.95 | F20: 170.00 | G20: 8.50
A21: Хлеб белый | B21: 99 | E21: 90 | G21: =G22 -> 3.69 | H21: 12.18 | I21: 3.17 | J21: 28.5 | K21: 233.80 | L21: 0.05 | O21: 0.65 | P21: 11.50 | Q21: 43.50 | R21: 16.50 | S21: 0.55
A22: Хлеб белый | B22: 99 | C22: 90.000 | D22: 8.91 | F22: 41.00 | G22: =C22*F22/1000 -> 3.69
H23: =SUM(H9:H22) -> 29.82 | I23: 12.79 | J23: 132.57 | K23: 716.91 | L23: 0.29 | M23: 1.38 | N23: 76.18 | O23: 3.97 | P23: 309.66 | Q23: 348.87 | R23: 144.29 | S23: 5.76
A24: 12:00-13:00 Обед | B24: =B8 -> 99
A25: Винегрет овощной | B25: 99 | E25: 75 | G25: =G26+G27+G28+G29+G32 -> 4.88 | H25: 1.39 | I25: 2.37 | J25: 3.96 | K25: 39.60 | L25: 0.1 | M25: 13 | O25: 2.95 | P25: 40.4 | Q25: 48.8 | R25: 23.4 | S25: 1.02
A26: Свекла ст | B26: 99 | C26: 14.000 | D26: =B26*C26/1000 -> 1.39 | F26: 18.40 | G26: =C26*F26/1000 -> 0.26
A27: Морковь | B27: 99 | C27: 10.000 | D27: 0.99 | F27: 22.40 | G27: 0.22
A28: Огурцы соленые | B28: 99 | C28: 21.000 | D28: 2.08 | F28: 51.67 | G28: 1.09
A29: Зеленый горошек | B29: 99 | C29: 21.000 | D29: 2.08 | F29: 113.00 | G29: 2.37
A30: Лук репчатый | B30: 99 | C30: 14.000 | D30: 1.39 | F30: 24.00 | G30: 0.34
A31: Соль | B31: 99 | C31: 1.000 | D31: 0.10 | F31: 14.00 | G31: 0.01
A32: Масло растительное | B32: 99 | C32: 8.000 | D32: 0.79 | F32: 117.00 | G32: 0.94
A33: Суп картофельный с рисом с цыплятами | B33: 99 | E33: 250/25 | G33: =G34+G35+G36+G37+G38+G39+G40+G41 -> 11.96 | H33: 10.04 | I33: 5.96 | J33: 23.16 | K33: 175 | L33: 0.04 | M33: 3 | P33: 88 | Q33: 50.1 | R33: 22.1 | S33: 50.1
A34: Рис | B34: 99 | C34: 5.000 | D34: 0.50 | F34: 86.00 | G34: =C34*F34/1000 -> 0.43
A35: Картофель | B35: 99 | C35: 100.000 | D35: 9.90 | F35: 16.90 | G35: 1.69
A36: Лук репчатый | B36: 99 | C36: 12.000 | D36: 1.19 | F36: 24.00 | G36: 0.29
A37: Цыплята | B37: 99 | C37: 46.000 | D37: 4.55 | F37: 193.00 | G37: 8.88
A38: Морковь | B38: 99 | C38: 13.000 | D38: 1.29 | F38: 22.40 | G38: 0.29
A39: Перец молотый | B39: 99 | C39: 0.001 | D39: 0.00 | G39: 0.00
A40: Соль | B40: 99 | C40: 2.000 | D40: 0.20 | F40: 14.00 | G40: 0.03
A41: Масло растительное | B41: 99 | C41: 3.000 | D41: 0.30 | F41: 117.00 | G41: 0.35
A42: Плов из цыплят | B42: 99 | E42: 150 | G42: =G43+G44+G45+G46+G47+G48+G49 -> 23.39 | H42: 15.30 | I42: 29.40 | J42: 57.06 | K42: 388.00 | L42: 0.11 | M42: 4.85 | N42: 39.00 | P42: 37.47 | Q42: 149.10 | R42: 40.45 | S42: 1.64
A43: Цыпленок | B43: 99 | C43: 104.000 | D43: 10.30 | F43: 193.00 | G43: 20.07
A44: Лук репчатый | B44: 99 | C44: 8.000 | D44: 0.79 | F44: 24.00 | G44: 0.19
A45: Морковь | B45: 99 | C45: 10.000 | D45: 0.99 | F45: 22.40 | G45: 0.22
A46: Томат паста | B46: 99 | C46: 5.000 | D46: 0.50 | F46: 55.00 | G46: 0.28
A47: Крупа рисовая | B47: 99 | C47: 35.000 | D47: 3.47 | F47: 75.00 | G47: 2.63
A48: Перец молотый | B48: 99 | C48: 0.005 | D48: 0.00 | G48: 0.00
A49: Лавровый лист | B49: 99 | C49: 0.005 | D49: 0.00 | G49: 0.00
A50: Соль | B50: 99 | C50: 5.000 | D50: 0.50 | F50: 14.00 | G50: 0.07
A51: Масло растительное | B51: 99 | C51: 7.000 | D51: =B51*C51/1000 -> 0.69 | F51: 117.00 | G51: =C51*F51/1000 -> 0.82
A52: Компот из чернослива | B52: 99 | D52: =B52*C52/1000 -> 0.00 | E52: 200 | G52: =SUM(G53:G54) -> 2.66 | H52: 1.16 | I52: 0.30 | J52: 47.26 | K52: 128.18 | L52: 0.02 | M52: 0.80 | O52: 0.20 | P52: 5.84 | Q52: 46.00 | R52: 33.00 | S52: 0.96
A53: Чернослив | B53: 99 | C53: 20.000 | D53: 1.98 | F53: 83.00 | G53: =C53*F53/1000 -> 1.66
A54: Сахар | B54: 99 | C54: 20.000 | D54: 1.98 | F54: 50.00 | G54: =C54*F54/1000 -> 1.00
A55: Хлеб Дарницкий | B55: 99 | E55: 48 | G55: =SUM(G56) -> 1.97 | H55: 8.46 | I55: 2.51 | J55: 44.33 | K55: 186 | L55: 0.04 | O55: 0.36 | P55: 9.20 | Q55: 42.40 | R55: 10.00 | S55: 1.24
A56: Хлеб | B56: 99 | C56: 48.000 | D56: 4.75 | F56: 41.00 | G56: =C56*F56/1000 -> 1.97
H57: =SUM(H25:H56) -> 36.35 | I57: 40.54 | J57: 175.77 | K57: 916.78 | L57: 0.31 | M57: 21.65 | N57: 39.00 | O57: 3.51 | P57: 180.91 | Q57: 336.40 | R57: 128.95 | S57: 54.96
A58: 14:30-15:00 Полдник | B58: 99
A59: Груши св | B59: 99 | E59: 194 | G59: =G60 -> 26.19 | H59: 0.51 | I59: 0.51 | J59: 13.50 | K59: 75.20 | L59: 0.02 | M59: 3.75 | O59: 0.30 | P59: 14.25 | Q59: 12.00 | R59: 9.00 | S59: 1.73
A60: Груши св | B60: 99 | C60: 194.000 | D60: =B60*C60/1000 -> 19.21 | F60: 135.00 | G60: =C60*F60/1000 -> 26.19
A61: Печенье овсяное | B61: 99 | E61: 50 | G61: =G62 -> 7.60 | H61: 1.7 | I61: 2.26 | J61: 3.08 | K61: 82.9 | L61: 0.02 | N61: 13.00 | O61: 0.26 | P61: 8.20 | Q61: 17.40 | R61: 3.00 | S61: 0.20
A62: Печенье овсяное | B62: 99 | C62: 50.000 | D62: =B62*C62/1000 -> 4.95 | F62: 151.90 | G62: =C62*F62/1000 -> 7.60
A63: Молоко кипяченое | B63: 99 | E63: 200 | G63: =SUM(G64) -> 14.26 | H63: 5.80 | I63: 5.00 | J63: 16.00 | K63: 61.20 | L63: 0.08 | M63: 2.60 | N63: 40.00 | P63: 240.00 | Q63: 180.00 | R63: 28.00 | S63: 0.20
A64: Молоко | B64: 99 | C64: 211.000 | D64: =B64*C64/1000 -> 20.89 | F64: 67.57 | G64: =C64*F64/1000 -> 14.26
H65: =SUM(H63:H64) -> 5.80 | I65: =SUM(I63:I64) -> 5.00 | J65: =SUM(J63:J64) -> 16.00 | K65: =SUM(K59:K64) -> 219.30 | L65: =SUM(L63:L64) -> 0.08 | M65: 2.60 | N65: 40.00 | O65: 0.00 | P65: 240.00 | Q65: 180.00 | R65: 28.00 | S65: 0.20
F66: Итого | G66: =E68*E69 -> 11147.09 | H66: =H23+H57+H65 -> 71.97 | I66: 58.33 | J66: 324.34 | K66: 1852.99 | L66: 0.68 | M66: 25.63 | N66: 155.18 | O66: 7.48 | P66: 730.57 | Q66: 865.27 | R66: 301.24 | S66: 60.92
A68: На питании состоит | E68: 99 | F68: человек
A69: Стоимость рациона питания на 1 человека составляет | E69: =SUM(G9+G15+G21+G25+G33+G42+G52+G59+G55+G63) -> 112.60 | F69: рублей
A71: Медсестра | B71: Макаримова Ю.В. | E71: Заведующий производством | I71: Илалова Р.И.

Sheet 17 (в)
A1: ГБОУ Альметьевская школа № 19 для детей с ОВЗ
A2: наименование учреждения
A3: Столовая
A4: подразделение | C4: Меню-раскладка
H5: Вторник
E6: 12-18 лет
A7: Наименование | B7: Кол-во порций (план) | C7: Кол-во на порцию (гр) | D7: Общее кол-во (кг) | E7: Выход блюда (гр) | F7: Цена (руб) | G7: Общая сумма (руб) | H7: Белки | I7: Жиры | J7: Углеводы | K7: Ккал | L7: В1 | M7: С | N7: А | O7: Е | P7: Са | Q7: Р | R7: Mg | S7: Fe
A8: 09:30-10:30 Завтрак | B8: 155
A9: Каша молочная пшенная с маслом | B9: 155 | E9: 200/10 | G9: =G10+G11+G12+G13+G14 -> 15.15 | H9: 7.32 | I9: 5.92 | J9: 37.50 | K9: 227.00 | L9: 0.19 | N9: 5.00 | O9: 2.90 | P9: 138.10 | Q9: 184.37 | R9: 45.00 | S9: 2.58
A10: Молоко | B10: 155 | C10: 100.000 | D10: =B10*C10/1000 -> 15.50 | F10: 67.57 | G10: =C10*F10/1000 -> 6.76
A11: Масло сливочное | B11: 155 | C11: 10.000 | D11: =B11*C11/1000 -> 1.55 | F11: 606.97 | G11: =C11*F11/1000 -> 6.07
A12: Сахар | B12: 155 | C12: 6.000 | D12: 0.93 | F12: 50.00 | G12: 0.30
A13: Крупа пшено | B13: 155 | C13: 50.000 | D13: 7.75 | F13: 40.00 | G13: 2.00
A14: Соль | B14: 155 | C14: 2.000 | D14: 0.31 | F14: 14.00 | G14: 0.03
A15: Какао с молоком | B15: 155 | E15: 200 | G15: =G16+G17+G18 -> 8.46 | H15: 3.78 | I15: 0.67 | J15: 26.00 | K15: 125.11 | L15: 0.02 | M15: 1.33 | P15: 133.33 | Q15: 111.11 | R15: 25.56 | S15: 2.00
A16: какао | B16: 155 | C16: 4.000 | D16: 0.62 | F16: 175.00 | G16: 0.70
A17: Молоко | B17: 155 | C17: 100.000 | D17: 15.50 | F17: 67.57 | G17: 6.76
A18: Сахар | B18: 155 | C18: 20.000 | D18: 3.10 | F18: 50.00 | G18: 1.00
A19: Хлеб белый | B19: 155 | E19: 120 | G19: =G20 -> 4.92 | H19: 12.18 | I19: 3.17 | J19: 28.5 | K19: 233.80 | L19: 0.05 | O19: 0.65 | P19: 11.50 | Q19: 43.50 | R19: 16.50 | S19: 0.55
A20: Хлеб белый | B20: 155 | C20: 120.000 | D20: 18.60 | F20: 41.00 | G20: =C20*F20/1000 -> 4.92
H21: =SUM(H9:H20) -> 23.28 | I21: =SUM(I9:I20) -> 9.76 | J21: =SUM(J9:J20) -> 92.00 | K21: =SUM(K9:K20) -> 585.91 | L21: =SUM(L9:L20) -> 0.26 | M21: 1.33 | N21: 5.00 | O21: 3.55 | P21: 282.93 | Q21: 338.98 | R21: 87.06 | S21: 5.13
A22: 12:00-13:00 Обед | B22: =B8 -> 155
A23: Винегрет овощной | B23: 155 | E23: 100 | G23: =G24+G25+G26+G27+G30 -> 6.42 | H23: 1.39 | I23: 2.37 | J23: 3.96 | K23: 39.60 | L23: 0.1 | M23: 13 | O23: 2.95 | P23: 40.4 | Q23: 48.8 | R23: 23.4 | S23: 1.02
A24: Свекла ст | B24: 155 | C24: 19.000 | D24: =B24*C24/1000 -> 2.95 | F24: 18.40 | G24: =C24*F24/1000 -> 0.35
A25: Морковь | B25: 155 | C25: 13.000 | D25: 2.02 | F25: 22.40 | G25: 0.29
A26: Огурцы соленые | B26: 155 | C26: 28.000 | D26: 4.34 | F26: 51.67 | G26: 1.45
A27: Зеленый горошек | B27: 155 | C27: 28.000 | D27: 4.34 | F27: 113.00 | G27: 3.16
A28: Лук репчатый | B28: 155 | C28: 18.000 | D28: 2.79 | F28: 24.00 | G28: 0.43
A29: Соль | B29: 155 | C29: 1.000 | D29: 0.16 | F29: 14.00 | G29: 0.01
A30: Масло растительное | B30: 155 | C30: 10.000 | D30: 1.55 | F30: 117.00 | G30: 1.17
A31: Суп картофельный с рисом с цыплятами | B31: 155 | E31: 250/25 | G31: =G32+G33+G34+G35+G36+G37+G38+G39 -> 11.90 | H31: 10.04 | I31: 5.96 | J31: 23.16 | K31: 175 | L31: 0.04 | M31: 3 | P31: 88 | Q31: 50.1 | R31: 22.1 | S31: 50.1
A32: Рис | B32: 155 | C32: 5.000 | D32: 0.78 | F32: 75.00 | G32: =C32*F32/1000 -> 0.38
A33: Картофель | B33: 155 | C33: 100.000 | D33: 15.50 | F33: 16.90 | G33: 1.69
A34: Лук репчатый | B34: 155 | C34: 12.000 | D34: 1.86 | F34: 24.00 | G34: 0.29
A35: Цыплята | B35: 155 | C35: 46.000 | D35: 7.13 | F35: 193.00 | G35: 8.88
A36: Морковь | B36: 155 | C36: 13.000 | D36: 2.02 | F36: 22.40 | G36: 0.29
A37: Перец молотый | B37: 155 | C37: 0.001 | D37: 0.00 | G37: 0.00
A38: Соль | B38: 155 | C38: 2.000 | D38: 0.31 | F38: 14.00 | G38: 0.03
A39: Масло растительное | B39: 155 | C39: 3.000 | D39: 0.47 | F39: 117.00 | G39: 0.35
A40: Плов из цыплят | B40: 155 | E40: 225 | G40: =G41+G42+G43+G44+G45+G46+G47 -> 35.15 | H40: 15.30 | I40: 29.40 | J40: 57.06 | K40: 388.00 | L40: 0.11 | M40: 4.85 | N40: 39.00 | P40: 37.47 | Q40: 149.10 | R40: 40.45 | S40: 1.64
A41: Цыплята | B41: 155 | C41: 156.000 | D41: 24.18 | F41: 193.00 | G41: 30.11
A42: Лук репчатый | B42: 155 | C42: 12.000 | D42: 1.86 | F42: 24.00 | G42: 0.29
A43: Морковь | B43: 155 | C43: 15.000 | D43: 2.33 | F43: 22.40 | G43: 0.34
A44: Томат паста | B44: 155 | C44: 8.000 | D44: 1.24 | F44: 55.00 | G44: 0.44
A45: Крупа рисовая | B45: 155 | C45: 53.000 | D45: 8.22 | F45: 75.00 | G45: 3.98
A46: Перец молотый | B46: 155 | C46: 0.005 | D46: 0.00 | G46: 0.00
A47: Лавровый лист | B47: 155 | C47: 0.005 | D47: 0.00 | G47: 0.00
A48: Соль | B48: 155 | C48: 5.000 | D48: 0.78 | F48: 14.00 | G48: 0.07
A49: Масло растительное | B49: 155 | C49: 10.000 | D49: 1.55 | F49: 117.00 | G49: 1.17
A50: Компот из чернослива | B50: 155 | D50: =B50*C50/1000 -> 0.00 | E50: 200 | G50: =SUM(G51:G52) -> 2.66 | H50: 1.16 | I50: 0.30 | J50: 47.26 | K50: 128.18 | L50: 0.02 | M50: 0.80 | O50: 0.20 | P50: 5.84 | Q50: 46.00 | R50: 33.00 | S50: 0.96
A51: Чернослив | B51: 155 | C51: 20.000 | D51: 3.10 | F51: 83.00 | G51: =C51*F51/1000 -> 1.66
A52: Сахар | B52: 155 | C52: 20.000 | D52: 3.10 | F52: 50.00 | G52: =C52*F52/1000 -> 1.00
A53: Груши св | B53: 155 | E53: 75 | G53: =G54 -> 10.13 | H53: 0.51 | I53: 0.51 | J53: 13.50 | K53: 34.13 | L53: 0.20 | M53: 3.75 | O53: 0.30 | P53: 14.25 | Q53: 12.00 | R53: 9.00 | S53: 1.73
A54: Груши св | B54: 155 | C54: 75.000 | D54: =B54*C54/1000 -> 11.63 | F54: 135.00 | G54: 10.13
A55: Хлеб Дарницкий | B55: 155 | E55: 72 | G55: =SUM(G56) -> 2.95 | H55: 8.46 | I55: 2.51 | J55: 44.33 | K55: 186 | L55: 0.07 | O55: 0.54 | P55: 13.8 | Q55: 63.6 | R55: 15 | S55: 1.86
A56: Хлеб | B56: 155 | C56: 72.000 | D56: 11.16 | F56: 41.00 | G56: =C56*F56/1000 -> 2.95
A57: Булочка полезная | B57: 155 | E57: 50 | G57: =G58 -> 8.50 | H57: 6.54 | I57: 3.03 | J57: 40.57 | K57: 131.00 | L57: 0.03 | M57: 0.05 | N57: 71.18 | O57: 0.42 | P57: 26.73 | Q57: 9.89 | R57: 57.23 | S57: 0.63
A58: Булочка полезная | B58: 155 | C58: 50.000 | D58: =B58*C58/1000 -> 7.75 | F58: 170.00 | G58: =C58*F58/1000 -> 8.50
H59: =SUM(H23:H58) -> 43.40 | I59: 44.08 | J59: 229.84 | K59: 1081.91 | L59: 0.57 | M59: 25.45 | N59: 110.18 | O59: 4.41 | P59: 226.49 | Q59: 379.49 | R59: 200.18 | S59: 57.94
F60: Итого | G60: =E62*E63 -> 16466.96 | H60: =H21+H59 -> 66.68 | I60: 53.84 | J60: 321.84 | K60: 1667.82 | L60: 0.83 | M60: 26.78 | N60: 115.18 | O60: 7.96 | P60: 509.42 | Q60: 718.47 | R60: 287.24 | S60: 63.07
A62: На питании состоит | E62: 155 | F62: человек
A63: Стоимость рациона питания на 1 человека составляет | E63: =SUM(G9+G15+G19+G23+G31+G40+G50+G53+G55+G57) -> 106.24 | F63: рублей
A65: Медсестра | B65: Макаримова Ю.В. | E65: Заведующий производством | I65: Илалова Р.И.

Sheet 18
A1: ГБОУ Альметьевская школа № 19 для детей с ОВЗ
A2: наименование учреждения
A3: Столовая
A4: подразделение | C4: Меню-раскладка
H5: Среда
E6: 7-11лет
A7: Наименование | B7: Кол-во порций (план) | C7: Кол-во на порцию (гр) | D7: Общее кол-во (кг) | E7: Выход блюда (гр) | F7: Цена (руб) | G7: Общая сумма (руб) | H7: Белки | I7: Жиры | J7: Углеводы | K7: Ккал | L7: В1 | M7: С | N7: А | O7: Е | P7: Са | Q7: Р | R7: Mg | S7: Fe
A8: 09:30-10:30 Завтрак | B8: 99
A9: Запеканка из творога с морковью с повидлом | B9: 99 | E9: 100/20 | G9: =G10+G11+G13+G14+G15+G16+G17+G19 -> 41.86 | H9: 18.24 | I9: 12.70 | J9: 21.00 | K9: 313.00 | L9: 0.04 | M9: 1.28 | N9: 22.10 | P9: 64.86 | Q9: 83.85 | R9: 16.05 | S9: 0.56
A10: Масло сливочное | B10: 99 | C10: 4.000 | D10: =B10*C10/1000 -> 0.40 | F10: 450.00 | G10: =C10*F10/1000 -> 1.80
A11: Сахар | B11: 99 | C11: 14.000 | D11: 1.39 | F11: 50.00 | G11: =C11*F11/1000 -> 0.70
A12: Морковь | B12: 99 | C12: 24.000 | D12: 2.38 | F12: 22.40 | G12: 0.54
A13: Крупа манная | B13: 99 | C13: 6.000 | D13: 0.59 | F13: 40.00 | G13: 0.24
A14: Творог | B14: 99 | C14: 94.000 | D14: 9.31 | F14: 355.60 | G14: 33.43
A15: Яйцо | B15: 99 | C15: 6.000 | D15: 0.59 | F15: 5.70 | G15: =C15*F15/40 -> 0.86
A16: Сметана | B16: 99 | C16: 6.000 | D16: 0.59 | F16: 190.09 | G16: 1.14
A17: Повидло | B17: 99 | C17: 20.000 | D17: 1.98 | F17: 102.50 | G17: 2.05
A18: Масло растительное | B18: 99 | C18: 6.000 | D18: 0.59 | F18: 117.00 | G18: 0.70
A19: Молоко | B19: 99 | C19: 27.000 | D19: 2.67 | F19: 60.97 | G19: 1.65
A20: Кофейный напиток с молоком | B20: 99 | E20: 200 | G20: =G21+G22+G23 -> 7.99 | H20: 3.60 | I20: 2.67 | J20: 28.27 | K20: 155.20 | L20: 0.03 | M20: 1.47 | P20: 158.67 | Q20: 132.00 | R20: 29.33 | S20: 2.40
A21: Кофейный напиток | B21: 99 | C21: 5.000 | D21: 0.50 | F21: 178.00 | G21: =C21*F21/1000 -> 0.89
A22: Молоко | B22: 99 | C22: 100.000 | D22: 9.90 | F22: 60.97 | G22: =C22*F22/1000 -> 6.10
A23: Сахар | B23: 99 | C23: 20.000 | D23: 1.98 | F23: 50.00 | G23: 1.00
A24: Хлеб белый | B24: 99 | E24: 150 | G24: =G25 -> 6.15 | H24: 12.18 | I24: 3.17 | J24: 28.5 | K24: 336.00 | L24: 0.05 | O24: 0.65 | P24: 11.50 | Q24: 43.50 | R24: 16.50 | S24: 0.55
A25: Хлеб белый | B25: 99 | C25: 150.000 | D25: 14.85 | F25: 41.00 | G25: =C25*F25/1000 -> 6.15
H26: =SUM(H9:H25) -> 34.02 | I26: =SUM(I9:I25) -> 18.54 | J26: =SUM(J9:J25) -> 77.77 | K26: =SUM(K9:K25) -> 804.20 | L26: =SUM(L9:L25) -> 0.12 | M26: 2.75 | N26: 22.10 | O26: 0.65 | P26: 235.03 | Q26: 259.35 | R26: 61.88 | S26: 3.51
A27: 12:00-13:00 Обед | B27: 99
A28: Суп крестьянский с крупой | B28: 99 | E28: 250/25 | G28: =SUM(G29:G36) -> 10.48 | H28: 2.16 | I28: 5.97 | J28: 5.61 | K28: 101.37 | L28: 0.07 | M28: 12 | P28: 59.1 | Q28: 267 | R28: 31.8 | S28: 0.93
A29: Капуста свежая | B29: 99 | C29: 38.000 | D29: 3.762 | F29: 18.30 | G29: =C29*F29/1000 -> 0.70
A30: Картофель | B30: 99 | C30: 33.000 | D30: 3.267 | F30: 16.90 | G30: =C30*F30/1000 -> 0.56
A31: Лук репчатый | B31: 99 | C31: 12.000 | D31: 1.188 | F31: 24.00 | G31: 0.29
A32: Цыплята | B32: 99 | C32: 46.000 | D32: 4.554 | F32: 163.00 | G32: 7.50
A33: Морковь | B33: 99 | C33: 13.000 | D33: 1.287 | F33: 22.40 | G33: 0.29
A34: сметана | B34: 99 | C34: 5.000 | D34: 0.495 | F34: 190.09 | G34: 0.95
A35: Крупа пшено | B35: 99 | C35: 5.000 | D35: 0.495 | F35: 40.00 | G35: 0.20
A36: Лавр лист | B36: 99 | C36: 2.000 | D36: 0.198 | G36: 0.00
A37: Соль | B37: 99 | C37: 3.000 | D37: 0.297 | F37: 14.00 | G37: 0.04
A38: Масло растительное | B38: 99 | C38: 5.000 | D38: 0.495 | F38: 117.00 | G38: 0.59
A39: Плов из говядины | B39: 99 | E39: 50/100 | G39: =SUM(G40:G47) -> 38.10 | H39: 11.80 | I39: 5.70 | J39: 58.20 | K39: 328.00 | L39: 0.06 | M39: 1.28 | P39: 14.23 | Q39: 200.14 | R39: 39.29 | S39: 2.65
A40: Рис | B40: 99 | C40: 34.000 | D40: 3.37 | F40: 75.00 | G40: =C40*F40/1000 -> 2.55
A41: Нарезка мясная | B41: 99 | C41: 93.000 | D41: 9.21 | F41: 370.00 | G41: =C41*F41/1000 -> 34.41
A42: Лук репчатый | B42: 99 | C42: 6.000 | D42: 0.59 | F42: 24.00 | G42: 0.14
A43: Морковь | B43: 99 | C43: 5.000 | D43: 0.50 | F43: 22.40 | G43: 0.11
A44: Перец черный молотый | B44: 99 | C44: 0.005 | D44: 0.00 | G44: 0.00
A45: Соль | B45: 99 | C45: 2.000 | D45: 0.20 | F45: 14.00 | G45: 0.03
A46: Паста томатная | B46: 99 | C46: 5.000 | D46: 0.50 | F46: 55.00 | G46: 0.28
A47: Масло растительное | B47: 99 | C47: 5.000 | D47: 0.50 | F47: 117.00 | G47: 0.59
A48: Компот из сухофруктов | B48: 99 | E48: 200 | G48: =SUM(G49:G50) -> 2.66 | H48: 1.00 | I48: - | J48: 19.80 | K48: 128.18 | L48: 0.02 | M48: 0.80 | O48: 0.20 | P48: 5.84 | Q48: 46.00 | R48: 33.00 | S48: 0.96
A49: Смесь компотная | B49: 99 | C49: 20.000 | D49: =B49*C49/1000 -> 1.98 | F49: 83.00 | G49: =C49*F49/1000 -> 1.66
A50: Сахар | B50: 99 | C50: 20.000 | D50: 1.98 | F50: 50.00 | G50: =C50*F50/1000 -> 1.00
A51: Хлеб Дарницкий | B51: 99 | E51: 90 | G51: =SUM(G52) -> 3.69 | H51: 8.46 | I51: 2.51 | J51: 44.33 | K51: 186 | L51: 0.04 | O51: 0.36 | P51: 9.20 | Q51: 42.40 | R51: 10.00 | S51: 1.24
A52: Хлеб | B52: 99 | C52: 90.000 | D52: 8.91 | F52: 41.00 | G52: =C52*F52/1000 -> 3.69
H53: =SUM(H28:H52) -> 23.42 | I53: =SUM(I28:I52) -> 14.18 | J53: =SUM(J28:J52) -> 127.94 | K53: =SUM(K28:K52) -> 743.55 | L53: =SUM(L28:L52) -> 0.19 | M53: 14.08 | N53: 0.00 | O53: 0.56 | P53: 88.37 | Q53: 555.54 | R53: 114.09 | S53: 5.78
A54: 14:30-15:00 Полдник | B54: 99
A55: Апельсин | B55: 99 | E55: 200 | G55: =G56 -> 17.78 | H55: 0.90 | I55: 0.20 | J55: 17.36 | K55: 108.00 | L55: 0.04 | M55: 64.29 | O55: 0.21 | P55: 36.43 | Q55: 24.64 | R55: 13.93
A56: Апельсин | B56: 99 | C56: 200.000 | D56: =B56*C56/1000 -> 19.80 | F56: 88.90 | G56: =C56*F56/1000 -> 17.78
A57: Молоко кипяченое | B57: 99 | E57: 200 | G57: =SUM(G58) -> 12.86 | H57: 5.80 | I57: 5.00 | J57: 16.00 | K57: 61.20 | L57: 0.08 | M57: 2.60 | N57: 40.00 | P57: 240.00 | Q57: 180.00 | R57: 28.00 | S57: 0.20
A58: Молоко | B58: 99 | C58: 211.000 | D58: 20.889 | F58: 60.97 | G58: =C58*F58/1000 -> 12.86
H59: =SUM(H55:H57) -> 6.70 | I59: =SUM(I55:I57) -> 5.20 | J59: 33.36 | K59: 169.20 | L59: 0.12 | M59: 66.89 | N59: 40.00 | O59: 0.21 | P59: 276.43 | Q59: 204.64 | R59: 41.93 | S59: 0.20
F60: Итого | G60: =E62*E63 -> 14015.88 | H60: =H26+H53+H59 -> 64.14 | I60: =I26+I53+I59 -> 37.92 | J60: =J26+J53+J59 -> 239.07 | K60: =K26+K53+K59 -> 1716.95 | L60: =L26+L53+L59 -> 0.43 | M60: 83.72 | N60: 62.10 | O60: 1.42 | P60: 599.83 | Q60: 1019.53 | R60: 217.90 | S60: 9.49
A62: На питании состоит | E62: 99 | F62: человек
A63: Стоимость рациона питания на 1 человека составляет | E63: =G9+G20+G24+G28+G39+G48+G51+G55+G57 -> 141.57 | F63: рублей
A65: Медсестра | B65: Макаримова Ю.В. | E65: Заведующий производством | I65: Илалова Р.И.

Sheet 18 (в)
A1: ГБОУ Альметьевская школа № 19 для детей с ОВЗ
A2: наименование учреждения
A3: Столовая
A4: подразделение | C4: Меню-раскладка
H5: Среда
E6: 12-18 лет
A7: Наименование | B7: Кол-во порций (план) | C7: Кол-во на порцию (гр) | D7: Общее кол-во (кг) | E7: Выход блюда (гр) | F7: Цена (руб) | G7: Общая сумма (руб) | H7: Белки | I7: Жиры | J7: Углеводы | K7: Ккал | L7: В1 | M7: С | N7: А | O7: Е | P7: Са | Q7: Р | R7: Mg | S7: Fe
A8: 09:30-10:30 Завтрак | B8: 155
A9: Запеканка из творога с морковью с повидлом | B9: 155 | E9: 150/30 | G9: =G10+G11+G13+G14+G15+G16+G17+G19 -> 67.14 | H9: 18.24 | I9: 12.70 | J9: 21.00 | K9: 313.00 | L9: 0.04 | M9: 1.28 | N9: 22.10 | P9: 64.86 | Q9: 83.85 | R9: 16.05 | S9: 0.56
A10: Масло сливочное | B10: 155 | C10: 6.000 | D10: =B10*C10/1000 -> 0.93 | F10: 606.97 | G10: =C10*F10/1000 -> 3.64
A11: Сахар | B11: 155 | C11: 21.000 | D11: 3.26 | F11: 50.00 | G11: =C11*F11/1000 -> 1.05
A12: Морковь | B12: 155 | C12: 36.000 | D12: 5.58 | F12: 22.40 | G12: 0.81
A13: Крупа манная | B13: 155 | C13: 9.000 | D13: 1.40 | F13: 40.00 | G13: 0.36
A14: Творог | B14: 155 | C14: 141.000 | D14: 21.86 | F14: 390.06 | G14: 55.00
A15: Яйцо | B15: 155 | C15: 6.000 | D15: 0.93 | F15: 7.00 | G15: =C15*F15/40 -> 1.05
A16: Сметана | B16: 155 | C16: 6.000 | D16: 0.93 | F16: 190.09 | G16: 1.14
A17: Повидло | B17: 155 | C17: 30.000 | D17: 4.65 | F17: 102.50 | G17: 3.08
A18: Масло растительное | B18: 155 | C18: 6.000 | D18: 0.93 | F18: 117.00 | G18: 0.70
A19: Молоко | B19: 155 | C19: 27.000 | D19: 4.19 | F19: 67.57 | G19: 1.82
A20: Кофейный напиток с молоком | B20: 155 | E20: 200 | G20: =G21+G22+G23 -> 8.65 | H20: 3.60 | I20: 2.67 | J20: 28.27 | K20: 155.20 | L20: 0.03 | M20: 1.47 | P20: 158.67 | Q20: 132.00 | R20: 29.33 | S20: 2.40
A21: Кофейный напиток | B21: 155 | C21: 5.000 | D21: 0.78 | F21: 178.00 | G21: =C21*F21/1000 -> 0.89
A22: Молоко | B22: 155 | C22: 100.000 | D22: 15.50 | F22: 67.57 | G22: =C22*F22/1000 -> 6.76
A23: Сахар | B23: 155 | C23: 20.000 | D23: 3.10 | F23: 50.00 | G23: 1.00
A24: Хлеб белый | B24: 155 | E24: 120 | G24: =G25 -> 4.92 | H24: 12.18 | I24: 3.17 | J24: 28.5 | K24: 336.00 | L24: 0.05 | O24: 0.65 | P24: 11.50 | Q24: 43.50 | R24: 16.50 | S24: 0.55
A25: Хлеб белый | B25: 155 | C25: 120.000 | D25: 18.60 | F25: 41.00 | G25: =C25*F25/1000 -> 4.92
H26: =SUM(H9:H25) -> 34.02 | I26: =SUM(I9:I25) -> 18.54 | J26: =SUM(J9:J25) -> 77.77 | K26: =SUM(K9:K25) -> 804.20 | L26: =SUM(L9:L25) -> 0.12 | M26: 2.75 | N26: 22.10 | O26: 0.65 | P26: 235.03 | Q26: 259.35 | R26: 61.88 | S26: 3.51
A27: 12:00-13:00 Обед | B27: 155
A28: Суп крестьянский с крупой с цыплятами | B28: 155 | E28: 250/25 | G28: =SUM(G29:G36) -> 11.86 | H28: 2.16 | I28: 5.97 | J28: 5.61 | K28: 101.37 | L28: 0.07 | M28: 12 | P28: 59.1 | Q28: 267 | R28: 31.8 | S28: 0.93
A29: Капуста свежая | B29: 155 | C29: 38.000 | D29: 5.89 | F29: 18.30 | G29: =C29*F29/1000 -> 0.70
A30: Картофель | B30: 155 | C30: 33.000 | D30: 5.115 | F30: 16.90 | G30: =C30*F30/1000 -> 0.56
A31: Лук репчатый | B31: 155 | C31: 12.000 | D31: 1.86 | F31: 24.00 | G31: 0.29
A32: Цыплята | B32: 155 | C32: 46.000 | D32: 7.13 | F32: 193.00 | G32: 8.88
A33: Морковь | B33: 155 | C33: 13.000 | D33: 2.015 | F33: 22.40 | G33: 0.29
A34: сметана | B34: 155 | C34: 5.000 | D34: 0.775 | F34: 190.09 | G34: 0.95
A35: Крупа пшено | B35: 155 | C35: 5.000 | D35: 0.775 | F35: 40.00 | G35: 0.20
A36: Лавр лист | B36: 155 | C36: 2.000 | D36: 0.31 | G36: 0.00
A37: Соль | B37: 155 | C37: 3.000 | D37: 0.465 | F37: 14.00 | G37: 0.04
A38: Масло растительное | B38: 155 | C38: 5.000 | D38: 0.775 | F38: 117.00 | G38: 0.59
A39: Плов из говядины | B39: 155 | E39: 75/200 | G39: =SUM(G40:G47) -> 59.91 | H39: 11.80 | I39: 5.70 | J39: 58.20 | K39: 437.00 | L39: 0.06 | M39: 1.28 | P39: 14.23 | Q39: 200.14 | R39: 39.29 | S39: 2.65
A40: Рис | B40: 155 | C40: 68.000 | D40: 10.54 | F40: 86.00 | G40: =C40*F40/1000 -> 5.85
A41: Нарезка мясная | B41: 155 | C41: 140.000 | D41: 21.70 | F41: 370.00 | G41: =C41*F41/1000 -> 51.80
A42: Лук репчатый | B42: 155 | C42: 12.000 | D42: 1.86 | F42: 24.00 | G42: 0.29
A43: Морковь | B43: 155 | C43: 10.000 | D43: 1.55 | F43: 22.40 | G43: 0.22
A44: Перец черный молотый | B44: 155 | C44: 0.005 | D44: 0.00 | G44: 0.00
A45: Соль | B45: 155 | C45: 2.000 | D45: 0.31 | F45: 14.00 | G45: 0.03
A46: Паста томатная | B46: 155 | C46: 10.000 | D46: 1.55 | F46: 55.00 | G46: 0.55
A47: Масло растительное | B47: 155 | C47: 10.000 | D47: 1.55 | F47: 117.00 | G47: 1.17
A48: Компот из сухофруктов | B48: 155 | E48: 200 | G48: =SUM(G49:G50) -> 2.66 | H48: 1.00 | I48: - | J48: 19.80 | K48: 128.18 | L48: 0.02 | M48: 0.80 | O48: 0.20 | P48: 5.84 | Q48: 46.00 | R48: 33.00 | S48: 0.96
A49: Смесь компотная | B49: 155 | C49: 20.000 | D49: =B49*C49/1000 -> 3.10 | F49: 83.00 | G49: =C49*F49/1000 -> 1.66
A50: Сахар | B50: 155 | C50: 20.000 | D50: 3.10 | F50: 50.00 | G50: =C50*F50/1000 -> 1.00
A51: Хлеб Дарницкий | B51: 155 | E51: 72 | G51: =SUM(G52) -> 2.95 | H51: 8.46 | I51: 2.51 | J51: 44.33 | K51: 186 | L51: 0.07 | O51: 0.54 | P51: 13.8 | Q51: 63.6 | R51: 15 | S51: 1.86
A52: Хлеб Дарницкий | B52: 155 | C52: 72.000 | D52: 11.16 | F52: 41.00 | G52: =C52*F52/1000 -> 2.95
A53: Апельсин | B53: 155 | E53: 200 | G53: =G54 -> 17.78 | H53: 0.90 | I53: 0.20 | J53: 17.36 | K53: 108.00 | L53: 0.03 | M53: 45.00 | O53: 0.03 | P53: 25.71 | Q53: 17.14 | R53: 9.64 | S53: 0.21
A54: Апельсин | B54: 155 | C54: 200.000 | D54: =B54*C54/1000 -> 31.00 | F54: 88.90 | G54: =C54*F54/1000 -> 17.78
H55: =SUM(H28:H52) -> 23.42 | I55: =SUM(I28:I52) -> 14.18 | J55: =SUM(J28:J52) -> 127.94 | K55: =SUM(K28:K52) -> 852.55 | L55: =SUM(L28:L52) -> 0.22 | M55: 14.08 | N55: 0.00 | O55: 0.74 | P55: 92.97 | Q55: 576.74 | R55: 119.09 | S55: 6.40
F56: Итого | G56: =E58*E59 -> 24503.63 | H56: =H26+H55 -> 57.44 | I56: =I26+I55 -> 32.72 | J56: =J26+J55 -> 205.71 | K56: =K26+K55 -> 1656.75 | L56: =L26+L55 -> 0.34 | M56: 16.83 | N56: 22.10 | O56: 1.39 | P56: 328.00 | Q56: 836.09 | R56: 180.97 | S56: 9.91
A58: На питании состоит | E58: 155 | F58: человек
A59: Стоимость рациона питания на 1 человека составляет | E59: =G9+G20+G24+G28+G39+G48+G51 -> 158.09 | F59: рублей
A61: Медсестра | B61: Макаримова Ю.В. | E61: Заведующий производством | I61: Илалова Р.И.

Sheet 19
A1: ГБОУ Альметьевская школа № 19 для детей с ОВЗ
A2: наименование учреждения
A3: Столовая
A4: подразделение | C4: Меню-раскладка
H5: Четверг
E6: 7-11лет
A7: Наименование | B7: Кол-во порций (план) | C7: Кол-во на порцию (гр) | D7: Общее кол-во (кг) | E7: Выход блюда (гр) | F7: Цена (руб) | G7: Общая сумма (руб) | H7: Белки | I7: Жиры | J7: Углеводы | K7: Ккал | L7: В1 | M7: С | N7: А | O7: Е | P7: Са | Q7: Р | R7: Mg | S7: Fe
A8: 09:30-10:30 Завтрак | B8: 96
A9: Каша молочная рисовая с маслом | B9: 96 | E9: 200/10 | G9: =G10+G11+G12+G13+G14 -> 16.94 | H9: 5.10 | I9: 10.72 | J9: 25.91 | K9: 251.00 | L9: 0.40 | M9: 1.90 | N9: 71.60 | O9: 0.40 | P9: 92.30 | Q9: 128.00 | R9: 26.70 | S9: 1.30
A10: Молоко | B10: 96 | C10: 100.000 | D10: =B10*C10/1000 -> 9.60 | F10: 67.57 | G10: =C10*F10/1000 -> 6.76
A11: Масло сливочное | B11: 96 | C11: 10.000 | D11: =B11*C11/1000 -> 0.96 | F11: 606.97 | G11: =C11*F11/1000 -> 6.07
A12: Сахар | B12: 96 | C12: 6.000 | D12: 0.58 | F12: 50.00 | G12: 0.30
A13: Рис | B13: 96 | C13: 44.000 | D13: 4.22 | F13: 86.00 | G13: 3.78
A14: Соль | B14: 96 | C14: 2.000 | D14: 0.19 | F14: 14.00 | G14: 0.03
A15: Ряженка | B15: 96 | E15: 200 | G15: =G16 -> 19.31 | H15: 3.17 | I15: 2.68 | J15: 28.27 | K15: 100.80 | L15: 0.03 | M15: 1.47 | P15: 158.67 | Q15: 132.00 | R15: 29.33 | S15: 2.40
A16: Ряженка | B16: 96 | C16: 200.000 | D16: =B16*C16/1000 -> 19.20 | F16: 96.55 | G16: =C16*F16/1000 -> 19.31
A17: Хлеб белый | B17: 96 | D17: 0.00 | E17: 90 | G17: =G18 -> 3.69 | H17: 12.18 | I17: 3.17 | J17: 28.5 | K17: 363.00 | L17: 0.05 | O17: 0.65 | P17: 11.50 | Q17: 43.50 | R17: 16.50 | S17: 0.55
A18: Хлеб белый | B18: 96 | C18: 90.000 | D18: 8.64 | F18: 41.00 | G18: 3.69
B19: 93 | H19: =SUM(H9:H18) -> 20.45 | I19: 16.57 | J19: 82.68 | K19: 714.80 | L19: 0.48 | M19: 3.37 | N19: 71.60 | O19: 1.05 | P19: 262.47 | Q19: 303.50 | R19: 72.53 | S19: 4.25
A20: 12:00-13:00 Обед | B20: =B8 -> 96
A21: Салат картофель с морковью | B21: 96 | E21: 75 | G21: =SUM(G22:G26) -> 4.89 | H21: 1.00 | I21: 2.00 | J21: 6.10 | K21: 46.40 | L21: 0.10 | M21: 13.00 | O21: 2.95 | P21: 40.00 | Q21: 48.80 | R21: 23.40 | S21: 1.02
A22: Картофель | B22: 96 | C22: 47.000 | D22: =B22*C22/1000 -> 4.51 | F22: 16.90 | G22: =C22*F22/1000 -> 0.79
A23: Морковь | B23: 96 | C23: 23.000 | D23: 2.21 | F23: 22.40 | G23: =C23*F23/1000 -> 0.52
A24: Зеленый горошек | B24: 96 | C24: 20.000 | D24: 1.92 | F24: 113.00 | G24: 2.26
A25: Яйцо | B25: 96 | C25: 6.000 | D25: 0.58 | F25: 5.70 | G25: =C25*F25/40 -> 0.86
A26: Масло растительное | B26: 96 | C26: 4.000 | D26: 0.38 | F26: 117.00 | G26: 0.47
A27: Суп с макаронными изделиями и картофелем с курицей | B27: 96 | E27: 250/25 | G27: =G28+G29+G30+G31+G32+G33+G34+G35+G36 -> 11.69 | H27: 2.69 | I27: 2.84 | J27: 2.75 | K27: 118.00 | L27: 0.10 | M27: 0.50 | N27: 23.40 | O27: 0.30 | P27: 197.30 | Q27: 166.90 | R27: 24.90 | S27: 0.50
A28: Макароны | B28: 96 | C28: 13.000 | D28: 1.25 | F28: 42.50 | G28: =C28*F28/1000 -> 0.55
A29: Картофель | B29: 96 | C29: 67.000 | D29: 6.43 | F29: 16.90 | G29: =C29*F29/1000 -> 1.13
A30: Лук репчатый | B30: 96 | C30: 12.000 | D30: 1.15 | F30: 24.00 | G30: 0.29
A31: Цыплята | B31: 96 | C31: 46.000 | D31: 4.42 | F31: 193.00 | G31: 8.88
A32: Морковь | B32: 96 | C32: 13.000 | D32: 1.25 | F32: 22.40 | G32: 0.29
A33: Перец молотый | B33: 96 | C33: 0.001 | D33: 0.00 | G33: 0.00
A34: Паста томатная | B34: 96 | C34: 3.000 | D34: 0.29 | F34: 55.00 | G34: 0.17
A35: Соль | B35: 96 | C35: 2.000 | D35: 0.19 | F35: 14.00 | G35: 0.03
A36: Масло растительное | B36: 96 | C36: 3.000 | D36: 0.29 | F36: 117.00 | G36: 0.35
A37: Рыба припушенная | B37: 96 | E37: 75 | G37: =G38+G39+G40+G41 -> 33.54 | H37: 15.89 | I37: 11.67 | J37: 3.09 | K37: 292.36 | L37: 0.04 | M37: 0.67 | N37: 24.40 | P37: 24.54 | Q37: 83.48 | R37: 15.09 | S37: 0.41
A38: Горбуша | B38: 96 | C38: 92.000 | D38: 8.83 | F38: 330.00 | G38: =C38*F38/1000 -> 30.36
A39: Лук репчатый | B39: 96 | C39: 5.000 | D39: 0.48 | F39: 24.00 | G39: =C39*F39/1000 -> 0.12
A40: Масло сливочное | B40: 96 | C40: 5.000 | D40: 0.00 | F40: 606.97 | G40: 3.03
A41: Соль | B41: 96 | C41: 2.000 | D41: 0.19 | F41: 14.00 | G41: 0.03
A42: Рис отварной | B42: 96 | E42: 100 | G42: =G43+G44+G45 -> 5.69 | H42: 3.67 | I42: 5.42 | J42: 36.67 | K42: 210.11 | L42: 0.03 | N42: 36.00 | O42: 0.80 | P42: 3.48 | Q42: 82.00 | R42: 25.34 | S42: 0.70
A43: Рис | B43: 96 | C43: 35.000 | D43: =B43*C43/1000 -> 3.36 | F43: 75.00 | G43: =C43*F43/1000 -> 2.63
A44: Масло сливочное | B44: 96 | C44: 5.000 | D44: 0.48 | F44: 606.97 | G44: 3.03
A45: Соль | B45: 96 | C45: 2.000 | D45: 0.192 | F45: 14.00 | G45: 0.03
A46: Компот из апельсин | B46: 96 | E46: 200 | G46: =G47+G48 -> 8.61 | H46: 0.45 | I46: 0.10 | J46: 33.99 | K46: 141.20 | L46: 0.1 | M46: 60 | P46: 115.1 | Q46: 57.5 | R46: 38.13 | S46: 1.2
A47: Апельсины | B47: 96 | C47: 80.000 | D47: 7.68 | F47: 88.90 | G47: 7.11
A48: Сахар | B48: 96 | C48: 30.000 | D48: 2.88 | F48: 50.00 | G48: 1.50
A49: Хлеб Дарницкий | B49: 96 | E49: 48 | G49: =SUM(G50) -> 1.97 | H49: 8.46 | I49: 2.51 | J49: 44.33 | K49: 186 | L49: 0.04 | O49: 0.36 | P49: 9.20 | Q49: 42.40 | R49: 10.00 | S49: 1.24
A50: Хлеб | B50: 96 | C50: 48.000 | D50: 4.61 | F50: 41.00 | G50: =C50*F50/1000 -> 1.97
H51: =SUM(H21:H50) -> 32.16 | I51: =SUM(I27:I50) -> 22.54 | J51: 120.83 | K51: 947.67 | L51: 0.31 | M51: 61.17 | N51: 83.80 | O51: 1.46 | P51: 349.62 | Q51: 432.28 | R51: 113.46 | S51: 4.05
A52: 14:30-15:00 Полдник | B52: 96
A53: Яблоки свежие | B53: 96 | E53: 200 | G53: =SUM(G54) -> 12.54 | H53: 0.72 | I53: 0.54 | J53: 14.70 | K53: 89.00 | L53: 0.02 | M53: 7.5 | O53: 0.15 | P53: 12 | Q53: 8.25 | R53: 6.75 | S53: 1.65
A54: Яблоки | B54: 96 | C54: 200.000 | D54: =B54*C54/1000 -> 19.20 | F54: 62.70 | G54: =C54*F54/1000 -> 12.54
A55: Сыр голландский | B55: 96 | E55: 20 | G55: =G56 -> 13.93 | H55: 4.64 | I55: 5.90 | J55: 0.00 | K55: 71.66 | L55: 0.01 | M55: 0.14 | N55: 52.00 | O55: 0.10 | P55: 176.00 | Q55: 100.00 | R55: 7.00 | S55: 0.20
A56: Сыр голландский | B56: 96 | C56: 22.000 | D56: =B56*C56/1000 -> 2.11 | F56: 633.00 | G56: =C56*F56/1000 -> 13.93
A57: Молоко кипяченое | B57: 96 | E57: 200 | G57: =SUM(G58) -> 14.26 | H57: 5.80 | I57: 5.00 | J57: 16.00 | K57: 61.20 | L57: 0.08 | M57: 2.60 | N57: 40.00 | P57: 240.00 | Q57: 180.00 | R57: 28.00 | S57: 0.20
A58: Молоко | B58: 96 | C58: 211.000 | D58: =B58*C58/1000 -> 20.256 | F58: 67.57 | G58: =C58*F58/1000 -> 14.26
H59: =SUM(H53:H57) -> 11.16 | I59: =SUM(I53:I57) -> 11.44 | J59: 30.70 | K59: 221.86 | L59: 0.09 | M59: 10.24 | N59: 92.00 | O59: 0.25 | P59: 428.00 | Q59: 288.25 | R59: 41.75 | S59: 2.05
F60: Итого | G60: =E62*E63 -> 12780.02 | H60: =H19+H51+H59 -> 63.77 | I60: =I19+I51+I59 -> 50.55 | J60: =J19+J51+J59 -> 234.21 | K60: =K19+K51+K59 -> 1884.33 | L60: =L19+L51+L59 -> 0.88 | M60: 74.78 | N60: 247.40 | O60: 2.76 | P60: 1040.09 | Q60: 1024.03 | R60: 227.74 | S60: 10.35
A62: На питании состоит | E62: 96 | F62: человек
A63: Стоимость рациона питания на 1 человека составляет | E63: =SUM(G9+G15+G17+G21+G27+G37+G42+G46+G49+G53+G57) -> 133.13 | F63: рублей
A65: Медсестра | B65: Макаримова Ю.В. | E65: Заведующий производством | I65: Илалова Р.И.

Sheet 19 (в)
A1: ГБОУ Альметьевская школа № 19 для детей с ОВЗ
A2: наименование учреждения
A3: Столовая
A4: подразделение | C4: Меню-раскладка
H5: Четверг
E6: 12-18лет
A7: Наименование | B7: Кол-во порций (план) | C7: Кол-во на порцию (гр) | D7: Общее кол-во (кг) | E7: Выход блюда (гр) | F7: Цена (руб) | G7: Общая сумма (руб) | H7: Белки | I7: Жиры | J7: Углеводы | K7: Ккал | L7: В1 | M7: С | N7: А | O7: Е | P7: Са | Q7: Р | R7: Mg | S7: Fe
A8: 09:30-10:30 Завтрак | B8: 156
A9: Каша молочная рисовая с маслом | B9: 156 | E9: 200/10 | G9: =G10+G11+G12+G13+G14 -> 16.94 | H9: 5.10 | I9: 10.72 | J9: 25.91 | K9: 251.00 | L9: 0.40 | M9: 1.90 | N9: 71.60 | O9: 0.40 | P9: 92.30 | Q9: 128.00 | R9: 26.70 | S9: 1.30
A10: Молоко | B10: 156 | C10: 100.000 | D10: =B10*C10/1000 -> 15.60 | F10: 67.57 | G10: =C10*F10/1000 -> 6.76
A11: Масло сливочное | B11: 156 | C11: 10.000 | D11: =B11*C11/1000 -> 1.56 | F11: 606.97 | G11: =C11*F11/1000 -> 6.07
A12: Сахар | B12: 156 | C12: 6.000 | D12: 0.94 | F12: 50.00 | G12: 0.30
A13: Рис | B13: 156 | C13: 44.000 | D13: 6.86 | F13: 86.00 | G13: 3.78
A14: Соль | B14: 156 | C14: 2.000 | D14: 0.31 | F14: 14.00 | G14: 0.03
A15: Сыр голландский | B15: 156 | E15: 30 | G15: =G16 -> 20.26 | H15: 4.64 | I15: 5.90 | J15: 0.00 | K15: 71.66 | L15: 0.01 | M15: 0.14 | N15: 52.00 | O15: 0.10 | P15: 176.00 | Q15: 100.00 | R15: 7.00 | S15: 0.20
A16: Сыр голландский | B16: 156 | C16: 32.000 | D16: =B16*C16/1000 -> 4.99 | F16: 633.00 | G16: =C16*F16/1000 -> 20.26
A17: Ряженка | B17: 138 | E17: 200 | G17: =G18 -> 19.31 | H17: 3.17 | I17: 2.68 | J17: 28.27 | K17: 100.80 | L17: 0.03 | M17: 1.47 | P17: 158.67 | Q17: 132.00 | R17: 29.33 | S17: 2.40
A18: Ряженка | B18: 138 | C18: 200.000 | D18: =B18*C18/1000 -> 27.60 | F18: 96.55 | G18: =C18*F18/1000 -> 19.31
A19: Хлеб белый | B19: 156 | D19: 0.00 | E19: 120 | G19: =G20 -> 4.92 | H19: 12.18 | I19: 3.17 | J19: 28.5 | K19: 233.80 | L19: 0.05 | O19: 0.65 | P19: 11.50 | Q19: 43.50 | R19: 16.50 | S19: 0.55
A20: Хлеб белый | B20: 156 | C20: 120.000 | D20: 18.72 | F20: 41.00 | G20: 4.92
B21: 156 | H21: =SUM(H9:H20) -> 25.09 | I21: 22.47 | J21: 82.68 | K21: 657.26 | L21: 0.49 | M21: 3.51 | N21: 123.60 | O21: 1.15 | P21: 438.47 | Q21: 403.50 | R21: 79.53 | S21: 4.45
A22: 12:00-13:00 Обед | B22: =B8 -> 156
A23: Салат картофель с морковью | B23: 156 | E23: 100 | G23: =SUM(G24:G28) -> 6.69 | H23: 1.00 | I23: 2.00 | J23: 6.10 | K23: 46.40 | L23: 0.10 | M23: 13.00 | O23: 2.95 | P23: 40.00 | Q23: 48.80 | R23: 23.40 | S23: 1.02
A24: Картофель | B24: 156 | C24: 63.000 | D24: =B24*C24/1000 -> 9.83 | F24: 16.90 | G24: =C24*F24/1000 -> 1.06
A25: Морковь | B25: 156 | C25: 26.000 | D25: 4.06 | F25: 22.40 | G25: =C25*F25/1000 -> 0.58
A26: Зеленый горошек | B26: 156 | C26: 26.000 | D26: 4.06 | F26: 113.00 | G26: 2.94
A27: Яйцо | B27: 156 | C27: 8.000 | D27: 1.25 | F27: 7.00 | G27: =C27*F27/40 -> 1.40
A28: Масло растительное | B28: 156 | C28: 6.000 | D28: 0.94 | F28: 117.00 | G28: 0.70
A29: Суп с макаронными изделиями и картофелем с цыплятами | B29: 156 | E29: 250/25 | G29: =G30+G31+G32+G33+G34+G35+G36+G37+G38 -> 11.69 | H29: 2.69 | I29: 2.84 | J29: 2.75 | K29: 118.00 | L29: 0.10 | M29: 0.50 | N29: 23.40 | O29: 0.30 | P29: 197.30 | Q29: 166.90 | R29: 24.90 | S29: 0.50
A30: Макароны | B30: 156 | C30: 13.000 | D30: 2.03 | F30: 42.50 | G30: =C30*F30/1000 -> 0.55
A31: Картофель | B31: 156 | C31: 67.000 | D31: 10.45 | F31: 16.90 | G31: =C31*F31/1000 -> 1.13
A32: Лук репчатый | B32: 156 | C32: 12.000 | D32: 1.87 | F32: 24.00 | G32: 0.29
A33: Цыплята | B33: 156 | C33: 46.000 | D33: 7.18 | F33: 193.00 | G33: 8.88
A34: Морковь | B34: 156 | C34: 13.000 | D34: 2.03 | F34: 22.40 | G34: 0.29
A35: Перец молотый | B35: 156 | C35: 0.001 | D35: 0.00 | G35: 0.00
A36: Паста томатная | B36: 156 | C36: 3.000 | D36: 0.47 | F36: 55.00 | G36: 0.17
A37: Соль | B37: 156 | C37: 2.000 | D37: 0.31 | F37: 14.00 | G37: 0.03
A38: Масло растительное | B38: 156 | C38: 3.000 | D38: 0.47 | F38: 117.00 | G38: 0.35
A39: Рыба припушенная | B39: 156 | E39: 100 | G39: =G40+G41+G42+G43 -> 45.26 | H39: 15.89 | I39: 11.67 | J39: 3.09 | K39: 292.36 | L39: 0.04 | M39: 0.67 | N39: 24.40 | P39: 24.54 | Q39: 83.48 | R39: 15.09 | S39: 0.41
A40: Горбуша | B40: 156 | C40: 122.000 | D40: 19.03 | F40: 330.00 | G40: =C40*F40/1000 -> 40.26
A41: Лук репчатый | B41: 156 | C41: 5.000 | D41: 0.78 | F41: 24.00 | G41: =C41*F41/1000 -> 0.12
A42: Масло сливочное | B42: 156 | C42: 8.000 | D42: 1.25 | F42: 606.97 | G42: 4.86
A43: Соль | B43: 156 | C43: 2.000 | D43: 0.31 | F43: 14.00 | G43: 0.03
A44: Рис отварной | B44: 156 | E44: 150 | G44: =G45+G46+G47 -> 9.44 | H44: 3.67 | I44: 5.42 | J44: 36.67 | K44: 210.11 | L44: 0.03 | N44: 36.00 | O44: 0.80 | P44: 3.48 | Q44: 82.00 | R44: 25.34 | S44: 0.70
A45: Рис | B45: 156 | C45: 53.000 | D45: =B45*C45/1000 -> 8.268 | F45: 86.00 | G45: =C45*F45/1000 -> 4.56
A46: Масло сливочное | B46: 156 | C46: 8.000 | D46: 1.248 | F46: 606.97 | G46: 4.86
A47: Соль | B47: 156 | C47: 2.000 | D47: 0.312 | F47: 14.00 | G47: 0.03
A48: Компот из апельсин | B48: 156 | E48: 200 | G48: =G49+G50 -> 8.61 | H48: 0.45 | I48: 0.10 | J48: 33.99 | K48: 141.20 | L48: 0.1 | M48: 60 | P48: 115.1 | Q48: 57.5 | R48: 38.13 | S48: 1.2
A49: Апельсины | B49: 156 | C49: 80.000 | D49: 12.48 | F49: 88.90 | G49: 7.11
A50: Сахар | B50: 156 | C50: 30.000 | D50: 4.68 | F50: 50.00 | G50: 1.50
A51: Хлеб Дарницкий | B51: 156 | E51: 72 | G51: =SUM(G52) -> 2.95 | H51: 8.46 | I51: 2.51 | J51: 44.33 | K51: 186 | L51: 0.07 | O51: 0.54 | P51: 13.8 | Q51: 63.6 | R51: 15 | S51: 1.86
A52: Хлеб | B52: 156 | C52: 72.000 | D52: 11.23 | F52: 41.00 | G52: =C52*F52/1000 -> 2.95
A53: Яблоки свежие | B53: 156 | E53: 170 | G53: =SUM(G54) -> 10.66 | H53: 0.68 | I53: 0.51 | J53: 13.50 | K53: 80.00 | L53: 0.02 | M53: 7.50 | O53: 0.15 | P53: 12.00 | Q53: 8.25 | R53: 6.75 | S53: 1.65
A54: Яблоки | B54: 156 | C54: 170.000 | D54: =B54*C54/1000 -> 26.52 | F54: 62.70 | G54: =C54*F54/1000 -> 10.66
H55: =SUM(H23:H54) -> 32.84 | I55: =SUM(I29:I54) -> 23.05 | J55: =SUM(J29:J54) -> 134.33 | K55: =SUM(K29:K54) -> 1027.67 | L55: =SUM(L29:L54) -> 0.34 | M55: 68.67 | N55: 83.80 | O55: 1.79 | P55: 366.22 | Q55: 461.73 | R55: 125.21 | S55: 6.32
F56: Итого | G56: =E58*E59 -> 24449.31 | H56: =H21+H55 -> 57.93 | I56: =I21+I55 -> 45.52 | J56: =J21+J55 -> 217.01 | K56: =K21+K55 -> 1684.93 | L56: =L21+L55 -> 0.83 | M56: 72.18 | N56: 207.40 | O56: 2.94 | P56: 804.69 | Q56: 865.23 | R56: 204.74 | S56: 10.77
A58: На питании состоит | E58: 156 | F58: человек
A59: Стоимость рациона питания на 1 человека составляет | E59: =SUM(G9+G15+G17+G19+G23+G29+G39+G44+G48+G51+G53) -> 156.73 | F59: рублей
A61: Медсестра | B61: Макаримова Ю.В. | E61: Заведующий производством | I61: Илалова Р.И.

Sheet 20
A1: ГБОУ Альметьевская школа № 19 для детей с ОВЗ
A2: наименование учреждения
A3: Столовая
A4: подразделение | C4: Меню-раскладка
H5: Пятница
E6: 7-11 лет
A7: Наименование | B7: Кол-во порций (план) | C7: Кол-во на порцию (гр) | D7: Общее кол-во (кг) | E7: Выход блюда (гр) | F7: Цена (руб) | G7: Общая сумма (руб) | H7: Белки | I7: Жиры | J7: Углеводы | K7: Ккал | L7: В1 | M7: С | N7: А | O7: Е | P7: Са | Q7: Р | R7: Mg | S7: Fe
A8: 09:30-10:30 Завтрак | B8: 96
A9: Суп молочный рисовый | B9: 96 | E9: 250 | G9: =SUM(G10:G13) -> 10.98 | H9: 6.76 | I9: 11.43 | J9: 21.61 | K9: 216.00 | L9: 0.18 | M9: 3.30 | N9: 132.00 | P9: 638.00 | Q9: 454.70 | R9: 70.70 | S9: 0.60
A10: Молоко | B10: 96 | C10: 125.000 | D10: =B10*C10/1000 -> 12 | F10: 67.57 | G10: =C10*F10/1000 -> 8.45
A11: Масло сливочное | B11: 96 | C11: 2.000 | D11: =B11*C11/1000 -> 0.192 | F11: 606.97 | G11: =C11*F11/1000 -> 1.21
A12: Рис | B12: 96 | C12: 15.000 | D12: 1.44 | F12: 86.00 | G12: 1.29
A13: Соль | B13: 96 | C13: 2.000 | D13: 0.192 | F13: 14.00 | G13: 0.03
A14: Кисель фруктовый | B14: 96 | E14: 200 | G14: =G15 -> 2.40 | H14: 0.44 | I14: 0.07 | J14: 34.28 | K14: 139.51 | M14: 80.00 | O14: 0.18 | P14: 8.20 | Q14: 6.42 | R14: 0.96 | S14: 0.28
A15: Кисель фруктовый | B15: 96 | C15: 32.000 | D15: 3.072 | F15: 75.00 | G15: 2.40
A16: Хлеб белый в/с | B16: 96 | E16: 90 | G16: =G17 -> 3.69 | H16: 12.18 | I16: 3.17 | J16: 28.5 | K16: 233.80 | L16: 0.05 | O16: 0.65 | P16: 11.50 | Q16: 43.50 | R16: 16.50 | S16: 0.55
A17: Хлеб белый в/с | B17: 96 | C17: 90.000 | D17: 8.64 | F17: 41.00 | G17: 3.69
H18: =SUM(H8:H17) -> 19.38 | I18: =SUM(I8:I17) -> 14.67 | J18: =SUM(J8:J17) -> 84.39 | K18: =SUM(K8:K17) -> 589.31 | L18: =SUM(L8:L17) -> 0.23 | M18: 83.30 | N18: 132.00 | O18: 0.83 | P18: 657.70 | Q18: 504.62 | R18: 88.16 | S18: 1.43
A19: 12:00-13:00 Обед | B19: 96
A20: Суп картофельный с гречкой | B20: 96 | E20: 250/50 | G20: =SUM(G21:G25) -> 2.65 | H20: 13.44 | I20: 50.00 | J20: 15.80 | K20: 164.00 | L20: 0.24 | M20: 14.40 | O20: 1.53 | P20: 20.46 | Q20: 91.92 | R20: 37.29 | S20: 1.41
A21: Картофель | B21: 96 | C21: 100.000 | D21: 9.6 | F21: 16.90 | G21: =C21*F21/1000 -> 1.69
A22: Лук репчатый | B22: 96 | C22: 12.000 | D22: 1.152 | F22: 24.00 | G22: =C22*F22/1000 -> 0.29
A23: Морковь | B23: 96 | C23: 13.000 | D23: 1.248 | F23: 22.40 | G23: 0.29
A24: Соль | B24: 96 | C24: 2.000 | D24: 0.192 | F24: 14.00 | G24: 0.03
A25: Масло растительное | B25: 96 | C25: 3.000 | D25: 0.288 | F25: 117.00 | G25: 0.35
A26: Шницель натуральный | B26: 96 | E26: 75/5 | G26: =SUM(G27:G31) -> 39.61 | H26: 13.83 | I26: 28.63 | J26: 103.20 | K26: 341.00 | L26: 0.07 | N26: 31.7 | P26: 12.69 | Q26: 144.68 | R26: 22.37 | S26: 2.64
A27: Нарезка мясная | B27: 96 | C27: 95.000 | D27: =B27*C27/1000 -> 9.12 | F27: 370.00 | G27: =C27*F27/1000 -> 35.15
A28: Яйцо | B28: 96 | C28: 4.000 | D28: 0.384 | F28: 7.00 | G28: =C28*F28/40 -> 0.70
A29: Масло сливочное | B29: 96 | C29: 5.000 | D29: 0.48 | F29: 606.97 | G29: =C29*F29/1000 -> 3.03
A30: Соль | B30: 96 | C30: 2.000 | D30: 0.192 | F30: 14.00 | G30: 0.03
A31: Масло растительное | B31: 96 | C31: 6.000 | D31: 0.576 | F31: 117.00 | G31: 0.70
A32: Капуста тушеная | B32: 96 | E32: 100 | G32: =SUM(G33:G43) -> 5.78 | H32: 3.30 | I32: 1.20 | J32: 21.40 | K32: 111.00 | L32: 0.06 | M32: 32.40 | O32: 1.65 | P32: 113.70 | Q32: 89.25 | R32: 42.90 | S32: 3.45
A33: Капуста б/к | B33: 96 | C33: 143.000 | D33: =B33*C33/1000 -> 13.73 | F33: 18.30 | G33: =C33*F33/1000 -> 2.62
A34: Масло сливочное | B34: 96 | C34: 4.000 | D34: 0.38 | F34: 606.97 | G34: =C34*F34/1000 -> 2.43
A35: Морковь | B35: 96 | C35: 3.000 | D35: 0.29 | F35: 22.40 | G35: 0.07
A36: Лук репчатый | B36: 96 | C36: 5.000 | D36: 0.48 | F36: 24.00 | G36: 0.12
A37: Томат паста | B37: 96 | C37: 6.000 | D37: 0.58 | F37: 55.00 | G37: 0.33
A38: Лимонная кислота | B38: 96 | C38: 0.050 | D38: 0.00 | G38: 0.00
A39: Мука пшеничная | B39: 96 | C39: 1.200 | D39: 0.12 | F39: 33.00 | G39: 0.04
A40: сахар | B40: 96 | C40: 3.000 | D40: 0.29 | F40: 50.00 | G40: 0.15
A41: Соль | B41: 96 | C41: 2.000 | D41: 0.19 | F41: 14.00 | G41: 0.03
A42: Перец черный горошек | B42: 96 | C42: 0.020 | D42: 0.00 | G42: 0.00
A43: Лавровый лист | B43: 96 | C43: 0.010 | D43: 0.00 | G43: 0.00
A44: Компот из яблок | B44: 96 | E44: 200 | G44: =G45+G46+G47 -> 4.02 | H44: 0.16 | I44: 0.16 | J44: 23.56 | K44: 114.60 | L44: 0.01 | M44: 1.80 | P44: 6.40 | Q44: 4.40 | R44: 3.60 | S44: 0.18
A45: Яблоки | B45: 96 | C45: 45.000 | D45: =B45*C45/1000 -> 4.32 | F45: 62.70 | G45: =C45*F45/1000 -> 2.82
A46: Сахар | B46: 96 | C46: 24.000 | D46: 2.304 | F46: 50.00 | G46: 1.20
A47: Лимонная кислота | B47: 96 | C47: 0.002 | D47: 0.000192 | G47: 0.00
A48: Крендель сахарный | B48: 96 | E48: 50 | G48: =SUM(G49:G55) -> 9.85 | H48: 0.75 | I48: 6.02 | J48: 1.71 | K48: 185.00 | L48: 0.06 | N48: 9.00 | P48: 9.70 | Q48: 37.50 | R48: 12.20 | S48: 0.64
A49: Мука пшеничная | B49: 96 | C49: 42.000 | D49: 4.032 | F49: 24.00 | G49: =C49*F49/1000 -> 1.01
A50: Сахар | B50: 96 | C50: 12.000 | D50: 1.152 | F50: 50.00 | G50: =C50*F50/1000 -> 0.60
A51: Масло сливочное | B51: 96 | C51: 11.000 | D51: 1.06 | F51: 606.97 | G51: 6.68
A52: яйцо | B52: 96 | C52: 6.000 | D52: 0.58 | F52: 7.00 | G52: =C52*F52/40 -> 1.05
A53: соль | B53: 96 | C53: 2.000 | D53: 0.19 | F53: 14.00 | G53: 0.03
A54: дрожжи | B54: 96 | C54: 2.000 | D54: 0.19 | F54: 222.00 | G54: 0.44
A55: Масло растительное | B55: 96 | C55: 0.400 | D55: 0.04 | F55: 117.00 | G55: 0.05
A56: Хлеб Дарницкий | B56: 96 | E56: 48 | G56: =G57 -> 1.97 | H56: 8.46 | I56: 2.51 | J56: 44.33 | K56: 186 | L56: 0.04 | O56: 0.36 | P56: 9.20 | Q56: 42.40 | R56: 10.00 | S56: 1.24
A57: Хлеб Дарницкий | B57: 96 | C57: 48.000 | D57: 4.61 | F57: 41.00 | G57: =C57*F57/1000 -> 1.97
H58: =SUM(H20:H57) -> 39.94 | I58: =SUM(I20:I57) -> 88.52 | J58: =SUM(J20:J57) -> 210.00 | K58: =SUM(K20:K57) -> 1101.60 | L58: =SUM(L20:L57) -> 0.48 | M58: 48.60 | N58: 40.70 | O58: 3.54 | P58: 172.15 | Q58: 410.15 | R58: 128.36 | S58: 9.56
A59: 14:30-15:00 Полдник | B59: 96
A60: Банан | B60: 96 | E60: 100 | G60: =G61 -> 22.00 | H60: 3.00 | I60: 1.00 | J60: 38.00 | K60: 95.00 | L60: 0.03 | M60: 7.50 | O60: 0.30 | P60: 6.00 | Q60: 21.00 | R60: 31.50 | S60: 0.45
A61: Банан | B61: 96 | C61: 200.000 | D61: =B61*C61/1000 -> 19.20 | F61: 110.00 | G61: =C61*F61/1000 -> 22.00
A62: Молоко кипяченое | B62: 96 | E62: 200 | G62: =SUM(G63) -> 14.26 | H62: 5.80 | I62: 5.00 | J62: 16.00 | K62: 107.00 | L62: 0.08 | M62: 2.60 | N62: 40.00 | P62: 240.00 | Q62: 180.00 | R62: 28.00 | S62: 0.20
A63: Молоко | B63: 96 | C63: 211.000 | D63: =B63*C63/1000 -> 20.256 | F63: 67.57 | G63: =C63*F63/1000 -> 14.26
H64: =SUM(H60:H62) -> 8.80 | I64: 6.00 | J64: 54.00 | K64: 202.00 | L64: 0.08 | M64: 10.10 | N64: 40.00 | O64: 0.30 | P64: 246.00 | Q64: 201.00 | R64: 59.50 | S64: 0.65
F65: Итого | G65: =E67*E68 -> 11252.26 | H65: =H18+H58+H64 -> 68.12 | I65: 109.19 | J65: 348.39 | K65: 1892.91 | L65: 0.79 | M65: 142.00 | N65: 212.70 | O65: 4.67 | P65: 1075.85 | Q65: 1115.77 | R65: 276.02 | S65: 11.64
A67: На питании состоит | E67: 96 | F67: человек
A68: Стоимость рациона питания на 1 человека составляет | E68: =SUM(G9+G14+G16+G20+G26+G32+G44+G48+G56+G60+G62) -> 117.21 | F68: рублей
A70: Медсестра | B70: Макаримова Ю.В. | E70: Заведующий производством | I70: Илалова Р.И.

Sheet 20 (в)
A1: ГБОУ Альметьевская школа № 19 для детей с ОВЗ
A2: наименование учреждения
A3: Столовая
A4: подразделение | C4: Меню-раскладка
H5: Пятница
E6: 12-18 лет
A7: Наименование | B7: Кол-во порций (план) | C7: Кол-во на порцию (гр) | D7: Общее кол-во (кг) | E7: Выход блюда (гр) | F7: Цена (руб) | G7: Общая сумма (руб) | H7: Белки | I7: Жиры | J7: Углеводы | K7: Ккал | L7: В1 | M7: С | N7: А | O7: Е | P7: Са | Q7: Р | R7: Mg | S7: Fe
A8: 09:30-10:30 Завтрак | B8: 156
A9: Суп молочный рисовый | B9: 156 | E9: 250 | G9: =SUM(G10:G13) -> 10.98 | H9: 6.76 | I9: 11.43 | J9: 21.61 | K9: 216.00 | L9: 0.18 | M9: 3.30 | N9: 132.00 | P9: 638.00 | Q9: 454.70 | R9: 70.70 | S9: 0.60
A10: Молоко | B10: 156 | C10: 125.000 | D10: =B10*C10/1000 -> 19.5 | F10: 67.57 | G10: =C10*F10/1000 -> 8.45
A11: Масло сливочное | B11: 156 | C11: 2.000 | D11: =B11*C11/1000 -> 0.312 | F11: 606.97 | G11: =C11*F11/1000 -> 1.21
A12: рис | B12: 156 | C12: 15.000 | D12: 2.34 | F12: 86.00 | G12: 1.29
A13: Соль | B13: 156 | C13: 2.000 | D13: 0.312 | F13: 14.00 | G13: 0.03
A14: Кисель фруктовый | B14: 156 | E14: 200 | G14: =G15 -> 2.40 | H14: 0.44 | I14: 0.07 | J14: 34.28 | K14: 200.00 | M14: 80.00 | O14: 0.18 | P14: 8.20 | Q14: 6.42 | R14: 0.96 | S14: 0.28
A15: Кисель фруктовый | B15: 156 | C15: 32.000 | D15: 4.992 | F15: 75.00 | G15: 2.40
A16: Хлеб белый в/с | B16: 156 | E16: 120 | G16: =G17 -> 4.92 | H16: 12.18 | I16: 3.17 | J16: 28.5 | K16: 336.00 | L16: 0.05 | O16: 0.65 | P16: 11.50 | Q16: 43.50 | R16: 16.50 | S16: 0.55
A17: Хлеб белый в/с | B17: 156 | C17: 120.000 | D17: 18.72 | F17: 41.00 | G17: 4.92
H18: =SUM(H8:H17) -> 19.38 | I18: =SUM(I8:I17) -> 14.67 | J18: =SUM(J8:J17) -> 84.39 | K18: =SUM(K8:K17) -> 752.00 | L18: =SUM(L8:L17) -> 0.23 | M18: 83.30 | N18: 132.00 | O18: 0.83 | P18: 657.70 | Q18: 504.62 | R18: 88.16 | S18: 1.43
A19: 12:00-13:00 Обед | B19: 156
A20: Суп картофельный с гречкой | B20: 156 | E20: 250 | G20: =SUM(G21:G25) -> 2.65 | H20: 13.44 | I20: 50.00 | J20: 15.80 | K20: 164.00 | L20: 0.24 | M20: 14.40 | O20: 1.53 | P20: 20.46 | Q20: 91.92 | R20: 37.29 | S20: 1.41
A21: Картофель | B21: 156 | C21: 100.000 | D21: 15.6 | F21: 16.90 | G21: =C21*F21/1000 -> 1.69
A22: Лук репчатый | B22: 156 | C22: 12.000 | D22: 1.872 | F22: 24.00 | G22: =C22*F22/1000 -> 0.29
A23: Морковь | B23: 156 | C23: 13.000 | D23: 2.028 | F23: 22.40 | G23: 0.29
A24: Соль | B24: 156 | C24: 2.000 | D24: 0.312 | F24: 14.00 | G24: 0.03
A25: Масло растительное | B25: 156 | C25: 3.000 | D25: 0.468 | F25: 117.00 | G25: 0.35
A26: Шницель натуральный | B26: 156 | E26: 75/5 | G26: =SUM(G27:G31) -> 39.61 | H26: 13.83 | I26: 28.63 | J26: 103.20 | K26: 341.00 | L26: 0.07 | N26: 31.7 | P26: 12.69 | Q26: 144.68 | R26: 22.37 | S26: 2.64
A27: Нарезка мясная | B27: 156 | C27: 95.000 | D27: =B27*C27/1000 -> 14.82 | F27: 370.00 | G27: =C27*F27/1000 -> 35.15
A28: Яйцо | B28: 156 | C28: 4.000 | D28: 0.624 | F28: 7.00 | G28: =C28*F28/40 -> 0.70
A29: Масло сливочное | B29: 156 | C29: 5.000 | D29: 0.78 | F29: 606.97 | G29: =C29*F29/1000 -> 3.03
A30: Соль | B30: 156 | C30: 2.000 | D30: 0.312 | F30: 14.00 | G30: 0.03
A31: Масло растительное | B31: 156 | C31: 6.000 | D31: 0.936 | F31: 117.00 | G31: 0.70
A32: Капуста тушеная | B32: 156 | E32: 100 | G32: =SUM(G33:G43) -> 5.77 | H32: 3.30 | I32: 1.20 | J32: 21.40 | K32: 111.00 | L32: 0.06 | M32: 32.40 | O32: 1.65 | P32: 113.70 | Q32: 89.25 | R32: 42.90 | S32: 3.45
A33: Капуста б/к | B33: 156 | C33: 143.000 | D33: =B33*C33/1000 -> 22.31 | F33: 18.30 | G33: =C33*F33/1000 -> 2.62
A34: Масло сливочное | B34: 156 | C34: 4.000 | D34: 0.62 | F34: 606.97 | G34: =C34*F34/1000 -> 2.43
A35: Морковь | B35: 156 | C35: 3.000 | D35: 0.47 | F35: 22.40 | G35: 0.07
A36: Лук репчатый | B36: 156 | C36: 5.000 | D36: 0.78 | F36: 24.00 | G36: 0.12
A37: Томат паста | B37: 156 | C37: 6.000 | D37: 0.94 | F37: 55.00 | G37: 0.33
A38: Лимонная кислота | B38: 156 | C38: 0.050 | D38: 0.01 | G38: 0.00
A39: Мука пшеничная | B39: 156 | C39: 1.200 | D39: 0.19 | F39: 24.00 | G39: 0.03
A40: сахар | B40: 156 | C40: 3.000 | D40: 0.47 | F40: 50.00 | G40: 0.15
A41: Соль | B41: 156 | C41: 2.000 | D41: 0.31 | F41: 14.00 | G41: 0.03
A42: Перец черный горошек | B42: 156 | C42: 0.020 | D42: 0.00 | G42: 0.00
A43: Лавровый лист | B43: 156 | C43: 0.010 | D43: 0.00 | G43: 0.00
A44: Компот из яблок | B44: 156 | E44: 200 | G44: =G45+G46+G47 -> 4.26 | H44: 0.16 | I44: 0.16 | J44: 23.56 | K44: 114.60 | L44: 0.01 | M44: 1.80 | P44: 6.40 | Q44: 4.40 | R44: 3.60 | S44: 0.18
A45: Яблоки | B45: 156 | C45: 45.000 | D45: =B45*C45/1000 -> 7.02 | F45: 67.90 | G45: =C45*F45/1000 -> 3.06
A46: Сахар | B46: 156 | C46: 24.000 | D46: 3.744 | F46: 50.00 | G46: 1.20
A47: Лимонная кислота | B47: 156 | C47: 0.002 | D47: 0.000312 | G47: 0.00
A48: Банан | B48: 96 | E48: 100 | G48: =G49 -> 22.00 | H48: 3.00 | I48: 1.00 | J48: 38.00 | K48: 95.00 | L48: 0.03 | M48: 7.50 | O48: 0.30 | P48: 6.00 | Q48: 21.00 | R48: 31.50 | S48: 0.45
A49: Банан | B49: 96 | C49: 200.000 | D49: =B49*C49/1000 -> 19.20 | F49: 110.00 | G49: =C49*F49/1000 -> 22.00
A50: Хлеб Дарницкий | B50: 156 | E50: 72 | G50: =G51 -> 2.95 | H50: 8.46 | I50: 2.51 | J50: 44.33 | K50: 186 | L50: 0.07 | O50: 0.54 | P50: 13.8 | Q50: 63.6 | R50: 15 | S50: 1.86
A51: Хлеб Дарницкий | B51: 156 | C51: 72.000 | D51: 11.23 | F51: 41.00 | G51: =C51*F51/1000 -> 2.95
H52: =SUM(H20:H51) -> 42.19 | I52: 83.50 | J52: 246.29 | K52: 1011.60 | L52: 0.45 | M52: 56.10 | N52: 31.70 | O52: 4.02 | P52: 173.05 | Q52: 414.85 | R52: 152.66 | S52: 9.99
F53: Итого | G53: =E55*E56 -> 14903.85 | H53: =H18+H52 -> 61.57 | I53: 98.17 | J53: 330.68 | K53: 1763.60 | L53: 0.68 | M53: 139.40 | N53: 163.70 | O53: 4.85 | P53: 830.75 | Q53: 919.47 | R53: 240.82 | S53: 11.42
A55: На питании состоит | E55: 156 | F55: человек
A56: Стоимость рациона питания на 1 человека составляет | E56: =SUM(G9+G14+G16+G20+G26+G32+G44+G48+G50) -> 95.54 | F56: рублей
A58: Медсестра | B58: Макаримова Ю.В. | E58: Заведующий производством | I58: Илалова Р.И.

Sheet Лист1
